Workbook

Sheet REPORT
H2: DAILY MARKETING REPORT
H3: ALLOCATION vs WITHDRAWALS AS OF
G4: MAY | H4: 31 | I4: 2014
F5: ----------------------------------------------
F6: SUMMARIES
B9: ARIAS WAREHOUSE
D10: L.LAPU | E10: ELEF. | F10: ORO EX. | G10: G.HARV. | H10: S.LORD | I10: S.BLEND | J10: A.PURP. | K10: S.NOODLE | L10: S.GOOD. | M10: C.TAIL | N10: E.DRAGON | O10: TOTAL
B11: PREVIOUS BALANCE | O11: =SUM(D11:N11) -> 0
B12: ARRIVALS | D12: =SUMIFS(ARRIVALS!$D$5:$D$4000,ARRIVALS!$B$5:$B$4000,">=1"&"-"&LEFT($G$4,3),ARRIVALS!$B$5:$B$4000,"<="&$H$4&"-"&LEFT($G$4,3),ARRIVALS!$C$5:$C$4000,D$10) -> 20000 | E12: =SUMIFS(ARRIVALS!$D$5:$D$4000,ARRIVALS!$B$5:$B$4000,">=1"&"-"&LEFT($G$4,3),ARRIVALS!$B$5:$B$4000,"<="&$H$4&"-"&LEFT($G$4,3),ARRIVALS!$C$5:$C$4000,E$10) -> 10000 | F12: =SUMIFS(ARRIVALS!$D$5:$D$4000,ARRIVALS!$B$5:$B$4000,">=1"&"-"&LEFT($G$4,3),ARRIVALS!$B$5:$B$4000,"<="&$H$4&"-"&LEFT($G$4,3),ARRIVALS!$C$5:$C$4000,F$10) -> 10000 | G12: =SUMIFS(ARRIVALS!$D$5:$D$4000,ARRIVALS!$B$5:$B$4000,">=1"&"-"&LEFT($G$4,3),ARRIVALS!$B$5:$B$4000,"<="&$H$4&"-"&LEFT($G$4,3),ARRIVALS!$C$5:$C$4000,G$10) -> 10000 | H12: =SUMIFS(ARRIVALS!$D$5:$D$4000,ARRIVALS!$B$5:$B$4000,">=1"&"-"&LEFT($G$4,3),ARRIVALS!$B$5:$B$4000,"<="&$H$4&"-"&LEFT($G$4,3),ARRIVALS!$C$5:$C$4000,H$10) -> 10000 | I12: =SUMIFS(ARRIVALS!$D$5:$D$4000,ARRIVALS!$B$5:$B$4000,">=1"&"-"&LEFT($G$4,3),ARRIVALS!$B$5:$B$4000,"<="&$H$4&"-"&LEFT($G$4,3),ARRIVALS!$C$5:$C$4000,I$10) -> 10000 | J12: =SUMIFS(ARRIVALS!$D$5:$D$4000,ARRIVALS!$B$5:$B$4000,">=1"&"-"&LEFT($G$4,3),ARRIVALS!$B$5:$B$4000,"<="&$H$4&"-"&LEFT($G$4,3),ARRIVALS!$C$5:$C$4000,J$10) -> 10000 | K12: =SUMIFS(ARRIVALS!$D$5:$D$4000,ARRIVALS!$B$5:$B$4000,">=1"&"-"&LEFT($G$4,3),ARRIVALS!$B$5:$B$4000,"<="&$H$4&"-"&LEFT($G$4,3),ARRIVALS!$C$5:$C$4000,K$10) -> 10000 | L12: =SUMIFS(ARRIVALS!$D$5:$D$4000,ARRIVALS!$B$5:$B$4000,">=1"&"-"&LEFT($G$4,3),ARRIVALS!$B$5:$B$4000,"<="&$H$4&"-"&LEFT($G$4,3),ARRIVALS!$C$5:$C$4000,L$10) -> 0 | M12: =SUMIFS(ARRIVALS!$D$5:$D$4000,ARRIVALS!$B$5:$B$4000,">=1"&"-"&LEFT($G$4,3),ARRIVALS!$B$5:$B$4000,"<="&$H$4&"-"&LEFT($G$4,3),ARRIVALS!$C$5:$C$4000,M$10) -> 10000 | N12: =SUMIFS(ARRIVALS!$D$5:$D$4000,ARRIVALS!$B$5:$B$4000,">=1"&"-"&LEFT($G$4,3),ARRIVALS!$B$5:$B$4000,"<="&$H$4&"-"&LEFT($G$4,3),ARRIVALS!$C$5:$C$4000,N$10) -> 10000 | O12: 110000
B13: WITHDRAWALS | D13: =SUMIFS(WITHDRAWALS!$F$5:$F$1000,WITHDRAWALS!$B$5:$B$1000,">=1"&"-"&LEFT(REPORT!$G$4,3),WITHDRAWALS!$B$5:$B$1000,"<="&$H$4&"-"&LEFT(REPORT!$G$4,3),WITHDRAWALS!$E$5:$E$1000,D$10,WITHDRAWALS!$D$5:$D$1000,"EX-PASIG") -> 800 | E13: =SUMIFS(WITHDRAWALS!$F$5:$F$1000,WITHDRAWALS!$B$5:$B$1000,">=1"&"-"&LEFT(REPORT!$G$4,3),WITHDRAWALS!$B$5:$B$1000,"<="&$H$4&"-"&LEFT(REPORT!$G$4,3),WITHDRAWALS!$E$5:$E$1000,E$10,WITHDRAWALS!$D$5:$D$1000,"EX-PASIG") -> 2250 | F13: =SUMIFS(WITHDRAWALS!$F$5:$F$1000,WITHDRAWALS!$B$5:$B$1000,">=1"&"-"&LEFT(REPORT!$G$4,3),WITHDRAWALS!$B$5:$B$1000,"<="&$H$4&"-"&LEFT(REPORT!$G$4,3),WITHDRAWALS!$E$5:$E$1000,F$10,WITHDRAWALS!$D$5:$D$1000,"EX-PASIG") -> 0 | G13: =SUMIFS(WITHDRAWALS!$F$5:$F$1000,WITHDRAWALS!$B$5:$B$1000,">=1"&"-"&LEFT(REPORT!$G$4,3),WITHDRAWALS!$B$5:$B$1000,"<="&$H$4&"-"&LEFT(REPORT!$G$4,3),WITHDRAWALS!$E$5:$E$1000,G$10,WITHDRAWALS!$D$5:$D$1000,"EX-PASIG") -> 1500 | H13: =SUMIFS(WITHDRAWALS!$F$5:$F$1000,WITHDRAWALS!$B$5:$B$1000,">=1"&"-"&LEFT(REPORT!$G$4,3),WITHDRAWALS!$B$5:$B$1000,"<="&$H$4&"-"&LEFT(REPORT!$G$4,3),WITHDRAWALS!$E$5:$E$1000,H$10,WITHDRAWALS!$D$5:$D$1000,"EX-PASIG") -> 500 | I13: =SUMIFS(WITHDRAWALS!$F$5:$F$1000,WITHDRAWALS!$B$5:$B$1000,">=1"&"-"&LEFT(REPORT!$G$4,3),WITHDRAWALS!$B$5:$B$1000,"<="&$H$4&"-"&LEFT(REPORT!$G$4,3),WITHDRAWALS!$E$5:$E$1000,I$10,WITHDRAWALS!$D$5:$D$1000,"EX-PASIG") -> 300 | J13: =SUMIFS(WITHDRAWALS!$F$5:$F$1000,WITHDRAWALS!$B$5:$B$1000,">=1"&"-"&LEFT(REPORT!$G$4,3),WITHDRAWALS!$B$5:$B$1000,"<="&$H$4&"-"&LEFT(REPORT!$G$4,3),WITHDRAWALS!$E$5:$E$1000,J$10,WITHDRAWALS!$D$5:$D$1000,"EX-PASIG") -> 0 | K13: =SUMIFS(WITHDRAWALS!$F$5:$F$1000,WITHDRAWALS!$B$5:$B$1000,">=1"&"-"&LEFT(REPORT!$G$4,3),WITHDRAWALS!$B$5:$B$1000,"<="&$H$4&"-"&LEFT(REPORT!$G$4,3),WITHDRAWALS!$E$5:$E$1000,K$10,WITHDRAWALS!$D$5:$D$1000,"EX-PASIG") -> 300 | L13: =SUMIFS(WITHDRAWALS!$F$5:$F$1000,WITHDRAWALS!$B$5:$B$1000,">=1"&"-"&LEFT(REPORT!$G$4,3),WITHDRAWALS!$B$5:$B$1000,"<="&$H$4&"-"&LEFT(REPORT!$G$4,3),WITHDRAWALS!$E$5:$E$1000,L$10,WITHDRAWALS!$D$5:$D$1000,"EX-PASIG") -> 0 | M13: =SUMIFS(WITHDRAWALS!$F$5:$F$1000,WITHDRAWALS!$B$5:$B$1000,">=1"&"-"&LEFT(REPORT!$G$4,3),WITHDRAWALS!$B$5:$B$1000,"<="&$H$4&"-"&LEFT(REPORT!$G$4,3),WITHDRAWALS!$E$5:$E$1000,M$10,WITHDRAWALS!$D$5:$D$1000,"EX-PASIG") -> 0 | N13: =SUMIFS(WITHDRAWALS!$F$5:$F$1000,WITHDRAWALS!$B$5:$B$1000,">=1"&"-"&LEFT(REPORT!$G$4,3),WITHDRAWALS!$B$5:$B$1000,"<="&$H$4&"-"&LEFT(REPORT!$G$4,3),WITHDRAWALS!$E$5:$E$1000,N$10,WITHDRAWALS!$D$5:$D$1000,"EX-PASIG") -> 500 | O13: =SUM(D13:N13) -> 6150
B14: PRESENT BALANCE | D14: =SUM(D11:D12)-D13 -> 19200 | E14: =SUM(E11:E12)-E13 -> 7750 | F14: =SUM(F11:F12)-F13 -> 10000 | G14: 8500 | H14: 9500 | I14: 9700 | J14: 10000 | K14: 9700 | L14: 0 | M14: 10000 | N14: 9500 | O14: 103850
B17: METRO MANILA DEALERS
D18: L.LAPU | E18: ELEF. | F18: ORO EX. | G18: G.HARV. | H18: S.LORD | I18: S.BLEND | J18: A.PURP. | K18: S.NOODLE | L18: S.GOOD. | M18: C.TAIL | N18: E.DRAGON | O18: TOTAL
B19: PREVIOUS BALANCE | O19: =SUM(D19:N19) -> 0
B20: BOOKINGS | D20: =SUMIFS(BOOKINGS!$E$5:$E$31,BOOKINGS!$A$5:$A$31,">=1"&"-"&LEFT(REPORT!$G$4,3),BOOKINGS!$A$5:$A$31,"<="&$H$4&"-"&LEFT(REPORT!$G$4,3),BOOKINGS!$D$5:$D$31,D$10,BOOKINGS!$C$5:$C$31,"EX-PASIG") -> 1100 | E20: =SUMIFS(BOOKINGS!$E$5:$E$31,BOOKINGS!$A$5:$A$31,">=1"&"-"&LEFT(REPORT!$G$4,3),BOOKINGS!$A$5:$A$31,"<="&$H$4&"-"&LEFT(REPORT!$G$4,3),BOOKINGS!$D$5:$D$31,E$10,BOOKINGS!$C$5:$C$31,"EX-PASIG") -> 2300 | F20: =SUMIFS(BOOKINGS!$E$5:$E$31,BOOKINGS!$A$5:$A$31,">=1"&"-"&LEFT(REPORT!$G$4,3),BOOKINGS!$A$5:$A$31,"<="&$H$4&"-"&LEFT(REPORT!$G$4,3),BOOKINGS!$D$5:$D$31,F$10,BOOKINGS!$C$5:$C$31,"EX-PASIG") -> 0 | G20: =SUMIFS(BOOKINGS!$E$5:$E$31,BOOKINGS!$A$5:$A$31,">=1"&"-"&LEFT(REPORT!$G$4,3),BOOKINGS!$A$5:$A$31,"<="&$H$4&"-"&LEFT(REPORT!$G$4,3),BOOKINGS!$D$5:$D$31,G$10,BOOKINGS!$C$5:$C$31,"EX-PASIG") -> 1500 | H20: =SUMIFS(BOOKINGS!$E$5:$E$31,BOOKINGS!$A$5:$A$31,">=1"&"-"&LEFT(REPORT!$G$4,3),BOOKINGS!$A$5:$A$31,"<="&$H$4&"-"&LEFT(REPORT!$G$4,3),BOOKINGS!$D$5:$D$31,H$10,BOOKINGS!$C$5:$C$31,"EX-PASIG") -> 500 | I20: =SUMIFS(BOOKINGS!$E$5:$E$31,BOOKINGS!$A$5:$A$31,">=1"&"-"&LEFT(REPORT!$G$4,3),BOOKINGS!$A$5:$A$31,"<="&$H$4&"-"&LEFT(REPORT!$G$4,3),BOOKINGS!$D$5:$D$31,I$10,BOOKINGS!$C$5:$C$31,"EX-PASIG") -> 300 | J20: =SUMIFS(BOOKINGS!$E$5:$E$31,BOOKINGS!$A$5:$A$31,">=1"&"-"&LEFT(REPORT!$G$4,3),BOOKINGS!$A$5:$A$31,"<="&$H$4&"-"&LEFT(REPORT!$G$4,3),BOOKINGS!$D$5:$D$31,J$10,BOOKINGS!$C$5:$C$31,"EX-PASIG") -> 0 | K20: =SUMIFS(BOOKINGS!$E$5:$E$31,BOOKINGS!$A$5:$A$31,">=1"&"-"&LEFT(REPORT!$G$4,3),BOOKINGS!$A$5:$A$31,"<="&$H$4&"-"&LEFT(REPORT!$G$4,3),BOOKINGS!$D$5:$D$31,K$10,BOOKINGS!$C$5:$C$31,"EX-PASIG") -> 300 | L20: =SUMIFS(BOOKINGS!$E$5:$E$31,BOOKINGS!$A$5:$A$31,">=1"&"-"&LEFT(REPORT!$G$4,3),BOOKINGS!$A$5:$A$31,"<="&$H$4&"-"&LEFT(REPORT!$G$4,3),BOOKINGS!$D$5:$D$31,L$10,BOOKINGS!$C$5:$C$31,"EX-PASIG") -> 0 | M20: =SUMIFS(BOOKINGS!$E$5:$E$31,BOOKINGS!$A$5:$A$31,">=1"&"-"&LEFT(REPORT!$G$4,3),BOOKINGS!$A$5:$A$31,"<="&$H$4&"-"&LEFT(REPORT!$G$4,3),BOOKINGS!$D$5:$D$31,M$10,BOOKINGS!$C$5:$C$31,"EX-PASIG") -> 0 | N20: =SUMIFS(BOOKINGS!$E$5:$E$31,BOOKINGS!$A$5:$A$31,">=1"&"-"&LEFT(REPORT!$G$4,3),BOOKINGS!$A$5:$A$31,"<="&$H$4&"-"&LEFT(REPORT!$G$4,3),BOOKINGS!$D$5:$D$31,N$10,BOOKINGS!$C$5:$C$31,"EX-PASIG") -> 500 | O20: 6500
B21: WITHDRAWALS | D21: =SUMIFS(WITHDRAWALS!$F$5:$F$1000,WITHDRAWALS!$B$5:$B$1000,">=1"&"-"&LEFT(REPORT!$G$4,3),WITHDRAWALS!$B$5:$B$1000,"<="&$H$4&"-"&LEFT(REPORT!$G$4,3),WITHDRAWALS!$E$5:$E$1000,D$18,WITHDRAWALS!$D$5:$D$1000,"EX-PASIG") -> 800 | E21: =SUMIFS(WITHDRAWALS!$F$5:$F$1000,WITHDRAWALS!$B$5:$B$1000,">=1"&"-"&LEFT(REPORT!$G$4,3),WITHDRAWALS!$B$5:$B$1000,"<="&$H$4&"-"&LEFT(REPORT!$G$4,3),WITHDRAWALS!$E$5:$E$1000,E$18,WITHDRAWALS!$D$5:$D$1000,"EX-PASIG") -> 2250 | F21: =SUMIFS(WITHDRAWALS!$F$5:$F$1000,WITHDRAWALS!$B$5:$B$1000,">=1"&"-"&LEFT(REPORT!$G$4,3),WITHDRAWALS!$B$5:$B$1000,"<="&$H$4&"-"&LEFT(REPORT!$G$4,3),WITHDRAWALS!$E$5:$E$1000,F$18,WITHDRAWALS!$D$5:$D$1000,"EX-PASIG") -> 0 | G21: =SUMIFS(WITHDRAWALS!$F$5:$F$1000,WITHDRAWALS!$B$5:$B$1000,">=1"&"-"&LEFT(REPORT!$G$4,3),WITHDRAWALS!$B$5:$B$1000,"<="&$H$4&"-"&LEFT(REPORT!$G$4,3),WITHDRAWALS!$E$5:$E$1000,G$18,WITHDRAWALS!$D$5:$D$1000,"EX-PASIG") -> 1500 | H21: =SUMIFS(WITHDRAWALS!$F$5:$F$1000,WITHDRAWALS!$B$5:$B$1000,">=1"&"-"&LEFT(REPORT!$G$4,3),WITHDRAWALS!$B$5:$B$1000,"<="&$H$4&"-"&LEFT(REPORT!$G$4,3),WITHDRAWALS!$E$5:$E$1000,H$18,WITHDRAWALS!$D$5:$D$1000,"EX-PASIG") -> 500 | I21: =SUMIFS(WITHDRAWALS!$F$5:$F$1000,WITHDRAWALS!$B$5:$B$1000,">=1"&"-"&LEFT(REPORT!$G$4,3),WITHDRAWALS!$B$5:$B$1000,"<="&$H$4&"-"&LEFT(REPORT!$G$4,3),WITHDRAWALS!$E$5:$E$1000,I$18,WITHDRAWALS!$D$5:$D$1000,"EX-PASIG") -> 300 | J21: =SUMIFS(WITHDRAWALS!$F$5:$F$1000,WITHDRAWALS!$B$5:$B$1000,">=1"&"-"&LEFT(REPORT!$G$4,3),WITHDRAWALS!$B$5:$B$1000,"<="&$H$4&"-"&LEFT(REPORT!$G$4,3),WITHDRAWALS!$E$5:$E$1000,J$18,WITHDRAWALS!$D$5:$D$1000,"EX-PASIG") -> 0 | K21: =SUMIFS(WITHDRAWALS!$F$5:$F$1000,WITHDRAWALS!$B$5:$B$1000,">=1"&"-"&LEFT(REPORT!$G$4,3),WITHDRAWALS!$B$5:$B$1000,"<="&$H$4&"-"&LEFT(REPORT!$G$4,3),WITHDRAWALS!$E$5:$E$1000,K$18,WITHDRAWALS!$D$5:$D$1000,"EX-PASIG") -> 300 | L21: =SUMIFS(WITHDRAWALS!$F$5:$F$1000,WITHDRAWALS!$B$5:$B$1000,">=1"&"-"&LEFT(REPORT!$G$4,3),WITHDRAWALS!$B$5:$B$1000,"<="&$H$4&"-"&LEFT(REPORT!$G$4,3),WITHDRAWALS!$E$5:$E$1000,L$18,WITHDRAWALS!$D$5:$D$1000,"EX-PASIG") -> 0 | M21: =SUMIFS(WITHDRAWALS!$F$5:$F$1000,WITHDRAWALS!$B$5:$B$1000,">=1"&"-"&LEFT(REPORT!$G$4,3),WITHDRAWALS!$B$5:$B$1000,"<="&$H$4&"-"&LEFT(REPORT!$G$4,3),WITHDRAWALS!$E$5:$E$1000,M$18,WITHDRAWALS!$D$5:$D$1000,"EX-PASIG") -> 0 | N21: =SUMIFS(WITHDRAWALS!$F$5:$F$1000,WITHDRAWALS!$B$5:$B$1000,">=1"&"-"&LEFT(REPORT!$G$4,3),WITHDRAWALS!$B$5:$B$1000,"<="&$H$4&"-"&LEFT(REPORT!$G$4,3),WITHDRAWALS!$E$5:$E$1000,N$18,WITHDRAWALS!$D$5:$D$1000,"EX-PASIG") -> 500 | O21: 6150
B22: PRESENT BALANCE | D22: =SUM(D19:D20)-D21 -> 300 | E22: =SUM(E19:E20)-E21 -> 50 | F22: =SUM(F19:F20)-F21 -> 0 | G22: =SUM(G19:G20)-G21 -> 0 | H22: =SUM(H19:H20)-H21 -> 0 | I22: =SUM(I19:I20)-I21 -> 0 | J22: =SUM(J19:J20)-J21 -> 0 | K22: =SUM(K19:K20)-K21 -> 0 | L22: =SUM(L19:L20)-L21 -> 0 | M22: =SUM(M19:M20)-M21 -> 0 | N22: =SUM(N19:N20)-N21 -> 0 | O22: =SUM(O19:O20)-O21 -> 350
B25: PROVINCIAL AREA DEALERS
D26: L.LAPU | E26: ELEF. | F26: ORO EX. | G26: G.HARV. | H26: S.LORD | I26: S.BLEND | J26: A.PURP. | K26: S.NOODLE | L26: S.GOOD. | M26: C.TAIL | N26: E.DRAGON | O26: TOTAL
B27: PREVIOUS BALANCE | O27: =SUM(D27:N27) -> 0
B28: BOOKINGS | D28: =SUMIFS(BOOKINGS!$E$5:$E$31,BOOKINGS!$A$5:$A$31,">=1"&"-"&LEFT(REPORT!$G$4,3),BOOKINGS!$A$5:$A$31,"<="&$H$4&"-"&LEFT(REPORT!$G$4,3),BOOKINGS!$D$5:$D$31,D$10,BOOKINGS!$C$5:$C$31,"FOB MILL") -> 2100 | E28: =SUMIFS(BOOKINGS!$E$5:$E$31,BOOKINGS!$A$5:$A$31,">=1"&"-"&LEFT(REPORT!$G$4,3),BOOKINGS!$A$5:$A$31,"<="&$H$4&"-"&LEFT(REPORT!$G$4,3),BOOKINGS!$D$5:$D$31,E$10,BOOKINGS!$C$5:$C$31,"FOB MILL") -> 0 | F28: =SUMIFS(BOOKINGS!$E$5:$E$31,BOOKINGS!$A$5:$A$31,">=1"&"-"&LEFT(REPORT!$G$4,3),BOOKINGS!$A$5:$A$31,"<="&$H$4&"-"&LEFT(REPORT!$G$4,3),BOOKINGS!$D$5:$D$31,F$10,BOOKINGS!$C$5:$C$31,"FOB MILL") -> 0 | G28: =SUMIFS(BOOKINGS!$E$5:$E$31,BOOKINGS!$A$5:$A$31,">=1"&"-"&LEFT(REPORT!$G$4,3),BOOKINGS!$A$5:$A$31,"<="&$H$4&"-"&LEFT(REPORT!$G$4,3),BOOKINGS!$D$5:$D$31,G$10,BOOKINGS!$C$5:$C$31,"FOB MILL") -> 1500 | H28: =SUMIFS(BOOKINGS!$E$5:$E$31,BOOKINGS!$A$5:$A$31,">=1"&"-"&LEFT(REPORT!$G$4,3),BOOKINGS!$A$5:$A$31,"<="&$H$4&"-"&LEFT(REPORT!$G$4,3),BOOKINGS!$D$5:$D$31,H$10,BOOKINGS!$C$5:$C$31,"FOB MILL") -> 0 | I28: =SUMIFS(BOOKINGS!$E$5:$E$31,BOOKINGS!$A$5:$A$31,">=1"&"-"&LEFT(REPORT!$G$4,3),BOOKINGS!$A$5:$A$31,"<="&$H$4&"-"&LEFT(REPORT!$G$4,3),BOOKINGS!$D$5:$D$31,I$10,BOOKINGS!$C$5:$C$31,"FOB MILL") -> 300 | J28: =SUMIFS(BOOKINGS!$E$5:$E$31,BOOKINGS!$A$5:$A$31,">=1"&"-"&LEFT(REPORT!$G$4,3),BOOKINGS!$A$5:$A$31,"<="&$H$4&"-"&LEFT(REPORT!$G$4,3),BOOKINGS!$D$5:$D$31,J$10,BOOKINGS!$C$5:$C$31,"FOB MILL") -> 0 | K28: =SUMIFS(BOOKINGS!$E$5:$E$31,BOOKINGS!$A$5:$A$31,">=1"&"-"&LEFT(REPORT!$G$4,3),BOOKINGS!$A$5:$A$31,"<="&$H$4&"-"&LEFT(REPORT!$G$4,3),BOOKINGS!$D$5:$D$31,K$10,BOOKINGS!$C$5:$C$31,"FOB MILL") -> 1000 | L28: =SUMIFS(BOOKINGS!$E$5:$E$31,BOOKINGS!$A$5:$A$31,">=1"&"-"&LEFT(REPORT!$G$4,3),BOOKINGS!$A$5:$A$31,"<="&$H$4&"-"&LEFT(REPORT!$G$4,3),BOOKINGS!$D$5:$D$31,L$10,BOOKINGS!$C$5:$C$31,"FOB MILL") -> 0 | M28: =SUMIFS(BOOKINGS!$E$5:$E$31,BOOKINGS!$A$5:$A$31,">=1"&"-"&LEFT(REPORT!$G$4,3),BOOKINGS!$A$5:$A$31,"<="&$H$4&"-"&LEFT(REPORT!$G$4,3),BOOKINGS!$D$5:$D$31,M$10,BOOKINGS!$C$5:$C$31,"FOB MILL") -> 0 | N28: =SUMIFS(BOOKINGS!$E$5:$E$31,BOOKINGS!$A$5:$A$31,">=1"&"-"&LEFT(REPORT!$G$4,3),BOOKINGS!$A$5:$A$31,"<="&$H$4&"-"&LEFT(REPORT!$G$4,3),BOOKINGS!$D$5:$D$31,N$10,BOOKINGS!$C$5:$C$31,"FOB MILL") -> 0 | O28: 4900
B29: WITHDRAWALS | D29: =SUMIFS(WITHDRAWALS!$F$5:$F$1000,WITHDRAWALS!$B$5:$B$1000,">=1"&"-"&LEFT(REPORT!$G$4,3),WITHDRAWALS!$B$5:$B$1000,"<="&$H$4&"-"&LEFT(REPORT!$G$4,3),WITHDRAWALS!$E$5:$E$1000,D$26,WITHDRAWALS!$D$5:$D$1000,"FOB MILL") -> 2000 | E29: =SUMIFS(WITHDRAWALS!$F$5:$F$1000,WITHDRAWALS!$B$5:$B$1000,">=1"&"-"&LEFT(REPORT!$G$4,3),WITHDRAWALS!$B$5:$B$1000,"<="&$H$4&"-"&LEFT(REPORT!$G$4,3),WITHDRAWALS!$E$5:$E$1000,E$26,WITHDRAWALS!$D$5:$D$1000,"FOB MILL") -> 0 | F29: =SUMIFS(WITHDRAWALS!$F$5:$F$1000,WITHDRAWALS!$B$5:$B$1000,">=1"&"-"&LEFT(REPORT!$G$4,3),WITHDRAWALS!$B$5:$B$1000,"<="&$H$4&"-"&LEFT(REPORT!$G$4,3),WITHDRAWALS!$E$5:$E$1000,F$26,WITHDRAWALS!$D$5:$D$1000,"FOB MILL") -> 0 | G29: =SUMIFS(WITHDRAWALS!$F$5:$F$1000,WITHDRAWALS!$B$5:$B$1000,">=1"&"-"&LEFT(REPORT!$G$4,3),WITHDRAWALS!$B$5:$B$1000,"<="&$H$4&"-"&LEFT(REPORT!$G$4,3),WITHDRAWALS!$E$5:$E$1000,G$26,WITHDRAWALS!$D$5:$D$1000,"FOB MILL") -> 1500 | H29: =SUMIFS(WITHDRAWALS!$F$5:$F$1000,WITHDRAWALS!$B$5:$B$1000,">=1"&"-"&LEFT(REPORT!$G$4,3),WITHDRAWALS!$B$5:$B$1000,"<="&$H$4&"-"&LEFT(REPORT!$G$4,3),WITHDRAWALS!$E$5:$E$1000,H$26,WITHDRAWALS!$D$5:$D$1000,"FOB MILL") -> 0 | I29: =SUMIFS(WITHDRAWALS!$F$5:$F$1000,WITHDRAWALS!$B$5:$B$1000,">=1"&"-"&LEFT(REPORT!$G$4,3),WITHDRAWALS!$B$5:$B$1000,"<="&$H$4&"-"&LEFT(REPORT!$G$4,3),WITHDRAWALS!$E$5:$E$1000,I$26,WITHDRAWALS!$D$5:$D$1000,"FOB MILL") -> 250 | J29: =SUMIFS(WITHDRAWALS!$F$5:$F$1000,WITHDRAWALS!$B$5:$B$1000,">=1"&"-"&LEFT(REPORT!$G$4,3),WITHDRAWALS!$B$5:$B$1000,"<="&$H$4&"-"&LEFT(REPORT!$G$4,3),WITHDRAWALS!$E$5:$E$1000,J$26,WITHDRAWALS!$D$5:$D$1000,"FOB MILL") -> 0 | K29: =SUMIFS(WITHDRAWALS!$F$5:$F$1000,WITHDRAWALS!$B$5:$B$1000,">=1"&"-"&LEFT(REPORT!$G$4,3),WITHDRAWALS!$B$5:$B$1000,"<="&$H$4&"-"&LEFT(REPORT!$G$4,3),WITHDRAWALS!$E$5:$E$1000,K$26,WITHDRAWALS!$D$5:$D$1000,"FOB MILL") -> 600 | L29: =SUMIFS(WITHDRAWALS!$F$5:$F$1000,WITHDRAWALS!$B$5:$B$1000,">=1"&"-"&LEFT(REPORT!$G$4,3),WITHDRAWALS!$B$5:$B$1000,"<="&$H$4&"-"&LEFT(REPORT!$G$4,3),WITHDRAWALS!$E$5:$E$1000,L$26,WITHDRAWALS!$D$5:$D$1000,"FOB MILL") -> 0 | M29: =SUMIFS(WITHDRAWALS!$F$5:$F$1000,WITHDRAWALS!$B$5:$B$1000,">=1"&"-"&LEFT(REPORT!$G$4,3),WITHDRAWALS!$B$5:$B$1000,"<="&$H$4&"-"&LEFT(REPORT!$G$4,3),WITHDRAWALS!$E$5:$E$1000,M$26,WITHDRAWALS!$D$5:$D$1000,"FOB MILL") -> 0 | N29: =SUMIFS(WITHDRAWALS!$F$5:$F$1000,WITHDRAWALS!$B$5:$B$1000,">=1"&"-"&LEFT(REPORT!$G$4,3),WITHDRAWALS!$B$5:$B$1000,"<="&$H$4&"-"&LEFT(REPORT!$G$4,3),WITHDRAWALS!$E$5:$E$1000,N$26,WITHDRAWALS!$D$5:$D$1000,"FOB MILL") -> 0 | O29: 4350
B30: PRESENT BALANCE | D30: =SUM(D27:D28)-D29 -> 100 | E30: =SUM(E27:E28)-E29 -> 0 | F30: =SUM(F27:F28)-F29 -> 0 | G30: =SUM(G27:G28)-G29 -> 0 | H30: =SUM(H27:H28)-H29 -> 0 | I30: =SUM(I27:I28)-I29 -> 50 | J30: =SUM(J27:J28)-J29 -> 0 | K30: =SUM(K27:K28)-K29 -> 400 | L30: =SUM(L27:L28)-L29 -> 0 | M30: =SUM(M27:M28)-M29 -> 0 | N30: =SUM(N27:N28)-N29 -> 0 | O30: =SUM(O27:O28)-O29 -> 550
B33: SUMMARY METRO MANILA & PROVINCIAL DEALERS
D34: L.LAPU | E34: ELEF. | F34: ORO EX. | G34: G.HARV. | H34: S.LORD | I34: S.BLEND | J34: A.PURP. | K34: S.NOODLE | L34: S.GOOD. | M34: C.TAIL | N34: E.DRAGON | O34: TOTAL
B35: PREVIOUS BALANCE | O35: =SUM(D35:N35) -> 0
B36: BOOKINGS | D36: =SUM(D20,D28) -> 3200 | E36: =SUM(E20,E28) -> 2300 | F36: 0 | G36: 3000 | H36: 500 | I36: 600 | J36: 0 | K36: 1300 | L36: 0 | M36: 0 | N36: 500 | O36: 11400
B37: WITHDRAWALS | D37: =SUM(D21,D29) -> 2800 | E37: =SUM(E21,E29) -> 2250 | F37: 0 | G37: 3000 | H37: 500 | I37: 550 | J37: 0 | K37: 900 | L37: 0 | M37: 0 | N37: 500 | O37: 10500
B38: PRESENT BALANCE | D38: =SUM(D35:D36)-D37 -> 400 | E38: =SUM(E35:E36)-E37 -> 50 | F38: =SUM(F35:F36)-F37 -> 0 | G38: =SUM(G35:G36)-G37 -> 0 | H38: =SUM(H35:H36)-H37 -> 0 | I38: =SUM(I35:I36)-I37 -> 50 | J38: =SUM(J35:J36)-J37 -> 0 | K38: =SUM(K35:K36)-K37 -> 400 | L38: =SUM(L35:L36)-L37 -> 0 | M38: =SUM(M35:M36)-M37 -> 0 | N38: =SUM(N35:N36)-N37 -> 0 | O38: =SUM(O35:O36)-O37 -> 900

Sheet DMR-ALLOC
F2: DAILY MARKETING REPORT
F3: ALLOCATION vs WITHDRAWALS AS OF: | G3: MAY | H3: 31 | I3: 2014 | J3: =IF(G3="MONTH",0,IF(G3="JANUARY","DEC",IF(G3="JAN","FEB",IF(G3="MARCH","FEB",IF(G3="APRIL",4,IF(G3="MAY","APR",IF(G3="JUNE","MAY",IF(G3="JULY","JUN",IF(G3="AUGUST","JUL",IF(G3="SEPTEMBER","AUG",IF(G3="OCTOBER","SEP",IF(G3="NOVEMBER","OCT",IF(G3="DECEMBER","NOV"))))))))))))) -> APR
A4: PRESENT MONTH'S BALANCE | G4: =(H3&"-"&G3)+0 -> 2014-05-31
A6: DEALERS | B6: L.LAPU | C6: ELEF. | D6: ORO EX. | E6: G.HARV. | F6: S.LORD | G6: S.BLEND | H6: A.PURP | I6: S.NOODLE | J6: S.GODD | K6: C.TAIL | L6: E.DRAGON
A7: =IFERROR(INDEX(WITHDRAWALS!$C$5:$C$4000,SMALL(IF(FREQUENCY(IF(ISNUMBER(SEARCH("??"&TEXT($G$4,"mmm")&"??"&"|"&"?*"&"FOB MILL"&"|?*",WITHDRAWALS!$L$5:$L$4000)), MATCH(WITHDRAWALS!$C$5:$C$4000,WITHDRAWALS!$C$5:$C$4000,0)),Ivec),Ivec),ROWS($A$7:A7))),"") -> AMSERCO | B7: =IF($A7="","",(SUMIFS(BOOKINGS!$E$5:$E$31,BOOKINGS!$A$5:$A$31,">=1-"&$G$3,BOOKINGS!$A$5:$A$31,"<="&$H$3&"-"&$G$3,BOOKINGS!$B$5:$B$31,$A7,BOOKINGS!$C$5:$C$31,"=FOB MILL",BOOKINGS!$D$5:$D$31,B$6))-SUMIFS(WITHDRAWALS!$F$5:$F$4000,WITHDRAWALS!$B$5:$B$4000,">=1-"&$G$3,WITHDRAWALS!$B$5:$B$4000,"<="&$H$3&"-"&$G$3,WITHDRAWALS!$C$5:$C$4000,$A7,WITHDRAWALS!$D$5:$D$4000,"=FOB MILL",WITHDRAWALS!$E$5:$E$4000,B$6)) -> 50 | C7: =IF($A7="","",(SUMIFS(BOOKINGS!$E$5:$E$31,BOOKINGS!$A$5:$A$31,">=1-"&$G$3,BOOKINGS!$A$5:$A$31,"<="&$H$3&"-"&$G$3,BOOKINGS!$B$5:$B$31,$A7,BOOKINGS!$C$5:$C$31,"=FOB MILL",BOOKINGS!$D$5:$D$31,C$6))-SUMIFS(WITHDRAWALS!$F$5:$F$4000,WITHDRAWALS!$B$5:$B$4000,">=1-"&$G$3,WITHDRAWALS!$B$5:$B$4000,"<="&$H$3&"-"&$G$3,WITHDRAWALS!$C$5:$C$4000,$A7,WITHDRAWALS!$D$5:$D$4000,"=FOB MILL",WITHDRAWALS!$E$5:$E$4000,C$6)) -> 0 | D7: =IF($A7="","",(SUMIFS(BOOKINGS!$E$5:$E$31,BOOKINGS!$A$5:$A$31,">=1-"&$G$3,BOOKINGS!$A$5:$A$31,"<="&$H$3&"-"&$G$3,BOOKINGS!$B$5:$B$31,$A7,BOOKINGS!$C$5:$C$31,"=FOB MILL",BOOKINGS!$D$5:$D$31,D$6))-SUMIFS(WITHDRAWALS!$F$5:$F$4000,WITHDRAWALS!$B$5:$B$4000,">=1-"&$G$3,WITHDRAWALS!$B$5:$B$4000,"<="&$H$3&"-"&$G$3,WITHDRAWALS!$C$5:$C$4000,$A7,WITHDRAWALS!$D$5:$D$4000,"=FOB MILL",WITHDRAWALS!$E$5:$E$4000,D$6)) -> 0 | E7: =IF($A7="","",(SUMIFS(BOOKINGS!$E$5:$E$31,BOOKINGS!$A$5:$A$31,">=1-"&$G$3,BOOKINGS!$A$5:$A$31,"<="&$H$3&"-"&$G$3,BOOKINGS!$B$5:$B$31,$A7,BOOKINGS!$C$5:$C$31,"=FOB MILL",BOOKINGS!$D$5:$D$31,E$6))-SUMIFS(WITHDRAWALS!$F$5:$F$4000,WITHDRAWALS!$B$5:$B$4000,">=1-"&$G$3,WITHDRAWALS!$B$5:$B$4000,"<="&$H$3&"-"&$G$3,WITHDRAWALS!$C$5:$C$4000,$A7,WITHDRAWALS!$D$5:$D$4000,"=FOB MILL",WITHDRAWALS!$E$5:$E$4000,E$6)) -> 0 | F7: =IF($A7="","",(SUMIFS(BOOKINGS!$E$5:$E$31,BOOKINGS!$A$5:$A$31,">=1-"&$G$3,BOOKINGS!$A$5:$A$31,"<="&$H$3&"-"&$G$3,BOOKINGS!$B$5:$B$31,$A7,BOOKINGS!$C$5:$C$31,"=FOB MILL",BOOKINGS!$D$5:$D$31,F$6))-SUMIFS(WITHDRAWALS!$F$5:$F$4000,WITHDRAWALS!$B$5:$B$4000,">=1-"&$G$3,WITHDRAWALS!$B$5:$B$4000,"<="&$H$3&"-"&$G$3,WITHDRAWALS!$C$5:$C$4000,$A7,WITHDRAWALS!$D$5:$D$4000,"=FOB MILL",WITHDRAWALS!$E$5:$E$4000,F$6)) -> 0 | G7: =IF($A7="","",(SUMIFS(BOOKINGS!$E$5:$E$31,BOOKINGS!$A$5:$A$31,">=1-"&$G$3,BOOKINGS!$A$5:$A$31,"<="&$H$3&"-"&$G$3,BOOKINGS!$B$5:$B$31,$A7,BOOKINGS!$C$5:$C$31,"=FOB MILL",BOOKINGS!$D$5:$D$31,G$6))-SUMIFS(WITHDRAWALS!$F$5:$F$4000,WITHDRAWALS!$B$5:$B$4000,">=1-"&$G$3,WITHDRAWALS!$B$5:$B$4000,"<="&$H$3&"-"&$G$3,WITHDRAWALS!$C$5:$C$4000,$A7,WITHDRAWALS!$D$5:$D$4000,"=FOB MILL",WITHDRAWALS!$E$5:$E$4000,G$6)) -> 0 | H7: =IF($A7="","",(SUMIFS(BOOKINGS!$E$5:$E$31,BOOKINGS!$A$5:$A$31,">=1-"&$G$3,BOOKINGS!$A$5:$A$31,"<="&$H$3&"-"&$G$3,BOOKINGS!$B$5:$B$31,$A7,BOOKINGS!$C$5:$C$31,"=FOB MILL",BOOKINGS!$D$5:$D$31,H$6))-SUMIFS(WITHDRAWALS!$F$5:$F$4000,WITHDRAWALS!$B$5:$B$4000,">=1-"&$G$3,WITHDRAWALS!$B$5:$B$4000,"<="&$H$3&"-"&$G$3,WITHDRAWALS!$C$5:$C$4000,$A7,WITHDRAWALS!$D$5:$D$4000,"=FOB MILL",WITHDRAWALS!$E$5:$E$4000,H$6)) -> 0 | I7: =IF($A7="","",(SUMIFS(BOOKINGS!$E$5:$E$31,BOOKINGS!$A$5:$A$31,">=1-"&$G$3,BOOKINGS!$A$5:$A$31,"<="&$H$3&"-"&$G$3,BOOKINGS!$B$5:$B$31,$A7,BOOKINGS!$C$5:$C$31,"=FOB MILL",BOOKINGS!$D$5:$D$31,I$6))-SUMIFS(WITHDRAWALS!$F$5:$F$4000,WITHDRAWALS!$B$5:$B$4000,">=1-"&$G$3,WITHDRAWALS!$B$5:$B$4000,"<="&$H$3&"-"&$G$3,WITHDRAWALS!$C$5:$C$4000,$A7,WITHDRAWALS!$D$5:$D$4000,"=FOB MILL",WITHDRAWALS!$E$5:$E$4000,I$6)) -> 0 | J7: =IF($A7="","",(SUMIFS(BOOKINGS!$E$5:$E$31,BOOKINGS!$A$5:$A$31,">=1-"&$G$3,BOOKINGS!$A$5:$A$31,"<="&$H$3&"-"&$G$3,BOOKINGS!$B$5:$B$31,$A7,BOOKINGS!$C$5:$C$31,"=FOB MILL",BOOKINGS!$D$5:$D$31,J$6))-SUMIFS(WITHDRAWALS!$F$5:$F$4000,WITHDRAWALS!$B$5:$B$4000,">=1-"&$G$3,WITHDRAWALS!$B$5:$B$4000,"<="&$H$3&"-"&$G$3,WITHDRAWALS!$C$5:$C$4000,$A7,WITHDRAWALS!$D$5:$D$4000,"=FOB MILL",WITHDRAWALS!$E$5:$E$4000,J$6)) -> 0 | K7: =IF($A7="","",(SUMIFS(BOOKINGS!$E$5:$E$31,BOOKINGS!$A$5:$A$31,">=1-"&$G$3,BOOKINGS!$A$5:$A$31,"<="&$H$3&"-"&$G$3,BOOKINGS!$B$5:$B$31,$A7,BOOKINGS!$C$5:$C$31,"=FOB MILL",BOOKINGS!$D$5:$D$31,K$6))-SUMIFS(WITHDRAWALS!$F$5:$F$4000,WITHDRAWALS!$B$5:$B$4000,">=1-"&$G$3,WITHDRAWALS!$B$5:$B$4000,"<="&$H$3&"-"&$G$3,WITHDRAWALS!$C$5:$C$4000,$A7,WITHDRAWALS!$D$5:$D$4000,"=FOB MILL",WITHDRAWALS!$E$5:$E$4000,K$6)) -> 0 | L7: =IF($A7="","",(SUMIFS(BOOKINGS!$E$5:$E$31,BOOKINGS!$A$5:$A$31,">=1-"&$G$3,BOOKINGS!$A$5:$A$31,"<="&$H$3&"-"&$G$3,BOOKINGS!$B$5:$B$31,$A7,BOOKINGS!$C$5:$C$31,"=FOB MILL",BOOKINGS!$D$5:$D$31,L$6))-SUMIFS(WITHDRAWALS!$F$5:$F$4000,WITHDRAWALS!$B$5:$B$4000,">=1-"&$G$3,WITHDRAWALS!$B$5:$B$4000,"<="&$H$3&"-"&$G$3,WITHDRAWALS!$C$5:$C$4000,$A7,WITHDRAWALS!$D$5:$D$4000,"=FOB MILL",WITHDRAWALS!$E$5:$E$4000,L$6)) -> 0
A8: =IFERROR(INDEX(WITHDRAWALS!$C$5:$C$4000,SMALL(IF(FREQUENCY(IF(ISNUMBER(SEARCH("??"&TEXT($G$4,"mmm")&"??"&"|"&"?*"&"FOB MILL"&"|?*",WITHDRAWALS!$L$5:$L$4000)), MATCH(WITHDRAWALS!$C$5:$C$4000,WITHDRAWALS!$C$5:$C$4000,0)),Ivec),Ivec),ROWS($A$7:A8))),"") -> LHEN | B8: =IF($A8="","",(SUMIFS(BOOKINGS!$E$5:$E$31,BOOKINGS!$A$5:$A$31,">=1-"&$G$3,BOOKINGS!$A$5:$A$31,"<="&$H$3&"-"&$G$3,BOOKINGS!$B$5:$B$31,$A8,BOOKINGS!$C$5:$C$31,"=FOB MILL",BOOKINGS!$D$5:$D$31,B$6))-SUMIFS(WITHDRAWALS!$F$5:$F$4000,WITHDRAWALS!$B$5:$B$4000,">=1-"&$G$3,WITHDRAWALS!$B$5:$B$4000,"<="&$H$3&"-"&$G$3,WITHDRAWALS!$C$5:$C$4000,$A8,WITHDRAWALS!$D$5:$D$4000,"=FOB MILL",WITHDRAWALS!$E$5:$E$4000,B$6)) -> 0 | C8: =IF($A8="","",(SUMIFS(BOOKINGS!$E$5:$E$31,BOOKINGS!$A$5:$A$31,">=1-"&$G$3,BOOKINGS!$A$5:$A$31,"<="&$H$3&"-"&$G$3,BOOKINGS!$B$5:$B$31,$A8,BOOKINGS!$C$5:$C$31,"=FOB MILL",BOOKINGS!$D$5:$D$31,C$6))-SUMIFS(WITHDRAWALS!$F$5:$F$4000,WITHDRAWALS!$B$5:$B$4000,">=1-"&$G$3,WITHDRAWALS!$B$5:$B$4000,"<="&$H$3&"-"&$G$3,WITHDRAWALS!$C$5:$C$4000,$A8,WITHDRAWALS!$D$5:$D$4000,"=FOB MILL",WITHDRAWALS!$E$5:$E$4000,C$6)) -> 0 | D8: =IF($A8="","",(SUMIFS(BOOKINGS!$E$5:$E$31,BOOKINGS!$A$5:$A$31,">=1-"&$G$3,BOOKINGS!$A$5:$A$31,"<="&$H$3&"-"&$G$3,BOOKINGS!$B$5:$B$31,$A8,BOOKINGS!$C$5:$C$31,"=FOB MILL",BOOKINGS!$D$5:$D$31,D$6))-SUMIFS(WITHDRAWALS!$F$5:$F$4000,WITHDRAWALS!$B$5:$B$4000,">=1-"&$G$3,WITHDRAWALS!$B$5:$B$4000,"<="&$H$3&"-"&$G$3,WITHDRAWALS!$C$5:$C$4000,$A8,WITHDRAWALS!$D$5:$D$4000,"=FOB MILL",WITHDRAWALS!$E$5:$E$4000,D$6)) -> 0 | E8: =IF($A8="","",(SUMIFS(BOOKINGS!$E$5:$E$31,BOOKINGS!$A$5:$A$31,">=1-"&$G$3,BOOKINGS!$A$5:$A$31,"<="&$H$3&"-"&$G$3,BOOKINGS!$B$5:$B$31,$A8,BOOKINGS!$C$5:$C$31,"=FOB MILL",BOOKINGS!$D$5:$D$31,E$6))-SUMIFS(WITHDRAWALS!$F$5:$F$4000,WITHDRAWALS!$B$5:$B$4000,">=1-"&$G$3,WITHDRAWALS!$B$5:$B$4000,"<="&$H$3&"-"&$G$3,WITHDRAWALS!$C$5:$C$4000,$A8,WITHDRAWALS!$D$5:$D$4000,"=FOB MILL",WITHDRAWALS!$E$5:$E$4000,E$6)) -> 0 | F8: =IF($A8="","",(SUMIFS(BOOKINGS!$E$5:$E$31,BOOKINGS!$A$5:$A$31,">=1-"&$G$3,BOOKINGS!$A$5:$A$31,"<="&$H$3&"-"&$G$3,BOOKINGS!$B$5:$B$31,$A8,BOOKINGS!$C$5:$C$31,"=FOB MILL",BOOKINGS!$D$5:$D$31,F$6))-SUMIFS(WITHDRAWALS!$F$5:$F$4000,WITHDRAWALS!$B$5:$B$4000,">=1-"&$G$3,WITHDRAWALS!$B$5:$B$4000,"<="&$H$3&"-"&$G$3,WITHDRAWALS!$C$5:$C$4000,$A8,WITHDRAWALS!$D$5:$D$4000,"=FOB MILL",WITHDRAWALS!$E$5:$E$4000,F$6)) -> 0 | G8: =IF($A8="","",(SUMIFS(BOOKINGS!$E$5:$E$31,BOOKINGS!$A$5:$A$31,">=1-"&$G$3,BOOKINGS!$A$5:$A$31,"<="&$H$3&"-"&$G$3,BOOKINGS!$B$5:$B$31,$A8,BOOKINGS!$C$5:$C$31,"=FOB MILL",BOOKINGS!$D$5:$D$31,G$6))-SUMIFS(WITHDRAWALS!$F$5:$F$4000,WITHDRAWALS!$B$5:$B$4000,">=1-"&$G$3,WITHDRAWALS!$B$5:$B$4000,"<="&$H$3&"-"&$G$3,WITHDRAWALS!$C$5:$C$4000,$A8,WITHDRAWALS!$D$5:$D$4000,"=FOB MILL",WITHDRAWALS!$E$5:$E$4000,G$6)) -> 0 | H8: =IF($A8="","",(SUMIFS(BOOKINGS!$E$5:$E$31,BOOKINGS!$A$5:$A$31,">=1-"&$G$3,BOOKINGS!$A$5:$A$31,"<="&$H$3&"-"&$G$3,BOOKINGS!$B$5:$B$31,$A8,BOOKINGS!$C$5:$C$31,"=FOB MILL",BOOKINGS!$D$5:$D$31,H$6))-SUMIFS(WITHDRAWALS!$F$5:$F$4000,WITHDRAWALS!$B$5:$B$4000,">=1-"&$G$3,WITHDRAWALS!$B$5:$B$4000,"<="&$H$3&"-"&$G$3,WITHDRAWALS!$C$5:$C$4000,$A8,WITHDRAWALS!$D$5:$D$4000,"=FOB MILL",WITHDRAWALS!$E$5:$E$4000,H$6)) -> 0 | I8: =IF($A8="","",(SUMIFS(BOOKINGS!$E$5:$E$31,BOOKINGS!$A$5:$A$31,">=1-"&$G$3,BOOKINGS!$A$5:$A$31,"<="&$H$3&"-"&$G$3,BOOKINGS!$B$5:$B$31,$A8,BOOKINGS!$C$5:$C$31,"=FOB MILL",BOOKINGS!$D$5:$D$31,I$6))-SUMIFS(WITHDRAWALS!$F$5:$F$4000,WITHDRAWALS!$B$5:$B$4000,">=1-"&$G$3,WITHDRAWALS!$B$5:$B$4000,"<="&$H$3&"-"&$G$3,WITHDRAWALS!$C$5:$C$4000,$A8,WITHDRAWALS!$D$5:$D$4000,"=FOB MILL",WITHDRAWALS!$E$5:$E$4000,I$6)) -> 0 | J8: =IF($A8="","",(SUMIFS(BOOKINGS!$E$5:$E$31,BOOKINGS!$A$5:$A$31,">=1-"&$G$3,BOOKINGS!$A$5:$A$31,"<="&$H$3&"-"&$G$3,BOOKINGS!$B$5:$B$31,$A8,BOOKINGS!$C$5:$C$31,"=FOB MILL",BOOKINGS!$D$5:$D$31,J$6))-SUMIFS(WITHDRAWALS!$F$5:$F$4000,WITHDRAWALS!$B$5:$B$4000,">=1-"&$G$3,WITHDRAWALS!$B$5:$B$4000,"<="&$H$3&"-"&$G$3,WITHDRAWALS!$C$5:$C$4000,$A8,WITHDRAWALS!$D$5:$D$4000,"=FOB MILL",WITHDRAWALS!$E$5:$E$4000,J$6)) -> 0 | K8: =IF($A8="","",(SUMIFS(BOOKINGS!$E$5:$E$31,BOOKINGS!$A$5:$A$31,">=1-"&$G$3,BOOKINGS!$A$5:$A$31,"<="&$H$3&"-"&$G$3,BOOKINGS!$B$5:$B$31,$A8,BOOKINGS!$C$5:$C$31,"=FOB MILL",BOOKINGS!$D$5:$D$31,K$6))-SUMIFS(WITHDRAWALS!$F$5:$F$4000,WITHDRAWALS!$B$5:$B$4000,">=1-"&$G$3,WITHDRAWALS!$B$5:$B$4000,"<="&$H$3&"-"&$G$3,WITHDRAWALS!$C$5:$C$4000,$A8,WITHDRAWALS!$D$5:$D$4000,"=FOB MILL",WITHDRAWALS!$E$5:$E$4000,K$6)) -> 0 | L8: =IF($A8="","",(SUMIFS(BOOKINGS!$E$5:$E$31,BOOKINGS!$A$5:$A$31,">=1-"&$G$3,BOOKINGS!$A$5:$A$31,"<="&$H$3&"-"&$G$3,BOOKINGS!$B$5:$B$31,$A8,BOOKINGS!$C$5:$C$31,"=FOB MILL",BOOKINGS!$D$5:$D$31,L$6))-SUMIFS(WITHDRAWALS!$F$5:$F$4000,WITHDRAWALS!$B$5:$B$4000,">=1-"&$G$3,WITHDRAWALS!$B$5:$B$4000,"<="&$H$3&"-"&$G$3,WITHDRAWALS!$C$5:$C$4000,$A8,WITHDRAWALS!$D$5:$D$4000,"=FOB MILL",WITHDRAWALS!$E$5:$E$4000,L$6)) -> 0
A9: =IFERROR(INDEX(WITHDRAWALS!$C$5:$C$4000,SMALL(IF(FREQUENCY(IF(ISNUMBER(SEARCH("??"&TEXT($G$4,"mmm")&"??"&"|"&"?*"&"FOB MILL"&"|?*",WITHDRAWALS!$L$5:$L$4000)), MATCH(WITHDRAWALS!$C$5:$C$4000,WITHDRAWALS!$C$5:$C$4000,0)),Ivec),Ivec),ROWS($A$7:A9))),"") -> PBAKEXMILL | B9: =IF($A9="","",(SUMIFS(BOOKINGS!$E$5:$E$31,BOOKINGS!$A$5:$A$31,">=1-"&$G$3,BOOKINGS!$A$5:$A$31,"<="&$H$3&"-"&$G$3,BOOKINGS!$B$5:$B$31,$A9,BOOKINGS!$C$5:$C$31,"=FOB MILL",BOOKINGS!$D$5:$D$31,B$6))-SUMIFS(WITHDRAWALS!$F$5:$F$4000,WITHDRAWALS!$B$5:$B$4000,">=1-"&$G$3,WITHDRAWALS!$B$5:$B$4000,"<="&$H$3&"-"&$G$3,WITHDRAWALS!$C$5:$C$4000,$A9,WITHDRAWALS!$D$5:$D$4000,"=FOB MILL",WITHDRAWALS!$E$5:$E$4000,B$6)) -> 0 | C9: =IF($A9="","",(SUMIFS(BOOKINGS!$E$5:$E$31,BOOKINGS!$A$5:$A$31,">=1-"&$G$3,BOOKINGS!$A$5:$A$31,"<="&$H$3&"-"&$G$3,BOOKINGS!$B$5:$B$31,$A9,BOOKINGS!$C$5:$C$31,"=FOB MILL",BOOKINGS!$D$5:$D$31,C$6))-SUMIFS(WITHDRAWALS!$F$5:$F$4000,WITHDRAWALS!$B$5:$B$4000,">=1-"&$G$3,WITHDRAWALS!$B$5:$B$4000,"<="&$H$3&"-"&$G$3,WITHDRAWALS!$C$5:$C$4000,$A9,WITHDRAWALS!$D$5:$D$4000,"=FOB MILL",WITHDRAWALS!$E$5:$E$4000,C$6)) -> 0 | D9: =IF($A9="","",(SUMIFS(BOOKINGS!$E$5:$E$31,BOOKINGS!$A$5:$A$31,">=1-"&$G$3,BOOKINGS!$A$5:$A$31,"<="&$H$3&"-"&$G$3,BOOKINGS!$B$5:$B$31,$A9,BOOKINGS!$C$5:$C$31,"=FOB MILL",BOOKINGS!$D$5:$D$31,D$6))-SUMIFS(WITHDRAWALS!$F$5:$F$4000,WITHDRAWALS!$B$5:$B$4000,">=1-"&$G$3,WITHDRAWALS!$B$5:$B$4000,"<="&$H$3&"-"&$G$3,WITHDRAWALS!$C$5:$C$4000,$A9,WITHDRAWALS!$D$5:$D$4000,"=FOB MILL",WITHDRAWALS!$E$5:$E$4000,D$6)) -> 0 | E9: =IF($A9="","",(SUMIFS(BOOKINGS!$E$5:$E$31,BOOKINGS!$A$5:$A$31,">=1-"&$G$3,BOOKINGS!$A$5:$A$31,"<="&$H$3&"-"&$G$3,BOOKINGS!$B$5:$B$31,$A9,BOOKINGS!$C$5:$C$31,"=FOB MILL",BOOKINGS!$D$5:$D$31,E$6))-SUMIFS(WITHDRAWALS!$F$5:$F$4000,WITHDRAWALS!$B$5:$B$4000,">=1-"&$G$3,WITHDRAWALS!$B$5:$B$4000,"<="&$H$3&"-"&$G$3,WITHDRAWALS!$C$5:$C$4000,$A9,WITHDRAWALS!$D$5:$D$4000,"=FOB MILL",WITHDRAWALS!$E$5:$E$4000,E$6)) -> 0 | F9: =IF($A9="","",(SUMIFS(BOOKINGS!$E$5:$E$31,BOOKINGS!$A$5:$A$31,">=1-"&$G$3,BOOKINGS!$A$5:$A$31,"<="&$H$3&"-"&$G$3,BOOKINGS!$B$5:$B$31,$A9,BOOKINGS!$C$5:$C$31,"=FOB MILL",BOOKINGS!$D$5:$D$31,F$6))-SUMIFS(WITHDRAWALS!$F$5:$F$4000,WITHDRAWALS!$B$5:$B$4000,">=1-"&$G$3,WITHDRAWALS!$B$5:$B$4000,"<="&$H$3&"-"&$G$3,WITHDRAWALS!$C$5:$C$4000,$A9,WITHDRAWALS!$D$5:$D$4000,"=FOB MILL",WITHDRAWALS!$E$5:$E$4000,F$6)) -> 0 | G9: =IF($A9="","",(SUMIFS(BOOKINGS!$E$5:$E$31,BOOKINGS!$A$5:$A$31,">=1-"&$G$3,BOOKINGS!$A$5:$A$31,"<="&$H$3&"-"&$G$3,BOOKINGS!$B$5:$B$31,$A9,BOOKINGS!$C$5:$C$31,"=FOB MILL",BOOKINGS!$D$5:$D$31,G$6))-SUMIFS(WITHDRAWALS!$F$5:$F$4000,WITHDRAWALS!$B$5:$B$4000,">=1-"&$G$3,WITHDRAWALS!$B$5:$B$4000,"<="&$H$3&"-"&$G$3,WITHDRAWALS!$C$5:$C$4000,$A9,WITHDRAWALS!$D$5:$D$4000,"=FOB MILL",WITHDRAWALS!$E$5:$E$4000,G$6)) -> 50 | H9: =IF($A9="","",(SUMIFS(BOOKINGS!$E$5:$E$31,BOOKINGS!$A$5:$A$31,">=1-"&$G$3,BOOKINGS!$A$5:$A$31,"<="&$H$3&"-"&$G$3,BOOKINGS!$B$5:$B$31,$A9,BOOKINGS!$C$5:$C$31,"=FOB MILL",BOOKINGS!$D$5:$D$31,H$6))-SUMIFS(WITHDRAWALS!$F$5:$F$4000,WITHDRAWALS!$B$5:$B$4000,">=1-"&$G$3,WITHDRAWALS!$B$5:$B$4000,"<="&$H$3&"-"&$G$3,WITHDRAWALS!$C$5:$C$4000,$A9,WITHDRAWALS!$D$5:$D$4000,"=FOB MILL",WITHDRAWALS!$E$5:$E$4000,H$6)) -> 0 | I9: =IF($A9="","",(SUMIFS(BOOKINGS!$E$5:$E$31,BOOKINGS!$A$5:$A$31,">=1-"&$G$3,BOOKINGS!$A$5:$A$31,"<="&$H$3&"-"&$G$3,BOOKINGS!$B$5:$B$31,$A9,BOOKINGS!$C$5:$C$31,"=FOB MILL",BOOKINGS!$D$5:$D$31,I$6))-SUMIFS(WITHDRAWALS!$F$5:$F$4000,WITHDRAWALS!$B$5:$B$4000,">=1-"&$G$3,WITHDRAWALS!$B$5:$B$4000,"<="&$H$3&"-"&$G$3,WITHDRAWALS!$C$5:$C$4000,$A9,WITHDRAWALS!$D$5:$D$4000,"=FOB MILL",WITHDRAWALS!$E$5:$E$4000,I$6)) -> -100 | J9: =IF($A9="","",(SUMIFS(BOOKINGS!$E$5:$E$31,BOOKINGS!$A$5:$A$31,">=1-"&$G$3,BOOKINGS!$A$5:$A$31,"<="&$H$3&"-"&$G$3,BOOKINGS!$B$5:$B$31,$A9,BOOKINGS!$C$5:$C$31,"=FOB MILL",BOOKINGS!$D$5:$D$31,J$6))-SUMIFS(WITHDRAWALS!$F$5:$F$4000,WITHDRAWALS!$B$5:$B$4000,">=1-"&$G$3,WITHDRAWALS!$B$5:$B$4000,"<="&$H$3&"-"&$G$3,WITHDRAWALS!$C$5:$C$4000,$A9,WITHDRAWALS!$D$5:$D$4000,"=FOB MILL",WITHDRAWALS!$E$5:$E$4000,J$6)) -> 0 | K9: =IF($A9="","",(SUMIFS(BOOKINGS!$E$5:$E$31,BOOKINGS!$A$5:$A$31,">=1-"&$G$3,BOOKINGS!$A$5:$A$31,"<="&$H$3&"-"&$G$3,BOOKINGS!$B$5:$B$31,$A9,BOOKINGS!$C$5:$C$31,"=FOB MILL",BOOKINGS!$D$5:$D$31,K$6))-SUMIFS(WITHDRAWALS!$F$5:$F$4000,WITHDRAWALS!$B$5:$B$4000,">=1-"&$G$3,WITHDRAWALS!$B$5:$B$4000,"<="&$H$3&"-"&$G$3,WITHDRAWALS!$C$5:$C$4000,$A9,WITHDRAWALS!$D$5:$D$4000,"=FOB MILL",WITHDRAWALS!$E$5:$E$4000,K$6)) -> 0 | L9: =IF($A9="","",(SUMIFS(BOOKINGS!$E$5:$E$31,BOOKINGS!$A$5:$A$31,">=1-"&$G$3,BOOKINGS!$A$5:$A$31,"<="&$H$3&"-"&$G$3,BOOKINGS!$B$5:$B$31,$A9,BOOKINGS!$C$5:$C$31,"=FOB MILL",BOOKINGS!$D$5:$D$31,L$6))-SUMIFS(WITHDRAWALS!$F$5:$F$4000,WITHDRAWALS!$B$5:$B$4000,">=1-"&$G$3,WITHDRAWALS!$B$5:$B$4000,"<="&$H$3&"-"&$G$3,WITHDRAWALS!$C$5:$C$4000,$A9,WITHDRAWALS!$D$5:$D$4000,"=FOB MILL",WITHDRAWALS!$E$5:$E$4000,L$6)) -> 0
A10: =IFERROR(INDEX(WITHDRAWALS!$C$5:$C$4000,SMALL(IF(FREQUENCY(IF(ISNUMBER(SEARCH("??"&TEXT($G$4,"mmm")&"??"&"|"&"?*"&"FOB MILL"&"|?*",WITHDRAWALS!$L$5:$L$4000)), MATCH(WITHDRAWALS!$C$5:$C$4000,WITHDRAWALS!$C$5:$C$4000,0)),Ivec),Ivec),ROWS($A$7:A10))),"") -> GISELE | B10: =IF($A10="","",(SUMIFS(BOOKINGS!$E$5:$E$31,BOOKINGS!$A$5:$A$31,">=1-"&$G$3,BOOKINGS!$A$5:$A$31,"<="&$H$3&"-"&$G$3,BOOKINGS!$B$5:$B$31,$A10,BOOKINGS!$C$5:$C$31,"=FOB MILL",BOOKINGS!$D$5:$D$31,B$6))-SUMIFS(WITHDRAWALS!$F$5:$F$4000,WITHDRAWALS!$B$5:$B$4000,">=1-"&$G$3,WITHDRAWALS!$B$5:$B$4000,"<="&$H$3&"-"&$G$3,WITHDRAWALS!$C$5:$C$4000,$A10,WITHDRAWALS!$D$5:$D$4000,"=FOB MILL",WITHDRAWALS!$E$5:$E$4000,B$6)) -> 50 | C10: =IF($A10="","",(SUMIFS(BOOKINGS!$E$5:$E$31,BOOKINGS!$A$5:$A$31,">=1-"&$G$3,BOOKINGS!$A$5:$A$31,"<="&$H$3&"-"&$G$3,BOOKINGS!$B$5:$B$31,$A10,BOOKINGS!$C$5:$C$31,"=FOB MILL",BOOKINGS!$D$5:$D$31,C$6))-SUMIFS(WITHDRAWALS!$F$5:$F$4000,WITHDRAWALS!$B$5:$B$4000,">=1-"&$G$3,WITHDRAWALS!$B$5:$B$4000,"<="&$H$3&"-"&$G$3,WITHDRAWALS!$C$5:$C$4000,$A10,WITHDRAWALS!$D$5:$D$4000,"=FOB MILL",WITHDRAWALS!$E$5:$E$4000,C$6)) -> 0 | D10: =IF($A10="","",(SUMIFS(BOOKINGS!$E$5:$E$31,BOOKINGS!$A$5:$A$31,">=1-"&$G$3,BOOKINGS!$A$5:$A$31,"<="&$H$3&"-"&$G$3,BOOKINGS!$B$5:$B$31,$A10,BOOKINGS!$C$5:$C$31,"=FOB MILL",BOOKINGS!$D$5:$D$31,D$6))-SUMIFS(WITHDRAWALS!$F$5:$F$4000,WITHDRAWALS!$B$5:$B$4000,">=1-"&$G$3,WITHDRAWALS!$B$5:$B$4000,"<="&$H$3&"-"&$G$3,WITHDRAWALS!$C$5:$C$4000,$A10,WITHDRAWALS!$D$5:$D$4000,"=FOB MILL",WITHDRAWALS!$E$5:$E$4000,D$6)) -> 0 | E10: =IF($A10="","",(SUMIFS(BOOKINGS!$E$5:$E$31,BOOKINGS!$A$5:$A$31,">=1-"&$G$3,BOOKINGS!$A$5:$A$31,"<="&$H$3&"-"&$G$3,BOOKINGS!$B$5:$B$31,$A10,BOOKINGS!$C$5:$C$31,"=FOB MILL",BOOKINGS!$D$5:$D$31,E$6))-SUMIFS(WITHDRAWALS!$F$5:$F$4000,WITHDRAWALS!$B$5:$B$4000,">=1-"&$G$3,WITHDRAWALS!$B$5:$B$4000,"<="&$H$3&"-"&$G$3,WITHDRAWALS!$C$5:$C$4000,$A10,WITHDRAWALS!$D$5:$D$4000,"=FOB MILL",WITHDRAWALS!$E$5:$E$4000,E$6)) -> 0 | F10: =IF($A10="","",(SUMIFS(BOOKINGS!$E$5:$E$31,BOOKINGS!$A$5:$A$31,">=1-"&$G$3,BOOKINGS!$A$5:$A$31,"<="&$H$3&"-"&$G$3,BOOKINGS!$B$5:$B$31,$A10,BOOKINGS!$C$5:$C$31,"=FOB MILL",BOOKINGS!$D$5:$D$31,F$6))-SUMIFS(WITHDRAWALS!$F$5:$F$4000,WITHDRAWALS!$B$5:$B$4000,">=1-"&$G$3,WITHDRAWALS!$B$5:$B$4000,"<="&$H$3&"-"&$G$3,WITHDRAWALS!$C$5:$C$4000,$A10,WITHDRAWALS!$D$5:$D$4000,"=FOB MILL",WITHDRAWALS!$E$5:$E$4000,F$6)) -> 0 | G10: =IF($A10="","",(SUMIFS(BOOKINGS!$E$5:$E$31,BOOKINGS!$A$5:$A$31,">=1-"&$G$3,BOOKINGS!$A$5:$A$31,"<="&$H$3&"-"&$G$3,BOOKINGS!$B$5:$B$31,$A10,BOOKINGS!$C$5:$C$31,"=FOB MILL",BOOKINGS!$D$5:$D$31,G$6))-SUMIFS(WITHDRAWALS!$F$5:$F$4000,WITHDRAWALS!$B$5:$B$4000,">=1-"&$G$3,WITHDRAWALS!$B$5:$B$4000,"<="&$H$3&"-"&$G$3,WITHDRAWALS!$C$5:$C$4000,$A10,WITHDRAWALS!$D$5:$D$4000,"=FOB MILL",WITHDRAWALS!$E$5:$E$4000,G$6)) -> 0 | H10: =IF($A10="","",(SUMIFS(BOOKINGS!$E$5:$E$31,BOOKINGS!$A$5:$A$31,">=1-"&$G$3,BOOKINGS!$A$5:$A$31,"<="&$H$3&"-"&$G$3,BOOKINGS!$B$5:$B$31,$A10,BOOKINGS!$C$5:$C$31,"=FOB MILL",BOOKINGS!$D$5:$D$31,H$6))-SUMIFS(WITHDRAWALS!$F$5:$F$4000,WITHDRAWALS!$B$5:$B$4000,">=1-"&$G$3,WITHDRAWALS!$B$5:$B$4000,"<="&$H$3&"-"&$G$3,WITHDRAWALS!$C$5:$C$4000,$A10,WITHDRAWALS!$D$5:$D$4000,"=FOB MILL",WITHDRAWALS!$E$5:$E$4000,H$6)) -> 0 | I10: =IF($A10="","",(SUMIFS(BOOKINGS!$E$5:$E$31,BOOKINGS!$A$5:$A$31,">=1-"&$G$3,BOOKINGS!$A$5:$A$31,"<="&$H$3&"-"&$G$3,BOOKINGS!$B$5:$B$31,$A10,BOOKINGS!$C$5:$C$31,"=FOB MILL",BOOKINGS!$D$5:$D$31,I$6))-SUMIFS(WITHDRAWALS!$F$5:$F$4000,WITHDRAWALS!$B$5:$B$4000,">=1-"&$G$3,WITHDRAWALS!$B$5:$B$4000,"<="&$H$3&"-"&$G$3,WITHDRAWALS!$C$5:$C$4000,$A10,WITHDRAWALS!$D$5:$D$4000,"=FOB MILL",WITHDRAWALS!$E$5:$E$4000,I$6)) -> 500 | J10: =IF($A10="","",(SUMIFS(BOOKINGS!$E$5:$E$31,BOOKINGS!$A$5:$A$31,">=1-"&$G$3,BOOKINGS!$A$5:$A$31,"<="&$H$3&"-"&$G$3,BOOKINGS!$B$5:$B$31,$A10,BOOKINGS!$C$5:$C$31,"=FOB MILL",BOOKINGS!$D$5:$D$31,J$6))-SUMIFS(WITHDRAWALS!$F$5:$F$4000,WITHDRAWALS!$B$5:$B$4000,">=1-"&$G$3,WITHDRAWALS!$B$5:$B$4000,"<="&$H$3&"-"&$G$3,WITHDRAWALS!$C$5:$C$4000,$A10,WITHDRAWALS!$D$5:$D$4000,"=FOB MILL",WITHDRAWALS!$E$5:$E$4000,J$6)) -> 0 | K10: =IF($A10="","",(SUMIFS(BOOKINGS!$E$5:$E$31,BOOKINGS!$A$5:$A$31,">=1-"&$G$3,BOOKINGS!$A$5:$A$31,"<="&$H$3&"-"&$G$3,BOOKINGS!$B$5:$B$31,$A10,BOOKINGS!$C$5:$C$31,"=FOB MILL",BOOKINGS!$D$5:$D$31,K$6))-SUMIFS(WITHDRAWALS!$F$5:$F$4000,WITHDRAWALS!$B$5:$B$4000,">=1-"&$G$3,WITHDRAWALS!$B$5:$B$4000,"<="&$H$3&"-"&$G$3,WITHDRAWALS!$C$5:$C$4000,$A10,WITHDRAWALS!$D$5:$D$4000,"=FOB MILL",WITHDRAWALS!$E$5:$E$4000,K$6)) -> 0 | L10: =IF($A10="","",(SUMIFS(BOOKINGS!$E$5:$E$31,BOOKINGS!$A$5:$A$31,">=1-"&$G$3,BOOKINGS!$A$5:$A$31,"<="&$H$3&"-"&$G$3,BOOKINGS!$B$5:$B$31,$A10,BOOKINGS!$C$5:$C$31,"=FOB MILL",BOOKINGS!$D$5:$D$31,L$6))-SUMIFS(WITHDRAWALS!$F$5:$F$4000,WITHDRAWALS!$B$5:$B$4000,">=1-"&$G$3,WITHDRAWALS!$B$5:$B$4000,"<="&$H$3&"-"&$G$3,WITHDRAWALS!$C$5:$C$4000,$A10,WITHDRAWALS!$D$5:$D$4000,"=FOB MILL",WITHDRAWALS!$E$5:$E$4000,L$6)) -> 0
A11: =IFERROR(INDEX(WITHDRAWALS!$C$5:$C$4000,SMALL(IF(FREQUENCY(IF(ISNUMBER(SEARCH("??"&TEXT($G$4,"mmm")&"??"&"|"&"?*"&"FOB MILL"&"|?*",WITHDRAWALS!$L$5:$L$4000)), MATCH(WITHDRAWALS!$C$5:$C$4000,WITHDRAWALS!$C$5:$C$4000,0)),Ivec),Ivec),ROWS($A$7:A11))),"") ->  | B11: =IF($A11="","",(SUMIFS(BOOKINGS!$E$5:$E$31,BOOKINGS!$A$5:$A$31,">=1-"&$G$3,BOOKINGS!$A$5:$A$31,"<="&$H$3&"-"&$G$3,BOOKINGS!$B$5:$B$31,$A11,BOOKINGS!$C$5:$C$31,"=FOB MILL",BOOKINGS!$D$5:$D$31,B$6))-SUMIFS(WITHDRAWALS!$F$5:$F$4000,WITHDRAWALS!$B$5:$B$4000,">=1-"&$G$3,WITHDRAWALS!$B$5:$B$4000,"<="&$H$3&"-"&$G$3,WITHDRAWALS!$C$5:$C$4000,$A11,WITHDRAWALS!$D$5:$D$4000,"=FOB MILL",WITHDRAWALS!$E$5:$E$4000,B$6)) ->  | C11: =IF($A11="","",(SUMIFS(BOOKINGS!$E$5:$E$31,BOOKINGS!$A$5:$A$31,">=1-"&$G$3,BOOKINGS!$A$5:$A$31,"<="&$H$3&"-"&$G$3,BOOKINGS!$B$5:$B$31,$A11,BOOKINGS!$C$5:$C$31,"=FOB MILL",BOOKINGS!$D$5:$D$31,C$6))-SUMIFS(WITHDRAWALS!$F$5:$F$4000,WITHDRAWALS!$B$5:$B$4000,">=1-"&$G$3,WITHDRAWALS!$B$5:$B$4000,"<="&$H$3&"-"&$G$3,WITHDRAWALS!$C$5:$C$4000,$A11,WITHDRAWALS!$D$5:$D$4000,"=FOB MILL",WITHDRAWALS!$E$5:$E$4000,C$6)) ->  | D11: =IF($A11="","",(SUMIFS(BOOKINGS!$E$5:$E$31,BOOKINGS!$A$5:$A$31,">=1-"&$G$3,BOOKINGS!$A$5:$A$31,"<="&$H$3&"-"&$G$3,BOOKINGS!$B$5:$B$31,$A11,BOOKINGS!$C$5:$C$31,"=FOB MILL",BOOKINGS!$D$5:$D$31,D$6))-SUMIFS(WITHDRAWALS!$F$5:$F$4000,WITHDRAWALS!$B$5:$B$4000,">=1-"&$G$3,WITHDRAWALS!$B$5:$B$4000,"<="&$H$3&"-"&$G$3,WITHDRAWALS!$C$5:$C$4000,$A11,WITHDRAWALS!$D$5:$D$4000,"=FOB MILL",WITHDRAWALS!$E$5:$E$4000,D$6)) ->  | E11: =IF($A11="","",(SUMIFS(BOOKINGS!$E$5:$E$31,BOOKINGS!$A$5:$A$31,">=1-"&$G$3,BOOKINGS!$A$5:$A$31,"<="&$H$3&"-"&$G$3,BOOKINGS!$B$5:$B$31,$A11,BOOKINGS!$C$5:$C$31,"=FOB MILL",BOOKINGS!$D$5:$D$31,E$6))-SUMIFS(WITHDRAWALS!$F$5:$F$4000,WITHDRAWALS!$B$5:$B$4000,">=1-"&$G$3,WITHDRAWALS!$B$5:$B$4000,"<="&$H$3&"-"&$G$3,WITHDRAWALS!$C$5:$C$4000,$A11,WITHDRAWALS!$D$5:$D$4000,"=FOB MILL",WITHDRAWALS!$E$5:$E$4000,E$6)) ->  | F11: =IF($A11="","",(SUMIFS(BOOKINGS!$E$5:$E$31,BOOKINGS!$A$5:$A$31,">=1-"&$G$3,BOOKINGS!$A$5:$A$31,"<="&$H$3&"-"&$G$3,BOOKINGS!$B$5:$B$31,$A11,BOOKINGS!$C$5:$C$31,"=FOB MILL",BOOKINGS!$D$5:$D$31,F$6))-SUMIFS(WITHDRAWALS!$F$5:$F$4000,WITHDRAWALS!$B$5:$B$4000,">=1-"&$G$3,WITHDRAWALS!$B$5:$B$4000,"<="&$H$3&"-"&$G$3,WITHDRAWALS!$C$5:$C$4000,$A11,WITHDRAWALS!$D$5:$D$4000,"=FOB MILL",WITHDRAWALS!$E$5:$E$4000,F$6)) ->  | G11: =IF($A11="","",(SUMIFS(BOOKINGS!$E$5:$E$31,BOOKINGS!$A$5:$A$31,">=1-"&$G$3,BOOKINGS!$A$5:$A$31,"<="&$H$3&"-"&$G$3,BOOKINGS!$B$5:$B$31,$A11,BOOKINGS!$C$5:$C$31,"=FOB MILL",BOOKINGS!$D$5:$D$31,G$6))-SUMIFS(WITHDRAWALS!$F$5:$F$4000,WITHDRAWALS!$B$5:$B$4000,">=1-"&$G$3,WITHDRAWALS!$B$5:$B$4000,"<="&$H$3&"-"&$G$3,WITHDRAWALS!$C$5:$C$4000,$A11,WITHDRAWALS!$D$5:$D$4000,"=FOB MILL",WITHDRAWALS!$E$5:$E$4000,G$6)) ->  | H11: =IF($A11="","",(SUMIFS(BOOKINGS!$E$5:$E$31,BOOKINGS!$A$5:$A$31,">=1-"&$G$3,BOOKINGS!$A$5:$A$31,"<="&$H$3&"-"&$G$3,BOOKINGS!$B$5:$B$31,$A11,BOOKINGS!$C$5:$C$31,"=FOB MILL",BOOKINGS!$D$5:$D$31,H$6))-SUMIFS(WITHDRAWALS!$F$5:$F$4000,WITHDRAWALS!$B$5:$B$4000,">=1-"&$G$3,WITHDRAWALS!$B$5:$B$4000,"<="&$H$3&"-"&$G$3,WITHDRAWALS!$C$5:$C$4000,$A11,WITHDRAWALS!$D$5:$D$4000,"=FOB MILL",WITHDRAWALS!$E$5:$E$4000,H$6)) ->  | I11: =IF($A11="","",(SUMIFS(BOOKINGS!$E$5:$E$31,BOOKINGS!$A$5:$A$31,">=1-"&$G$3,BOOKINGS!$A$5:$A$31,"<="&$H$3&"-"&$G$3,BOOKINGS!$B$5:$B$31,$A11,BOOKINGS!$C$5:$C$31,"=FOB MILL",BOOKINGS!$D$5:$D$31,I$6))-SUMIFS(WITHDRAWALS!$F$5:$F$4000,WITHDRAWALS!$B$5:$B$4000,">=1-"&$G$3,WITHDRAWALS!$B$5:$B$4000,"<="&$H$3&"-"&$G$3,WITHDRAWALS!$C$5:$C$4000,$A11,WITHDRAWALS!$D$5:$D$4000,"=FOB MILL",WITHDRAWALS!$E$5:$E$4000,I$6)) ->  | J11: =IF($A11="","",(SUMIFS(BOOKINGS!$E$5:$E$31,BOOKINGS!$A$5:$A$31,">=1-"&$G$3,BOOKINGS!$A$5:$A$31,"<="&$H$3&"-"&$G$3,BOOKINGS!$B$5:$B$31,$A11,BOOKINGS!$C$5:$C$31,"=FOB MILL",BOOKINGS!$D$5:$D$31,J$6))-SUMIFS(WITHDRAWALS!$F$5:$F$4000,WITHDRAWALS!$B$5:$B$4000,">=1-"&$G$3,WITHDRAWALS!$B$5:$B$4000,"<="&$H$3&"-"&$G$3,WITHDRAWALS!$C$5:$C$4000,$A11,WITHDRAWALS!$D$5:$D$4000,"=FOB MILL",WITHDRAWALS!$E$5:$E$4000,J$6)) ->  | K11: =IF($A11="","",(SUMIFS(BOOKINGS!$E$5:$E$31,BOOKINGS!$A$5:$A$31,">=1-"&$G$3,BOOKINGS!$A$5:$A$31,"<="&$H$3&"-"&$G$3,BOOKINGS!$B$5:$B$31,$A11,BOOKINGS!$C$5:$C$31,"=FOB MILL",BOOKINGS!$D$5:$D$31,K$6))-SUMIFS(WITHDRAWALS!$F$5:$F$4000,WITHDRAWALS!$B$5:$B$4000,">=1-"&$G$3,WITHDRAWALS!$B$5:$B$4000,"<="&$H$3&"-"&$G$3,WITHDRAWALS!$C$5:$C$4000,$A11,WITHDRAWALS!$D$5:$D$4000,"=FOB MILL",WITHDRAWALS!$E$5:$E$4000,K$6)) ->  | L11: =IF($A11="","",(SUMIFS(BOOKINGS!$E$5:$E$31,BOOKINGS!$A$5:$A$31,">=1-"&$G$3,BOOKINGS!$A$5:$A$31,"<="&$H$3&"-"&$G$3,BOOKINGS!$B$5:$B$31,$A11,BOOKINGS!$C$5:$C$31,"=FOB MILL",BOOKINGS!$D$5:$D$31,L$6))-SUMIFS(WITHDRAWALS!$F$5:$F$4000,WITHDRAWALS!$B$5:$B$4000,">=1-"&$G$3,WITHDRAWALS!$B$5:$B$4000,"<="&$H$3&"-"&$G$3,WITHDRAWALS!$C$5:$C$4000,$A11,WITHDRAWALS!$D$5:$D$4000,"=FOB MILL",WITHDRAWALS!$E$5:$E$4000,L$6)) -> 
A12: =IFERROR(INDEX(WITHDRAWALS!$C$5:$C$4000,SMALL(IF(FREQUENCY(IF(ISNUMBER(SEARCH("??"&TEXT($G$4,"mmm")&"??"&"|"&"?*"&"FOB MILL"&"|?*",WITHDRAWALS!$L$5:$L$4000)), MATCH(WITHDRAWALS!$C$5:$C$4000,WITHDRAWALS!$C$5:$C$4000,0)),Ivec),Ivec),ROWS($A$7:A12))),"") ->  | B12: =IF($A12="","",(SUMIFS(BOOKINGS!$E$5:$E$31,BOOKINGS!$A$5:$A$31,">=1-"&$G$3,BOOKINGS!$A$5:$A$31,"<="&$H$3&"-"&$G$3,BOOKINGS!$B$5:$B$31,$A12,BOOKINGS!$C$5:$C$31,"=FOB MILL",BOOKINGS!$D$5:$D$31,B$6))-SUMIFS(WITHDRAWALS!$F$5:$F$4000,WITHDRAWALS!$B$5:$B$4000,">=1-"&$G$3,WITHDRAWALS!$B$5:$B$4000,"<="&$H$3&"-"&$G$3,WITHDRAWALS!$C$5:$C$4000,$A12,WITHDRAWALS!$D$5:$D$4000,"=FOB MILL",WITHDRAWALS!$E$5:$E$4000,B$6)) ->  | C12: =IF($A12="","",(SUMIFS(BOOKINGS!$E$5:$E$31,BOOKINGS!$A$5:$A$31,">=1-"&$G$3,BOOKINGS!$A$5:$A$31,"<="&$H$3&"-"&$G$3,BOOKINGS!$B$5:$B$31,$A12,BOOKINGS!$C$5:$C$31,"=FOB MILL",BOOKINGS!$D$5:$D$31,C$6))-SUMIFS(WITHDRAWALS!$F$5:$F$4000,WITHDRAWALS!$B$5:$B$4000,">=1-"&$G$3,WITHDRAWALS!$B$5:$B$4000,"<="&$H$3&"-"&$G$3,WITHDRAWALS!$C$5:$C$4000,$A12,WITHDRAWALS!$D$5:$D$4000,"=FOB MILL",WITHDRAWALS!$E$5:$E$4000,C$6)) ->  | D12: =IF($A12="","",(SUMIFS(BOOKINGS!$E$5:$E$31,BOOKINGS!$A$5:$A$31,">=1-"&$G$3,BOOKINGS!$A$5:$A$31,"<="&$H$3&"-"&$G$3,BOOKINGS!$B$5:$B$31,$A12,BOOKINGS!$C$5:$C$31,"=FOB MILL",BOOKINGS!$D$5:$D$31,D$6))-SUMIFS(WITHDRAWALS!$F$5:$F$4000,WITHDRAWALS!$B$5:$B$4000,">=1-"&$G$3,WITHDRAWALS!$B$5:$B$4000,"<="&$H$3&"-"&$G$3,WITHDRAWALS!$C$5:$C$4000,$A12,WITHDRAWALS!$D$5:$D$4000,"=FOB MILL",WITHDRAWALS!$E$5:$E$4000,D$6)) ->  | E12: =IF($A12="","",(SUMIFS(BOOKINGS!$E$5:$E$31,BOOKINGS!$A$5:$A$31,">=1-"&$G$3,BOOKINGS!$A$5:$A$31,"<="&$H$3&"-"&$G$3,BOOKINGS!$B$5:$B$31,$A12,BOOKINGS!$C$5:$C$31,"=FOB MILL",BOOKINGS!$D$5:$D$31,E$6))-SUMIFS(WITHDRAWALS!$F$5:$F$4000,WITHDRAWALS!$B$5:$B$4000,">=1-"&$G$3,WITHDRAWALS!$B$5:$B$4000,"<="&$H$3&"-"&$G$3,WITHDRAWALS!$C$5:$C$4000,$A12,WITHDRAWALS!$D$5:$D$4000,"=FOB MILL",WITHDRAWALS!$E$5:$E$4000,E$6)) ->  | F12: =IF($A12="","",(SUMIFS(BOOKINGS!$E$5:$E$31,BOOKINGS!$A$5:$A$31,">=1-"&$G$3,BOOKINGS!$A$5:$A$31,"<="&$H$3&"-"&$G$3,BOOKINGS!$B$5:$B$31,$A12,BOOKINGS!$C$5:$C$31,"=FOB MILL",BOOKINGS!$D$5:$D$31,F$6))-SUMIFS(WITHDRAWALS!$F$5:$F$4000,WITHDRAWALS!$B$5:$B$4000,">=1-"&$G$3,WITHDRAWALS!$B$5:$B$4000,"<="&$H$3&"-"&$G$3,WITHDRAWALS!$C$5:$C$4000,$A12,WITHDRAWALS!$D$5:$D$4000,"=FOB MILL",WITHDRAWALS!$E$5:$E$4000,F$6)) ->  | G12: =IF($A12="","",(SUMIFS(BOOKINGS!$E$5:$E$31,BOOKINGS!$A$5:$A$31,">=1-"&$G$3,BOOKINGS!$A$5:$A$31,"<="&$H$3&"-"&$G$3,BOOKINGS!$B$5:$B$31,$A12,BOOKINGS!$C$5:$C$31,"=FOB MILL",BOOKINGS!$D$5:$D$31,G$6))-SUMIFS(WITHDRAWALS!$F$5:$F$4000,WITHDRAWALS!$B$5:$B$4000,">=1-"&$G$3,WITHDRAWALS!$B$5:$B$4000,"<="&$H$3&"-"&$G$3,WITHDRAWALS!$C$5:$C$4000,$A12,WITHDRAWALS!$D$5:$D$4000,"=FOB MILL",WITHDRAWALS!$E$5:$E$4000,G$6)) ->  | H12: =IF($A12="","",(SUMIFS(BOOKINGS!$E$5:$E$31,BOOKINGS!$A$5:$A$31,">=1-"&$G$3,BOOKINGS!$A$5:$A$31,"<="&$H$3&"-"&$G$3,BOOKINGS!$B$5:$B$31,$A12,BOOKINGS!$C$5:$C$31,"=FOB MILL",BOOKINGS!$D$5:$D$31,H$6))-SUMIFS(WITHDRAWALS!$F$5:$F$4000,WITHDRAWALS!$B$5:$B$4000,">=1-"&$G$3,WITHDRAWALS!$B$5:$B$4000,"<="&$H$3&"-"&$G$3,WITHDRAWALS!$C$5:$C$4000,$A12,WITHDRAWALS!$D$5:$D$4000,"=FOB MILL",WITHDRAWALS!$E$5:$E$4000,H$6)) ->  | I12: =IF($A12="","",(SUMIFS(BOOKINGS!$E$5:$E$31,BOOKINGS!$A$5:$A$31,">=1-"&$G$3,BOOKINGS!$A$5:$A$31,"<="&$H$3&"-"&$G$3,BOOKINGS!$B$5:$B$31,$A12,BOOKINGS!$C$5:$C$31,"=FOB MILL",BOOKINGS!$D$5:$D$31,I$6))-SUMIFS(WITHDRAWALS!$F$5:$F$4000,WITHDRAWALS!$B$5:$B$4000,">=1-"&$G$3,WITHDRAWALS!$B$5:$B$4000,"<="&$H$3&"-"&$G$3,WITHDRAWALS!$C$5:$C$4000,$A12,WITHDRAWALS!$D$5:$D$4000,"=FOB MILL",WITHDRAWALS!$E$5:$E$4000,I$6)) ->  | J12: =IF($A12="","",(SUMIFS(BOOKINGS!$E$5:$E$31,BOOKINGS!$A$5:$A$31,">=1-"&$G$3,BOOKINGS!$A$5:$A$31,"<="&$H$3&"-"&$G$3,BOOKINGS!$B$5:$B$31,$A12,BOOKINGS!$C$5:$C$31,"=FOB MILL",BOOKINGS!$D$5:$D$31,J$6))-SUMIFS(WITHDRAWALS!$F$5:$F$4000,WITHDRAWALS!$B$5:$B$4000,">=1-"&$G$3,WITHDRAWALS!$B$5:$B$4000,"<="&$H$3&"-"&$G$3,WITHDRAWALS!$C$5:$C$4000,$A12,WITHDRAWALS!$D$5:$D$4000,"=FOB MILL",WITHDRAWALS!$E$5:$E$4000,J$6)) ->  | K12: =IF($A12="","",(SUMIFS(BOOKINGS!$E$5:$E$31,BOOKINGS!$A$5:$A$31,">=1-"&$G$3,BOOKINGS!$A$5:$A$31,"<="&$H$3&"-"&$G$3,BOOKINGS!$B$5:$B$31,$A12,BOOKINGS!$C$5:$C$31,"=FOB MILL",BOOKINGS!$D$5:$D$31,K$6))-SUMIFS(WITHDRAWALS!$F$5:$F$4000,WITHDRAWALS!$B$5:$B$4000,">=1-"&$G$3,WITHDRAWALS!$B$5:$B$4000,"<="&$H$3&"-"&$G$3,WITHDRAWALS!$C$5:$C$4000,$A12,WITHDRAWALS!$D$5:$D$4000,"=FOB MILL",WITHDRAWALS!$E$5:$E$4000,K$6)) ->  | L12: =IF($A12="","",(SUMIFS(BOOKINGS!$E$5:$E$31,BOOKINGS!$A$5:$A$31,">=1-"&$G$3,BOOKINGS!$A$5:$A$31,"<="&$H$3&"-"&$G$3,BOOKINGS!$B$5:$B$31,$A12,BOOKINGS!$C$5:$C$31,"=FOB MILL",BOOKINGS!$D$5:$D$31,L$6))-SUMIFS(WITHDRAWALS!$F$5:$F$4000,WITHDRAWALS!$B$5:$B$4000,">=1-"&$G$3,WITHDRAWALS!$B$5:$B$4000,"<="&$H$3&"-"&$G$3,WITHDRAWALS!$C$5:$C$4000,$A12,WITHDRAWALS!$D$5:$D$4000,"=FOB MILL",WITHDRAWALS!$E$5:$E$4000,L$6)) -> 
A13: =IFERROR(INDEX(WITHDRAWALS!$C$5:$C$4000,SMALL(IF(FREQUENCY(IF(ISNUMBER(SEARCH("??"&TEXT($G$4,"mmm")&"??"&"|"&"?*"&"FOB MILL"&"|?*",WITHDRAWALS!$L$5:$L$4000)), MATCH(WITHDRAWALS!$C$5:$C$4000,WITHDRAWALS!$C$5:$C$4000,0)),Ivec),Ivec),ROWS($A$7:A13))),"") ->  | B13: =IF($A13="","",(SUMIFS(BOOKINGS!$E$5:$E$31,BOOKINGS!$A$5:$A$31,">=1-"&$G$3,BOOKINGS!$A$5:$A$31,"<="&$H$3&"-"&$G$3,BOOKINGS!$B$5:$B$31,$A13,BOOKINGS!$C$5:$C$31,"=FOB MILL",BOOKINGS!$D$5:$D$31,B$6))-SUMIFS(WITHDRAWALS!$F$5:$F$4000,WITHDRAWALS!$B$5:$B$4000,">=1-"&$G$3,WITHDRAWALS!$B$5:$B$4000,"<="&$H$3&"-"&$G$3,WITHDRAWALS!$C$5:$C$4000,$A13,WITHDRAWALS!$D$5:$D$4000,"=FOB MILL",WITHDRAWALS!$E$5:$E$4000,B$6)) ->  | C13: =IF($A13="","",(SUMIFS(BOOKINGS!$E$5:$E$31,BOOKINGS!$A$5:$A$31,">=1-"&$G$3,BOOKINGS!$A$5:$A$31,"<="&$H$3&"-"&$G$3,BOOKINGS!$B$5:$B$31,$A13,BOOKINGS!$C$5:$C$31,"=FOB MILL",BOOKINGS!$D$5:$D$31,C$6))-SUMIFS(WITHDRAWALS!$F$5:$F$4000,WITHDRAWALS!$B$5:$B$4000,">=1-"&$G$3,WITHDRAWALS!$B$5:$B$4000,"<="&$H$3&"-"&$G$3,WITHDRAWALS!$C$5:$C$4000,$A13,WITHDRAWALS!$D$5:$D$4000,"=FOB MILL",WITHDRAWALS!$E$5:$E$4000,C$6)) ->  | D13: =IF($A13="","",(SUMIFS(BOOKINGS!$E$5:$E$31,BOOKINGS!$A$5:$A$31,">=1-"&$G$3,BOOKINGS!$A$5:$A$31,"<="&$H$3&"-"&$G$3,BOOKINGS!$B$5:$B$31,$A13,BOOKINGS!$C$5:$C$31,"=FOB MILL",BOOKINGS!$D$5:$D$31,D$6))-SUMIFS(WITHDRAWALS!$F$5:$F$4000,WITHDRAWALS!$B$5:$B$4000,">=1-"&$G$3,WITHDRAWALS!$B$5:$B$4000,"<="&$H$3&"-"&$G$3,WITHDRAWALS!$C$5:$C$4000,$A13,WITHDRAWALS!$D$5:$D$4000,"=FOB MILL",WITHDRAWALS!$E$5:$E$4000,D$6)) ->  | E13: =IF($A13="","",(SUMIFS(BOOKINGS!$E$5:$E$31,BOOKINGS!$A$5:$A$31,">=1-"&$G$3,BOOKINGS!$A$5:$A$31,"<="&$H$3&"-"&$G$3,BOOKINGS!$B$5:$B$31,$A13,BOOKINGS!$C$5:$C$31,"=FOB MILL",BOOKINGS!$D$5:$D$31,E$6))-SUMIFS(WITHDRAWALS!$F$5:$F$4000,WITHDRAWALS!$B$5:$B$4000,">=1-"&$G$3,WITHDRAWALS!$B$5:$B$4000,"<="&$H$3&"-"&$G$3,WITHDRAWALS!$C$5:$C$4000,$A13,WITHDRAWALS!$D$5:$D$4000,"=FOB MILL",WITHDRAWALS!$E$5:$E$4000,E$6)) ->  | F13: =IF($A13="","",(SUMIFS(BOOKINGS!$E$5:$E$31,BOOKINGS!$A$5:$A$31,">=1-"&$G$3,BOOKINGS!$A$5:$A$31,"<="&$H$3&"-"&$G$3,BOOKINGS!$B$5:$B$31,$A13,BOOKINGS!$C$5:$C$31,"=FOB MILL",BOOKINGS!$D$5:$D$31,F$6))-SUMIFS(WITHDRAWALS!$F$5:$F$4000,WITHDRAWALS!$B$5:$B$4000,">=1-"&$G$3,WITHDRAWALS!$B$5:$B$4000,"<="&$H$3&"-"&$G$3,WITHDRAWALS!$C$5:$C$4000,$A13,WITHDRAWALS!$D$5:$D$4000,"=FOB MILL",WITHDRAWALS!$E$5:$E$4000,F$6)) ->  | G13: =IF($A13="","",(SUMIFS(BOOKINGS!$E$5:$E$31,BOOKINGS!$A$5:$A$31,">=1-"&$G$3,BOOKINGS!$A$5:$A$31,"<="&$H$3&"-"&$G$3,BOOKINGS!$B$5:$B$31,$A13,BOOKINGS!$C$5:$C$31,"=FOB MILL",BOOKINGS!$D$5:$D$31,G$6))-SUMIFS(WITHDRAWALS!$F$5:$F$4000,WITHDRAWALS!$B$5:$B$4000,">=1-"&$G$3,WITHDRAWALS!$B$5:$B$4000,"<="&$H$3&"-"&$G$3,WITHDRAWALS!$C$5:$C$4000,$A13,WITHDRAWALS!$D$5:$D$4000,"=FOB MILL",WITHDRAWALS!$E$5:$E$4000,G$6)) ->  | H13: =IF($A13="","",(SUMIFS(BOOKINGS!$E$5:$E$31,BOOKINGS!$A$5:$A$31,">=1-"&$G$3,BOOKINGS!$A$5:$A$31,"<="&$H$3&"-"&$G$3,BOOKINGS!$B$5:$B$31,$A13,BOOKINGS!$C$5:$C$31,"=FOB MILL",BOOKINGS!$D$5:$D$31,H$6))-SUMIFS(WITHDRAWALS!$F$5:$F$4000,WITHDRAWALS!$B$5:$B$4000,">=1-"&$G$3,WITHDRAWALS!$B$5:$B$4000,"<="&$H$3&"-"&$G$3,WITHDRAWALS!$C$5:$C$4000,$A13,WITHDRAWALS!$D$5:$D$4000,"=FOB MILL",WITHDRAWALS!$E$5:$E$4000,H$6)) ->  | I13: =IF($A13="","",(SUMIFS(BOOKINGS!$E$5:$E$31,BOOKINGS!$A$5:$A$31,">=1-"&$G$3,BOOKINGS!$A$5:$A$31,"<="&$H$3&"-"&$G$3,BOOKINGS!$B$5:$B$31,$A13,BOOKINGS!$C$5:$C$31,"=FOB MILL",BOOKINGS!$D$5:$D$31,I$6))-SUMIFS(WITHDRAWALS!$F$5:$F$4000,WITHDRAWALS!$B$5:$B$4000,">=1-"&$G$3,WITHDRAWALS!$B$5:$B$4000,"<="&$H$3&"-"&$G$3,WITHDRAWALS!$C$5:$C$4000,$A13,WITHDRAWALS!$D$5:$D$4000,"=FOB MILL",WITHDRAWALS!$E$5:$E$4000,I$6)) ->  | J13: =IF($A13="","",(SUMIFS(BOOKINGS!$E$5:$E$31,BOOKINGS!$A$5:$A$31,">=1-"&$G$3,BOOKINGS!$A$5:$A$31,"<="&$H$3&"-"&$G$3,BOOKINGS!$B$5:$B$31,$A13,BOOKINGS!$C$5:$C$31,"=FOB MILL",BOOKINGS!$D$5:$D$31,J$6))-SUMIFS(WITHDRAWALS!$F$5:$F$4000,WITHDRAWALS!$B$5:$B$4000,">=1-"&$G$3,WITHDRAWALS!$B$5:$B$4000,"<="&$H$3&"-"&$G$3,WITHDRAWALS!$C$5:$C$4000,$A13,WITHDRAWALS!$D$5:$D$4000,"=FOB MILL",WITHDRAWALS!$E$5:$E$4000,J$6)) ->  | K13: =IF($A13="","",(SUMIFS(BOOKINGS!$E$5:$E$31,BOOKINGS!$A$5:$A$31,">=1-"&$G$3,BOOKINGS!$A$5:$A$31,"<="&$H$3&"-"&$G$3,BOOKINGS!$B$5:$B$31,$A13,BOOKINGS!$C$5:$C$31,"=FOB MILL",BOOKINGS!$D$5:$D$31,K$6))-SUMIFS(WITHDRAWALS!$F$5:$F$4000,WITHDRAWALS!$B$5:$B$4000,">=1-"&$G$3,WITHDRAWALS!$B$5:$B$4000,"<="&$H$3&"-"&$G$3,WITHDRAWALS!$C$5:$C$4000,$A13,WITHDRAWALS!$D$5:$D$4000,"=FOB MILL",WITHDRAWALS!$E$5:$E$4000,K$6)) ->  | L13: =IF($A13="","",(SUMIFS(BOOKINGS!$E$5:$E$31,BOOKINGS!$A$5:$A$31,">=1-"&$G$3,BOOKINGS!$A$5:$A$31,"<="&$H$3&"-"&$G$3,BOOKINGS!$B$5:$B$31,$A13,BOOKINGS!$C$5:$C$31,"=FOB MILL",BOOKINGS!$D$5:$D$31,L$6))-SUMIFS(WITHDRAWALS!$F$5:$F$4000,WITHDRAWALS!$B$5:$B$4000,">=1-"&$G$3,WITHDRAWALS!$B$5:$B$4000,"<="&$H$3&"-"&$G$3,WITHDRAWALS!$C$5:$C$4000,$A13,WITHDRAWALS!$D$5:$D$4000,"=FOB MILL",WITHDRAWALS!$E$5:$E$4000,L$6)) -> 
A14: =IFERROR(INDEX(WITHDRAWALS!$C$5:$C$4000,SMALL(IF(FREQUENCY(IF(ISNUMBER(SEARCH("??"&TEXT($G$4,"mmm")&"??"&"|"&"?*"&"FOB MILL"&"|?*",WITHDRAWALS!$L$5:$L$4000)), MATCH(WITHDRAWALS!$C$5:$C$4000,WITHDRAWALS!$C$5:$C$4000,0)),Ivec),Ivec),ROWS($A$7:A14))),"") ->  | B14: =IF($A14="","",(SUMIFS(BOOKINGS!$E$5:$E$31,BOOKINGS!$A$5:$A$31,">=1-"&$G$3,BOOKINGS!$A$5:$A$31,"<="&$H$3&"-"&$G$3,BOOKINGS!$B$5:$B$31,$A14,BOOKINGS!$C$5:$C$31,"=FOB MILL",BOOKINGS!$D$5:$D$31,B$6))-SUMIFS(WITHDRAWALS!$F$5:$F$4000,WITHDRAWALS!$B$5:$B$4000,">=1-"&$G$3,WITHDRAWALS!$B$5:$B$4000,"<="&$H$3&"-"&$G$3,WITHDRAWALS!$C$5:$C$4000,$A14,WITHDRAWALS!$D$5:$D$4000,"=FOB MILL",WITHDRAWALS!$E$5:$E$4000,B$6)) ->  | C14: =IF($A14="","",(SUMIFS(BOOKINGS!$E$5:$E$31,BOOKINGS!$A$5:$A$31,">=1-"&$G$3,BOOKINGS!$A$5:$A$31,"<="&$H$3&"-"&$G$3,BOOKINGS!$B$5:$B$31,$A14,BOOKINGS!$C$5:$C$31,"=FOB MILL",BOOKINGS!$D$5:$D$31,C$6))-SUMIFS(WITHDRAWALS!$F$5:$F$4000,WITHDRAWALS!$B$5:$B$4000,">=1-"&$G$3,WITHDRAWALS!$B$5:$B$4000,"<="&$H$3&"-"&$G$3,WITHDRAWALS!$C$5:$C$4000,$A14,WITHDRAWALS!$D$5:$D$4000,"=FOB MILL",WITHDRAWALS!$E$5:$E$4000,C$6)) ->  | D14: =IF($A14="","",(SUMIFS(BOOKINGS!$E$5:$E$31,BOOKINGS!$A$5:$A$31,">=1-"&$G$3,BOOKINGS!$A$5:$A$31,"<="&$H$3&"-"&$G$3,BOOKINGS!$B$5:$B$31,$A14,BOOKINGS!$C$5:$C$31,"=FOB MILL",BOOKINGS!$D$5:$D$31,D$6))-SUMIFS(WITHDRAWALS!$F$5:$F$4000,WITHDRAWALS!$B$5:$B$4000,">=1-"&$G$3,WITHDRAWALS!$B$5:$B$4000,"<="&$H$3&"-"&$G$3,WITHDRAWALS!$C$5:$C$4000,$A14,WITHDRAWALS!$D$5:$D$4000,"=FOB MILL",WITHDRAWALS!$E$5:$E$4000,D$6)) ->  | E14: =IF($A14="","",(SUMIFS(BOOKINGS!$E$5:$E$31,BOOKINGS!$A$5:$A$31,">=1-"&$G$3,BOOKINGS!$A$5:$A$31,"<="&$H$3&"-"&$G$3,BOOKINGS!$B$5:$B$31,$A14,BOOKINGS!$C$5:$C$31,"=FOB MILL",BOOKINGS!$D$5:$D$31,E$6))-SUMIFS(WITHDRAWALS!$F$5:$F$4000,WITHDRAWALS!$B$5:$B$4000,">=1-"&$G$3,WITHDRAWALS!$B$5:$B$4000,"<="&$H$3&"-"&$G$3,WITHDRAWALS!$C$5:$C$4000,$A14,WITHDRAWALS!$D$5:$D$4000,"=FOB MILL",WITHDRAWALS!$E$5:$E$4000,E$6)) ->  | F14: =IF($A14="","",(SUMIFS(BOOKINGS!$E$5:$E$31,BOOKINGS!$A$5:$A$31,">=1-"&$G$3,BOOKINGS!$A$5:$A$31,"<="&$H$3&"-"&$G$3,BOOKINGS!$B$5:$B$31,$A14,BOOKINGS!$C$5:$C$31,"=FOB MILL",BOOKINGS!$D$5:$D$31,F$6))-SUMIFS(WITHDRAWALS!$F$5:$F$4000,WITHDRAWALS!$B$5:$B$4000,">=1-"&$G$3,WITHDRAWALS!$B$5:$B$4000,"<="&$H$3&"-"&$G$3,WITHDRAWALS!$C$5:$C$4000,$A14,WITHDRAWALS!$D$5:$D$4000,"=FOB MILL",WITHDRAWALS!$E$5:$E$4000,F$6)) ->  | G14: =IF($A14="","",(SUMIFS(BOOKINGS!$E$5:$E$31,BOOKINGS!$A$5:$A$31,">=1-"&$G$3,BOOKINGS!$A$5:$A$31,"<="&$H$3&"-"&$G$3,BOOKINGS!$B$5:$B$31,$A14,BOOKINGS!$C$5:$C$31,"=FOB MILL",BOOKINGS!$D$5:$D$31,G$6))-SUMIFS(WITHDRAWALS!$F$5:$F$4000,WITHDRAWALS!$B$5:$B$4000,">=1-"&$G$3,WITHDRAWALS!$B$5:$B$4000,"<="&$H$3&"-"&$G$3,WITHDRAWALS!$C$5:$C$4000,$A14,WITHDRAWALS!$D$5:$D$4000,"=FOB MILL",WITHDRAWALS!$E$5:$E$4000,G$6)) ->  | H14: =IF($A14="","",(SUMIFS(BOOKINGS!$E$5:$E$31,BOOKINGS!$A$5:$A$31,">=1-"&$G$3,BOOKINGS!$A$5:$A$31,"<="&$H$3&"-"&$G$3,BOOKINGS!$B$5:$B$31,$A14,BOOKINGS!$C$5:$C$31,"=FOB MILL",BOOKINGS!$D$5:$D$31,H$6))-SUMIFS(WITHDRAWALS!$F$5:$F$4000,WITHDRAWALS!$B$5:$B$4000,">=1-"&$G$3,WITHDRAWALS!$B$5:$B$4000,"<="&$H$3&"-"&$G$3,WITHDRAWALS!$C$5:$C$4000,$A14,WITHDRAWALS!$D$5:$D$4000,"=FOB MILL",WITHDRAWALS!$E$5:$E$4000,H$6)) ->  | I14: =IF($A14="","",(SUMIFS(BOOKINGS!$E$5:$E$31,BOOKINGS!$A$5:$A$31,">=1-"&$G$3,BOOKINGS!$A$5:$A$31,"<="&$H$3&"-"&$G$3,BOOKINGS!$B$5:$B$31,$A14,BOOKINGS!$C$5:$C$31,"=FOB MILL",BOOKINGS!$D$5:$D$31,I$6))-SUMIFS(WITHDRAWALS!$F$5:$F$4000,WITHDRAWALS!$B$5:$B$4000,">=1-"&$G$3,WITHDRAWALS!$B$5:$B$4000,"<="&$H$3&"-"&$G$3,WITHDRAWALS!$C$5:$C$4000,$A14,WITHDRAWALS!$D$5:$D$4000,"=FOB MILL",WITHDRAWALS!$E$5:$E$4000,I$6)) ->  | J14: =IF($A14="","",(SUMIFS(BOOKINGS!$E$5:$E$31,BOOKINGS!$A$5:$A$31,">=1-"&$G$3,BOOKINGS!$A$5:$A$31,"<="&$H$3&"-"&$G$3,BOOKINGS!$B$5:$B$31,$A14,BOOKINGS!$C$5:$C$31,"=FOB MILL",BOOKINGS!$D$5:$D$31,J$6))-SUMIFS(WITHDRAWALS!$F$5:$F$4000,WITHDRAWALS!$B$5:$B$4000,">=1-"&$G$3,WITHDRAWALS!$B$5:$B$4000,"<="&$H$3&"-"&$G$3,WITHDRAWALS!$C$5:$C$4000,$A14,WITHDRAWALS!$D$5:$D$4000,"=FOB MILL",WITHDRAWALS!$E$5:$E$4000,J$6)) ->  | K14: =IF($A14="","",(SUMIFS(BOOKINGS!$E$5:$E$31,BOOKINGS!$A$5:$A$31,">=1-"&$G$3,BOOKINGS!$A$5:$A$31,"<="&$H$3&"-"&$G$3,BOOKINGS!$B$5:$B$31,$A14,BOOKINGS!$C$5:$C$31,"=FOB MILL",BOOKINGS!$D$5:$D$31,K$6))-SUMIFS(WITHDRAWALS!$F$5:$F$4000,WITHDRAWALS!$B$5:$B$4000,">=1-"&$G$3,WITHDRAWALS!$B$5:$B$4000,"<="&$H$3&"-"&$G$3,WITHDRAWALS!$C$5:$C$4000,$A14,WITHDRAWALS!$D$5:$D$4000,"=FOB MILL",WITHDRAWALS!$E$5:$E$4000,K$6)) ->  | L14: =IF($A14="","",(SUMIFS(BOOKINGS!$E$5:$E$31,BOOKINGS!$A$5:$A$31,">=1-"&$G$3,BOOKINGS!$A$5:$A$31,"<="&$H$3&"-"&$G$3,BOOKINGS!$B$5:$B$31,$A14,BOOKINGS!$C$5:$C$31,"=FOB MILL",BOOKINGS!$D$5:$D$31,L$6))-SUMIFS(WITHDRAWALS!$F$5:$F$4000,WITHDRAWALS!$B$5:$B$4000,">=1-"&$G$3,WITHDRAWALS!$B$5:$B$4000,"<="&$H$3&"-"&$G$3,WITHDRAWALS!$C$5:$C$4000,$A14,WITHDRAWALS!$D$5:$D$4000,"=FOB MILL",WITHDRAWALS!$E$5:$E$4000,L$6)) -> 
A15: =IFERROR(INDEX(WITHDRAWALS!$C$5:$C$4000,SMALL(IF(FREQUENCY(IF(ISNUMBER(SEARCH("??"&TEXT($G$4,"mmm")&"??"&"|"&"?*"&"FOB MILL"&"|?*",WITHDRAWALS!$L$5:$L$4000)), MATCH(WITHDRAWALS!$C$5:$C$4000,WITHDRAWALS!$C$5:$C$4000,0)),Ivec),Ivec),ROWS($A$7:A15))),"") ->  | B15: =IF($A15="","",(SUMIFS(BOOKINGS!$E$5:$E$31,BOOKINGS!$A$5:$A$31,">=1-"&$G$3,BOOKINGS!$A$5:$A$31,"<="&$H$3&"-"&$G$3,BOOKINGS!$B$5:$B$31,$A15,BOOKINGS!$C$5:$C$31,"=FOB MILL",BOOKINGS!$D$5:$D$31,B$6))-SUMIFS(WITHDRAWALS!$F$5:$F$4000,WITHDRAWALS!$B$5:$B$4000,">=1-"&$G$3,WITHDRAWALS!$B$5:$B$4000,"<="&$H$3&"-"&$G$3,WITHDRAWALS!$C$5:$C$4000,$A15,WITHDRAWALS!$D$5:$D$4000,"=FOB MILL",WITHDRAWALS!$E$5:$E$4000,B$6)) ->  | C15: =IF($A15="","",(SUMIFS(BOOKINGS!$E$5:$E$31,BOOKINGS!$A$5:$A$31,">=1-"&$G$3,BOOKINGS!$A$5:$A$31,"<="&$H$3&"-"&$G$3,BOOKINGS!$B$5:$B$31,$A15,BOOKINGS!$C$5:$C$31,"=FOB MILL",BOOKINGS!$D$5:$D$31,C$6))-SUMIFS(WITHDRAWALS!$F$5:$F$4000,WITHDRAWALS!$B$5:$B$4000,">=1-"&$G$3,WITHDRAWALS!$B$5:$B$4000,"<="&$H$3&"-"&$G$3,WITHDRAWALS!$C$5:$C$4000,$A15,WITHDRAWALS!$D$5:$D$4000,"=FOB MILL",WITHDRAWALS!$E$5:$E$4000,C$6)) ->  | D15: =IF($A15="","",(SUMIFS(BOOKINGS!$E$5:$E$31,BOOKINGS!$A$5:$A$31,">=1-"&$G$3,BOOKINGS!$A$5:$A$31,"<="&$H$3&"-"&$G$3,BOOKINGS!$B$5:$B$31,$A15,BOOKINGS!$C$5:$C$31,"=FOB MILL",BOOKINGS!$D$5:$D$31,D$6))-SUMIFS(WITHDRAWALS!$F$5:$F$4000,WITHDRAWALS!$B$5:$B$4000,">=1-"&$G$3,WITHDRAWALS!$B$5:$B$4000,"<="&$H$3&"-"&$G$3,WITHDRAWALS!$C$5:$C$4000,$A15,WITHDRAWALS!$D$5:$D$4000,"=FOB MILL",WITHDRAWALS!$E$5:$E$4000,D$6)) ->  | E15: =IF($A15="","",(SUMIFS(BOOKINGS!$E$5:$E$31,BOOKINGS!$A$5:$A$31,">=1-"&$G$3,BOOKINGS!$A$5:$A$31,"<="&$H$3&"-"&$G$3,BOOKINGS!$B$5:$B$31,$A15,BOOKINGS!$C$5:$C$31,"=FOB MILL",BOOKINGS!$D$5:$D$31,E$6))-SUMIFS(WITHDRAWALS!$F$5:$F$4000,WITHDRAWALS!$B$5:$B$4000,">=1-"&$G$3,WITHDRAWALS!$B$5:$B$4000,"<="&$H$3&"-"&$G$3,WITHDRAWALS!$C$5:$C$4000,$A15,WITHDRAWALS!$D$5:$D$4000,"=FOB MILL",WITHDRAWALS!$E$5:$E$4000,E$6)) ->  | F15: =IF($A15="","",(SUMIFS(BOOKINGS!$E$5:$E$31,BOOKINGS!$A$5:$A$31,">=1-"&$G$3,BOOKINGS!$A$5:$A$31,"<="&$H$3&"-"&$G$3,BOOKINGS!$B$5:$B$31,$A15,BOOKINGS!$C$5:$C$31,"=FOB MILL",BOOKINGS!$D$5:$D$31,F$6))-SUMIFS(WITHDRAWALS!$F$5:$F$4000,WITHDRAWALS!$B$5:$B$4000,">=1-"&$G$3,WITHDRAWALS!$B$5:$B$4000,"<="&$H$3&"-"&$G$3,WITHDRAWALS!$C$5:$C$4000,$A15,WITHDRAWALS!$D$5:$D$4000,"=FOB MILL",WITHDRAWALS!$E$5:$E$4000,F$6)) ->  | G15: =IF($A15="","",(SUMIFS(BOOKINGS!$E$5:$E$31,BOOKINGS!$A$5:$A$31,">=1-"&$G$3,BOOKINGS!$A$5:$A$31,"<="&$H$3&"-"&$G$3,BOOKINGS!$B$5:$B$31,$A15,BOOKINGS!$C$5:$C$31,"=FOB MILL",BOOKINGS!$D$5:$D$31,G$6))-SUMIFS(WITHDRAWALS!$F$5:$F$4000,WITHDRAWALS!$B$5:$B$4000,">=1-"&$G$3,WITHDRAWALS!$B$5:$B$4000,"<="&$H$3&"-"&$G$3,WITHDRAWALS!$C$5:$C$4000,$A15,WITHDRAWALS!$D$5:$D$4000,"=FOB MILL",WITHDRAWALS!$E$5:$E$4000,G$6)) ->  | H15: =IF($A15="","",(SUMIFS(BOOKINGS!$E$5:$E$31,BOOKINGS!$A$5:$A$31,">=1-"&$G$3,BOOKINGS!$A$5:$A$31,"<="&$H$3&"-"&$G$3,BOOKINGS!$B$5:$B$31,$A15,BOOKINGS!$C$5:$C$31,"=FOB MILL",BOOKINGS!$D$5:$D$31,H$6))-SUMIFS(WITHDRAWALS!$F$5:$F$4000,WITHDRAWALS!$B$5:$B$4000,">=1-"&$G$3,WITHDRAWALS!$B$5:$B$4000,"<="&$H$3&"-"&$G$3,WITHDRAWALS!$C$5:$C$4000,$A15,WITHDRAWALS!$D$5:$D$4000,"=FOB MILL",WITHDRAWALS!$E$5:$E$4000,H$6)) ->  | I15: =IF($A15="","",(SUMIFS(BOOKINGS!$E$5:$E$31,BOOKINGS!$A$5:$A$31,">=1-"&$G$3,BOOKINGS!$A$5:$A$31,"<="&$H$3&"-"&$G$3,BOOKINGS!$B$5:$B$31,$A15,BOOKINGS!$C$5:$C$31,"=FOB MILL",BOOKINGS!$D$5:$D$31,I$6))-SUMIFS(WITHDRAWALS!$F$5:$F$4000,WITHDRAWALS!$B$5:$B$4000,">=1-"&$G$3,WITHDRAWALS!$B$5:$B$4000,"<="&$H$3&"-"&$G$3,WITHDRAWALS!$C$5:$C$4000,$A15,WITHDRAWALS!$D$5:$D$4000,"=FOB MILL",WITHDRAWALS!$E$5:$E$4000,I$6)) ->  | J15: =IF($A15="","",(SUMIFS(BOOKINGS!$E$5:$E$31,BOOKINGS!$A$5:$A$31,">=1-"&$G$3,BOOKINGS!$A$5:$A$31,"<="&$H$3&"-"&$G$3,BOOKINGS!$B$5:$B$31,$A15,BOOKINGS!$C$5:$C$31,"=FOB MILL",BOOKINGS!$D$5:$D$31,J$6))-SUMIFS(WITHDRAWALS!$F$5:$F$4000,WITHDRAWALS!$B$5:$B$4000,">=1-"&$G$3,WITHDRAWALS!$B$5:$B$4000,"<="&$H$3&"-"&$G$3,WITHDRAWALS!$C$5:$C$4000,$A15,WITHDRAWALS!$D$5:$D$4000,"=FOB MILL",WITHDRAWALS!$E$5:$E$4000,J$6)) ->  | K15: =IF($A15="","",(SUMIFS(BOOKINGS!$E$5:$E$31,BOOKINGS!$A$5:$A$31,">=1-"&$G$3,BOOKINGS!$A$5:$A$31,"<="&$H$3&"-"&$G$3,BOOKINGS!$B$5:$B$31,$A15,BOOKINGS!$C$5:$C$31,"=FOB MILL",BOOKINGS!$D$5:$D$31,K$6))-SUMIFS(WITHDRAWALS!$F$5:$F$4000,WITHDRAWALS!$B$5:$B$4000,">=1-"&$G$3,WITHDRAWALS!$B$5:$B$4000,"<="&$H$3&"-"&$G$3,WITHDRAWALS!$C$5:$C$4000,$A15,WITHDRAWALS!$D$5:$D$4000,"=FOB MILL",WITHDRAWALS!$E$5:$E$4000,K$6)) ->  | L15: =IF($A15="","",(SUMIFS(BOOKINGS!$E$5:$E$31,BOOKINGS!$A$5:$A$31,">=1-"&$G$3,BOOKINGS!$A$5:$A$31,"<="&$H$3&"-"&$G$3,BOOKINGS!$B$5:$B$31,$A15,BOOKINGS!$C$5:$C$31,"=FOB MILL",BOOKINGS!$D$5:$D$31,L$6))-SUMIFS(WITHDRAWALS!$F$5:$F$4000,WITHDRAWALS!$B$5:$B$4000,">=1-"&$G$3,WITHDRAWALS!$B$5:$B$4000,"<="&$H$3&"-"&$G$3,WITHDRAWALS!$C$5:$C$4000,$A15,WITHDRAWALS!$D$5:$D$4000,"=FOB MILL",WITHDRAWALS!$E$5:$E$4000,L$6)) -> 
A16: =IFERROR(INDEX(WITHDRAWALS!$C$5:$C$4000,SMALL(IF(FREQUENCY(IF(ISNUMBER(SEARCH("??"&TEXT($G$4,"mmm")&"??"&"|"&"?*"&"FOB MILL"&"|?*",WITHDRAWALS!$L$5:$L$4000)), MATCH(WITHDRAWALS!$C$5:$C$4000,WITHDRAWALS!$C$5:$C$4000,0)),Ivec),Ivec),ROWS($A$7:A16))),"") ->  | B16: =IF($A16="","",(SUMIFS(BOOKINGS!$E$5:$E$31,BOOKINGS!$A$5:$A$31,">=1-"&$G$3,BOOKINGS!$A$5:$A$31,"<="&$H$3&"-"&$G$3,BOOKINGS!$B$5:$B$31,$A16,BOOKINGS!$C$5:$C$31,"=FOB MILL",BOOKINGS!$D$5:$D$31,B$6))-SUMIFS(WITHDRAWALS!$F$5:$F$4000,WITHDRAWALS!$B$5:$B$4000,">=1-"&$G$3,WITHDRAWALS!$B$5:$B$4000,"<="&$H$3&"-"&$G$3,WITHDRAWALS!$C$5:$C$4000,$A16,WITHDRAWALS!$D$5:$D$4000,"=FOB MILL",WITHDRAWALS!$E$5:$E$4000,B$6)) ->  | C16: =IF($A16="","",(SUMIFS(BOOKINGS!$E$5:$E$31,BOOKINGS!$A$5:$A$31,">=1-"&$G$3,BOOKINGS!$A$5:$A$31,"<="&$H$3&"-"&$G$3,BOOKINGS!$B$5:$B$31,$A16,BOOKINGS!$C$5:$C$31,"=FOB MILL",BOOKINGS!$D$5:$D$31,C$6))-SUMIFS(WITHDRAWALS!$F$5:$F$4000,WITHDRAWALS!$B$5:$B$4000,">=1-"&$G$3,WITHDRAWALS!$B$5:$B$4000,"<="&$H$3&"-"&$G$3,WITHDRAWALS!$C$5:$C$4000,$A16,WITHDRAWALS!$D$5:$D$4000,"=FOB MILL",WITHDRAWALS!$E$5:$E$4000,C$6)) ->  | D16: =IF($A16="","",(SUMIFS(BOOKINGS!$E$5:$E$31,BOOKINGS!$A$5:$A$31,">=1-"&$G$3,BOOKINGS!$A$5:$A$31,"<="&$H$3&"-"&$G$3,BOOKINGS!$B$5:$B$31,$A16,BOOKINGS!$C$5:$C$31,"=FOB MILL",BOOKINGS!$D$5:$D$31,D$6))-SUMIFS(WITHDRAWALS!$F$5:$F$4000,WITHDRAWALS!$B$5:$B$4000,">=1-"&$G$3,WITHDRAWALS!$B$5:$B$4000,"<="&$H$3&"-"&$G$3,WITHDRAWALS!$C$5:$C$4000,$A16,WITHDRAWALS!$D$5:$D$4000,"=FOB MILL",WITHDRAWALS!$E$5:$E$4000,D$6)) ->  | E16: =IF($A16="","",(SUMIFS(BOOKINGS!$E$5:$E$31,BOOKINGS!$A$5:$A$31,">=1-"&$G$3,BOOKINGS!$A$5:$A$31,"<="&$H$3&"-"&$G$3,BOOKINGS!$B$5:$B$31,$A16,BOOKINGS!$C$5:$C$31,"=FOB MILL",BOOKINGS!$D$5:$D$31,E$6))-SUMIFS(WITHDRAWALS!$F$5:$F$4000,WITHDRAWALS!$B$5:$B$4000,">=1-"&$G$3,WITHDRAWALS!$B$5:$B$4000,"<="&$H$3&"-"&$G$3,WITHDRAWALS!$C$5:$C$4000,$A16,WITHDRAWALS!$D$5:$D$4000,"=FOB MILL",WITHDRAWALS!$E$5:$E$4000,E$6)) ->  | F16: =IF($A16="","",(SUMIFS(BOOKINGS!$E$5:$E$31,BOOKINGS!$A$5:$A$31,">=1-"&$G$3,BOOKINGS!$A$5:$A$31,"<="&$H$3&"-"&$G$3,BOOKINGS!$B$5:$B$31,$A16,BOOKINGS!$C$5:$C$31,"=FOB MILL",BOOKINGS!$D$5:$D$31,F$6))-SUMIFS(WITHDRAWALS!$F$5:$F$4000,WITHDRAWALS!$B$5:$B$4000,">=1-"&$G$3,WITHDRAWALS!$B$5:$B$4000,"<="&$H$3&"-"&$G$3,WITHDRAWALS!$C$5:$C$4000,$A16,WITHDRAWALS!$D$5:$D$4000,"=FOB MILL",WITHDRAWALS!$E$5:$E$4000,F$6)) ->  | G16: =IF($A16="","",(SUMIFS(BOOKINGS!$E$5:$E$31,BOOKINGS!$A$5:$A$31,">=1-"&$G$3,BOOKINGS!$A$5:$A$31,"<="&$H$3&"-"&$G$3,BOOKINGS!$B$5:$B$31,$A16,BOOKINGS!$C$5:$C$31,"=FOB MILL",BOOKINGS!$D$5:$D$31,G$6))-SUMIFS(WITHDRAWALS!$F$5:$F$4000,WITHDRAWALS!$B$5:$B$4000,">=1-"&$G$3,WITHDRAWALS!$B$5:$B$4000,"<="&$H$3&"-"&$G$3,WITHDRAWALS!$C$5:$C$4000,$A16,WITHDRAWALS!$D$5:$D$4000,"=FOB MILL",WITHDRAWALS!$E$5:$E$4000,G$6)) ->  | H16: =IF($A16="","",(SUMIFS(BOOKINGS!$E$5:$E$31,BOOKINGS!$A$5:$A$31,">=1-"&$G$3,BOOKINGS!$A$5:$A$31,"<="&$H$3&"-"&$G$3,BOOKINGS!$B$5:$B$31,$A16,BOOKINGS!$C$5:$C$31,"=FOB MILL",BOOKINGS!$D$5:$D$31,H$6))-SUMIFS(WITHDRAWALS!$F$5:$F$4000,WITHDRAWALS!$B$5:$B$4000,">=1-"&$G$3,WITHDRAWALS!$B$5:$B$4000,"<="&$H$3&"-"&$G$3,WITHDRAWALS!$C$5:$C$4000,$A16,WITHDRAWALS!$D$5:$D$4000,"=FOB MILL",WITHDRAWALS!$E$5:$E$4000,H$6)) ->  | I16: =IF($A16="","",(SUMIFS(BOOKINGS!$E$5:$E$31,BOOKINGS!$A$5:$A$31,">=1-"&$G$3,BOOKINGS!$A$5:$A$31,"<="&$H$3&"-"&$G$3,BOOKINGS!$B$5:$B$31,$A16,BOOKINGS!$C$5:$C$31,"=FOB MILL",BOOKINGS!$D$5:$D$31,I$6))-SUMIFS(WITHDRAWALS!$F$5:$F$4000,WITHDRAWALS!$B$5:$B$4000,">=1-"&$G$3,WITHDRAWALS!$B$5:$B$4000,"<="&$H$3&"-"&$G$3,WITHDRAWALS!$C$5:$C$4000,$A16,WITHDRAWALS!$D$5:$D$4000,"=FOB MILL",WITHDRAWALS!$E$5:$E$4000,I$6)) ->  | J16: =IF($A16="","",(SUMIFS(BOOKINGS!$E$5:$E$31,BOOKINGS!$A$5:$A$31,">=1-"&$G$3,BOOKINGS!$A$5:$A$31,"<="&$H$3&"-"&$G$3,BOOKINGS!$B$5:$B$31,$A16,BOOKINGS!$C$5:$C$31,"=FOB MILL",BOOKINGS!$D$5:$D$31,J$6))-SUMIFS(WITHDRAWALS!$F$5:$F$4000,WITHDRAWALS!$B$5:$B$4000,">=1-"&$G$3,WITHDRAWALS!$B$5:$B$4000,"<="&$H$3&"-"&$G$3,WITHDRAWALS!$C$5:$C$4000,$A16,WITHDRAWALS!$D$5:$D$4000,"=FOB MILL",WITHDRAWALS!$E$5:$E$4000,J$6)) ->  | K16: =IF($A16="","",(SUMIFS(BOOKINGS!$E$5:$E$31,BOOKINGS!$A$5:$A$31,">=1-"&$G$3,BOOKINGS!$A$5:$A$31,"<="&$H$3&"-"&$G$3,BOOKINGS!$B$5:$B$31,$A16,BOOKINGS!$C$5:$C$31,"=FOB MILL",BOOKINGS!$D$5:$D$31,K$6))-SUMIFS(WITHDRAWALS!$F$5:$F$4000,WITHDRAWALS!$B$5:$B$4000,">=1-"&$G$3,WITHDRAWALS!$B$5:$B$4000,"<="&$H$3&"-"&$G$3,WITHDRAWALS!$C$5:$C$4000,$A16,WITHDRAWALS!$D$5:$D$4000,"=FOB MILL",WITHDRAWALS!$E$5:$E$4000,K$6)) ->  | L16: =IF($A16="","",(SUMIFS(BOOKINGS!$E$5:$E$31,BOOKINGS!$A$5:$A$31,">=1-"&$G$3,BOOKINGS!$A$5:$A$31,"<="&$H$3&"-"&$G$3,BOOKINGS!$B$5:$B$31,$A16,BOOKINGS!$C$5:$C$31,"=FOB MILL",BOOKINGS!$D$5:$D$31,L$6))-SUMIFS(WITHDRAWALS!$F$5:$F$4000,WITHDRAWALS!$B$5:$B$4000,">=1-"&$G$3,WITHDRAWALS!$B$5:$B$4000,"<="&$H$3&"-"&$G$3,WITHDRAWALS!$C$5:$C$4000,$A16,WITHDRAWALS!$D$5:$D$4000,"=FOB MILL",WITHDRAWALS!$E$5:$E$4000,L$6)) -> 
A17: =IFERROR(INDEX(WITHDRAWALS!$C$5:$C$4000,SMALL(IF(FREQUENCY(IF(ISNUMBER(SEARCH("??"&TEXT($G$4,"mmm")&"??"&"|"&"?*"&"FOB MILL"&"|?*",WITHDRAWALS!$L$5:$L$4000)), MATCH(WITHDRAWALS!$C$5:$C$4000,WITHDRAWALS!$C$5:$C$4000,0)),Ivec),Ivec),ROWS($A$7:A17))),"") ->  | B17: =IF($A17="","",(SUMIFS(BOOKINGS!$E$5:$E$31,BOOKINGS!$A$5:$A$31,">=1-"&$G$3,BOOKINGS!$A$5:$A$31,"<="&$H$3&"-"&$G$3,BOOKINGS!$B$5:$B$31,$A17,BOOKINGS!$C$5:$C$31,"=FOB MILL",BOOKINGS!$D$5:$D$31,B$6))-SUMIFS(WITHDRAWALS!$F$5:$F$4000,WITHDRAWALS!$B$5:$B$4000,">=1-"&$G$3,WITHDRAWALS!$B$5:$B$4000,"<="&$H$3&"-"&$G$3,WITHDRAWALS!$C$5:$C$4000,$A17,WITHDRAWALS!$D$5:$D$4000,"=FOB MILL",WITHDRAWALS!$E$5:$E$4000,B$6)) ->  | C17: =IF($A17="","",(SUMIFS(BOOKINGS!$E$5:$E$31,BOOKINGS!$A$5:$A$31,">=1-"&$G$3,BOOKINGS!$A$5:$A$31,"<="&$H$3&"-"&$G$3,BOOKINGS!$B$5:$B$31,$A17,BOOKINGS!$C$5:$C$31,"=FOB MILL",BOOKINGS!$D$5:$D$31,C$6))-SUMIFS(WITHDRAWALS!$F$5:$F$4000,WITHDRAWALS!$B$5:$B$4000,">=1-"&$G$3,WITHDRAWALS!$B$5:$B$4000,"<="&$H$3&"-"&$G$3,WITHDRAWALS!$C$5:$C$4000,$A17,WITHDRAWALS!$D$5:$D$4000,"=FOB MILL",WITHDRAWALS!$E$5:$E$4000,C$6)) ->  | D17: =IF($A17="","",(SUMIFS(BOOKINGS!$E$5:$E$31,BOOKINGS!$A$5:$A$31,">=1-"&$G$3,BOOKINGS!$A$5:$A$31,"<="&$H$3&"-"&$G$3,BOOKINGS!$B$5:$B$31,$A17,BOOKINGS!$C$5:$C$31,"=FOB MILL",BOOKINGS!$D$5:$D$31,D$6))-SUMIFS(WITHDRAWALS!$F$5:$F$4000,WITHDRAWALS!$B$5:$B$4000,">=1-"&$G$3,WITHDRAWALS!$B$5:$B$4000,"<="&$H$3&"-"&$G$3,WITHDRAWALS!$C$5:$C$4000,$A17,WITHDRAWALS!$D$5:$D$4000,"=FOB MILL",WITHDRAWALS!$E$5:$E$4000,D$6)) ->  | E17: =IF($A17="","",(SUMIFS(BOOKINGS!$E$5:$E$31,BOOKINGS!$A$5:$A$31,">=1-"&$G$3,BOOKINGS!$A$5:$A$31,"<="&$H$3&"-"&$G$3,BOOKINGS!$B$5:$B$31,$A17,BOOKINGS!$C$5:$C$31,"=FOB MILL",BOOKINGS!$D$5:$D$31,E$6))-SUMIFS(WITHDRAWALS!$F$5:$F$4000,WITHDRAWALS!$B$5:$B$4000,">=1-"&$G$3,WITHDRAWALS!$B$5:$B$4000,"<="&$H$3&"-"&$G$3,WITHDRAWALS!$C$5:$C$4000,$A17,WITHDRAWALS!$D$5:$D$4000,"=FOB MILL",WITHDRAWALS!$E$5:$E$4000,E$6)) ->  | F17: =IF($A17="","",(SUMIFS(BOOKINGS!$E$5:$E$31,BOOKINGS!$A$5:$A$31,">=1-"&$G$3,BOOKINGS!$A$5:$A$31,"<="&$H$3&"-"&$G$3,BOOKINGS!$B$5:$B$31,$A17,BOOKINGS!$C$5:$C$31,"=FOB MILL",BOOKINGS!$D$5:$D$31,F$6))-SUMIFS(WITHDRAWALS!$F$5:$F$4000,WITHDRAWALS!$B$5:$B$4000,">=1-"&$G$3,WITHDRAWALS!$B$5:$B$4000,"<="&$H$3&"-"&$G$3,WITHDRAWALS!$C$5:$C$4000,$A17,WITHDRAWALS!$D$5:$D$4000,"=FOB MILL",WITHDRAWALS!$E$5:$E$4000,F$6)) ->  | G17: =IF($A17="","",(SUMIFS(BOOKINGS!$E$5:$E$31,BOOKINGS!$A$5:$A$31,">=1-"&$G$3,BOOKINGS!$A$5:$A$31,"<="&$H$3&"-"&$G$3,BOOKINGS!$B$5:$B$31,$A17,BOOKINGS!$C$5:$C$31,"=FOB MILL",BOOKINGS!$D$5:$D$31,G$6))-SUMIFS(WITHDRAWALS!$F$5:$F$4000,WITHDRAWALS!$B$5:$B$4000,">=1-"&$G$3,WITHDRAWALS!$B$5:$B$4000,"<="&$H$3&"-"&$G$3,WITHDRAWALS!$C$5:$C$4000,$A17,WITHDRAWALS!$D$5:$D$4000,"=FOB MILL",WITHDRAWALS!$E$5:$E$4000,G$6)) ->  | H17: =IF($A17="","",(SUMIFS(BOOKINGS!$E$5:$E$31,BOOKINGS!$A$5:$A$31,">=1-"&$G$3,BOOKINGS!$A$5:$A$31,"<="&$H$3&"-"&$G$3,BOOKINGS!$B$5:$B$31,$A17,BOOKINGS!$C$5:$C$31,"=FOB MILL",BOOKINGS!$D$5:$D$31,H$6))-SUMIFS(WITHDRAWALS!$F$5:$F$4000,WITHDRAWALS!$B$5:$B$4000,">=1-"&$G$3,WITHDRAWALS!$B$5:$B$4000,"<="&$H$3&"-"&$G$3,WITHDRAWALS!$C$5:$C$4000,$A17,WITHDRAWALS!$D$5:$D$4000,"=FOB MILL",WITHDRAWALS!$E$5:$E$4000,H$6)) ->  | I17: =IF($A17="","",(SUMIFS(BOOKINGS!$E$5:$E$31,BOOKINGS!$A$5:$A$31,">=1-"&$G$3,BOOKINGS!$A$5:$A$31,"<="&$H$3&"-"&$G$3,BOOKINGS!$B$5:$B$31,$A17,BOOKINGS!$C$5:$C$31,"=FOB MILL",BOOKINGS!$D$5:$D$31,I$6))-SUMIFS(WITHDRAWALS!$F$5:$F$4000,WITHDRAWALS!$B$5:$B$4000,">=1-"&$G$3,WITHDRAWALS!$B$5:$B$4000,"<="&$H$3&"-"&$G$3,WITHDRAWALS!$C$5:$C$4000,$A17,WITHDRAWALS!$D$5:$D$4000,"=FOB MILL",WITHDRAWALS!$E$5:$E$4000,I$6)) ->  | J17: =IF($A17="","",(SUMIFS(BOOKINGS!$E$5:$E$31,BOOKINGS!$A$5:$A$31,">=1-"&$G$3,BOOKINGS!$A$5:$A$31,"<="&$H$3&"-"&$G$3,BOOKINGS!$B$5:$B$31,$A17,BOOKINGS!$C$5:$C$31,"=FOB MILL",BOOKINGS!$D$5:$D$31,J$6))-SUMIFS(WITHDRAWALS!$F$5:$F$4000,WITHDRAWALS!$B$5:$B$4000,">=1-"&$G$3,WITHDRAWALS!$B$5:$B$4000,"<="&$H$3&"-"&$G$3,WITHDRAWALS!$C$5:$C$4000,$A17,WITHDRAWALS!$D$5:$D$4000,"=FOB MILL",WITHDRAWALS!$E$5:$E$4000,J$6)) ->  | K17: =IF($A17="","",(SUMIFS(BOOKINGS!$E$5:$E$31,BOOKINGS!$A$5:$A$31,">=1-"&$G$3,BOOKINGS!$A$5:$A$31,"<="&$H$3&"-"&$G$3,BOOKINGS!$B$5:$B$31,$A17,BOOKINGS!$C$5:$C$31,"=FOB MILL",BOOKINGS!$D$5:$D$31,K$6))-SUMIFS(WITHDRAWALS!$F$5:$F$4000,WITHDRAWALS!$B$5:$B$4000,">=1-"&$G$3,WITHDRAWALS!$B$5:$B$4000,"<="&$H$3&"-"&$G$3,WITHDRAWALS!$C$5:$C$4000,$A17,WITHDRAWALS!$D$5:$D$4000,"=FOB MILL",WITHDRAWALS!$E$5:$E$4000,K$6)) ->  | L17: =IF($A17="","",(SUMIFS(BOOKINGS!$E$5:$E$31,BOOKINGS!$A$5:$A$31,">=1-"&$G$3,BOOKINGS!$A$5:$A$31,"<="&$H$3&"-"&$G$3,BOOKINGS!$B$5:$B$31,$A17,BOOKINGS!$C$5:$C$31,"=FOB MILL",BOOKINGS!$D$5:$D$31,L$6))-SUMIFS(WITHDRAWALS!$F$5:$F$4000,WITHDRAWALS!$B$5:$B$4000,">=1-"&$G$3,WITHDRAWALS!$B$5:$B$4000,"<="&$H$3&"-"&$G$3,WITHDRAWALS!$C$5:$C$4000,$A17,WITHDRAWALS!$D$5:$D$4000,"=FOB MILL",WITHDRAWALS!$E$5:$E$4000,L$6)) -> 
A18: =IFERROR(INDEX(WITHDRAWALS!$C$5:$C$4000,SMALL(IF(FREQUENCY(IF(ISNUMBER(SEARCH("??"&TEXT($G$4,"mmm")&"??"&"|"&"?*"&"FOB MILL"&"|?*",WITHDRAWALS!$L$5:$L$4000)), MATCH(WITHDRAWALS!$C$5:$C$4000,WITHDRAWALS!$C$5:$C$4000,0)),Ivec),Ivec),ROWS($A$7:A18))),"") ->  | B18: =IF($A18="","",(SUMIFS(BOOKINGS!$E$5:$E$31,BOOKINGS!$A$5:$A$31,">=1-"&$G$3,BOOKINGS!$A$5:$A$31,"<="&$H$3&"-"&$G$3,BOOKINGS!$B$5:$B$31,$A18,BOOKINGS!$C$5:$C$31,"=FOB MILL",BOOKINGS!$D$5:$D$31,B$6))-SUMIFS(WITHDRAWALS!$F$5:$F$4000,WITHDRAWALS!$B$5:$B$4000,">=1-"&$G$3,WITHDRAWALS!$B$5:$B$4000,"<="&$H$3&"-"&$G$3,WITHDRAWALS!$C$5:$C$4000,$A18,WITHDRAWALS!$D$5:$D$4000,"=FOB MILL",WITHDRAWALS!$E$5:$E$4000,B$6)) ->  | C18: =IF($A18="","",(SUMIFS(BOOKINGS!$E$5:$E$31,BOOKINGS!$A$5:$A$31,">=1-"&$G$3,BOOKINGS!$A$5:$A$31,"<="&$H$3&"-"&$G$3,BOOKINGS!$B$5:$B$31,$A18,BOOKINGS!$C$5:$C$31,"=FOB MILL",BOOKINGS!$D$5:$D$31,C$6))-SUMIFS(WITHDRAWALS!$F$5:$F$4000,WITHDRAWALS!$B$5:$B$4000,">=1-"&$G$3,WITHDRAWALS!$B$5:$B$4000,"<="&$H$3&"-"&$G$3,WITHDRAWALS!$C$5:$C$4000,$A18,WITHDRAWALS!$D$5:$D$4000,"=FOB MILL",WITHDRAWALS!$E$5:$E$4000,C$6)) ->  | D18: =IF($A18="","",(SUMIFS(BOOKINGS!$E$5:$E$31,BOOKINGS!$A$5:$A$31,">=1-"&$G$3,BOOKINGS!$A$5:$A$31,"<="&$H$3&"-"&$G$3,BOOKINGS!$B$5:$B$31,$A18,BOOKINGS!$C$5:$C$31,"=FOB MILL",BOOKINGS!$D$5:$D$31,D$6))-SUMIFS(WITHDRAWALS!$F$5:$F$4000,WITHDRAWALS!$B$5:$B$4000,">=1-"&$G$3,WITHDRAWALS!$B$5:$B$4000,"<="&$H$3&"-"&$G$3,WITHDRAWALS!$C$5:$C$4000,$A18,WITHDRAWALS!$D$5:$D$4000,"=FOB MILL",WITHDRAWALS!$E$5:$E$4000,D$6)) ->  | E18: =IF($A18="","",(SUMIFS(BOOKINGS!$E$5:$E$31,BOOKINGS!$A$5:$A$31,">=1-"&$G$3,BOOKINGS!$A$5:$A$31,"<="&$H$3&"-"&$G$3,BOOKINGS!$B$5:$B$31,$A18,BOOKINGS!$C$5:$C$31,"=FOB MILL",BOOKINGS!$D$5:$D$31,E$6))-SUMIFS(WITHDRAWALS!$F$5:$F$4000,WITHDRAWALS!$B$5:$B$4000,">=1-"&$G$3,WITHDRAWALS!$B$5:$B$4000,"<="&$H$3&"-"&$G$3,WITHDRAWALS!$C$5:$C$4000,$A18,WITHDRAWALS!$D$5:$D$4000,"=FOB MILL",WITHDRAWALS!$E$5:$E$4000,E$6)) ->  | F18: =IF($A18="","",(SUMIFS(BOOKINGS!$E$5:$E$31,BOOKINGS!$A$5:$A$31,">=1-"&$G$3,BOOKINGS!$A$5:$A$31,"<="&$H$3&"-"&$G$3,BOOKINGS!$B$5:$B$31,$A18,BOOKINGS!$C$5:$C$31,"=FOB MILL",BOOKINGS!$D$5:$D$31,F$6))-SUMIFS(WITHDRAWALS!$F$5:$F$4000,WITHDRAWALS!$B$5:$B$4000,">=1-"&$G$3,WITHDRAWALS!$B$5:$B$4000,"<="&$H$3&"-"&$G$3,WITHDRAWALS!$C$5:$C$4000,$A18,WITHDRAWALS!$D$5:$D$4000,"=FOB MILL",WITHDRAWALS!$E$5:$E$4000,F$6)) ->  | G18: =IF($A18="","",(SUMIFS(BOOKINGS!$E$5:$E$31,BOOKINGS!$A$5:$A$31,">=1-"&$G$3,BOOKINGS!$A$5:$A$31,"<="&$H$3&"-"&$G$3,BOOKINGS!$B$5:$B$31,$A18,BOOKINGS!$C$5:$C$31,"=FOB MILL",BOOKINGS!$D$5:$D$31,G$6))-SUMIFS(WITHDRAWALS!$F$5:$F$4000,WITHDRAWALS!$B$5:$B$4000,">=1-"&$G$3,WITHDRAWALS!$B$5:$B$4000,"<="&$H$3&"-"&$G$3,WITHDRAWALS!$C$5:$C$4000,$A18,WITHDRAWALS!$D$5:$D$4000,"=FOB MILL",WITHDRAWALS!$E$5:$E$4000,G$6)) ->  | H18: =IF($A18="","",(SUMIFS(BOOKINGS!$E$5:$E$31,BOOKINGS!$A$5:$A$31,">=1-"&$G$3,BOOKINGS!$A$5:$A$31,"<="&$H$3&"-"&$G$3,BOOKINGS!$B$5:$B$31,$A18,BOOKINGS!$C$5:$C$31,"=FOB MILL",BOOKINGS!$D$5:$D$31,H$6))-SUMIFS(WITHDRAWALS!$F$5:$F$4000,WITHDRAWALS!$B$5:$B$4000,">=1-"&$G$3,WITHDRAWALS!$B$5:$B$4000,"<="&$H$3&"-"&$G$3,WITHDRAWALS!$C$5:$C$4000,$A18,WITHDRAWALS!$D$5:$D$4000,"=FOB MILL",WITHDRAWALS!$E$5:$E$4000,H$6)) ->  | I18: =IF($A18="","",(SUMIFS(BOOKINGS!$E$5:$E$31,BOOKINGS!$A$5:$A$31,">=1-"&$G$3,BOOKINGS!$A$5:$A$31,"<="&$H$3&"-"&$G$3,BOOKINGS!$B$5:$B$31,$A18,BOOKINGS!$C$5:$C$31,"=FOB MILL",BOOKINGS!$D$5:$D$31,I$6))-SUMIFS(WITHDRAWALS!$F$5:$F$4000,WITHDRAWALS!$B$5:$B$4000,">=1-"&$G$3,WITHDRAWALS!$B$5:$B$4000,"<="&$H$3&"-"&$G$3,WITHDRAWALS!$C$5:$C$4000,$A18,WITHDRAWALS!$D$5:$D$4000,"=FOB MILL",WITHDRAWALS!$E$5:$E$4000,I$6)) ->  | J18: =IF($A18="","",(SUMIFS(BOOKINGS!$E$5:$E$31,BOOKINGS!$A$5:$A$31,">=1-"&$G$3,BOOKINGS!$A$5:$A$31,"<="&$H$3&"-"&$G$3,BOOKINGS!$B$5:$B$31,$A18,BOOKINGS!$C$5:$C$31,"=FOB MILL",BOOKINGS!$D$5:$D$31,J$6))-SUMIFS(WITHDRAWALS!$F$5:$F$4000,WITHDRAWALS!$B$5:$B$4000,">=1-"&$G$3,WITHDRAWALS!$B$5:$B$4000,"<="&$H$3&"-"&$G$3,WITHDRAWALS!$C$5:$C$4000,$A18,WITHDRAWALS!$D$5:$D$4000,"=FOB MILL",WITHDRAWALS!$E$5:$E$4000,J$6)) ->  | K18: =IF($A18="","",(SUMIFS(BOOKINGS!$E$5:$E$31,BOOKINGS!$A$5:$A$31,">=1-"&$G$3,BOOKINGS!$A$5:$A$31,"<="&$H$3&"-"&$G$3,BOOKINGS!$B$5:$B$31,$A18,BOOKINGS!$C$5:$C$31,"=FOB MILL",BOOKINGS!$D$5:$D$31,K$6))-SUMIFS(WITHDRAWALS!$F$5:$F$4000,WITHDRAWALS!$B$5:$B$4000,">=1-"&$G$3,WITHDRAWALS!$B$5:$B$4000,"<="&$H$3&"-"&$G$3,WITHDRAWALS!$C$5:$C$4000,$A18,WITHDRAWALS!$D$5:$D$4000,"=FOB MILL",WITHDRAWALS!$E$5:$E$4000,K$6)) ->  | L18: =IF($A18="","",(SUMIFS(BOOKINGS!$E$5:$E$31,BOOKINGS!$A$5:$A$31,">=1-"&$G$3,BOOKINGS!$A$5:$A$31,"<="&$H$3&"-"&$G$3,BOOKINGS!$B$5:$B$31,$A18,BOOKINGS!$C$5:$C$31,"=FOB MILL",BOOKINGS!$D$5:$D$31,L$6))-SUMIFS(WITHDRAWALS!$F$5:$F$4000,WITHDRAWALS!$B$5:$B$4000,">=1-"&$G$3,WITHDRAWALS!$B$5:$B$4000,"<="&$H$3&"-"&$G$3,WITHDRAWALS!$C$5:$C$4000,$A18,WITHDRAWALS!$D$5:$D$4000,"=FOB MILL",WITHDRAWALS!$E$5:$E$4000,L$6)) -> 
A19: =IFERROR(INDEX(WITHDRAWALS!$C$5:$C$4000,SMALL(IF(FREQUENCY(IF(ISNUMBER(SEARCH("??"&TEXT($G$4,"mmm")&"??"&"|"&"?*"&"FOB MILL"&"|?*",WITHDRAWALS!$L$5:$L$4000)), MATCH(WITHDRAWALS!$C$5:$C$4000,WITHDRAWALS!$C$5:$C$4000,0)),Ivec),Ivec),ROWS($A$7:A19))),"") ->  | B19: =IF($A19="","",(SUMIFS(BOOKINGS!$E$5:$E$31,BOOKINGS!$A$5:$A$31,">=1-"&$G$3,BOOKINGS!$A$5:$A$31,"<="&$H$3&"-"&$G$3,BOOKINGS!$B$5:$B$31,$A19,BOOKINGS!$C$5:$C$31,"=FOB MILL",BOOKINGS!$D$5:$D$31,B$6))-SUMIFS(WITHDRAWALS!$F$5:$F$4000,WITHDRAWALS!$B$5:$B$4000,">=1-"&$G$3,WITHDRAWALS!$B$5:$B$4000,"<="&$H$3&"-"&$G$3,WITHDRAWALS!$C$5:$C$4000,$A19,WITHDRAWALS!$D$5:$D$4000,"=FOB MILL",WITHDRAWALS!$E$5:$E$4000,B$6)) ->  | C19: =IF($A19="","",(SUMIFS(BOOKINGS!$E$5:$E$31,BOOKINGS!$A$5:$A$31,">=1-"&$G$3,BOOKINGS!$A$5:$A$31,"<="&$H$3&"-"&$G$3,BOOKINGS!$B$5:$B$31,$A19,BOOKINGS!$C$5:$C$31,"=FOB MILL",BOOKINGS!$D$5:$D$31,C$6))-SUMIFS(WITHDRAWALS!$F$5:$F$4000,WITHDRAWALS!$B$5:$B$4000,">=1-"&$G$3,WITHDRAWALS!$B$5:$B$4000,"<="&$H$3&"-"&$G$3,WITHDRAWALS!$C$5:$C$4000,$A19,WITHDRAWALS!$D$5:$D$4000,"=FOB MILL",WITHDRAWALS!$E$5:$E$4000,C$6)) ->  | D19: =IF($A19="","",(SUMIFS(BOOKINGS!$E$5:$E$31,BOOKINGS!$A$5:$A$31,">=1-"&$G$3,BOOKINGS!$A$5:$A$31,"<="&$H$3&"-"&$G$3,BOOKINGS!$B$5:$B$31,$A19,BOOKINGS!$C$5:$C$31,"=FOB MILL",BOOKINGS!$D$5:$D$31,D$6))-SUMIFS(WITHDRAWALS!$F$5:$F$4000,WITHDRAWALS!$B$5:$B$4000,">=1-"&$G$3,WITHDRAWALS!$B$5:$B$4000,"<="&$H$3&"-"&$G$3,WITHDRAWALS!$C$5:$C$4000,$A19,WITHDRAWALS!$D$5:$D$4000,"=FOB MILL",WITHDRAWALS!$E$5:$E$4000,D$6)) ->  | E19: =IF($A19="","",(SUMIFS(BOOKINGS!$E$5:$E$31,BOOKINGS!$A$5:$A$31,">=1-"&$G$3,BOOKINGS!$A$5:$A$31,"<="&$H$3&"-"&$G$3,BOOKINGS!$B$5:$B$31,$A19,BOOKINGS!$C$5:$C$31,"=FOB MILL",BOOKINGS!$D$5:$D$31,E$6))-SUMIFS(WITHDRAWALS!$F$5:$F$4000,WITHDRAWALS!$B$5:$B$4000,">=1-"&$G$3,WITHDRAWALS!$B$5:$B$4000,"<="&$H$3&"-"&$G$3,WITHDRAWALS!$C$5:$C$4000,$A19,WITHDRAWALS!$D$5:$D$4000,"=FOB MILL",WITHDRAWALS!$E$5:$E$4000,E$6)) ->  | F19: =IF($A19="","",(SUMIFS(BOOKINGS!$E$5:$E$31,BOOKINGS!$A$5:$A$31,">=1-"&$G$3,BOOKINGS!$A$5:$A$31,"<="&$H$3&"-"&$G$3,BOOKINGS!$B$5:$B$31,$A19,BOOKINGS!$C$5:$C$31,"=FOB MILL",BOOKINGS!$D$5:$D$31,F$6))-SUMIFS(WITHDRAWALS!$F$5:$F$4000,WITHDRAWALS!$B$5:$B$4000,">=1-"&$G$3,WITHDRAWALS!$B$5:$B$4000,"<="&$H$3&"-"&$G$3,WITHDRAWALS!$C$5:$C$4000,$A19,WITHDRAWALS!$D$5:$D$4000,"=FOB MILL",WITHDRAWALS!$E$5:$E$4000,F$6)) ->  | G19: =IF($A19="","",(SUMIFS(BOOKINGS!$E$5:$E$31,BOOKINGS!$A$5:$A$31,">=1-"&$G$3,BOOKINGS!$A$5:$A$31,"<="&$H$3&"-"&$G$3,BOOKINGS!$B$5:$B$31,$A19,BOOKINGS!$C$5:$C$31,"=FOB MILL",BOOKINGS!$D$5:$D$31,G$6))-SUMIFS(WITHDRAWALS!$F$5:$F$4000,WITHDRAWALS!$B$5:$B$4000,">=1-"&$G$3,WITHDRAWALS!$B$5:$B$4000,"<="&$H$3&"-"&$G$3,WITHDRAWALS!$C$5:$C$4000,$A19,WITHDRAWALS!$D$5:$D$4000,"=FOB MILL",WITHDRAWALS!$E$5:$E$4000,G$6)) ->  | H19: =IF($A19="","",(SUMIFS(BOOKINGS!$E$5:$E$31,BOOKINGS!$A$5:$A$31,">=1-"&$G$3,BOOKINGS!$A$5:$A$31,"<="&$H$3&"-"&$G$3,BOOKINGS!$B$5:$B$31,$A19,BOOKINGS!$C$5:$C$31,"=FOB MILL",BOOKINGS!$D$5:$D$31,H$6))-SUMIFS(WITHDRAWALS!$F$5:$F$4000,WITHDRAWALS!$B$5:$B$4000,">=1-"&$G$3,WITHDRAWALS!$B$5:$B$4000,"<="&$H$3&"-"&$G$3,WITHDRAWALS!$C$5:$C$4000,$A19,WITHDRAWALS!$D$5:$D$4000,"=FOB MILL",WITHDRAWALS!$E$5:$E$4000,H$6)) ->  | I19: =IF($A19="","",(SUMIFS(BOOKINGS!$E$5:$E$31,BOOKINGS!$A$5:$A$31,">=1-"&$G$3,BOOKINGS!$A$5:$A$31,"<="&$H$3&"-"&$G$3,BOOKINGS!$B$5:$B$31,$A19,BOOKINGS!$C$5:$C$31,"=FOB MILL",BOOKINGS!$D$5:$D$31,I$6))-SUMIFS(WITHDRAWALS!$F$5:$F$4000,WITHDRAWALS!$B$5:$B$4000,">=1-"&$G$3,WITHDRAWALS!$B$5:$B$4000,"<="&$H$3&"-"&$G$3,WITHDRAWALS!$C$5:$C$4000,$A19,WITHDRAWALS!$D$5:$D$4000,"=FOB MILL",WITHDRAWALS!$E$5:$E$4000,I$6)) ->  | J19: =IF($A19="","",(SUMIFS(BOOKINGS!$E$5:$E$31,BOOKINGS!$A$5:$A$31,">=1-"&$G$3,BOOKINGS!$A$5:$A$31,"<="&$H$3&"-"&$G$3,BOOKINGS!$B$5:$B$31,$A19,BOOKINGS!$C$5:$C$31,"=FOB MILL",BOOKINGS!$D$5:$D$31,J$6))-SUMIFS(WITHDRAWALS!$F$5:$F$4000,WITHDRAWALS!$B$5:$B$4000,">=1-"&$G$3,WITHDRAWALS!$B$5:$B$4000,"<="&$H$3&"-"&$G$3,WITHDRAWALS!$C$5:$C$4000,$A19,WITHDRAWALS!$D$5:$D$4000,"=FOB MILL",WITHDRAWALS!$E$5:$E$4000,J$6)) ->  | K19: =IF($A19="","",(SUMIFS(BOOKINGS!$E$5:$E$31,BOOKINGS!$A$5:$A$31,">=1-"&$G$3,BOOKINGS!$A$5:$A$31,"<="&$H$3&"-"&$G$3,BOOKINGS!$B$5:$B$31,$A19,BOOKINGS!$C$5:$C$31,"=FOB MILL",BOOKINGS!$D$5:$D$31,K$6))-SUMIFS(WITHDRAWALS!$F$5:$F$4000,WITHDRAWALS!$B$5:$B$4000,">=1-"&$G$3,WITHDRAWALS!$B$5:$B$4000,"<="&$H$3&"-"&$G$3,WITHDRAWALS!$C$5:$C$4000,$A19,WITHDRAWALS!$D$5:$D$4000,"=FOB MILL",WITHDRAWALS!$E$5:$E$4000,K$6)) ->  | L19: =IF($A19="","",(SUMIFS(BOOKINGS!$E$5:$E$31,BOOKINGS!$A$5:$A$31,">=1-"&$G$3,BOOKINGS!$A$5:$A$31,"<="&$H$3&"-"&$G$3,BOOKINGS!$B$5:$B$31,$A19,BOOKINGS!$C$5:$C$31,"=FOB MILL",BOOKINGS!$D$5:$D$31,L$6))-SUMIFS(WITHDRAWALS!$F$5:$F$4000,WITHDRAWALS!$B$5:$B$4000,">=1-"&$G$3,WITHDRAWALS!$B$5:$B$4000,"<="&$H$3&"-"&$G$3,WITHDRAWALS!$C$5:$C$4000,$A19,WITHDRAWALS!$D$5:$D$4000,"=FOB MILL",WITHDRAWALS!$E$5:$E$4000,L$6)) -> 
A20: =IFERROR(INDEX(WITHDRAWALS!$C$5:$C$4000,SMALL(IF(FREQUENCY(IF(ISNUMBER(SEARCH("??"&TEXT($G$4,"mmm")&"??"&"|"&"?*"&"FOB MILL"&"|?*",WITHDRAWALS!$L$5:$L$4000)), MATCH(WITHDRAWALS!$C$5:$C$4000,WITHDRAWALS!$C$5:$C$4000,0)),Ivec),Ivec),ROWS($A$7:A20))),"") ->  | B20: =IF($A20="","",(SUMIFS(BOOKINGS!$E$5:$E$31,BOOKINGS!$A$5:$A$31,">=1-"&$G$3,BOOKINGS!$A$5:$A$31,"<="&$H$3&"-"&$G$3,BOOKINGS!$B$5:$B$31,$A20,BOOKINGS!$C$5:$C$31,"=FOB MILL",BOOKINGS!$D$5:$D$31,B$6))-SUMIFS(WITHDRAWALS!$F$5:$F$4000,WITHDRAWALS!$B$5:$B$4000,">=1-"&$G$3,WITHDRAWALS!$B$5:$B$4000,"<="&$H$3&"-"&$G$3,WITHDRAWALS!$C$5:$C$4000,$A20,WITHDRAWALS!$D$5:$D$4000,"=FOB MILL",WITHDRAWALS!$E$5:$E$4000,B$6)) ->  | C20: =IF($A20="","",(SUMIFS(BOOKINGS!$E$5:$E$31,BOOKINGS!$A$5:$A$31,">=1-"&$G$3,BOOKINGS!$A$5:$A$31,"<="&$H$3&"-"&$G$3,BOOKINGS!$B$5:$B$31,$A20,BOOKINGS!$C$5:$C$31,"=FOB MILL",BOOKINGS!$D$5:$D$31,C$6))-SUMIFS(WITHDRAWALS!$F$5:$F$4000,WITHDRAWALS!$B$5:$B$4000,">=1-"&$G$3,WITHDRAWALS!$B$5:$B$4000,"<="&$H$3&"-"&$G$3,WITHDRAWALS!$C$5:$C$4000,$A20,WITHDRAWALS!$D$5:$D$4000,"=FOB MILL",WITHDRAWALS!$E$5:$E$4000,C$6)) ->  | D20: =IF($A20="","",(SUMIFS(BOOKINGS!$E$5:$E$31,BOOKINGS!$A$5:$A$31,">=1-"&$G$3,BOOKINGS!$A$5:$A$31,"<="&$H$3&"-"&$G$3,BOOKINGS!$B$5:$B$31,$A20,BOOKINGS!$C$5:$C$31,"=FOB MILL",BOOKINGS!$D$5:$D$31,D$6))-SUMIFS(WITHDRAWALS!$F$5:$F$4000,WITHDRAWALS!$B$5:$B$4000,">=1-"&$G$3,WITHDRAWALS!$B$5:$B$4000,"<="&$H$3&"-"&$G$3,WITHDRAWALS!$C$5:$C$4000,$A20,WITHDRAWALS!$D$5:$D$4000,"=FOB MILL",WITHDRAWALS!$E$5:$E$4000,D$6)) ->  | E20: =IF($A20="","",(SUMIFS(BOOKINGS!$E$5:$E$31,BOOKINGS!$A$5:$A$31,">=1-"&$G$3,BOOKINGS!$A$5:$A$31,"<="&$H$3&"-"&$G$3,BOOKINGS!$B$5:$B$31,$A20,BOOKINGS!$C$5:$C$31,"=FOB MILL",BOOKINGS!$D$5:$D$31,E$6))-SUMIFS(WITHDRAWALS!$F$5:$F$4000,WITHDRAWALS!$B$5:$B$4000,">=1-"&$G$3,WITHDRAWALS!$B$5:$B$4000,"<="&$H$3&"-"&$G$3,WITHDRAWALS!$C$5:$C$4000,$A20,WITHDRAWALS!$D$5:$D$4000,"=FOB MILL",WITHDRAWALS!$E$5:$E$4000,E$6)) ->  | F20: =IF($A20="","",(SUMIFS(BOOKINGS!$E$5:$E$31,BOOKINGS!$A$5:$A$31,">=1-"&$G$3,BOOKINGS!$A$5:$A$31,"<="&$H$3&"-"&$G$3,BOOKINGS!$B$5:$B$31,$A20,BOOKINGS!$C$5:$C$31,"=FOB MILL",BOOKINGS!$D$5:$D$31,F$6))-SUMIFS(WITHDRAWALS!$F$5:$F$4000,WITHDRAWALS!$B$5:$B$4000,">=1-"&$G$3,WITHDRAWALS!$B$5:$B$4000,"<="&$H$3&"-"&$G$3,WITHDRAWALS!$C$5:$C$4000,$A20,WITHDRAWALS!$D$5:$D$4000,"=FOB MILL",WITHDRAWALS!$E$5:$E$4000,F$6)) ->  | G20: =IF($A20="","",(SUMIFS(BOOKINGS!$E$5:$E$31,BOOKINGS!$A$5:$A$31,">=1-"&$G$3,BOOKINGS!$A$5:$A$31,"<="&$H$3&"-"&$G$3,BOOKINGS!$B$5:$B$31,$A20,BOOKINGS!$C$5:$C$31,"=FOB MILL",BOOKINGS!$D$5:$D$31,G$6))-SUMIFS(WITHDRAWALS!$F$5:$F$4000,WITHDRAWALS!$B$5:$B$4000,">=1-"&$G$3,WITHDRAWALS!$B$5:$B$4000,"<="&$H$3&"-"&$G$3,WITHDRAWALS!$C$5:$C$4000,$A20,WITHDRAWALS!$D$5:$D$4000,"=FOB MILL",WITHDRAWALS!$E$5:$E$4000,G$6)) ->  | H20: =IF($A20="","",(SUMIFS(BOOKINGS!$E$5:$E$31,BOOKINGS!$A$5:$A$31,">=1-"&$G$3,BOOKINGS!$A$5:$A$31,"<="&$H$3&"-"&$G$3,BOOKINGS!$B$5:$B$31,$A20,BOOKINGS!$C$5:$C$31,"=FOB MILL",BOOKINGS!$D$5:$D$31,H$6))-SUMIFS(WITHDRAWALS!$F$5:$F$4000,WITHDRAWALS!$B$5:$B$4000,">=1-"&$G$3,WITHDRAWALS!$B$5:$B$4000,"<="&$H$3&"-"&$G$3,WITHDRAWALS!$C$5:$C$4000,$A20,WITHDRAWALS!$D$5:$D$4000,"=FOB MILL",WITHDRAWALS!$E$5:$E$4000,H$6)) ->  | I20: =IF($A20="","",(SUMIFS(BOOKINGS!$E$5:$E$31,BOOKINGS!$A$5:$A$31,">=1-"&$G$3,BOOKINGS!$A$5:$A$31,"<="&$H$3&"-"&$G$3,BOOKINGS!$B$5:$B$31,$A20,BOOKINGS!$C$5:$C$31,"=FOB MILL",BOOKINGS!$D$5:$D$31,I$6))-SUMIFS(WITHDRAWALS!$F$5:$F$4000,WITHDRAWALS!$B$5:$B$4000,">=1-"&$G$3,WITHDRAWALS!$B$5:$B$4000,"<="&$H$3&"-"&$G$3,WITHDRAWALS!$C$5:$C$4000,$A20,WITHDRAWALS!$D$5:$D$4000,"=FOB MILL",WITHDRAWALS!$E$5:$E$4000,I$6)) ->  | J20: =IF($A20="","",(SUMIFS(BOOKINGS!$E$5:$E$31,BOOKINGS!$A$5:$A$31,">=1-"&$G$3,BOOKINGS!$A$5:$A$31,"<="&$H$3&"-"&$G$3,BOOKINGS!$B$5:$B$31,$A20,BOOKINGS!$C$5:$C$31,"=FOB MILL",BOOKINGS!$D$5:$D$31,J$6))-SUMIFS(WITHDRAWALS!$F$5:$F$4000,WITHDRAWALS!$B$5:$B$4000,">=1-"&$G$3,WITHDRAWALS!$B$5:$B$4000,"<="&$H$3&"-"&$G$3,WITHDRAWALS!$C$5:$C$4000,$A20,WITHDRAWALS!$D$5:$D$4000,"=FOB MILL",WITHDRAWALS!$E$5:$E$4000,J$6)) ->  | K20: =IF($A20="","",(SUMIFS(BOOKINGS!$E$5:$E$31,BOOKINGS!$A$5:$A$31,">=1-"&$G$3,BOOKINGS!$A$5:$A$31,"<="&$H$3&"-"&$G$3,BOOKINGS!$B$5:$B$31,$A20,BOOKINGS!$C$5:$C$31,"=FOB MILL",BOOKINGS!$D$5:$D$31,K$6))-SUMIFS(WITHDRAWALS!$F$5:$F$4000,WITHDRAWALS!$B$5:$B$4000,">=1-"&$G$3,WITHDRAWALS!$B$5:$B$4000,"<="&$H$3&"-"&$G$3,WITHDRAWALS!$C$5:$C$4000,$A20,WITHDRAWALS!$D$5:$D$4000,"=FOB MILL",WITHDRAWALS!$E$5:$E$4000,K$6)) ->  | L20: =IF($A20="","",(SUMIFS(BOOKINGS!$E$5:$E$31,BOOKINGS!$A$5:$A$31,">=1-"&$G$3,BOOKINGS!$A$5:$A$31,"<="&$H$3&"-"&$G$3,BOOKINGS!$B$5:$B$31,$A20,BOOKINGS!$C$5:$C$31,"=FOB MILL",BOOKINGS!$D$5:$D$31,L$6))-SUMIFS(WITHDRAWALS!$F$5:$F$4000,WITHDRAWALS!$B$5:$B$4000,">=1-"&$G$3,WITHDRAWALS!$B$5:$B$4000,"<="&$H$3&"-"&$G$3,WITHDRAWALS!$C$5:$C$4000,$A20,WITHDRAWALS!$D$5:$D$4000,"=FOB MILL",WITHDRAWALS!$E$5:$E$4000,L$6)) -> 
A21: =IFERROR(INDEX(WITHDRAWALS!$C$5:$C$4000,SMALL(IF(FREQUENCY(IF(ISNUMBER(SEARCH("??"&TEXT($G$4,"mmm")&"??"&"|"&"?*"&"FOB MILL"&"|?*",WITHDRAWALS!$L$5:$L$4000)), MATCH(WITHDRAWALS!$C$5:$C$4000,WITHDRAWALS!$C$5:$C$4000,0)),Ivec),Ivec),ROWS($A$7:A21))),"") ->  | B21: =IF($A21="","",(SUMIFS(BOOKINGS!$E$5:$E$31,BOOKINGS!$A$5:$A$31,">=1-"&$G$3,BOOKINGS!$A$5:$A$31,"<="&$H$3&"-"&$G$3,BOOKINGS!$B$5:$B$31,$A21,BOOKINGS!$C$5:$C$31,"=FOB MILL",BOOKINGS!$D$5:$D$31,B$6))-SUMIFS(WITHDRAWALS!$F$5:$F$4000,WITHDRAWALS!$B$5:$B$4000,">=1-"&$G$3,WITHDRAWALS!$B$5:$B$4000,"<="&$H$3&"-"&$G$3,WITHDRAWALS!$C$5:$C$4000,$A21,WITHDRAWALS!$D$5:$D$4000,"=FOB MILL",WITHDRAWALS!$E$5:$E$4000,B$6)) ->  | C21: =IF($A21="","",(SUMIFS(BOOKINGS!$E$5:$E$31,BOOKINGS!$A$5:$A$31,">=1-"&$G$3,BOOKINGS!$A$5:$A$31,"<="&$H$3&"-"&$G$3,BOOKINGS!$B$5:$B$31,$A21,BOOKINGS!$C$5:$C$31,"=FOB MILL",BOOKINGS!$D$5:$D$31,C$6))-SUMIFS(WITHDRAWALS!$F$5:$F$4000,WITHDRAWALS!$B$5:$B$4000,">=1-"&$G$3,WITHDRAWALS!$B$5:$B$4000,"<="&$H$3&"-"&$G$3,WITHDRAWALS!$C$5:$C$4000,$A21,WITHDRAWALS!$D$5:$D$4000,"=FOB MILL",WITHDRAWALS!$E$5:$E$4000,C$6)) ->  | D21: =IF($A21="","",(SUMIFS(BOOKINGS!$E$5:$E$31,BOOKINGS!$A$5:$A$31,">=1-"&$G$3,BOOKINGS!$A$5:$A$31,"<="&$H$3&"-"&$G$3,BOOKINGS!$B$5:$B$31,$A21,BOOKINGS!$C$5:$C$31,"=FOB MILL",BOOKINGS!$D$5:$D$31,D$6))-SUMIFS(WITHDRAWALS!$F$5:$F$4000,WITHDRAWALS!$B$5:$B$4000,">=1-"&$G$3,WITHDRAWALS!$B$5:$B$4000,"<="&$H$3&"-"&$G$3,WITHDRAWALS!$C$5:$C$4000,$A21,WITHDRAWALS!$D$5:$D$4000,"=FOB MILL",WITHDRAWALS!$E$5:$E$4000,D$6)) ->  | E21: =IF($A21="","",(SUMIFS(BOOKINGS!$E$5:$E$31,BOOKINGS!$A$5:$A$31,">=1-"&$G$3,BOOKINGS!$A$5:$A$31,"<="&$H$3&"-"&$G$3,BOOKINGS!$B$5:$B$31,$A21,BOOKINGS!$C$5:$C$31,"=FOB MILL",BOOKINGS!$D$5:$D$31,E$6))-SUMIFS(WITHDRAWALS!$F$5:$F$4000,WITHDRAWALS!$B$5:$B$4000,">=1-"&$G$3,WITHDRAWALS!$B$5:$B$4000,"<="&$H$3&"-"&$G$3,WITHDRAWALS!$C$5:$C$4000,$A21,WITHDRAWALS!$D$5:$D$4000,"=FOB MILL",WITHDRAWALS!$E$5:$E$4000,E$6)) ->  | F21: =IF($A21="","",(SUMIFS(BOOKINGS!$E$5:$E$31,BOOKINGS!$A$5:$A$31,">=1-"&$G$3,BOOKINGS!$A$5:$A$31,"<="&$H$3&"-"&$G$3,BOOKINGS!$B$5:$B$31,$A21,BOOKINGS!$C$5:$C$31,"=FOB MILL",BOOKINGS!$D$5:$D$31,F$6))-SUMIFS(WITHDRAWALS!$F$5:$F$4000,WITHDRAWALS!$B$5:$B$4000,">=1-"&$G$3,WITHDRAWALS!$B$5:$B$4000,"<="&$H$3&"-"&$G$3,WITHDRAWALS!$C$5:$C$4000,$A21,WITHDRAWALS!$D$5:$D$4000,"=FOB MILL",WITHDRAWALS!$E$5:$E$4000,F$6)) ->  | G21: =IF($A21="","",(SUMIFS(BOOKINGS!$E$5:$E$31,BOOKINGS!$A$5:$A$31,">=1-"&$G$3,BOOKINGS!$A$5:$A$31,"<="&$H$3&"-"&$G$3,BOOKINGS!$B$5:$B$31,$A21,BOOKINGS!$C$5:$C$31,"=FOB MILL",BOOKINGS!$D$5:$D$31,G$6))-SUMIFS(WITHDRAWALS!$F$5:$F$4000,WITHDRAWALS!$B$5:$B$4000,">=1-"&$G$3,WITHDRAWALS!$B$5:$B$4000,"<="&$H$3&"-"&$G$3,WITHDRAWALS!$C$5:$C$4000,$A21,WITHDRAWALS!$D$5:$D$4000,"=FOB MILL",WITHDRAWALS!$E$5:$E$4000,G$6)) ->  | H21: =IF($A21="","",(SUMIFS(BOOKINGS!$E$5:$E$31,BOOKINGS!$A$5:$A$31,">=1-"&$G$3,BOOKINGS!$A$5:$A$31,"<="&$H$3&"-"&$G$3,BOOKINGS!$B$5:$B$31,$A21,BOOKINGS!$C$5:$C$31,"=FOB MILL",BOOKINGS!$D$5:$D$31,H$6))-SUMIFS(WITHDRAWALS!$F$5:$F$4000,WITHDRAWALS!$B$5:$B$4000,">=1-"&$G$3,WITHDRAWALS!$B$5:$B$4000,"<="&$H$3&"-"&$G$3,WITHDRAWALS!$C$5:$C$4000,$A21,WITHDRAWALS!$D$5:$D$4000,"=FOB MILL",WITHDRAWALS!$E$5:$E$4000,H$6)) ->  | I21: =IF($A21="","",(SUMIFS(BOOKINGS!$E$5:$E$31,BOOKINGS!$A$5:$A$31,">=1-"&$G$3,BOOKINGS!$A$5:$A$31,"<="&$H$3&"-"&$G$3,BOOKINGS!$B$5:$B$31,$A21,BOOKINGS!$C$5:$C$31,"=FOB MILL",BOOKINGS!$D$5:$D$31,I$6))-SUMIFS(WITHDRAWALS!$F$5:$F$4000,WITHDRAWALS!$B$5:$B$4000,">=1-"&$G$3,WITHDRAWALS!$B$5:$B$4000,"<="&$H$3&"-"&$G$3,WITHDRAWALS!$C$5:$C$4000,$A21,WITHDRAWALS!$D$5:$D$4000,"=FOB MILL",WITHDRAWALS!$E$5:$E$4000,I$6)) ->  | J21: =IF($A21="","",(SUMIFS(BOOKINGS!$E$5:$E$31,BOOKINGS!$A$5:$A$31,">=1-"&$G$3,BOOKINGS!$A$5:$A$31,"<="&$H$3&"-"&$G$3,BOOKINGS!$B$5:$B$31,$A21,BOOKINGS!$C$5:$C$31,"=FOB MILL",BOOKINGS!$D$5:$D$31,J$6))-SUMIFS(WITHDRAWALS!$F$5:$F$4000,WITHDRAWALS!$B$5:$B$4000,">=1-"&$G$3,WITHDRAWALS!$B$5:$B$4000,"<="&$H$3&"-"&$G$3,WITHDRAWALS!$C$5:$C$4000,$A21,WITHDRAWALS!$D$5:$D$4000,"=FOB MILL",WITHDRAWALS!$E$5:$E$4000,J$6)) ->  | K21: =IF($A21="","",(SUMIFS(BOOKINGS!$E$5:$E$31,BOOKINGS!$A$5:$A$31,">=1-"&$G$3,BOOKINGS!$A$5:$A$31,"<="&$H$3&"-"&$G$3,BOOKINGS!$B$5:$B$31,$A21,BOOKINGS!$C$5:$C$31,"=FOB MILL",BOOKINGS!$D$5:$D$31,K$6))-SUMIFS(WITHDRAWALS!$F$5:$F$4000,WITHDRAWALS!$B$5:$B$4000,">=1-"&$G$3,WITHDRAWALS!$B$5:$B$4000,"<="&$H$3&"-"&$G$3,WITHDRAWALS!$C$5:$C$4000,$A21,WITHDRAWALS!$D$5:$D$4000,"=FOB MILL",WITHDRAWALS!$E$5:$E$4000,K$6)) ->  | L21: =IF($A21="","",(SUMIFS(BOOKINGS!$E$5:$E$31,BOOKINGS!$A$5:$A$31,">=1-"&$G$3,BOOKINGS!$A$5:$A$31,"<="&$H$3&"-"&$G$3,BOOKINGS!$B$5:$B$31,$A21,BOOKINGS!$C$5:$C$31,"=FOB MILL",BOOKINGS!$D$5:$D$31,L$6))-SUMIFS(WITHDRAWALS!$F$5:$F$4000,WITHDRAWALS!$B$5:$B$4000,">=1-"&$G$3,WITHDRAWALS!$B$5:$B$4000,"<="&$H$3&"-"&$G$3,WITHDRAWALS!$C$5:$C$4000,$A21,WITHDRAWALS!$D$5:$D$4000,"=FOB MILL",WITHDRAWALS!$E$5:$E$4000,L$6)) -> 
A22: =IFERROR(INDEX(WITHDRAWALS!$C$5:$C$4000,SMALL(IF(FREQUENCY(IF(ISNUMBER(SEARCH("??"&TEXT($G$4,"mmm")&"??"&"|"&"?*"&"FOB MILL"&"|?*",WITHDRAWALS!$L$5:$L$4000)), MATCH(WITHDRAWALS!$C$5:$C$4000,WITHDRAWALS!$C$5:$C$4000,0)),Ivec),Ivec),ROWS($A$7:A22))),"") ->  | B22: =IF($A22="","",(SUMIFS(BOOKINGS!$E$5:$E$31,BOOKINGS!$A$5:$A$31,">=1-"&$G$3,BOOKINGS!$A$5:$A$31,"<="&$H$3&"-"&$G$3,BOOKINGS!$B$5:$B$31,$A22,BOOKINGS!$C$5:$C$31,"=FOB MILL",BOOKINGS!$D$5:$D$31,B$6))-SUMIFS(WITHDRAWALS!$F$5:$F$4000,WITHDRAWALS!$B$5:$B$4000,">=1-"&$G$3,WITHDRAWALS!$B$5:$B$4000,"<="&$H$3&"-"&$G$3,WITHDRAWALS!$C$5:$C$4000,$A22,WITHDRAWALS!$D$5:$D$4000,"=FOB MILL",WITHDRAWALS!$E$5:$E$4000,B$6)) ->  | C22: =IF($A22="","",(SUMIFS(BOOKINGS!$E$5:$E$31,BOOKINGS!$A$5:$A$31,">=1-"&$G$3,BOOKINGS!$A$5:$A$31,"<="&$H$3&"-"&$G$3,BOOKINGS!$B$5:$B$31,$A22,BOOKINGS!$C$5:$C$31,"=FOB MILL",BOOKINGS!$D$5:$D$31,C$6))-SUMIFS(WITHDRAWALS!$F$5:$F$4000,WITHDRAWALS!$B$5:$B$4000,">=1-"&$G$3,WITHDRAWALS!$B$5:$B$4000,"<="&$H$3&"-"&$G$3,WITHDRAWALS!$C$5:$C$4000,$A22,WITHDRAWALS!$D$5:$D$4000,"=FOB MILL",WITHDRAWALS!$E$5:$E$4000,C$6)) ->  | D22: =IF($A22="","",(SUMIFS(BOOKINGS!$E$5:$E$31,BOOKINGS!$A$5:$A$31,">=1-"&$G$3,BOOKINGS!$A$5:$A$31,"<="&$H$3&"-"&$G$3,BOOKINGS!$B$5:$B$31,$A22,BOOKINGS!$C$5:$C$31,"=FOB MILL",BOOKINGS!$D$5:$D$31,D$6))-SUMIFS(WITHDRAWALS!$F$5:$F$4000,WITHDRAWALS!$B$5:$B$4000,">=1-"&$G$3,WITHDRAWALS!$B$5:$B$4000,"<="&$H$3&"-"&$G$3,WITHDRAWALS!$C$5:$C$4000,$A22,WITHDRAWALS!$D$5:$D$4000,"=FOB MILL",WITHDRAWALS!$E$5:$E$4000,D$6)) ->  | E22: =IF($A22="","",(SUMIFS(BOOKINGS!$E$5:$E$31,BOOKINGS!$A$5:$A$31,">=1-"&$G$3,BOOKINGS!$A$5:$A$31,"<="&$H$3&"-"&$G$3,BOOKINGS!$B$5:$B$31,$A22,BOOKINGS!$C$5:$C$31,"=FOB MILL",BOOKINGS!$D$5:$D$31,E$6))-SUMIFS(WITHDRAWALS!$F$5:$F$4000,WITHDRAWALS!$B$5:$B$4000,">=1-"&$G$3,WITHDRAWALS!$B$5:$B$4000,"<="&$H$3&"-"&$G$3,WITHDRAWALS!$C$5:$C$4000,$A22,WITHDRAWALS!$D$5:$D$4000,"=FOB MILL",WITHDRAWALS!$E$5:$E$4000,E$6)) ->  | F22: =IF($A22="","",(SUMIFS(BOOKINGS!$E$5:$E$31,BOOKINGS!$A$5:$A$31,">=1-"&$G$3,BOOKINGS!$A$5:$A$31,"<="&$H$3&"-"&$G$3,BOOKINGS!$B$5:$B$31,$A22,BOOKINGS!$C$5:$C$31,"=FOB MILL",BOOKINGS!$D$5:$D$31,F$6))-SUMIFS(WITHDRAWALS!$F$5:$F$4000,WITHDRAWALS!$B$5:$B$4000,">=1-"&$G$3,WITHDRAWALS!$B$5:$B$4000,"<="&$H$3&"-"&$G$3,WITHDRAWALS!$C$5:$C$4000,$A22,WITHDRAWALS!$D$5:$D$4000,"=FOB MILL",WITHDRAWALS!$E$5:$E$4000,F$6)) ->  | G22: =IF($A22="","",(SUMIFS(BOOKINGS!$E$5:$E$31,BOOKINGS!$A$5:$A$31,">=1-"&$G$3,BOOKINGS!$A$5:$A$31,"<="&$H$3&"-"&$G$3,BOOKINGS!$B$5:$B$31,$A22,BOOKINGS!$C$5:$C$31,"=FOB MILL",BOOKINGS!$D$5:$D$31,G$6))-SUMIFS(WITHDRAWALS!$F$5:$F$4000,WITHDRAWALS!$B$5:$B$4000,">=1-"&$G$3,WITHDRAWALS!$B$5:$B$4000,"<="&$H$3&"-"&$G$3,WITHDRAWALS!$C$5:$C$4000,$A22,WITHDRAWALS!$D$5:$D$4000,"=FOB MILL",WITHDRAWALS!$E$5:$E$4000,G$6)) ->  | H22: =IF($A22="","",(SUMIFS(BOOKINGS!$E$5:$E$31,BOOKINGS!$A$5:$A$31,">=1-"&$G$3,BOOKINGS!$A$5:$A$31,"<="&$H$3&"-"&$G$3,BOOKINGS!$B$5:$B$31,$A22,BOOKINGS!$C$5:$C$31,"=FOB MILL",BOOKINGS!$D$5:$D$31,H$6))-SUMIFS(WITHDRAWALS!$F$5:$F$4000,WITHDRAWALS!$B$5:$B$4000,">=1-"&$G$3,WITHDRAWALS!$B$5:$B$4000,"<="&$H$3&"-"&$G$3,WITHDRAWALS!$C$5:$C$4000,$A22,WITHDRAWALS!$D$5:$D$4000,"=FOB MILL",WITHDRAWALS!$E$5:$E$4000,H$6)) ->  | I22: =IF($A22="","",(SUMIFS(BOOKINGS!$E$5:$E$31,BOOKINGS!$A$5:$A$31,">=1-"&$G$3,BOOKINGS!$A$5:$A$31,"<="&$H$3&"-"&$G$3,BOOKINGS!$B$5:$B$31,$A22,BOOKINGS!$C$5:$C$31,"=FOB MILL",BOOKINGS!$D$5:$D$31,I$6))-SUMIFS(WITHDRAWALS!$F$5:$F$4000,WITHDRAWALS!$B$5:$B$4000,">=1-"&$G$3,WITHDRAWALS!$B$5:$B$4000,"<="&$H$3&"-"&$G$3,WITHDRAWALS!$C$5:$C$4000,$A22,WITHDRAWALS!$D$5:$D$4000,"=FOB MILL",WITHDRAWALS!$E$5:$E$4000,I$6)) ->  | J22: =IF($A22="","",(SUMIFS(BOOKINGS!$E$5:$E$31,BOOKINGS!$A$5:$A$31,">=1-"&$G$3,BOOKINGS!$A$5:$A$31,"<="&$H$3&"-"&$G$3,BOOKINGS!$B$5:$B$31,$A22,BOOKINGS!$C$5:$C$31,"=FOB MILL",BOOKINGS!$D$5:$D$31,J$6))-SUMIFS(WITHDRAWALS!$F$5:$F$4000,WITHDRAWALS!$B$5:$B$4000,">=1-"&$G$3,WITHDRAWALS!$B$5:$B$4000,"<="&$H$3&"-"&$G$3,WITHDRAWALS!$C$5:$C$4000,$A22,WITHDRAWALS!$D$5:$D$4000,"=FOB MILL",WITHDRAWALS!$E$5:$E$4000,J$6)) ->  | K22: =IF($A22="","",(SUMIFS(BOOKINGS!$E$5:$E$31,BOOKINGS!$A$5:$A$31,">=1-"&$G$3,BOOKINGS!$A$5:$A$31,"<="&$H$3&"-"&$G$3,BOOKINGS!$B$5:$B$31,$A22,BOOKINGS!$C$5:$C$31,"=FOB MILL",BOOKINGS!$D$5:$D$31,K$6))-SUMIFS(WITHDRAWALS!$F$5:$F$4000,WITHDRAWALS!$B$5:$B$4000,">=1-"&$G$3,WITHDRAWALS!$B$5:$B$4000,"<="&$H$3&"-"&$G$3,WITHDRAWALS!$C$5:$C$4000,$A22,WITHDRAWALS!$D$5:$D$4000,"=FOB MILL",WITHDRAWALS!$E$5:$E$4000,K$6)) ->  | L22: =IF($A22="","",(SUMIFS(BOOKINGS!$E$5:$E$31,BOOKINGS!$A$5:$A$31,">=1-"&$G$3,BOOKINGS!$A$5:$A$31,"<="&$H$3&"-"&$G$3,BOOKINGS!$B$5:$B$31,$A22,BOOKINGS!$C$5:$C$31,"=FOB MILL",BOOKINGS!$D$5:$D$31,L$6))-SUMIFS(WITHDRAWALS!$F$5:$F$4000,WITHDRAWALS!$B$5:$B$4000,">=1-"&$G$3,WITHDRAWALS!$B$5:$B$4000,"<="&$H$3&"-"&$G$3,WITHDRAWALS!$C$5:$C$4000,$A22,WITHDRAWALS!$D$5:$D$4000,"=FOB MILL",WITHDRAWALS!$E$5:$E$4000,L$6)) -> 
A23: =IFERROR(INDEX(WITHDRAWALS!$C$5:$C$4000,SMALL(IF(FREQUENCY(IF(ISNUMBER(SEARCH("??"&TEXT($G$4,"mmm")&"??"&"|"&"?*"&"FOB MILL"&"|?*",WITHDRAWALS!$L$5:$L$4000)), MATCH(WITHDRAWALS!$C$5:$C$4000,WITHDRAWALS!$C$5:$C$4000,0)),Ivec),Ivec),ROWS($A$7:A23))),"") ->  | B23: =IF($A23="","",(SUMIFS(BOOKINGS!$E$5:$E$31,BOOKINGS!$A$5:$A$31,">=1-"&$G$3,BOOKINGS!$A$5:$A$31,"<="&$H$3&"-"&$G$3,BOOKINGS!$B$5:$B$31,$A23,BOOKINGS!$C$5:$C$31,"=FOB MILL",BOOKINGS!$D$5:$D$31,B$6))-SUMIFS(WITHDRAWALS!$F$5:$F$4000,WITHDRAWALS!$B$5:$B$4000,">=1-"&$G$3,WITHDRAWALS!$B$5:$B$4000,"<="&$H$3&"-"&$G$3,WITHDRAWALS!$C$5:$C$4000,$A23,WITHDRAWALS!$D$5:$D$4000,"=FOB MILL",WITHDRAWALS!$E$5:$E$4000,B$6)) ->  | C23: =IF($A23="","",(SUMIFS(BOOKINGS!$E$5:$E$31,BOOKINGS!$A$5:$A$31,">=1-"&$G$3,BOOKINGS!$A$5:$A$31,"<="&$H$3&"-"&$G$3,BOOKINGS!$B$5:$B$31,$A23,BOOKINGS!$C$5:$C$31,"=FOB MILL",BOOKINGS!$D$5:$D$31,C$6))-SUMIFS(WITHDRAWALS!$F$5:$F$4000,WITHDRAWALS!$B$5:$B$4000,">=1-"&$G$3,WITHDRAWALS!$B$5:$B$4000,"<="&$H$3&"-"&$G$3,WITHDRAWALS!$C$5:$C$4000,$A23,WITHDRAWALS!$D$5:$D$4000,"=FOB MILL",WITHDRAWALS!$E$5:$E$4000,C$6)) ->  | D23: =IF($A23="","",(SUMIFS(BOOKINGS!$E$5:$E$31,BOOKINGS!$A$5:$A$31,">=1-"&$G$3,BOOKINGS!$A$5:$A$31,"<="&$H$3&"-"&$G$3,BOOKINGS!$B$5:$B$31,$A23,BOOKINGS!$C$5:$C$31,"=FOB MILL",BOOKINGS!$D$5:$D$31,D$6))-SUMIFS(WITHDRAWALS!$F$5:$F$4000,WITHDRAWALS!$B$5:$B$4000,">=1-"&$G$3,WITHDRAWALS!$B$5:$B$4000,"<="&$H$3&"-"&$G$3,WITHDRAWALS!$C$5:$C$4000,$A23,WITHDRAWALS!$D$5:$D$4000,"=FOB MILL",WITHDRAWALS!$E$5:$E$4000,D$6)) ->  | E23: =IF($A23="","",(SUMIFS(BOOKINGS!$E$5:$E$31,BOOKINGS!$A$5:$A$31,">=1-"&$G$3,BOOKINGS!$A$5:$A$31,"<="&$H$3&"-"&$G$3,BOOKINGS!$B$5:$B$31,$A23,BOOKINGS!$C$5:$C$31,"=FOB MILL",BOOKINGS!$D$5:$D$31,E$6))-SUMIFS(WITHDRAWALS!$F$5:$F$4000,WITHDRAWALS!$B$5:$B$4000,">=1-"&$G$3,WITHDRAWALS!$B$5:$B$4000,"<="&$H$3&"-"&$G$3,WITHDRAWALS!$C$5:$C$4000,$A23,WITHDRAWALS!$D$5:$D$4000,"=FOB MILL",WITHDRAWALS!$E$5:$E$4000,E$6)) ->  | F23: =IF($A23="","",(SUMIFS(BOOKINGS!$E$5:$E$31,BOOKINGS!$A$5:$A$31,">=1-"&$G$3,BOOKINGS!$A$5:$A$31,"<="&$H$3&"-"&$G$3,BOOKINGS!$B$5:$B$31,$A23,BOOKINGS!$C$5:$C$31,"=FOB MILL",BOOKINGS!$D$5:$D$31,F$6))-SUMIFS(WITHDRAWALS!$F$5:$F$4000,WITHDRAWALS!$B$5:$B$4000,">=1-"&$G$3,WITHDRAWALS!$B$5:$B$4000,"<="&$H$3&"-"&$G$3,WITHDRAWALS!$C$5:$C$4000,$A23,WITHDRAWALS!$D$5:$D$4000,"=FOB MILL",WITHDRAWALS!$E$5:$E$4000,F$6)) ->  | G23: =IF($A23="","",(SUMIFS(BOOKINGS!$E$5:$E$31,BOOKINGS!$A$5:$A$31,">=1-"&$G$3,BOOKINGS!$A$5:$A$31,"<="&$H$3&"-"&$G$3,BOOKINGS!$B$5:$B$31,$A23,BOOKINGS!$C$5:$C$31,"=FOB MILL",BOOKINGS!$D$5:$D$31,G$6))-SUMIFS(WITHDRAWALS!$F$5:$F$4000,WITHDRAWALS!$B$5:$B$4000,">=1-"&$G$3,WITHDRAWALS!$B$5:$B$4000,"<="&$H$3&"-"&$G$3,WITHDRAWALS!$C$5:$C$4000,$A23,WITHDRAWALS!$D$5:$D$4000,"=FOB MILL",WITHDRAWALS!$E$5:$E$4000,G$6)) ->  | H23: =IF($A23="","",(SUMIFS(BOOKINGS!$E$5:$E$31,BOOKINGS!$A$5:$A$31,">=1-"&$G$3,BOOKINGS!$A$5:$A$31,"<="&$H$3&"-"&$G$3,BOOKINGS!$B$5:$B$31,$A23,BOOKINGS!$C$5:$C$31,"=FOB MILL",BOOKINGS!$D$5:$D$31,H$6))-SUMIFS(WITHDRAWALS!$F$5:$F$4000,WITHDRAWALS!$B$5:$B$4000,">=1-"&$G$3,WITHDRAWALS!$B$5:$B$4000,"<="&$H$3&"-"&$G$3,WITHDRAWALS!$C$5:$C$4000,$A23,WITHDRAWALS!$D$5:$D$4000,"=FOB MILL",WITHDRAWALS!$E$5:$E$4000,H$6)) ->  | I23: =IF($A23="","",(SUMIFS(BOOKINGS!$E$5:$E$31,BOOKINGS!$A$5:$A$31,">=1-"&$G$3,BOOKINGS!$A$5:$A$31,"<="&$H$3&"-"&$G$3,BOOKINGS!$B$5:$B$31,$A23,BOOKINGS!$C$5:$C$31,"=FOB MILL",BOOKINGS!$D$5:$D$31,I$6))-SUMIFS(WITHDRAWALS!$F$5:$F$4000,WITHDRAWALS!$B$5:$B$4000,">=1-"&$G$3,WITHDRAWALS!$B$5:$B$4000,"<="&$H$3&"-"&$G$3,WITHDRAWALS!$C$5:$C$4000,$A23,WITHDRAWALS!$D$5:$D$4000,"=FOB MILL",WITHDRAWALS!$E$5:$E$4000,I$6)) ->  | J23: =IF($A23="","",(SUMIFS(BOOKINGS!$E$5:$E$31,BOOKINGS!$A$5:$A$31,">=1-"&$G$3,BOOKINGS!$A$5:$A$31,"<="&$H$3&"-"&$G$3,BOOKINGS!$B$5:$B$31,$A23,BOOKINGS!$C$5:$C$31,"=FOB MILL",BOOKINGS!$D$5:$D$31,J$6))-SUMIFS(WITHDRAWALS!$F$5:$F$4000,WITHDRAWALS!$B$5:$B$4000,">=1-"&$G$3,WITHDRAWALS!$B$5:$B$4000,"<="&$H$3&"-"&$G$3,WITHDRAWALS!$C$5:$C$4000,$A23,WITHDRAWALS!$D$5:$D$4000,"=FOB MILL",WITHDRAWALS!$E$5:$E$4000,J$6)) ->  | K23: =IF($A23="","",(SUMIFS(BOOKINGS!$E$5:$E$31,BOOKINGS!$A$5:$A$31,">=1-"&$G$3,BOOKINGS!$A$5:$A$31,"<="&$H$3&"-"&$G$3,BOOKINGS!$B$5:$B$31,$A23,BOOKINGS!$C$5:$C$31,"=FOB MILL",BOOKINGS!$D$5:$D$31,K$6))-SUMIFS(WITHDRAWALS!$F$5:$F$4000,WITHDRAWALS!$B$5:$B$4000,">=1-"&$G$3,WITHDRAWALS!$B$5:$B$4000,"<="&$H$3&"-"&$G$3,WITHDRAWALS!$C$5:$C$4000,$A23,WITHDRAWALS!$D$5:$D$4000,"=FOB MILL",WITHDRAWALS!$E$5:$E$4000,K$6)) ->  | L23: =IF($A23="","",(SUMIFS(BOOKINGS!$E$5:$E$31,BOOKINGS!$A$5:$A$31,">=1-"&$G$3,BOOKINGS!$A$5:$A$31,"<="&$H$3&"-"&$G$3,BOOKINGS!$B$5:$B$31,$A23,BOOKINGS!$C$5:$C$31,"=FOB MILL",BOOKINGS!$D$5:$D$31,L$6))-SUMIFS(WITHDRAWALS!$F$5:$F$4000,WITHDRAWALS!$B$5:$B$4000,">=1-"&$G$3,WITHDRAWALS!$B$5:$B$4000,"<="&$H$3&"-"&$G$3,WITHDRAWALS!$C$5:$C$4000,$A23,WITHDRAWALS!$D$5:$D$4000,"=FOB MILL",WITHDRAWALS!$E$5:$E$4000,L$6)) -> 
A24: =IFERROR(INDEX(WITHDRAWALS!$C$5:$C$4000,SMALL(IF(FREQUENCY(IF(ISNUMBER(SEARCH("??"&TEXT($G$4,"mmm")&"??"&"|"&"?*"&"FOB MILL"&"|?*",WITHDRAWALS!$L$5:$L$4000)), MATCH(WITHDRAWALS!$C$5:$C$4000,WITHDRAWALS!$C$5:$C$4000,0)),Ivec),Ivec),ROWS($A$7:A24))),"") ->  | B24: =IF($A24="","",(SUMIFS(BOOKINGS!$E$5:$E$31,BOOKINGS!$A$5:$A$31,">=1-"&$G$3,BOOKINGS!$A$5:$A$31,"<="&$H$3&"-"&$G$3,BOOKINGS!$B$5:$B$31,$A24,BOOKINGS!$C$5:$C$31,"=FOB MILL",BOOKINGS!$D$5:$D$31,B$6))-SUMIFS(WITHDRAWALS!$F$5:$F$4000,WITHDRAWALS!$B$5:$B$4000,">=1-"&$G$3,WITHDRAWALS!$B$5:$B$4000,"<="&$H$3&"-"&$G$3,WITHDRAWALS!$C$5:$C$4000,$A24,WITHDRAWALS!$D$5:$D$4000,"=FOB MILL",WITHDRAWALS!$E$5:$E$4000,B$6)) ->  | C24: =IF($A24="","",(SUMIFS(BOOKINGS!$E$5:$E$31,BOOKINGS!$A$5:$A$31,">=1-"&$G$3,BOOKINGS!$A$5:$A$31,"<="&$H$3&"-"&$G$3,BOOKINGS!$B$5:$B$31,$A24,BOOKINGS!$C$5:$C$31,"=FOB MILL",BOOKINGS!$D$5:$D$31,C$6))-SUMIFS(WITHDRAWALS!$F$5:$F$4000,WITHDRAWALS!$B$5:$B$4000,">=1-"&$G$3,WITHDRAWALS!$B$5:$B$4000,"<="&$H$3&"-"&$G$3,WITHDRAWALS!$C$5:$C$4000,$A24,WITHDRAWALS!$D$5:$D$4000,"=FOB MILL",WITHDRAWALS!$E$5:$E$4000,C$6)) ->  | D24: =IF($A24="","",(SUMIFS(BOOKINGS!$E$5:$E$31,BOOKINGS!$A$5:$A$31,">=1-"&$G$3,BOOKINGS!$A$5:$A$31,"<="&$H$3&"-"&$G$3,BOOKINGS!$B$5:$B$31,$A24,BOOKINGS!$C$5:$C$31,"=FOB MILL",BOOKINGS!$D$5:$D$31,D$6))-SUMIFS(WITHDRAWALS!$F$5:$F$4000,WITHDRAWALS!$B$5:$B$4000,">=1-"&$G$3,WITHDRAWALS!$B$5:$B$4000,"<="&$H$3&"-"&$G$3,WITHDRAWALS!$C$5:$C$4000,$A24,WITHDRAWALS!$D$5:$D$4000,"=FOB MILL",WITHDRAWALS!$E$5:$E$4000,D$6)) ->  | E24: =IF($A24="","",(SUMIFS(BOOKINGS!$E$5:$E$31,BOOKINGS!$A$5:$A$31,">=1-"&$G$3,BOOKINGS!$A$5:$A$31,"<="&$H$3&"-"&$G$3,BOOKINGS!$B$5:$B$31,$A24,BOOKINGS!$C$5:$C$31,"=FOB MILL",BOOKINGS!$D$5:$D$31,E$6))-SUMIFS(WITHDRAWALS!$F$5:$F$4000,WITHDRAWALS!$B$5:$B$4000,">=1-"&$G$3,WITHDRAWALS!$B$5:$B$4000,"<="&$H$3&"-"&$G$3,WITHDRAWALS!$C$5:$C$4000,$A24,WITHDRAWALS!$D$5:$D$4000,"=FOB MILL",WITHDRAWALS!$E$5:$E$4000,E$6)) ->  | F24: =IF($A24="","",(SUMIFS(BOOKINGS!$E$5:$E$31,BOOKINGS!$A$5:$A$31,">=1-"&$G$3,BOOKINGS!$A$5:$A$31,"<="&$H$3&"-"&$G$3,BOOKINGS!$B$5:$B$31,$A24,BOOKINGS!$C$5:$C$31,"=FOB MILL",BOOKINGS!$D$5:$D$31,F$6))-SUMIFS(WITHDRAWALS!$F$5:$F$4000,WITHDRAWALS!$B$5:$B$4000,">=1-"&$G$3,WITHDRAWALS!$B$5:$B$4000,"<="&$H$3&"-"&$G$3,WITHDRAWALS!$C$5:$C$4000,$A24,WITHDRAWALS!$D$5:$D$4000,"=FOB MILL",WITHDRAWALS!$E$5:$E$4000,F$6)) ->  | G24: =IF($A24="","",(SUMIFS(BOOKINGS!$E$5:$E$31,BOOKINGS!$A$5:$A$31,">=1-"&$G$3,BOOKINGS!$A$5:$A$31,"<="&$H$3&"-"&$G$3,BOOKINGS!$B$5:$B$31,$A24,BOOKINGS!$C$5:$C$31,"=FOB MILL",BOOKINGS!$D$5:$D$31,G$6))-SUMIFS(WITHDRAWALS!$F$5:$F$4000,WITHDRAWALS!$B$5:$B$4000,">=1-"&$G$3,WITHDRAWALS!$B$5:$B$4000,"<="&$H$3&"-"&$G$3,WITHDRAWALS!$C$5:$C$4000,$A24,WITHDRAWALS!$D$5:$D$4000,"=FOB MILL",WITHDRAWALS!$E$5:$E$4000,G$6)) ->  | H24: =IF($A24="","",(SUMIFS(BOOKINGS!$E$5:$E$31,BOOKINGS!$A$5:$A$31,">=1-"&$G$3,BOOKINGS!$A$5:$A$31,"<="&$H$3&"-"&$G$3,BOOKINGS!$B$5:$B$31,$A24,BOOKINGS!$C$5:$C$31,"=FOB MILL",BOOKINGS!$D$5:$D$31,H$6))-SUMIFS(WITHDRAWALS!$F$5:$F$4000,WITHDRAWALS!$B$5:$B$4000,">=1-"&$G$3,WITHDRAWALS!$B$5:$B$4000,"<="&$H$3&"-"&$G$3,WITHDRAWALS!$C$5:$C$4000,$A24,WITHDRAWALS!$D$5:$D$4000,"=FOB MILL",WITHDRAWALS!$E$5:$E$4000,H$6)) ->  | I24: =IF($A24="","",(SUMIFS(BOOKINGS!$E$5:$E$31,BOOKINGS!$A$5:$A$31,">=1-"&$G$3,BOOKINGS!$A$5:$A$31,"<="&$H$3&"-"&$G$3,BOOKINGS!$B$5:$B$31,$A24,BOOKINGS!$C$5:$C$31,"=FOB MILL",BOOKINGS!$D$5:$D$31,I$6))-SUMIFS(WITHDRAWALS!$F$5:$F$4000,WITHDRAWALS!$B$5:$B$4000,">=1-"&$G$3,WITHDRAWALS!$B$5:$B$4000,"<="&$H$3&"-"&$G$3,WITHDRAWALS!$C$5:$C$4000,$A24,WITHDRAWALS!$D$5:$D$4000,"=FOB MILL",WITHDRAWALS!$E$5:$E$4000,I$6)) ->  | J24: =IF($A24="","",(SUMIFS(BOOKINGS!$E$5:$E$31,BOOKINGS!$A$5:$A$31,">=1-"&$G$3,BOOKINGS!$A$5:$A$31,"<="&$H$3&"-"&$G$3,BOOKINGS!$B$5:$B$31,$A24,BOOKINGS!$C$5:$C$31,"=FOB MILL",BOOKINGS!$D$5:$D$31,J$6))-SUMIFS(WITHDRAWALS!$F$5:$F$4000,WITHDRAWALS!$B$5:$B$4000,">=1-"&$G$3,WITHDRAWALS!$B$5:$B$4000,"<="&$H$3&"-"&$G$3,WITHDRAWALS!$C$5:$C$4000,$A24,WITHDRAWALS!$D$5:$D$4000,"=FOB MILL",WITHDRAWALS!$E$5:$E$4000,J$6)) ->  | K24: =IF($A24="","",(SUMIFS(BOOKINGS!$E$5:$E$31,BOOKINGS!$A$5:$A$31,">=1-"&$G$3,BOOKINGS!$A$5:$A$31,"<="&$H$3&"-"&$G$3,BOOKINGS!$B$5:$B$31,$A24,BOOKINGS!$C$5:$C$31,"=FOB MILL",BOOKINGS!$D$5:$D$31,K$6))-SUMIFS(WITHDRAWALS!$F$5:$F$4000,WITHDRAWALS!$B$5:$B$4000,">=1-"&$G$3,WITHDRAWALS!$B$5:$B$4000,"<="&$H$3&"-"&$G$3,WITHDRAWALS!$C$5:$C$4000,$A24,WITHDRAWALS!$D$5:$D$4000,"=FOB MILL",WITHDRAWALS!$E$5:$E$4000,K$6)) ->  | L24: =IF($A24="","",(SUMIFS(BOOKINGS!$E$5:$E$31,BOOKINGS!$A$5:$A$31,">=1-"&$G$3,BOOKINGS!$A$5:$A$31,"<="&$H$3&"-"&$G$3,BOOKINGS!$B$5:$B$31,$A24,BOOKINGS!$C$5:$C$31,"=FOB MILL",BOOKINGS!$D$5:$D$31,L$6))-SUMIFS(WITHDRAWALS!$F$5:$F$4000,WITHDRAWALS!$B$5:$B$4000,">=1-"&$G$3,WITHDRAWALS!$B$5:$B$4000,"<="&$H$3&"-"&$G$3,WITHDRAWALS!$C$5:$C$4000,$A24,WITHDRAWALS!$D$5:$D$4000,"=FOB MILL",WITHDRAWALS!$E$5:$E$4000,L$6)) -> 
A25: =IFERROR(INDEX(WITHDRAWALS!$C$5:$C$4000,SMALL(IF(FREQUENCY(IF(ISNUMBER(SEARCH("??"&TEXT($G$4,"mmm")&"??"&"|"&"?*"&"FOB MILL"&"|?*",WITHDRAWALS!$L$5:$L$4000)), MATCH(WITHDRAWALS!$C$5:$C$4000,WITHDRAWALS!$C$5:$C$4000,0)),Ivec),Ivec),ROWS($A$7:A25))),"") ->  | B25: =IF($A25="","",(SUMIFS(BOOKINGS!$E$5:$E$31,BOOKINGS!$A$5:$A$31,">=1-"&$G$3,BOOKINGS!$A$5:$A$31,"<="&$H$3&"-"&$G$3,BOOKINGS!$B$5:$B$31,$A25,BOOKINGS!$C$5:$C$31,"=FOB MILL",BOOKINGS!$D$5:$D$31,B$6))-SUMIFS(WITHDRAWALS!$F$5:$F$4000,WITHDRAWALS!$B$5:$B$4000,">=1-"&$G$3,WITHDRAWALS!$B$5:$B$4000,"<="&$H$3&"-"&$G$3,WITHDRAWALS!$C$5:$C$4000,$A25,WITHDRAWALS!$D$5:$D$4000,"=FOB MILL",WITHDRAWALS!$E$5:$E$4000,B$6)) ->  | C25: =IF($A25="","",(SUMIFS(BOOKINGS!$E$5:$E$31,BOOKINGS!$A$5:$A$31,">=1-"&$G$3,BOOKINGS!$A$5:$A$31,"<="&$H$3&"-"&$G$3,BOOKINGS!$B$5:$B$31,$A25,BOOKINGS!$C$5:$C$31,"=FOB MILL",BOOKINGS!$D$5:$D$31,C$6))-SUMIFS(WITHDRAWALS!$F$5:$F$4000,WITHDRAWALS!$B$5:$B$4000,">=1-"&$G$3,WITHDRAWALS!$B$5:$B$4000,"<="&$H$3&"-"&$G$3,WITHDRAWALS!$C$5:$C$4000,$A25,WITHDRAWALS!$D$5:$D$4000,"=FOB MILL",WITHDRAWALS!$E$5:$E$4000,C$6)) ->  | D25: =IF($A25="","",(SUMIFS(BOOKINGS!$E$5:$E$31,BOOKINGS!$A$5:$A$31,">=1-"&$G$3,BOOKINGS!$A$5:$A$31,"<="&$H$3&"-"&$G$3,BOOKINGS!$B$5:$B$31,$A25,BOOKINGS!$C$5:$C$31,"=FOB MILL",BOOKINGS!$D$5:$D$31,D$6))-SUMIFS(WITHDRAWALS!$F$5:$F$4000,WITHDRAWALS!$B$5:$B$4000,">=1-"&$G$3,WITHDRAWALS!$B$5:$B$4000,"<="&$H$3&"-"&$G$3,WITHDRAWALS!$C$5:$C$4000,$A25,WITHDRAWALS!$D$5:$D$4000,"=FOB MILL",WITHDRAWALS!$E$5:$E$4000,D$6)) ->  | E25: =IF($A25="","",(SUMIFS(BOOKINGS!$E$5:$E$31,BOOKINGS!$A$5:$A$31,">=1-"&$G$3,BOOKINGS!$A$5:$A$31,"<="&$H$3&"-"&$G$3,BOOKINGS!$B$5:$B$31,$A25,BOOKINGS!$C$5:$C$31,"=FOB MILL",BOOKINGS!$D$5:$D$31,E$6))-SUMIFS(WITHDRAWALS!$F$5:$F$4000,WITHDRAWALS!$B$5:$B$4000,">=1-"&$G$3,WITHDRAWALS!$B$5:$B$4000,"<="&$H$3&"-"&$G$3,WITHDRAWALS!$C$5:$C$4000,$A25,WITHDRAWALS!$D$5:$D$4000,"=FOB MILL",WITHDRAWALS!$E$5:$E$4000,E$6)) ->  | F25: =IF($A25="","",(SUMIFS(BOOKINGS!$E$5:$E$31,BOOKINGS!$A$5:$A$31,">=1-"&$G$3,BOOKINGS!$A$5:$A$31,"<="&$H$3&"-"&$G$3,BOOKINGS!$B$5:$B$31,$A25,BOOKINGS!$C$5:$C$31,"=FOB MILL",BOOKINGS!$D$5:$D$31,F$6))-SUMIFS(WITHDRAWALS!$F$5:$F$4000,WITHDRAWALS!$B$5:$B$4000,">=1-"&$G$3,WITHDRAWALS!$B$5:$B$4000,"<="&$H$3&"-"&$G$3,WITHDRAWALS!$C$5:$C$4000,$A25,WITHDRAWALS!$D$5:$D$4000,"=FOB MILL",WITHDRAWALS!$E$5:$E$4000,F$6)) ->  | G25: =IF($A25="","",(SUMIFS(BOOKINGS!$E$5:$E$31,BOOKINGS!$A$5:$A$31,">=1-"&$G$3,BOOKINGS!$A$5:$A$31,"<="&$H$3&"-"&$G$3,BOOKINGS!$B$5:$B$31,$A25,BOOKINGS!$C$5:$C$31,"=FOB MILL",BOOKINGS!$D$5:$D$31,G$6))-SUMIFS(WITHDRAWALS!$F$5:$F$4000,WITHDRAWALS!$B$5:$B$4000,">=1-"&$G$3,WITHDRAWALS!$B$5:$B$4000,"<="&$H$3&"-"&$G$3,WITHDRAWALS!$C$5:$C$4000,$A25,WITHDRAWALS!$D$5:$D$4000,"=FOB MILL",WITHDRAWALS!$E$5:$E$4000,G$6)) ->  | H25: =IF($A25="","",(SUMIFS(BOOKINGS!$E$5:$E$31,BOOKINGS!$A$5:$A$31,">=1-"&$G$3,BOOKINGS!$A$5:$A$31,"<="&$H$3&"-"&$G$3,BOOKINGS!$B$5:$B$31,$A25,BOOKINGS!$C$5:$C$31,"=FOB MILL",BOOKINGS!$D$5:$D$31,H$6))-SUMIFS(WITHDRAWALS!$F$5:$F$4000,WITHDRAWALS!$B$5:$B$4000,">=1-"&$G$3,WITHDRAWALS!$B$5:$B$4000,"<="&$H$3&"-"&$G$3,WITHDRAWALS!$C$5:$C$4000,$A25,WITHDRAWALS!$D$5:$D$4000,"=FOB MILL",WITHDRAWALS!$E$5:$E$4000,H$6)) ->  | I25: =IF($A25="","",(SUMIFS(BOOKINGS!$E$5:$E$31,BOOKINGS!$A$5:$A$31,">=1-"&$G$3,BOOKINGS!$A$5:$A$31,"<="&$H$3&"-"&$G$3,BOOKINGS!$B$5:$B$31,$A25,BOOKINGS!$C$5:$C$31,"=FOB MILL",BOOKINGS!$D$5:$D$31,I$6))-SUMIFS(WITHDRAWALS!$F$5:$F$4000,WITHDRAWALS!$B$5:$B$4000,">=1-"&$G$3,WITHDRAWALS!$B$5:$B$4000,"<="&$H$3&"-"&$G$3,WITHDRAWALS!$C$5:$C$4000,$A25,WITHDRAWALS!$D$5:$D$4000,"=FOB MILL",WITHDRAWALS!$E$5:$E$4000,I$6)) ->  | J25: =IF($A25="","",(SUMIFS(BOOKINGS!$E$5:$E$31,BOOKINGS!$A$5:$A$31,">=1-"&$G$3,BOOKINGS!$A$5:$A$31,"<="&$H$3&"-"&$G$3,BOOKINGS!$B$5:$B$31,$A25,BOOKINGS!$C$5:$C$31,"=FOB MILL",BOOKINGS!$D$5:$D$31,J$6))-SUMIFS(WITHDRAWALS!$F$5:$F$4000,WITHDRAWALS!$B$5:$B$4000,">=1-"&$G$3,WITHDRAWALS!$B$5:$B$4000,"<="&$H$3&"-"&$G$3,WITHDRAWALS!$C$5:$C$4000,$A25,WITHDRAWALS!$D$5:$D$4000,"=FOB MILL",WITHDRAWALS!$E$5:$E$4000,J$6)) ->  | K25: =IF($A25="","",(SUMIFS(BOOKINGS!$E$5:$E$31,BOOKINGS!$A$5:$A$31,">=1-"&$G$3,BOOKINGS!$A$5:$A$31,"<="&$H$3&"-"&$G$3,BOOKINGS!$B$5:$B$31,$A25,BOOKINGS!$C$5:$C$31,"=FOB MILL",BOOKINGS!$D$5:$D$31,K$6))-SUMIFS(WITHDRAWALS!$F$5:$F$4000,WITHDRAWALS!$B$5:$B$4000,">=1-"&$G$3,WITHDRAWALS!$B$5:$B$4000,"<="&$H$3&"-"&$G$3,WITHDRAWALS!$C$5:$C$4000,$A25,WITHDRAWALS!$D$5:$D$4000,"=FOB MILL",WITHDRAWALS!$E$5:$E$4000,K$6)) ->  | L25: =IF($A25="","",(SUMIFS(BOOKINGS!$E$5:$E$31,BOOKINGS!$A$5:$A$31,">=1-"&$G$3,BOOKINGS!$A$5:$A$31,"<="&$H$3&"-"&$G$3,BOOKINGS!$B$5:$B$31,$A25,BOOKINGS!$C$5:$C$31,"=FOB MILL",BOOKINGS!$D$5:$D$31,L$6))-SUMIFS(WITHDRAWALS!$F$5:$F$4000,WITHDRAWALS!$B$5:$B$4000,">=1-"&$G$3,WITHDRAWALS!$B$5:$B$4000,"<="&$H$3&"-"&$G$3,WITHDRAWALS!$C$5:$C$4000,$A25,WITHDRAWALS!$D$5:$D$4000,"=FOB MILL",WITHDRAWALS!$E$5:$E$4000,L$6)) -> 
A26: =IFERROR(INDEX(WITHDRAWALS!$C$5:$C$4000,SMALL(IF(FREQUENCY(IF(ISNUMBER(SEARCH("??"&TEXT($G$4,"mmm")&"??"&"|"&"?*"&"FOB MILL"&"|?*",WITHDRAWALS!$L$5:$L$4000)), MATCH(WITHDRAWALS!$C$5:$C$4000,WITHDRAWALS!$C$5:$C$4000,0)),Ivec),Ivec),ROWS($A$7:A26))),"") ->  | B26: =IF($A26="","",(SUMIFS(BOOKINGS!$E$5:$E$31,BOOKINGS!$A$5:$A$31,">=1-"&$G$3,BOOKINGS!$A$5:$A$31,"<="&$H$3&"-"&$G$3,BOOKINGS!$B$5:$B$31,$A26,BOOKINGS!$C$5:$C$31,"=FOB MILL",BOOKINGS!$D$5:$D$31,B$6))-SUMIFS(WITHDRAWALS!$F$5:$F$4000,WITHDRAWALS!$B$5:$B$4000,">=1-"&$G$3,WITHDRAWALS!$B$5:$B$4000,"<="&$H$3&"-"&$G$3,WITHDRAWALS!$C$5:$C$4000,$A26,WITHDRAWALS!$D$5:$D$4000,"=FOB MILL",WITHDRAWALS!$E$5:$E$4000,B$6)) ->  | C26: =IF($A26="","",(SUMIFS(BOOKINGS!$E$5:$E$31,BOOKINGS!$A$5:$A$31,">=1-"&$G$3,BOOKINGS!$A$5:$A$31,"<="&$H$3&"-"&$G$3,BOOKINGS!$B$5:$B$31,$A26,BOOKINGS!$C$5:$C$31,"=FOB MILL",BOOKINGS!$D$5:$D$31,C$6))-SUMIFS(WITHDRAWALS!$F$5:$F$4000,WITHDRAWALS!$B$5:$B$4000,">=1-"&$G$3,WITHDRAWALS!$B$5:$B$4000,"<="&$H$3&"-"&$G$3,WITHDRAWALS!$C$5:$C$4000,$A26,WITHDRAWALS!$D$5:$D$4000,"=FOB MILL",WITHDRAWALS!$E$5:$E$4000,C$6)) ->  | D26: =IF($A26="","",(SUMIFS(BOOKINGS!$E$5:$E$31,BOOKINGS!$A$5:$A$31,">=1-"&$G$3,BOOKINGS!$A$5:$A$31,"<="&$H$3&"-"&$G$3,BOOKINGS!$B$5:$B$31,$A26,BOOKINGS!$C$5:$C$31,"=FOB MILL",BOOKINGS!$D$5:$D$31,D$6))-SUMIFS(WITHDRAWALS!$F$5:$F$4000,WITHDRAWALS!$B$5:$B$4000,">=1-"&$G$3,WITHDRAWALS!$B$5:$B$4000,"<="&$H$3&"-"&$G$3,WITHDRAWALS!$C$5:$C$4000,$A26,WITHDRAWALS!$D$5:$D$4000,"=FOB MILL",WITHDRAWALS!$E$5:$E$4000,D$6)) ->  | E26: =IF($A26="","",(SUMIFS(BOOKINGS!$E$5:$E$31,BOOKINGS!$A$5:$A$31,">=1-"&$G$3,BOOKINGS!$A$5:$A$31,"<="&$H$3&"-"&$G$3,BOOKINGS!$B$5:$B$31,$A26,BOOKINGS!$C$5:$C$31,"=FOB MILL",BOOKINGS!$D$5:$D$31,E$6))-SUMIFS(WITHDRAWALS!$F$5:$F$4000,WITHDRAWALS!$B$5:$B$4000,">=1-"&$G$3,WITHDRAWALS!$B$5:$B$4000,"<="&$H$3&"-"&$G$3,WITHDRAWALS!$C$5:$C$4000,$A26,WITHDRAWALS!$D$5:$D$4000,"=FOB MILL",WITHDRAWALS!$E$5:$E$4000,E$6)) ->  | F26: =IF($A26="","",(SUMIFS(BOOKINGS!$E$5:$E$31,BOOKINGS!$A$5:$A$31,">=1-"&$G$3,BOOKINGS!$A$5:$A$31,"<="&$H$3&"-"&$G$3,BOOKINGS!$B$5:$B$31,$A26,BOOKINGS!$C$5:$C$31,"=FOB MILL",BOOKINGS!$D$5:$D$31,F$6))-SUMIFS(WITHDRAWALS!$F$5:$F$4000,WITHDRAWALS!$B$5:$B$4000,">=1-"&$G$3,WITHDRAWALS!$B$5:$B$4000,"<="&$H$3&"-"&$G$3,WITHDRAWALS!$C$5:$C$4000,$A26,WITHDRAWALS!$D$5:$D$4000,"=FOB MILL",WITHDRAWALS!$E$5:$E$4000,F$6)) ->  | G26: =IF($A26="","",(SUMIFS(BOOKINGS!$E$5:$E$31,BOOKINGS!$A$5:$A$31,">=1-"&$G$3,BOOKINGS!$A$5:$A$31,"<="&$H$3&"-"&$G$3,BOOKINGS!$B$5:$B$31,$A26,BOOKINGS!$C$5:$C$31,"=FOB MILL",BOOKINGS!$D$5:$D$31,G$6))-SUMIFS(WITHDRAWALS!$F$5:$F$4000,WITHDRAWALS!$B$5:$B$4000,">=1-"&$G$3,WITHDRAWALS!$B$5:$B$4000,"<="&$H$3&"-"&$G$3,WITHDRAWALS!$C$5:$C$4000,$A26,WITHDRAWALS!$D$5:$D$4000,"=FOB MILL",WITHDRAWALS!$E$5:$E$4000,G$6)) ->  | H26: =IF($A26="","",(SUMIFS(BOOKINGS!$E$5:$E$31,BOOKINGS!$A$5:$A$31,">=1-"&$G$3,BOOKINGS!$A$5:$A$31,"<="&$H$3&"-"&$G$3,BOOKINGS!$B$5:$B$31,$A26,BOOKINGS!$C$5:$C$31,"=FOB MILL",BOOKINGS!$D$5:$D$31,H$6))-SUMIFS(WITHDRAWALS!$F$5:$F$4000,WITHDRAWALS!$B$5:$B$4000,">=1-"&$G$3,WITHDRAWALS!$B$5:$B$4000,"<="&$H$3&"-"&$G$3,WITHDRAWALS!$C$5:$C$4000,$A26,WITHDRAWALS!$D$5:$D$4000,"=FOB MILL",WITHDRAWALS!$E$5:$E$4000,H$6)) ->  | I26: =IF($A26="","",(SUMIFS(BOOKINGS!$E$5:$E$31,BOOKINGS!$A$5:$A$31,">=1-"&$G$3,BOOKINGS!$A$5:$A$31,"<="&$H$3&"-"&$G$3,BOOKINGS!$B$5:$B$31,$A26,BOOKINGS!$C$5:$C$31,"=FOB MILL",BOOKINGS!$D$5:$D$31,I$6))-SUMIFS(WITHDRAWALS!$F$5:$F$4000,WITHDRAWALS!$B$5:$B$4000,">=1-"&$G$3,WITHDRAWALS!$B$5:$B$4000,"<="&$H$3&"-"&$G$3,WITHDRAWALS!$C$5:$C$4000,$A26,WITHDRAWALS!$D$5:$D$4000,"=FOB MILL",WITHDRAWALS!$E$5:$E$4000,I$6)) ->  | J26: =IF($A26="","",(SUMIFS(BOOKINGS!$E$5:$E$31,BOOKINGS!$A$5:$A$31,">=1-"&$G$3,BOOKINGS!$A$5:$A$31,"<="&$H$3&"-"&$G$3,BOOKINGS!$B$5:$B$31,$A26,BOOKINGS!$C$5:$C$31,"=FOB MILL",BOOKINGS!$D$5:$D$31,J$6))-SUMIFS(WITHDRAWALS!$F$5:$F$4000,WITHDRAWALS!$B$5:$B$4000,">=1-"&$G$3,WITHDRAWALS!$B$5:$B$4000,"<="&$H$3&"-"&$G$3,WITHDRAWALS!$C$5:$C$4000,$A26,WITHDRAWALS!$D$5:$D$4000,"=FOB MILL",WITHDRAWALS!$E$5:$E$4000,J$6)) ->  | K26: =IF($A26="","",(SUMIFS(BOOKINGS!$E$5:$E$31,BOOKINGS!$A$5:$A$31,">=1-"&$G$3,BOOKINGS!$A$5:$A$31,"<="&$H$3&"-"&$G$3,BOOKINGS!$B$5:$B$31,$A26,BOOKINGS!$C$5:$C$31,"=FOB MILL",BOOKINGS!$D$5:$D$31,K$6))-SUMIFS(WITHDRAWALS!$F$5:$F$4000,WITHDRAWALS!$B$5:$B$4000,">=1-"&$G$3,WITHDRAWALS!$B$5:$B$4000,"<="&$H$3&"-"&$G$3,WITHDRAWALS!$C$5:$C$4000,$A26,WITHDRAWALS!$D$5:$D$4000,"=FOB MILL",WITHDRAWALS!$E$5:$E$4000,K$6)) ->  | L26: =IF($A26="","",(SUMIFS(BOOKINGS!$E$5:$E$31,BOOKINGS!$A$5:$A$31,">=1-"&$G$3,BOOKINGS!$A$5:$A$31,"<="&$H$3&"-"&$G$3,BOOKINGS!$B$5:$B$31,$A26,BOOKINGS!$C$5:$C$31,"=FOB MILL",BOOKINGS!$D$5:$D$31,L$6))-SUMIFS(WITHDRAWALS!$F$5:$F$4000,WITHDRAWALS!$B$5:$B$4000,">=1-"&$G$3,WITHDRAWALS!$B$5:$B$4000,"<="&$H$3&"-"&$G$3,WITHDRAWALS!$C$5:$C$4000,$A26,WITHDRAWALS!$D$5:$D$4000,"=FOB MILL",WITHDRAWALS!$E$5:$E$4000,L$6)) -> 
A27: =IFERROR(INDEX(WITHDRAWALS!$C$5:$C$4000,SMALL(IF(FREQUENCY(IF(ISNUMBER(SEARCH("??"&TEXT($G$4,"mmm")&"??"&"|"&"?*"&"FOB MILL"&"|?*",WITHDRAWALS!$L$5:$L$4000)), MATCH(WITHDRAWALS!$C$5:$C$4000,WITHDRAWALS!$C$5:$C$4000,0)),Ivec),Ivec),ROWS($A$7:A27))),"") ->  | B27: =IF($A27="","",(SUMIFS(BOOKINGS!$E$5:$E$31,BOOKINGS!$A$5:$A$31,">=1-"&$G$3,BOOKINGS!$A$5:$A$31,"<="&$H$3&"-"&$G$3,BOOKINGS!$B$5:$B$31,$A27,BOOKINGS!$C$5:$C$31,"=FOB MILL",BOOKINGS!$D$5:$D$31,B$6))-SUMIFS(WITHDRAWALS!$F$5:$F$4000,WITHDRAWALS!$B$5:$B$4000,">=1-"&$G$3,WITHDRAWALS!$B$5:$B$4000,"<="&$H$3&"-"&$G$3,WITHDRAWALS!$C$5:$C$4000,$A27,WITHDRAWALS!$D$5:$D$4000,"=FOB MILL",WITHDRAWALS!$E$5:$E$4000,B$6)) ->  | C27: =IF($A27="","",(SUMIFS(BOOKINGS!$E$5:$E$31,BOOKINGS!$A$5:$A$31,">=1-"&$G$3,BOOKINGS!$A$5:$A$31,"<="&$H$3&"-"&$G$3,BOOKINGS!$B$5:$B$31,$A27,BOOKINGS!$C$5:$C$31,"=FOB MILL",BOOKINGS!$D$5:$D$31,C$6))-SUMIFS(WITHDRAWALS!$F$5:$F$4000,WITHDRAWALS!$B$5:$B$4000,">=1-"&$G$3,WITHDRAWALS!$B$5:$B$4000,"<="&$H$3&"-"&$G$3,WITHDRAWALS!$C$5:$C$4000,$A27,WITHDRAWALS!$D$5:$D$4000,"=FOB MILL",WITHDRAWALS!$E$5:$E$4000,C$6)) ->  | D27: =IF($A27="","",(SUMIFS(BOOKINGS!$E$5:$E$31,BOOKINGS!$A$5:$A$31,">=1-"&$G$3,BOOKINGS!$A$5:$A$31,"<="&$H$3&"-"&$G$3,BOOKINGS!$B$5:$B$31,$A27,BOOKINGS!$C$5:$C$31,"=FOB MILL",BOOKINGS!$D$5:$D$31,D$6))-SUMIFS(WITHDRAWALS!$F$5:$F$4000,WITHDRAWALS!$B$5:$B$4000,">=1-"&$G$3,WITHDRAWALS!$B$5:$B$4000,"<="&$H$3&"-"&$G$3,WITHDRAWALS!$C$5:$C$4000,$A27,WITHDRAWALS!$D$5:$D$4000,"=FOB MILL",WITHDRAWALS!$E$5:$E$4000,D$6)) ->  | E27: =IF($A27="","",(SUMIFS(BOOKINGS!$E$5:$E$31,BOOKINGS!$A$5:$A$31,">=1-"&$G$3,BOOKINGS!$A$5:$A$31,"<="&$H$3&"-"&$G$3,BOOKINGS!$B$5:$B$31,$A27,BOOKINGS!$C$5:$C$31,"=FOB MILL",BOOKINGS!$D$5:$D$31,E$6))-SUMIFS(WITHDRAWALS!$F$5:$F$4000,WITHDRAWALS!$B$5:$B$4000,">=1-"&$G$3,WITHDRAWALS!$B$5:$B$4000,"<="&$H$3&"-"&$G$3,WITHDRAWALS!$C$5:$C$4000,$A27,WITHDRAWALS!$D$5:$D$4000,"=FOB MILL",WITHDRAWALS!$E$5:$E$4000,E$6)) ->  | F27: =IF($A27="","",(SUMIFS(BOOKINGS!$E$5:$E$31,BOOKINGS!$A$5:$A$31,">=1-"&$G$3,BOOKINGS!$A$5:$A$31,"<="&$H$3&"-"&$G$3,BOOKINGS!$B$5:$B$31,$A27,BOOKINGS!$C$5:$C$31,"=FOB MILL",BOOKINGS!$D$5:$D$31,F$6))-SUMIFS(WITHDRAWALS!$F$5:$F$4000,WITHDRAWALS!$B$5:$B$4000,">=1-"&$G$3,WITHDRAWALS!$B$5:$B$4000,"<="&$H$3&"-"&$G$3,WITHDRAWALS!$C$5:$C$4000,$A27,WITHDRAWALS!$D$5:$D$4000,"=FOB MILL",WITHDRAWALS!$E$5:$E$4000,F$6)) ->  | G27: =IF($A27="","",(SUMIFS(BOOKINGS!$E$5:$E$31,BOOKINGS!$A$5:$A$31,">=1-"&$G$3,BOOKINGS!$A$5:$A$31,"<="&$H$3&"-"&$G$3,BOOKINGS!$B$5:$B$31,$A27,BOOKINGS!$C$5:$C$31,"=FOB MILL",BOOKINGS!$D$5:$D$31,G$6))-SUMIFS(WITHDRAWALS!$F$5:$F$4000,WITHDRAWALS!$B$5:$B$4000,">=1-"&$G$3,WITHDRAWALS!$B$5:$B$4000,"<="&$H$3&"-"&$G$3,WITHDRAWALS!$C$5:$C$4000,$A27,WITHDRAWALS!$D$5:$D$4000,"=FOB MILL",WITHDRAWALS!$E$5:$E$4000,G$6)) ->  | H27: =IF($A27="","",(SUMIFS(BOOKINGS!$E$5:$E$31,BOOKINGS!$A$5:$A$31,">=1-"&$G$3,BOOKINGS!$A$5:$A$31,"<="&$H$3&"-"&$G$3,BOOKINGS!$B$5:$B$31,$A27,BOOKINGS!$C$5:$C$31,"=FOB MILL",BOOKINGS!$D$5:$D$31,H$6))-SUMIFS(WITHDRAWALS!$F$5:$F$4000,WITHDRAWALS!$B$5:$B$4000,">=1-"&$G$3,WITHDRAWALS!$B$5:$B$4000,"<="&$H$3&"-"&$G$3,WITHDRAWALS!$C$5:$C$4000,$A27,WITHDRAWALS!$D$5:$D$4000,"=FOB MILL",WITHDRAWALS!$E$5:$E$4000,H$6)) ->  | I27: =IF($A27="","",(SUMIFS(BOOKINGS!$E$5:$E$31,BOOKINGS!$A$5:$A$31,">=1-"&$G$3,BOOKINGS!$A$5:$A$31,"<="&$H$3&"-"&$G$3,BOOKINGS!$B$5:$B$31,$A27,BOOKINGS!$C$5:$C$31,"=FOB MILL",BOOKINGS!$D$5:$D$31,I$6))-SUMIFS(WITHDRAWALS!$F$5:$F$4000,WITHDRAWALS!$B$5:$B$4000,">=1-"&$G$3,WITHDRAWALS!$B$5:$B$4000,"<="&$H$3&"-"&$G$3,WITHDRAWALS!$C$5:$C$4000,$A27,WITHDRAWALS!$D$5:$D$4000,"=FOB MILL",WITHDRAWALS!$E$5:$E$4000,I$6)) ->  | J27: =IF($A27="","",(SUMIFS(BOOKINGS!$E$5:$E$31,BOOKINGS!$A$5:$A$31,">=1-"&$G$3,BOOKINGS!$A$5:$A$31,"<="&$H$3&"-"&$G$3,BOOKINGS!$B$5:$B$31,$A27,BOOKINGS!$C$5:$C$31,"=FOB MILL",BOOKINGS!$D$5:$D$31,J$6))-SUMIFS(WITHDRAWALS!$F$5:$F$4000,WITHDRAWALS!$B$5:$B$4000,">=1-"&$G$3,WITHDRAWALS!$B$5:$B$4000,"<="&$H$3&"-"&$G$3,WITHDRAWALS!$C$5:$C$4000,$A27,WITHDRAWALS!$D$5:$D$4000,"=FOB MILL",WITHDRAWALS!$E$5:$E$4000,J$6)) ->  | K27: =IF($A27="","",(SUMIFS(BOOKINGS!$E$5:$E$31,BOOKINGS!$A$5:$A$31,">=1-"&$G$3,BOOKINGS!$A$5:$A$31,"<="&$H$3&"-"&$G$3,BOOKINGS!$B$5:$B$31,$A27,BOOKINGS!$C$5:$C$31,"=FOB MILL",BOOKINGS!$D$5:$D$31,K$6))-SUMIFS(WITHDRAWALS!$F$5:$F$4000,WITHDRAWALS!$B$5:$B$4000,">=1-"&$G$3,WITHDRAWALS!$B$5:$B$4000,"<="&$H$3&"-"&$G$3,WITHDRAWALS!$C$5:$C$4000,$A27,WITHDRAWALS!$D$5:$D$4000,"=FOB MILL",WITHDRAWALS!$E$5:$E$4000,K$6)) ->  | L27: =IF($A27="","",(SUMIFS(BOOKINGS!$E$5:$E$31,BOOKINGS!$A$5:$A$31,">=1-"&$G$3,BOOKINGS!$A$5:$A$31,"<="&$H$3&"-"&$G$3,BOOKINGS!$B$5:$B$31,$A27,BOOKINGS!$C$5:$C$31,"=FOB MILL",BOOKINGS!$D$5:$D$31,L$6))-SUMIFS(WITHDRAWALS!$F$5:$F$4000,WITHDRAWALS!$B$5:$B$4000,">=1-"&$G$3,WITHDRAWALS!$B$5:$B$4000,"<="&$H$3&"-"&$G$3,WITHDRAWALS!$C$5:$C$4000,$A27,WITHDRAWALS!$D$5:$D$4000,"=FOB MILL",WITHDRAWALS!$E$5:$E$4000,L$6)) -> 
A28: =IFERROR(INDEX(WITHDRAWALS!$C$5:$C$4000,SMALL(IF(FREQUENCY(IF(ISNUMBER(SEARCH("??"&TEXT($G$4,"mmm")&"??"&"|"&"?*"&"FOB MILL"&"|?*",WITHDRAWALS!$L$5:$L$4000)), MATCH(WITHDRAWALS!$C$5:$C$4000,WITHDRAWALS!$C$5:$C$4000,0)),Ivec),Ivec),ROWS($A$7:A28))),"") ->  | B28: =IF($A28="","",(SUMIFS(BOOKINGS!$E$5:$E$31,BOOKINGS!$A$5:$A$31,">=1-"&$G$3,BOOKINGS!$A$5:$A$31,"<="&$H$3&"-"&$G$3,BOOKINGS!$B$5:$B$31,$A28,BOOKINGS!$C$5:$C$31,"=FOB MILL",BOOKINGS!$D$5:$D$31,B$6))-SUMIFS(WITHDRAWALS!$F$5:$F$4000,WITHDRAWALS!$B$5:$B$4000,">=1-"&$G$3,WITHDRAWALS!$B$5:$B$4000,"<="&$H$3&"-"&$G$3,WITHDRAWALS!$C$5:$C$4000,$A28,WITHDRAWALS!$D$5:$D$4000,"=FOB MILL",WITHDRAWALS!$E$5:$E$4000,B$6)) ->  | C28: =IF($A28="","",(SUMIFS(BOOKINGS!$E$5:$E$31,BOOKINGS!$A$5:$A$31,">=1-"&$G$3,BOOKINGS!$A$5:$A$31,"<="&$H$3&"-"&$G$3,BOOKINGS!$B$5:$B$31,$A28,BOOKINGS!$C$5:$C$31,"=FOB MILL",BOOKINGS!$D$5:$D$31,C$6))-SUMIFS(WITHDRAWALS!$F$5:$F$4000,WITHDRAWALS!$B$5:$B$4000,">=1-"&$G$3,WITHDRAWALS!$B$5:$B$4000,"<="&$H$3&"-"&$G$3,WITHDRAWALS!$C$5:$C$4000,$A28,WITHDRAWALS!$D$5:$D$4000,"=FOB MILL",WITHDRAWALS!$E$5:$E$4000,C$6)) ->  | D28: =IF($A28="","",(SUMIFS(BOOKINGS!$E$5:$E$31,BOOKINGS!$A$5:$A$31,">=1-"&$G$3,BOOKINGS!$A$5:$A$31,"<="&$H$3&"-"&$G$3,BOOKINGS!$B$5:$B$31,$A28,BOOKINGS!$C$5:$C$31,"=FOB MILL",BOOKINGS!$D$5:$D$31,D$6))-SUMIFS(WITHDRAWALS!$F$5:$F$4000,WITHDRAWALS!$B$5:$B$4000,">=1-"&$G$3,WITHDRAWALS!$B$5:$B$4000,"<="&$H$3&"-"&$G$3,WITHDRAWALS!$C$5:$C$4000,$A28,WITHDRAWALS!$D$5:$D$4000,"=FOB MILL",WITHDRAWALS!$E$5:$E$4000,D$6)) ->  | E28: =IF($A28="","",(SUMIFS(BOOKINGS!$E$5:$E$31,BOOKINGS!$A$5:$A$31,">=1-"&$G$3,BOOKINGS!$A$5:$A$31,"<="&$H$3&"-"&$G$3,BOOKINGS!$B$5:$B$31,$A28,BOOKINGS!$C$5:$C$31,"=FOB MILL",BOOKINGS!$D$5:$D$31,E$6))-SUMIFS(WITHDRAWALS!$F$5:$F$4000,WITHDRAWALS!$B$5:$B$4000,">=1-"&$G$3,WITHDRAWALS!$B$5:$B$4000,"<="&$H$3&"-"&$G$3,WITHDRAWALS!$C$5:$C$4000,$A28,WITHDRAWALS!$D$5:$D$4000,"=FOB MILL",WITHDRAWALS!$E$5:$E$4000,E$6)) ->  | F28: =IF($A28="","",(SUMIFS(BOOKINGS!$E$5:$E$31,BOOKINGS!$A$5:$A$31,">=1-"&$G$3,BOOKINGS!$A$5:$A$31,"<="&$H$3&"-"&$G$3,BOOKINGS!$B$5:$B$31,$A28,BOOKINGS!$C$5:$C$31,"=FOB MILL",BOOKINGS!$D$5:$D$31,F$6))-SUMIFS(WITHDRAWALS!$F$5:$F$4000,WITHDRAWALS!$B$5:$B$4000,">=1-"&$G$3,WITHDRAWALS!$B$5:$B$4000,"<="&$H$3&"-"&$G$3,WITHDRAWALS!$C$5:$C$4000,$A28,WITHDRAWALS!$D$5:$D$4000,"=FOB MILL",WITHDRAWALS!$E$5:$E$4000,F$6)) ->  | G28: =IF($A28="","",(SUMIFS(BOOKINGS!$E$5:$E$31,BOOKINGS!$A$5:$A$31,">=1-"&$G$3,BOOKINGS!$A$5:$A$31,"<="&$H$3&"-"&$G$3,BOOKINGS!$B$5:$B$31,$A28,BOOKINGS!$C$5:$C$31,"=FOB MILL",BOOKINGS!$D$5:$D$31,G$6))-SUMIFS(WITHDRAWALS!$F$5:$F$4000,WITHDRAWALS!$B$5:$B$4000,">=1-"&$G$3,WITHDRAWALS!$B$5:$B$4000,"<="&$H$3&"-"&$G$3,WITHDRAWALS!$C$5:$C$4000,$A28,WITHDRAWALS!$D$5:$D$4000,"=FOB MILL",WITHDRAWALS!$E$5:$E$4000,G$6)) ->  | H28: =IF($A28="","",(SUMIFS(BOOKINGS!$E$5:$E$31,BOOKINGS!$A$5:$A$31,">=1-"&$G$3,BOOKINGS!$A$5:$A$31,"<="&$H$3&"-"&$G$3,BOOKINGS!$B$5:$B$31,$A28,BOOKINGS!$C$5:$C$31,"=FOB MILL",BOOKINGS!$D$5:$D$31,H$6))-SUMIFS(WITHDRAWALS!$F$5:$F$4000,WITHDRAWALS!$B$5:$B$4000,">=1-"&$G$3,WITHDRAWALS!$B$5:$B$4000,"<="&$H$3&"-"&$G$3,WITHDRAWALS!$C$5:$C$4000,$A28,WITHDRAWALS!$D$5:$D$4000,"=FOB MILL",WITHDRAWALS!$E$5:$E$4000,H$6)) ->  | I28: =IF($A28="","",(SUMIFS(BOOKINGS!$E$5:$E$31,BOOKINGS!$A$5:$A$31,">=1-"&$G$3,BOOKINGS!$A$5:$A$31,"<="&$H$3&"-"&$G$3,BOOKINGS!$B$5:$B$31,$A28,BOOKINGS!$C$5:$C$31,"=FOB MILL",BOOKINGS!$D$5:$D$31,I$6))-SUMIFS(WITHDRAWALS!$F$5:$F$4000,WITHDRAWALS!$B$5:$B$4000,">=1-"&$G$3,WITHDRAWALS!$B$5:$B$4000,"<="&$H$3&"-"&$G$3,WITHDRAWALS!$C$5:$C$4000,$A28,WITHDRAWALS!$D$5:$D$4000,"=FOB MILL",WITHDRAWALS!$E$5:$E$4000,I$6)) ->  | J28: =IF($A28="","",(SUMIFS(BOOKINGS!$E$5:$E$31,BOOKINGS!$A$5:$A$31,">=1-"&$G$3,BOOKINGS!$A$5:$A$31,"<="&$H$3&"-"&$G$3,BOOKINGS!$B$5:$B$31,$A28,BOOKINGS!$C$5:$C$31,"=FOB MILL",BOOKINGS!$D$5:$D$31,J$6))-SUMIFS(WITHDRAWALS!$F$5:$F$4000,WITHDRAWALS!$B$5:$B$4000,">=1-"&$G$3,WITHDRAWALS!$B$5:$B$4000,"<="&$H$3&"-"&$G$3,WITHDRAWALS!$C$5:$C$4000,$A28,WITHDRAWALS!$D$5:$D$4000,"=FOB MILL",WITHDRAWALS!$E$5:$E$4000,J$6)) ->  | K28: =IF($A28="","",(SUMIFS(BOOKINGS!$E$5:$E$31,BOOKINGS!$A$5:$A$31,">=1-"&$G$3,BOOKINGS!$A$5:$A$31,"<="&$H$3&"-"&$G$3,BOOKINGS!$B$5:$B$31,$A28,BOOKINGS!$C$5:$C$31,"=FOB MILL",BOOKINGS!$D$5:$D$31,K$6))-SUMIFS(WITHDRAWALS!$F$5:$F$4000,WITHDRAWALS!$B$5:$B$4000,">=1-"&$G$3,WITHDRAWALS!$B$5:$B$4000,"<="&$H$3&"-"&$G$3,WITHDRAWALS!$C$5:$C$4000,$A28,WITHDRAWALS!$D$5:$D$4000,"=FOB MILL",WITHDRAWALS!$E$5:$E$4000,K$6)) ->  | L28: =IF($A28="","",(SUMIFS(BOOKINGS!$E$5:$E$31,BOOKINGS!$A$5:$A$31,">=1-"&$G$3,BOOKINGS!$A$5:$A$31,"<="&$H$3&"-"&$G$3,BOOKINGS!$B$5:$B$31,$A28,BOOKINGS!$C$5:$C$31,"=FOB MILL",BOOKINGS!$D$5:$D$31,L$6))-SUMIFS(WITHDRAWALS!$F$5:$F$4000,WITHDRAWALS!$B$5:$B$4000,">=1-"&$G$3,WITHDRAWALS!$B$5:$B$4000,"<="&$H$3&"-"&$G$3,WITHDRAWALS!$C$5:$C$4000,$A28,WITHDRAWALS!$D$5:$D$4000,"=FOB MILL",WITHDRAWALS!$E$5:$E$4000,L$6)) -> 
A29: =IFERROR(INDEX(WITHDRAWALS!$C$5:$C$4000,SMALL(IF(FREQUENCY(IF(ISNUMBER(SEARCH("??"&TEXT($G$4,"mmm")&"??"&"|"&"?*"&"FOB MILL"&"|?*",WITHDRAWALS!$L$5:$L$4000)), MATCH(WITHDRAWALS!$C$5:$C$4000,WITHDRAWALS!$C$5:$C$4000,0)),Ivec),Ivec),ROWS($A$7:A29))),"") ->  | B29: =IF($A29="","",(SUMIFS(BOOKINGS!$E$5:$E$31,BOOKINGS!$A$5:$A$31,">=1-"&$G$3,BOOKINGS!$A$5:$A$31,"<="&$H$3&"-"&$G$3,BOOKINGS!$B$5:$B$31,$A29,BOOKINGS!$C$5:$C$31,"=FOB MILL",BOOKINGS!$D$5:$D$31,B$6))-SUMIFS(WITHDRAWALS!$F$5:$F$4000,WITHDRAWALS!$B$5:$B$4000,">=1-"&$G$3,WITHDRAWALS!$B$5:$B$4000,"<="&$H$3&"-"&$G$3,WITHDRAWALS!$C$5:$C$4000,$A29,WITHDRAWALS!$D$5:$D$4000,"=FOB MILL",WITHDRAWALS!$E$5:$E$4000,B$6)) ->  | C29: =IF($A29="","",(SUMIFS(BOOKINGS!$E$5:$E$31,BOOKINGS!$A$5:$A$31,">=1-"&$G$3,BOOKINGS!$A$5:$A$31,"<="&$H$3&"-"&$G$3,BOOKINGS!$B$5:$B$31,$A29,BOOKINGS!$C$5:$C$31,"=FOB MILL",BOOKINGS!$D$5:$D$31,C$6))-SUMIFS(WITHDRAWALS!$F$5:$F$4000,WITHDRAWALS!$B$5:$B$4000,">=1-"&$G$3,WITHDRAWALS!$B$5:$B$4000,"<="&$H$3&"-"&$G$3,WITHDRAWALS!$C$5:$C$4000,$A29,WITHDRAWALS!$D$5:$D$4000,"=FOB MILL",WITHDRAWALS!$E$5:$E$4000,C$6)) ->  | D29: =IF($A29="","",(SUMIFS(BOOKINGS!$E$5:$E$31,BOOKINGS!$A$5:$A$31,">=1-"&$G$3,BOOKINGS!$A$5:$A$31,"<="&$H$3&"-"&$G$3,BOOKINGS!$B$5:$B$31,$A29,BOOKINGS!$C$5:$C$31,"=FOB MILL",BOOKINGS!$D$5:$D$31,D$6))-SUMIFS(WITHDRAWALS!$F$5:$F$4000,WITHDRAWALS!$B$5:$B$4000,">=1-"&$G$3,WITHDRAWALS!$B$5:$B$4000,"<="&$H$3&"-"&$G$3,WITHDRAWALS!$C$5:$C$4000,$A29,WITHDRAWALS!$D$5:$D$4000,"=FOB MILL",WITHDRAWALS!$E$5:$E$4000,D$6)) ->  | E29: =IF($A29="","",(SUMIFS(BOOKINGS!$E$5:$E$31,BOOKINGS!$A$5:$A$31,">=1-"&$G$3,BOOKINGS!$A$5:$A$31,"<="&$H$3&"-"&$G$3,BOOKINGS!$B$5:$B$31,$A29,BOOKINGS!$C$5:$C$31,"=FOB MILL",BOOKINGS!$D$5:$D$31,E$6))-SUMIFS(WITHDRAWALS!$F$5:$F$4000,WITHDRAWALS!$B$5:$B$4000,">=1-"&$G$3,WITHDRAWALS!$B$5:$B$4000,"<="&$H$3&"-"&$G$3,WITHDRAWALS!$C$5:$C$4000,$A29,WITHDRAWALS!$D$5:$D$4000,"=FOB MILL",WITHDRAWALS!$E$5:$E$4000,E$6)) ->  | F29: =IF($A29="","",(SUMIFS(BOOKINGS!$E$5:$E$31,BOOKINGS!$A$5:$A$31,">=1-"&$G$3,BOOKINGS!$A$5:$A$31,"<="&$H$3&"-"&$G$3,BOOKINGS!$B$5:$B$31,$A29,BOOKINGS!$C$5:$C$31,"=FOB MILL",BOOKINGS!$D$5:$D$31,F$6))-SUMIFS(WITHDRAWALS!$F$5:$F$4000,WITHDRAWALS!$B$5:$B$4000,">=1-"&$G$3,WITHDRAWALS!$B$5:$B$4000,"<="&$H$3&"-"&$G$3,WITHDRAWALS!$C$5:$C$4000,$A29,WITHDRAWALS!$D$5:$D$4000,"=FOB MILL",WITHDRAWALS!$E$5:$E$4000,F$6)) ->  | G29: =IF($A29="","",(SUMIFS(BOOKINGS!$E$5:$E$31,BOOKINGS!$A$5:$A$31,">=1-"&$G$3,BOOKINGS!$A$5:$A$31,"<="&$H$3&"-"&$G$3,BOOKINGS!$B$5:$B$31,$A29,BOOKINGS!$C$5:$C$31,"=FOB MILL",BOOKINGS!$D$5:$D$31,G$6))-SUMIFS(WITHDRAWALS!$F$5:$F$4000,WITHDRAWALS!$B$5:$B$4000,">=1-"&$G$3,WITHDRAWALS!$B$5:$B$4000,"<="&$H$3&"-"&$G$3,WITHDRAWALS!$C$5:$C$4000,$A29,WITHDRAWALS!$D$5:$D$4000,"=FOB MILL",WITHDRAWALS!$E$5:$E$4000,G$6)) ->  | H29: =IF($A29="","",(SUMIFS(BOOKINGS!$E$5:$E$31,BOOKINGS!$A$5:$A$31,">=1-"&$G$3,BOOKINGS!$A$5:$A$31,"<="&$H$3&"-"&$G$3,BOOKINGS!$B$5:$B$31,$A29,BOOKINGS!$C$5:$C$31,"=FOB MILL",BOOKINGS!$D$5:$D$31,H$6))-SUMIFS(WITHDRAWALS!$F$5:$F$4000,WITHDRAWALS!$B$5:$B$4000,">=1-"&$G$3,WITHDRAWALS!$B$5:$B$4000,"<="&$H$3&"-"&$G$3,WITHDRAWALS!$C$5:$C$4000,$A29,WITHDRAWALS!$D$5:$D$4000,"=FOB MILL",WITHDRAWALS!$E$5:$E$4000,H$6)) ->  | I29: =IF($A29="","",(SUMIFS(BOOKINGS!$E$5:$E$31,BOOKINGS!$A$5:$A$31,">=1-"&$G$3,BOOKINGS!$A$5:$A$31,"<="&$H$3&"-"&$G$3,BOOKINGS!$B$5:$B$31,$A29,BOOKINGS!$C$5:$C$31,"=FOB MILL",BOOKINGS!$D$5:$D$31,I$6))-SUMIFS(WITHDRAWALS!$F$5:$F$4000,WITHDRAWALS!$B$5:$B$4000,">=1-"&$G$3,WITHDRAWALS!$B$5:$B$4000,"<="&$H$3&"-"&$G$3,WITHDRAWALS!$C$5:$C$4000,$A29,WITHDRAWALS!$D$5:$D$4000,"=FOB MILL",WITHDRAWALS!$E$5:$E$4000,I$6)) ->  | J29: =IF($A29="","",(SUMIFS(BOOKINGS!$E$5:$E$31,BOOKINGS!$A$5:$A$31,">=1-"&$G$3,BOOKINGS!$A$5:$A$31,"<="&$H$3&"-"&$G$3,BOOKINGS!$B$5:$B$31,$A29,BOOKINGS!$C$5:$C$31,"=FOB MILL",BOOKINGS!$D$5:$D$31,J$6))-SUMIFS(WITHDRAWALS!$F$5:$F$4000,WITHDRAWALS!$B$5:$B$4000,">=1-"&$G$3,WITHDRAWALS!$B$5:$B$4000,"<="&$H$3&"-"&$G$3,WITHDRAWALS!$C$5:$C$4000,$A29,WITHDRAWALS!$D$5:$D$4000,"=FOB MILL",WITHDRAWALS!$E$5:$E$4000,J$6)) ->  | K29: =IF($A29="","",(SUMIFS(BOOKINGS!$E$5:$E$31,BOOKINGS!$A$5:$A$31,">=1-"&$G$3,BOOKINGS!$A$5:$A$31,"<="&$H$3&"-"&$G$3,BOOKINGS!$B$5:$B$31,$A29,BOOKINGS!$C$5:$C$31,"=FOB MILL",BOOKINGS!$D$5:$D$31,K$6))-SUMIFS(WITHDRAWALS!$F$5:$F$4000,WITHDRAWALS!$B$5:$B$4000,">=1-"&$G$3,WITHDRAWALS!$B$5:$B$4000,"<="&$H$3&"-"&$G$3,WITHDRAWALS!$C$5:$C$4000,$A29,WITHDRAWALS!$D$5:$D$4000,"=FOB MILL",WITHDRAWALS!$E$5:$E$4000,K$6)) ->  | L29: =IF($A29="","",(SUMIFS(BOOKINGS!$E$5:$E$31,BOOKINGS!$A$5:$A$31,">=1-"&$G$3,BOOKINGS!$A$5:$A$31,"<="&$H$3&"-"&$G$3,BOOKINGS!$B$5:$B$31,$A29,BOOKINGS!$C$5:$C$31,"=FOB MILL",BOOKINGS!$D$5:$D$31,L$6))-SUMIFS(WITHDRAWALS!$F$5:$F$4000,WITHDRAWALS!$B$5:$B$4000,">=1-"&$G$3,WITHDRAWALS!$B$5:$B$4000,"<="&$H$3&"-"&$G$3,WITHDRAWALS!$C$5:$C$4000,$A29,WITHDRAWALS!$D$5:$D$4000,"=FOB MILL",WITHDRAWALS!$E$5:$E$4000,L$6)) -> 
A30: =IFERROR(INDEX(WITHDRAWALS!$C$5:$C$4000,SMALL(IF(FREQUENCY(IF(ISNUMBER(SEARCH("??"&TEXT($G$4,"mmm")&"??"&"|"&"?*"&"FOB MILL"&"|?*",WITHDRAWALS!$L$5:$L$4000)), MATCH(WITHDRAWALS!$C$5:$C$4000,WITHDRAWALS!$C$5:$C$4000,0)),Ivec),Ivec),ROWS($A$7:A30))),"") ->  | B30: =IF($A30="","",(SUMIFS(BOOKINGS!$E$5:$E$31,BOOKINGS!$A$5:$A$31,">=1-"&$G$3,BOOKINGS!$A$5:$A$31,"<="&$H$3&"-"&$G$3,BOOKINGS!$B$5:$B$31,$A30,BOOKINGS!$C$5:$C$31,"=FOB MILL",BOOKINGS!$D$5:$D$31,B$6))-SUMIFS(WITHDRAWALS!$F$5:$F$4000,WITHDRAWALS!$B$5:$B$4000,">=1-"&$G$3,WITHDRAWALS!$B$5:$B$4000,"<="&$H$3&"-"&$G$3,WITHDRAWALS!$C$5:$C$4000,$A30,WITHDRAWALS!$D$5:$D$4000,"=FOB MILL",WITHDRAWALS!$E$5:$E$4000,B$6)) ->  | C30: =IF($A30="","",(SUMIFS(BOOKINGS!$E$5:$E$31,BOOKINGS!$A$5:$A$31,">=1-"&$G$3,BOOKINGS!$A$5:$A$31,"<="&$H$3&"-"&$G$3,BOOKINGS!$B$5:$B$31,$A30,BOOKINGS!$C$5:$C$31,"=FOB MILL",BOOKINGS!$D$5:$D$31,C$6))-SUMIFS(WITHDRAWALS!$F$5:$F$4000,WITHDRAWALS!$B$5:$B$4000,">=1-"&$G$3,WITHDRAWALS!$B$5:$B$4000,"<="&$H$3&"-"&$G$3,WITHDRAWALS!$C$5:$C$4000,$A30,WITHDRAWALS!$D$5:$D$4000,"=FOB MILL",WITHDRAWALS!$E$5:$E$4000,C$6)) ->  | D30: =IF($A30="","",(SUMIFS(BOOKINGS!$E$5:$E$31,BOOKINGS!$A$5:$A$31,">=1-"&$G$3,BOOKINGS!$A$5:$A$31,"<="&$H$3&"-"&$G$3,BOOKINGS!$B$5:$B$31,$A30,BOOKINGS!$C$5:$C$31,"=FOB MILL",BOOKINGS!$D$5:$D$31,D$6))-SUMIFS(WITHDRAWALS!$F$5:$F$4000,WITHDRAWALS!$B$5:$B$4000,">=1-"&$G$3,WITHDRAWALS!$B$5:$B$4000,"<="&$H$3&"-"&$G$3,WITHDRAWALS!$C$5:$C$4000,$A30,WITHDRAWALS!$D$5:$D$4000,"=FOB MILL",WITHDRAWALS!$E$5:$E$4000,D$6)) ->  | E30: =IF($A30="","",(SUMIFS(BOOKINGS!$E$5:$E$31,BOOKINGS!$A$5:$A$31,">=1-"&$G$3,BOOKINGS!$A$5:$A$31,"<="&$H$3&"-"&$G$3,BOOKINGS!$B$5:$B$31,$A30,BOOKINGS!$C$5:$C$31,"=FOB MILL",BOOKINGS!$D$5:$D$31,E$6))-SUMIFS(WITHDRAWALS!$F$5:$F$4000,WITHDRAWALS!$B$5:$B$4000,">=1-"&$G$3,WITHDRAWALS!$B$5:$B$4000,"<="&$H$3&"-"&$G$3,WITHDRAWALS!$C$5:$C$4000,$A30,WITHDRAWALS!$D$5:$D$4000,"=FOB MILL",WITHDRAWALS!$E$5:$E$4000,E$6)) ->  | F30: =IF($A30="","",(SUMIFS(BOOKINGS!$E$5:$E$31,BOOKINGS!$A$5:$A$31,">=1-"&$G$3,BOOKINGS!$A$5:$A$31,"<="&$H$3&"-"&$G$3,BOOKINGS!$B$5:$B$31,$A30,BOOKINGS!$C$5:$C$31,"=FOB MILL",BOOKINGS!$D$5:$D$31,F$6))-SUMIFS(WITHDRAWALS!$F$5:$F$4000,WITHDRAWALS!$B$5:$B$4000,">=1-"&$G$3,WITHDRAWALS!$B$5:$B$4000,"<="&$H$3&"-"&$G$3,WITHDRAWALS!$C$5:$C$4000,$A30,WITHDRAWALS!$D$5:$D$4000,"=FOB MILL",WITHDRAWALS!$E$5:$E$4000,F$6)) ->  | G30: =IF($A30="","",(SUMIFS(BOOKINGS!$E$5:$E$31,BOOKINGS!$A$5:$A$31,">=1-"&$G$3,BOOKINGS!$A$5:$A$31,"<="&$H$3&"-"&$G$3,BOOKINGS!$B$5:$B$31,$A30,BOOKINGS!$C$5:$C$31,"=FOB MILL",BOOKINGS!$D$5:$D$31,G$6))-SUMIFS(WITHDRAWALS!$F$5:$F$4000,WITHDRAWALS!$B$5:$B$4000,">=1-"&$G$3,WITHDRAWALS!$B$5:$B$4000,"<="&$H$3&"-"&$G$3,WITHDRAWALS!$C$5:$C$4000,$A30,WITHDRAWALS!$D$5:$D$4000,"=FOB MILL",WITHDRAWALS!$E$5:$E$4000,G$6)) ->  | H30: =IF($A30="","",(SUMIFS(BOOKINGS!$E$5:$E$31,BOOKINGS!$A$5:$A$31,">=1-"&$G$3,BOOKINGS!$A$5:$A$31,"<="&$H$3&"-"&$G$3,BOOKINGS!$B$5:$B$31,$A30,BOOKINGS!$C$5:$C$31,"=FOB MILL",BOOKINGS!$D$5:$D$31,H$6))-SUMIFS(WITHDRAWALS!$F$5:$F$4000,WITHDRAWALS!$B$5:$B$4000,">=1-"&$G$3,WITHDRAWALS!$B$5:$B$4000,"<="&$H$3&"-"&$G$3,WITHDRAWALS!$C$5:$C$4000,$A30,WITHDRAWALS!$D$5:$D$4000,"=FOB MILL",WITHDRAWALS!$E$5:$E$4000,H$6)) ->  | I30: =IF($A30="","",(SUMIFS(BOOKINGS!$E$5:$E$31,BOOKINGS!$A$5:$A$31,">=1-"&$G$3,BOOKINGS!$A$5:$A$31,"<="&$H$3&"-"&$G$3,BOOKINGS!$B$5:$B$31,$A30,BOOKINGS!$C$5:$C$31,"=FOB MILL",BOOKINGS!$D$5:$D$31,I$6))-SUMIFS(WITHDRAWALS!$F$5:$F$4000,WITHDRAWALS!$B$5:$B$4000,">=1-"&$G$3,WITHDRAWALS!$B$5:$B$4000,"<="&$H$3&"-"&$G$3,WITHDRAWALS!$C$5:$C$4000,$A30,WITHDRAWALS!$D$5:$D$4000,"=FOB MILL",WITHDRAWALS!$E$5:$E$4000,I$6)) ->  | J30: =IF($A30="","",(SUMIFS(BOOKINGS!$E$5:$E$31,BOOKINGS!$A$5:$A$31,">=1-"&$G$3,BOOKINGS!$A$5:$A$31,"<="&$H$3&"-"&$G$3,BOOKINGS!$B$5:$B$31,$A30,BOOKINGS!$C$5:$C$31,"=FOB MILL",BOOKINGS!$D$5:$D$31,J$6))-SUMIFS(WITHDRAWALS!$F$5:$F$4000,WITHDRAWALS!$B$5:$B$4000,">=1-"&$G$3,WITHDRAWALS!$B$5:$B$4000,"<="&$H$3&"-"&$G$3,WITHDRAWALS!$C$5:$C$4000,$A30,WITHDRAWALS!$D$5:$D$4000,"=FOB MILL",WITHDRAWALS!$E$5:$E$4000,J$6)) ->  | K30: =IF($A30="","",(SUMIFS(BOOKINGS!$E$5:$E$31,BOOKINGS!$A$5:$A$31,">=1-"&$G$3,BOOKINGS!$A$5:$A$31,"<="&$H$3&"-"&$G$3,BOOKINGS!$B$5:$B$31,$A30,BOOKINGS!$C$5:$C$31,"=FOB MILL",BOOKINGS!$D$5:$D$31,K$6))-SUMIFS(WITHDRAWALS!$F$5:$F$4000,WITHDRAWALS!$B$5:$B$4000,">=1-"&$G$3,WITHDRAWALS!$B$5:$B$4000,"<="&$H$3&"-"&$G$3,WITHDRAWALS!$C$5:$C$4000,$A30,WITHDRAWALS!$D$5:$D$4000,"=FOB MILL",WITHDRAWALS!$E$5:$E$4000,K$6)) ->  | L30: =IF($A30="","",(SUMIFS(BOOKINGS!$E$5:$E$31,BOOKINGS!$A$5:$A$31,">=1-"&$G$3,BOOKINGS!$A$5:$A$31,"<="&$H$3&"-"&$G$3,BOOKINGS!$B$5:$B$31,$A30,BOOKINGS!$C$5:$C$31,"=FOB MILL",BOOKINGS!$D$5:$D$31,L$6))-SUMIFS(WITHDRAWALS!$F$5:$F$4000,WITHDRAWALS!$B$5:$B$4000,">=1-"&$G$3,WITHDRAWALS!$B$5:$B$4000,"<="&$H$3&"-"&$G$3,WITHDRAWALS!$C$5:$C$4000,$A30,WITHDRAWALS!$D$5:$D$4000,"=FOB MILL",WITHDRAWALS!$E$5:$E$4000,L$6)) -> 
A31: =IFERROR(INDEX(WITHDRAWALS!$C$5:$C$4000,SMALL(IF(FREQUENCY(IF(ISNUMBER(SEARCH("??"&TEXT($G$4,"mmm")&"??"&"|"&"?*"&"FOB MILL"&"|?*",WITHDRAWALS!$L$5:$L$4000)), MATCH(WITHDRAWALS!$C$5:$C$4000,WITHDRAWALS!$C$5:$C$4000,0)),Ivec),Ivec),ROWS($A$7:A31))),"") ->  | B31: =IF($A31="","",(SUMIFS(BOOKINGS!$E$5:$E$31,BOOKINGS!$A$5:$A$31,">=1-"&$G$3,BOOKINGS!$A$5:$A$31,"<="&$H$3&"-"&$G$3,BOOKINGS!$B$5:$B$31,$A31,BOOKINGS!$C$5:$C$31,"=FOB MILL",BOOKINGS!$D$5:$D$31,B$6))-SUMIFS(WITHDRAWALS!$F$5:$F$4000,WITHDRAWALS!$B$5:$B$4000,">=1-"&$G$3,WITHDRAWALS!$B$5:$B$4000,"<="&$H$3&"-"&$G$3,WITHDRAWALS!$C$5:$C$4000,$A31,WITHDRAWALS!$D$5:$D$4000,"=FOB MILL",WITHDRAWALS!$E$5:$E$4000,B$6)) ->  | C31: =IF($A31="","",(SUMIFS(BOOKINGS!$E$5:$E$31,BOOKINGS!$A$5:$A$31,">=1-"&$G$3,BOOKINGS!$A$5:$A$31,"<="&$H$3&"-"&$G$3,BOOKINGS!$B$5:$B$31,$A31,BOOKINGS!$C$5:$C$31,"=FOB MILL",BOOKINGS!$D$5:$D$31,C$6))-SUMIFS(WITHDRAWALS!$F$5:$F$4000,WITHDRAWALS!$B$5:$B$4000,">=1-"&$G$3,WITHDRAWALS!$B$5:$B$4000,"<="&$H$3&"-"&$G$3,WITHDRAWALS!$C$5:$C$4000,$A31,WITHDRAWALS!$D$5:$D$4000,"=FOB MILL",WITHDRAWALS!$E$5:$E$4000,C$6)) ->  | D31: =IF($A31="","",(SUMIFS(BOOKINGS!$E$5:$E$31,BOOKINGS!$A$5:$A$31,">=1-"&$G$3,BOOKINGS!$A$5:$A$31,"<="&$H$3&"-"&$G$3,BOOKINGS!$B$5:$B$31,$A31,BOOKINGS!$C$5:$C$31,"=FOB MILL",BOOKINGS!$D$5:$D$31,D$6))-SUMIFS(WITHDRAWALS!$F$5:$F$4000,WITHDRAWALS!$B$5:$B$4000,">=1-"&$G$3,WITHDRAWALS!$B$5:$B$4000,"<="&$H$3&"-"&$G$3,WITHDRAWALS!$C$5:$C$4000,$A31,WITHDRAWALS!$D$5:$D$4000,"=FOB MILL",WITHDRAWALS!$E$5:$E$4000,D$6)) ->  | E31: =IF($A31="","",(SUMIFS(BOOKINGS!$E$5:$E$31,BOOKINGS!$A$5:$A$31,">=1-"&$G$3,BOOKINGS!$A$5:$A$31,"<="&$H$3&"-"&$G$3,BOOKINGS!$B$5:$B$31,$A31,BOOKINGS!$C$5:$C$31,"=FOB MILL",BOOKINGS!$D$5:$D$31,E$6))-SUMIFS(WITHDRAWALS!$F$5:$F$4000,WITHDRAWALS!$B$5:$B$4000,">=1-"&$G$3,WITHDRAWALS!$B$5:$B$4000,"<="&$H$3&"-"&$G$3,WITHDRAWALS!$C$5:$C$4000,$A31,WITHDRAWALS!$D$5:$D$4000,"=FOB MILL",WITHDRAWALS!$E$5:$E$4000,E$6)) ->  | F31: =IF($A31="","",(SUMIFS(BOOKINGS!$E$5:$E$31,BOOKINGS!$A$5:$A$31,">=1-"&$G$3,BOOKINGS!$A$5:$A$31,"<="&$H$3&"-"&$G$3,BOOKINGS!$B$5:$B$31,$A31,BOOKINGS!$C$5:$C$31,"=FOB MILL",BOOKINGS!$D$5:$D$31,F$6))-SUMIFS(WITHDRAWALS!$F$5:$F$4000,WITHDRAWALS!$B$5:$B$4000,">=1-"&$G$3,WITHDRAWALS!$B$5:$B$4000,"<="&$H$3&"-"&$G$3,WITHDRAWALS!$C$5:$C$4000,$A31,WITHDRAWALS!$D$5:$D$4000,"=FOB MILL",WITHDRAWALS!$E$5:$E$4000,F$6)) ->  | G31: =IF($A31="","",(SUMIFS(BOOKINGS!$E$5:$E$31,BOOKINGS!$A$5:$A$31,">=1-"&$G$3,BOOKINGS!$A$5:$A$31,"<="&$H$3&"-"&$G$3,BOOKINGS!$B$5:$B$31,$A31,BOOKINGS!$C$5:$C$31,"=FOB MILL",BOOKINGS!$D$5:$D$31,G$6))-SUMIFS(WITHDRAWALS!$F$5:$F$4000,WITHDRAWALS!$B$5:$B$4000,">=1-"&$G$3,WITHDRAWALS!$B$5:$B$4000,"<="&$H$3&"-"&$G$3,WITHDRAWALS!$C$5:$C$4000,$A31,WITHDRAWALS!$D$5:$D$4000,"=FOB MILL",WITHDRAWALS!$E$5:$E$4000,G$6)) ->  | H31: =IF($A31="","",(SUMIFS(BOOKINGS!$E$5:$E$31,BOOKINGS!$A$5:$A$31,">=1-"&$G$3,BOOKINGS!$A$5:$A$31,"<="&$H$3&"-"&$G$3,BOOKINGS!$B$5:$B$31,$A31,BOOKINGS!$C$5:$C$31,"=FOB MILL",BOOKINGS!$D$5:$D$31,H$6))-SUMIFS(WITHDRAWALS!$F$5:$F$4000,WITHDRAWALS!$B$5:$B$4000,">=1-"&$G$3,WITHDRAWALS!$B$5:$B$4000,"<="&$H$3&"-"&$G$3,WITHDRAWALS!$C$5:$C$4000,$A31,WITHDRAWALS!$D$5:$D$4000,"=FOB MILL",WITHDRAWALS!$E$5:$E$4000,H$6)) ->  | I31: =IF($A31="","",(SUMIFS(BOOKINGS!$E$5:$E$31,BOOKINGS!$A$5:$A$31,">=1-"&$G$3,BOOKINGS!$A$5:$A$31,"<="&$H$3&"-"&$G$3,BOOKINGS!$B$5:$B$31,$A31,BOOKINGS!$C$5:$C$31,"=FOB MILL",BOOKINGS!$D$5:$D$31,I$6))-SUMIFS(WITHDRAWALS!$F$5:$F$4000,WITHDRAWALS!$B$5:$B$4000,">=1-"&$G$3,WITHDRAWALS!$B$5:$B$4000,"<="&$H$3&"-"&$G$3,WITHDRAWALS!$C$5:$C$4000,$A31,WITHDRAWALS!$D$5:$D$4000,"=FOB MILL",WITHDRAWALS!$E$5:$E$4000,I$6)) ->  | J31: =IF($A31="","",(SUMIFS(BOOKINGS!$E$5:$E$31,BOOKINGS!$A$5:$A$31,">=1-"&$G$3,BOOKINGS!$A$5:$A$31,"<="&$H$3&"-"&$G$3,BOOKINGS!$B$5:$B$31,$A31,BOOKINGS!$C$5:$C$31,"=FOB MILL",BOOKINGS!$D$5:$D$31,J$6))-SUMIFS(WITHDRAWALS!$F$5:$F$4000,WITHDRAWALS!$B$5:$B$4000,">=1-"&$G$3,WITHDRAWALS!$B$5:$B$4000,"<="&$H$3&"-"&$G$3,WITHDRAWALS!$C$5:$C$4000,$A31,WITHDRAWALS!$D$5:$D$4000,"=FOB MILL",WITHDRAWALS!$E$5:$E$4000,J$6)) ->  | K31: =IF($A31="","",(SUMIFS(BOOKINGS!$E$5:$E$31,BOOKINGS!$A$5:$A$31,">=1-"&$G$3,BOOKINGS!$A$5:$A$31,"<="&$H$3&"-"&$G$3,BOOKINGS!$B$5:$B$31,$A31,BOOKINGS!$C$5:$C$31,"=FOB MILL",BOOKINGS!$D$5:$D$31,K$6))-SUMIFS(WITHDRAWALS!$F$5:$F$4000,WITHDRAWALS!$B$5:$B$4000,">=1-"&$G$3,WITHDRAWALS!$B$5:$B$4000,"<="&$H$3&"-"&$G$3,WITHDRAWALS!$C$5:$C$4000,$A31,WITHDRAWALS!$D$5:$D$4000,"=FOB MILL",WITHDRAWALS!$E$5:$E$4000,K$6)) ->  | L31: =IF($A31="","",(SUMIFS(BOOKINGS!$E$5:$E$31,BOOKINGS!$A$5:$A$31,">=1-"&$G$3,BOOKINGS!$A$5:$A$31,"<="&$H$3&"-"&$G$3,BOOKINGS!$B$5:$B$31,$A31,BOOKINGS!$C$5:$C$31,"=FOB MILL",BOOKINGS!$D$5:$D$31,L$6))-SUMIFS(WITHDRAWALS!$F$5:$F$4000,WITHDRAWALS!$B$5:$B$4000,">=1-"&$G$3,WITHDRAWALS!$B$5:$B$4000,"<="&$H$3&"-"&$G$3,WITHDRAWALS!$C$5:$C$4000,$A31,WITHDRAWALS!$D$5:$D$4000,"=FOB MILL",WITHDRAWALS!$E$5:$E$4000,L$6)) -> 
A32: =IFERROR(INDEX(WITHDRAWALS!$C$5:$C$4000,SMALL(IF(FREQUENCY(IF(ISNUMBER(SEARCH("??"&TEXT($G$4,"mmm")&"??"&"|"&"?*"&"FOB MILL"&"|?*",WITHDRAWALS!$L$5:$L$4000)), MATCH(WITHDRAWALS!$C$5:$C$4000,WITHDRAWALS!$C$5:$C$4000,0)),Ivec),Ivec),ROWS($A$7:A32))),"") ->  | B32: =IF($A32="","",(SUMIFS(BOOKINGS!$E$5:$E$31,BOOKINGS!$A$5:$A$31,">=1-"&$G$3,BOOKINGS!$A$5:$A$31,"<="&$H$3&"-"&$G$3,BOOKINGS!$B$5:$B$31,$A32,BOOKINGS!$C$5:$C$31,"=FOB MILL",BOOKINGS!$D$5:$D$31,B$6))-SUMIFS(WITHDRAWALS!$F$5:$F$4000,WITHDRAWALS!$B$5:$B$4000,">=1-"&$G$3,WITHDRAWALS!$B$5:$B$4000,"<="&$H$3&"-"&$G$3,WITHDRAWALS!$C$5:$C$4000,$A32,WITHDRAWALS!$D$5:$D$4000,"=FOB MILL",WITHDRAWALS!$E$5:$E$4000,B$6)) ->  | C32: =IF($A32="","",(SUMIFS(BOOKINGS!$E$5:$E$31,BOOKINGS!$A$5:$A$31,">=1-"&$G$3,BOOKINGS!$A$5:$A$31,"<="&$H$3&"-"&$G$3,BOOKINGS!$B$5:$B$31,$A32,BOOKINGS!$C$5:$C$31,"=FOB MILL",BOOKINGS!$D$5:$D$31,C$6))-SUMIFS(WITHDRAWALS!$F$5:$F$4000,WITHDRAWALS!$B$5:$B$4000,">=1-"&$G$3,WITHDRAWALS!$B$5:$B$4000,"<="&$H$3&"-"&$G$3,WITHDRAWALS!$C$5:$C$4000,$A32,WITHDRAWALS!$D$5:$D$4000,"=FOB MILL",WITHDRAWALS!$E$5:$E$4000,C$6)) ->  | D32: =IF($A32="","",(SUMIFS(BOOKINGS!$E$5:$E$31,BOOKINGS!$A$5:$A$31,">=1-"&$G$3,BOOKINGS!$A$5:$A$31,"<="&$H$3&"-"&$G$3,BOOKINGS!$B$5:$B$31,$A32,BOOKINGS!$C$5:$C$31,"=FOB MILL",BOOKINGS!$D$5:$D$31,D$6))-SUMIFS(WITHDRAWALS!$F$5:$F$4000,WITHDRAWALS!$B$5:$B$4000,">=1-"&$G$3,WITHDRAWALS!$B$5:$B$4000,"<="&$H$3&"-"&$G$3,WITHDRAWALS!$C$5:$C$4000,$A32,WITHDRAWALS!$D$5:$D$4000,"=FOB MILL",WITHDRAWALS!$E$5:$E$4000,D$6)) ->  | E32: =IF($A32="","",(SUMIFS(BOOKINGS!$E$5:$E$31,BOOKINGS!$A$5:$A$31,">=1-"&$G$3,BOOKINGS!$A$5:$A$31,"<="&$H$3&"-"&$G$3,BOOKINGS!$B$5:$B$31,$A32,BOOKINGS!$C$5:$C$31,"=FOB MILL",BOOKINGS!$D$5:$D$31,E$6))-SUMIFS(WITHDRAWALS!$F$5:$F$4000,WITHDRAWALS!$B$5:$B$4000,">=1-"&$G$3,WITHDRAWALS!$B$5:$B$4000,"<="&$H$3&"-"&$G$3,WITHDRAWALS!$C$5:$C$4000,$A32,WITHDRAWALS!$D$5:$D$4000,"=FOB MILL",WITHDRAWALS!$E$5:$E$4000,E$6)) ->  | F32: =IF($A32="","",(SUMIFS(BOOKINGS!$E$5:$E$31,BOOKINGS!$A$5:$A$31,">=1-"&$G$3,BOOKINGS!$A$5:$A$31,"<="&$H$3&"-"&$G$3,BOOKINGS!$B$5:$B$31,$A32,BOOKINGS!$C$5:$C$31,"=FOB MILL",BOOKINGS!$D$5:$D$31,F$6))-SUMIFS(WITHDRAWALS!$F$5:$F$4000,WITHDRAWALS!$B$5:$B$4000,">=1-"&$G$3,WITHDRAWALS!$B$5:$B$4000,"<="&$H$3&"-"&$G$3,WITHDRAWALS!$C$5:$C$4000,$A32,WITHDRAWALS!$D$5:$D$4000,"=FOB MILL",WITHDRAWALS!$E$5:$E$4000,F$6)) ->  | G32: =IF($A32="","",(SUMIFS(BOOKINGS!$E$5:$E$31,BOOKINGS!$A$5:$A$31,">=1-"&$G$3,BOOKINGS!$A$5:$A$31,"<="&$H$3&"-"&$G$3,BOOKINGS!$B$5:$B$31,$A32,BOOKINGS!$C$5:$C$31,"=FOB MILL",BOOKINGS!$D$5:$D$31,G$6))-SUMIFS(WITHDRAWALS!$F$5:$F$4000,WITHDRAWALS!$B$5:$B$4000,">=1-"&$G$3,WITHDRAWALS!$B$5:$B$4000,"<="&$H$3&"-"&$G$3,WITHDRAWALS!$C$5:$C$4000,$A32,WITHDRAWALS!$D$5:$D$4000,"=FOB MILL",WITHDRAWALS!$E$5:$E$4000,G$6)) ->  | H32: =IF($A32="","",(SUMIFS(BOOKINGS!$E$5:$E$31,BOOKINGS!$A$5:$A$31,">=1-"&$G$3,BOOKINGS!$A$5:$A$31,"<="&$H$3&"-"&$G$3,BOOKINGS!$B$5:$B$31,$A32,BOOKINGS!$C$5:$C$31,"=FOB MILL",BOOKINGS!$D$5:$D$31,H$6))-SUMIFS(WITHDRAWALS!$F$5:$F$4000,WITHDRAWALS!$B$5:$B$4000,">=1-"&$G$3,WITHDRAWALS!$B$5:$B$4000,"<="&$H$3&"-"&$G$3,WITHDRAWALS!$C$5:$C$4000,$A32,WITHDRAWALS!$D$5:$D$4000,"=FOB MILL",WITHDRAWALS!$E$5:$E$4000,H$6)) ->  | I32: =IF($A32="","",(SUMIFS(BOOKINGS!$E$5:$E$31,BOOKINGS!$A$5:$A$31,">=1-"&$G$3,BOOKINGS!$A$5:$A$31,"<="&$H$3&"-"&$G$3,BOOKINGS!$B$5:$B$31,$A32,BOOKINGS!$C$5:$C$31,"=FOB MILL",BOOKINGS!$D$5:$D$31,I$6))-SUMIFS(WITHDRAWALS!$F$5:$F$4000,WITHDRAWALS!$B$5:$B$4000,">=1-"&$G$3,WITHDRAWALS!$B$5:$B$4000,"<="&$H$3&"-"&$G$3,WITHDRAWALS!$C$5:$C$4000,$A32,WITHDRAWALS!$D$5:$D$4000,"=FOB MILL",WITHDRAWALS!$E$5:$E$4000,I$6)) ->  | J32: =IF($A32="","",(SUMIFS(BOOKINGS!$E$5:$E$31,BOOKINGS!$A$5:$A$31,">=1-"&$G$3,BOOKINGS!$A$5:$A$31,"<="&$H$3&"-"&$G$3,BOOKINGS!$B$5:$B$31,$A32,BOOKINGS!$C$5:$C$31,"=FOB MILL",BOOKINGS!$D$5:$D$31,J$6))-SUMIFS(WITHDRAWALS!$F$5:$F$4000,WITHDRAWALS!$B$5:$B$4000,">=1-"&$G$3,WITHDRAWALS!$B$5:$B$4000,"<="&$H$3&"-"&$G$3,WITHDRAWALS!$C$5:$C$4000,$A32,WITHDRAWALS!$D$5:$D$4000,"=FOB MILL",WITHDRAWALS!$E$5:$E$4000,J$6)) ->  | K32: =IF($A32="","",(SUMIFS(BOOKINGS!$E$5:$E$31,BOOKINGS!$A$5:$A$31,">=1-"&$G$3,BOOKINGS!$A$5:$A$31,"<="&$H$3&"-"&$G$3,BOOKINGS!$B$5:$B$31,$A32,BOOKINGS!$C$5:$C$31,"=FOB MILL",BOOKINGS!$D$5:$D$31,K$6))-SUMIFS(WITHDRAWALS!$F$5:$F$4000,WITHDRAWALS!$B$5:$B$4000,">=1-"&$G$3,WITHDRAWALS!$B$5:$B$4000,"<="&$H$3&"-"&$G$3,WITHDRAWALS!$C$5:$C$4000,$A32,WITHDRAWALS!$D$5:$D$4000,"=FOB MILL",WITHDRAWALS!$E$5:$E$4000,K$6)) ->  | L32: =IF($A32="","",(SUMIFS(BOOKINGS!$E$5:$E$31,BOOKINGS!$A$5:$A$31,">=1-"&$G$3,BOOKINGS!$A$5:$A$31,"<="&$H$3&"-"&$G$3,BOOKINGS!$B$5:$B$31,$A32,BOOKINGS!$C$5:$C$31,"=FOB MILL",BOOKINGS!$D$5:$D$31,L$6))-SUMIFS(WITHDRAWALS!$F$5:$F$4000,WITHDRAWALS!$B$5:$B$4000,">=1-"&$G$3,WITHDRAWALS!$B$5:$B$4000,"<="&$H$3&"-"&$G$3,WITHDRAWALS!$C$5:$C$4000,$A32,WITHDRAWALS!$D$5:$D$4000,"=FOB MILL",WITHDRAWALS!$E$5:$E$4000,L$6)) -> 
A33: =IFERROR(INDEX(WITHDRAWALS!$C$5:$C$4000,SMALL(IF(FREQUENCY(IF(ISNUMBER(SEARCH("??"&TEXT($G$4,"mmm")&"??"&"|"&"?*"&"FOB MILL"&"|?*",WITHDRAWALS!$L$5:$L$4000)), MATCH(WITHDRAWALS!$C$5:$C$4000,WITHDRAWALS!$C$5:$C$4000,0)),Ivec),Ivec),ROWS($A$7:A33))),"") ->  | B33: =IF($A33="","",(SUMIFS(BOOKINGS!$E$5:$E$31,BOOKINGS!$A$5:$A$31,">=1-"&$G$3,BOOKINGS!$A$5:$A$31,"<="&$H$3&"-"&$G$3,BOOKINGS!$B$5:$B$31,$A33,BOOKINGS!$C$5:$C$31,"=FOB MILL",BOOKINGS!$D$5:$D$31,B$6))-SUMIFS(WITHDRAWALS!$F$5:$F$4000,WITHDRAWALS!$B$5:$B$4000,">=1-"&$G$3,WITHDRAWALS!$B$5:$B$4000,"<="&$H$3&"-"&$G$3,WITHDRAWALS!$C$5:$C$4000,$A33,WITHDRAWALS!$D$5:$D$4000,"=FOB MILL",WITHDRAWALS!$E$5:$E$4000,B$6)) ->  | C33: =IF($A33="","",(SUMIFS(BOOKINGS!$E$5:$E$31,BOOKINGS!$A$5:$A$31,">=1-"&$G$3,BOOKINGS!$A$5:$A$31,"<="&$H$3&"-"&$G$3,BOOKINGS!$B$5:$B$31,$A33,BOOKINGS!$C$5:$C$31,"=FOB MILL",BOOKINGS!$D$5:$D$31,C$6))-SUMIFS(WITHDRAWALS!$F$5:$F$4000,WITHDRAWALS!$B$5:$B$4000,">=1-"&$G$3,WITHDRAWALS!$B$5:$B$4000,"<="&$H$3&"-"&$G$3,WITHDRAWALS!$C$5:$C$4000,$A33,WITHDRAWALS!$D$5:$D$4000,"=FOB MILL",WITHDRAWALS!$E$5:$E$4000,C$6)) ->  | D33: =IF($A33="","",(SUMIFS(BOOKINGS!$E$5:$E$31,BOOKINGS!$A$5:$A$31,">=1-"&$G$3,BOOKINGS!$A$5:$A$31,"<="&$H$3&"-"&$G$3,BOOKINGS!$B$5:$B$31,$A33,BOOKINGS!$C$5:$C$31,"=FOB MILL",BOOKINGS!$D$5:$D$31,D$6))-SUMIFS(WITHDRAWALS!$F$5:$F$4000,WITHDRAWALS!$B$5:$B$4000,">=1-"&$G$3,WITHDRAWALS!$B$5:$B$4000,"<="&$H$3&"-"&$G$3,WITHDRAWALS!$C$5:$C$4000,$A33,WITHDRAWALS!$D$5:$D$4000,"=FOB MILL",WITHDRAWALS!$E$5:$E$4000,D$6)) ->  | E33: =IF($A33="","",(SUMIFS(BOOKINGS!$E$5:$E$31,BOOKINGS!$A$5:$A$31,">=1-"&$G$3,BOOKINGS!$A$5:$A$31,"<="&$H$3&"-"&$G$3,BOOKINGS!$B$5:$B$31,$A33,BOOKINGS!$C$5:$C$31,"=FOB MILL",BOOKINGS!$D$5:$D$31,E$6))-SUMIFS(WITHDRAWALS!$F$5:$F$4000,WITHDRAWALS!$B$5:$B$4000,">=1-"&$G$3,WITHDRAWALS!$B$5:$B$4000,"<="&$H$3&"-"&$G$3,WITHDRAWALS!$C$5:$C$4000,$A33,WITHDRAWALS!$D$5:$D$4000,"=FOB MILL",WITHDRAWALS!$E$5:$E$4000,E$6)) ->  | F33: =IF($A33="","",(SUMIFS(BOOKINGS!$E$5:$E$31,BOOKINGS!$A$5:$A$31,">=1-"&$G$3,BOOKINGS!$A$5:$A$31,"<="&$H$3&"-"&$G$3,BOOKINGS!$B$5:$B$31,$A33,BOOKINGS!$C$5:$C$31,"=FOB MILL",BOOKINGS!$D$5:$D$31,F$6))-SUMIFS(WITHDRAWALS!$F$5:$F$4000,WITHDRAWALS!$B$5:$B$4000,">=1-"&$G$3,WITHDRAWALS!$B$5:$B$4000,"<="&$H$3&"-"&$G$3,WITHDRAWALS!$C$5:$C$4000,$A33,WITHDRAWALS!$D$5:$D$4000,"=FOB MILL",WITHDRAWALS!$E$5:$E$4000,F$6)) ->  | G33: =IF($A33="","",(SUMIFS(BOOKINGS!$E$5:$E$31,BOOKINGS!$A$5:$A$31,">=1-"&$G$3,BOOKINGS!$A$5:$A$31,"<="&$H$3&"-"&$G$3,BOOKINGS!$B$5:$B$31,$A33,BOOKINGS!$C$5:$C$31,"=FOB MILL",BOOKINGS!$D$5:$D$31,G$6))-SUMIFS(WITHDRAWALS!$F$5:$F$4000,WITHDRAWALS!$B$5:$B$4000,">=1-"&$G$3,WITHDRAWALS!$B$5:$B$4000,"<="&$H$3&"-"&$G$3,WITHDRAWALS!$C$5:$C$4000,$A33,WITHDRAWALS!$D$5:$D$4000,"=FOB MILL",WITHDRAWALS!$E$5:$E$4000,G$6)) ->  | H33: =IF($A33="","",(SUMIFS(BOOKINGS!$E$5:$E$31,BOOKINGS!$A$5:$A$31,">=1-"&$G$3,BOOKINGS!$A$5:$A$31,"<="&$H$3&"-"&$G$3,BOOKINGS!$B$5:$B$31,$A33,BOOKINGS!$C$5:$C$31,"=FOB MILL",BOOKINGS!$D$5:$D$31,H$6))-SUMIFS(WITHDRAWALS!$F$5:$F$4000,WITHDRAWALS!$B$5:$B$4000,">=1-"&$G$3,WITHDRAWALS!$B$5:$B$4000,"<="&$H$3&"-"&$G$3,WITHDRAWALS!$C$5:$C$4000,$A33,WITHDRAWALS!$D$5:$D$4000,"=FOB MILL",WITHDRAWALS!$E$5:$E$4000,H$6)) ->  | I33: =IF($A33="","",(SUMIFS(BOOKINGS!$E$5:$E$31,BOOKINGS!$A$5:$A$31,">=1-"&$G$3,BOOKINGS!$A$5:$A$31,"<="&$H$3&"-"&$G$3,BOOKINGS!$B$5:$B$31,$A33,BOOKINGS!$C$5:$C$31,"=FOB MILL",BOOKINGS!$D$5:$D$31,I$6))-SUMIFS(WITHDRAWALS!$F$5:$F$4000,WITHDRAWALS!$B$5:$B$4000,">=1-"&$G$3,WITHDRAWALS!$B$5:$B$4000,"<="&$H$3&"-"&$G$3,WITHDRAWALS!$C$5:$C$4000,$A33,WITHDRAWALS!$D$5:$D$4000,"=FOB MILL",WITHDRAWALS!$E$5:$E$4000,I$6)) ->  | J33: =IF($A33="","",(SUMIFS(BOOKINGS!$E$5:$E$31,BOOKINGS!$A$5:$A$31,">=1-"&$G$3,BOOKINGS!$A$5:$A$31,"<="&$H$3&"-"&$G$3,BOOKINGS!$B$5:$B$31,$A33,BOOKINGS!$C$5:$C$31,"=FOB MILL",BOOKINGS!$D$5:$D$31,J$6))-SUMIFS(WITHDRAWALS!$F$5:$F$4000,WITHDRAWALS!$B$5:$B$4000,">=1-"&$G$3,WITHDRAWALS!$B$5:$B$4000,"<="&$H$3&"-"&$G$3,WITHDRAWALS!$C$5:$C$4000,$A33,WITHDRAWALS!$D$5:$D$4000,"=FOB MILL",WITHDRAWALS!$E$5:$E$4000,J$6)) ->  | K33: =IF($A33="","",(SUMIFS(BOOKINGS!$E$5:$E$31,BOOKINGS!$A$5:$A$31,">=1-"&$G$3,BOOKINGS!$A$5:$A$31,"<="&$H$3&"-"&$G$3,BOOKINGS!$B$5:$B$31,$A33,BOOKINGS!$C$5:$C$31,"=FOB MILL",BOOKINGS!$D$5:$D$31,K$6))-SUMIFS(WITHDRAWALS!$F$5:$F$4000,WITHDRAWALS!$B$5:$B$4000,">=1-"&$G$3,WITHDRAWALS!$B$5:$B$4000,"<="&$H$3&"-"&$G$3,WITHDRAWALS!$C$5:$C$4000,$A33,WITHDRAWALS!$D$5:$D$4000,"=FOB MILL",WITHDRAWALS!$E$5:$E$4000,K$6)) ->  | L33: =IF($A33="","",(SUMIFS(BOOKINGS!$E$5:$E$31,BOOKINGS!$A$5:$A$31,">=1-"&$G$3,BOOKINGS!$A$5:$A$31,"<="&$H$3&"-"&$G$3,BOOKINGS!$B$5:$B$31,$A33,BOOKINGS!$C$5:$C$31,"=FOB MILL",BOOKINGS!$D$5:$D$31,L$6))-SUMIFS(WITHDRAWALS!$F$5:$F$4000,WITHDRAWALS!$B$5:$B$4000,">=1-"&$G$3,WITHDRAWALS!$B$5:$B$4000,"<="&$H$3&"-"&$G$3,WITHDRAWALS!$C$5:$C$4000,$A33,WITHDRAWALS!$D$5:$D$4000,"=FOB MILL",WITHDRAWALS!$E$5:$E$4000,L$6)) -> 
A34: =IFERROR(INDEX(WITHDRAWALS!$C$5:$C$4000,SMALL(IF(FREQUENCY(IF(ISNUMBER(SEARCH("??"&TEXT($G$4,"mmm")&"??"&"|"&"?*"&"FOB MILL"&"|?*",WITHDRAWALS!$L$5:$L$4000)), MATCH(WITHDRAWALS!$C$5:$C$4000,WITHDRAWALS!$C$5:$C$4000,0)),Ivec),Ivec),ROWS($A$7:A34))),"") ->  | B34: =IF($A34="","",(SUMIFS(BOOKINGS!$E$5:$E$31,BOOKINGS!$A$5:$A$31,">=1-"&$G$3,BOOKINGS!$A$5:$A$31,"<="&$H$3&"-"&$G$3,BOOKINGS!$B$5:$B$31,$A34,BOOKINGS!$C$5:$C$31,"=FOB MILL",BOOKINGS!$D$5:$D$31,B$6))-SUMIFS(WITHDRAWALS!$F$5:$F$4000,WITHDRAWALS!$B$5:$B$4000,">=1-"&$G$3,WITHDRAWALS!$B$5:$B$4000,"<="&$H$3&"-"&$G$3,WITHDRAWALS!$C$5:$C$4000,$A34,WITHDRAWALS!$D$5:$D$4000,"=FOB MILL",WITHDRAWALS!$E$5:$E$4000,B$6)) ->  | C34: =IF($A34="","",(SUMIFS(BOOKINGS!$E$5:$E$31,BOOKINGS!$A$5:$A$31,">=1-"&$G$3,BOOKINGS!$A$5:$A$31,"<="&$H$3&"-"&$G$3,BOOKINGS!$B$5:$B$31,$A34,BOOKINGS!$C$5:$C$31,"=FOB MILL",BOOKINGS!$D$5:$D$31,C$6))-SUMIFS(WITHDRAWALS!$F$5:$F$4000,WITHDRAWALS!$B$5:$B$4000,">=1-"&$G$3,WITHDRAWALS!$B$5:$B$4000,"<="&$H$3&"-"&$G$3,WITHDRAWALS!$C$5:$C$4000,$A34,WITHDRAWALS!$D$5:$D$4000,"=FOB MILL",WITHDRAWALS!$E$5:$E$4000,C$6)) ->  | D34: =IF($A34="","",(SUMIFS(BOOKINGS!$E$5:$E$31,BOOKINGS!$A$5:$A$31,">=1-"&$G$3,BOOKINGS!$A$5:$A$31,"<="&$H$3&"-"&$G$3,BOOKINGS!$B$5:$B$31,$A34,BOOKINGS!$C$5:$C$31,"=FOB MILL",BOOKINGS!$D$5:$D$31,D$6))-SUMIFS(WITHDRAWALS!$F$5:$F$4000,WITHDRAWALS!$B$5:$B$4000,">=1-"&$G$3,WITHDRAWALS!$B$5:$B$4000,"<="&$H$3&"-"&$G$3,WITHDRAWALS!$C$5:$C$4000,$A34,WITHDRAWALS!$D$5:$D$4000,"=FOB MILL",WITHDRAWALS!$E$5:$E$4000,D$6)) ->  | E34: =IF($A34="","",(SUMIFS(BOOKINGS!$E$5:$E$31,BOOKINGS!$A$5:$A$31,">=1-"&$G$3,BOOKINGS!$A$5:$A$31,"<="&$H$3&"-"&$G$3,BOOKINGS!$B$5:$B$31,$A34,BOOKINGS!$C$5:$C$31,"=FOB MILL",BOOKINGS!$D$5:$D$31,E$6))-SUMIFS(WITHDRAWALS!$F$5:$F$4000,WITHDRAWALS!$B$5:$B$4000,">=1-"&$G$3,WITHDRAWALS!$B$5:$B$4000,"<="&$H$3&"-"&$G$3,WITHDRAWALS!$C$5:$C$4000,$A34,WITHDRAWALS!$D$5:$D$4000,"=FOB MILL",WITHDRAWALS!$E$5:$E$4000,E$6)) ->  | F34: =IF($A34="","",(SUMIFS(BOOKINGS!$E$5:$E$31,BOOKINGS!$A$5:$A$31,">=1-"&$G$3,BOOKINGS!$A$5:$A$31,"<="&$H$3&"-"&$G$3,BOOKINGS!$B$5:$B$31,$A34,BOOKINGS!$C$5:$C$31,"=FOB MILL",BOOKINGS!$D$5:$D$31,F$6))-SUMIFS(WITHDRAWALS!$F$5:$F$4000,WITHDRAWALS!$B$5:$B$4000,">=1-"&$G$3,WITHDRAWALS!$B$5:$B$4000,"<="&$H$3&"-"&$G$3,WITHDRAWALS!$C$5:$C$4000,$A34,WITHDRAWALS!$D$5:$D$4000,"=FOB MILL",WITHDRAWALS!$E$5:$E$4000,F$6)) ->  | G34: =IF($A34="","",(SUMIFS(BOOKINGS!$E$5:$E$31,BOOKINGS!$A$5:$A$31,">=1-"&$G$3,BOOKINGS!$A$5:$A$31,"<="&$H$3&"-"&$G$3,BOOKINGS!$B$5:$B$31,$A34,BOOKINGS!$C$5:$C$31,"=FOB MILL",BOOKINGS!$D$5:$D$31,G$6))-SUMIFS(WITHDRAWALS!$F$5:$F$4000,WITHDRAWALS!$B$5:$B$4000,">=1-"&$G$3,WITHDRAWALS!$B$5:$B$4000,"<="&$H$3&"-"&$G$3,WITHDRAWALS!$C$5:$C$4000,$A34,WITHDRAWALS!$D$5:$D$4000,"=FOB MILL",WITHDRAWALS!$E$5:$E$4000,G$6)) ->  | H34: =IF($A34="","",(SUMIFS(BOOKINGS!$E$5:$E$31,BOOKINGS!$A$5:$A$31,">=1-"&$G$3,BOOKINGS!$A$5:$A$31,"<="&$H$3&"-"&$G$3,BOOKINGS!$B$5:$B$31,$A34,BOOKINGS!$C$5:$C$31,"=FOB MILL",BOOKINGS!$D$5:$D$31,H$6))-SUMIFS(WITHDRAWALS!$F$5:$F$4000,WITHDRAWALS!$B$5:$B$4000,">=1-"&$G$3,WITHDRAWALS!$B$5:$B$4000,"<="&$H$3&"-"&$G$3,WITHDRAWALS!$C$5:$C$4000,$A34,WITHDRAWALS!$D$5:$D$4000,"=FOB MILL",WITHDRAWALS!$E$5:$E$4000,H$6)) ->  | I34: =IF($A34="","",(SUMIFS(BOOKINGS!$E$5:$E$31,BOOKINGS!$A$5:$A$31,">=1-"&$G$3,BOOKINGS!$A$5:$A$31,"<="&$H$3&"-"&$G$3,BOOKINGS!$B$5:$B$31,$A34,BOOKINGS!$C$5:$C$31,"=FOB MILL",BOOKINGS!$D$5:$D$31,I$6))-SUMIFS(WITHDRAWALS!$F$5:$F$4000,WITHDRAWALS!$B$5:$B$4000,">=1-"&$G$3,WITHDRAWALS!$B$5:$B$4000,"<="&$H$3&"-"&$G$3,WITHDRAWALS!$C$5:$C$4000,$A34,WITHDRAWALS!$D$5:$D$4000,"=FOB MILL",WITHDRAWALS!$E$5:$E$4000,I$6)) ->  | J34: =IF($A34="","",(SUMIFS(BOOKINGS!$E$5:$E$31,BOOKINGS!$A$5:$A$31,">=1-"&$G$3,BOOKINGS!$A$5:$A$31,"<="&$H$3&"-"&$G$3,BOOKINGS!$B$5:$B$31,$A34,BOOKINGS!$C$5:$C$31,"=FOB MILL",BOOKINGS!$D$5:$D$31,J$6))-SUMIFS(WITHDRAWALS!$F$5:$F$4000,WITHDRAWALS!$B$5:$B$4000,">=1-"&$G$3,WITHDRAWALS!$B$5:$B$4000,"<="&$H$3&"-"&$G$3,WITHDRAWALS!$C$5:$C$4000,$A34,WITHDRAWALS!$D$5:$D$4000,"=FOB MILL",WITHDRAWALS!$E$5:$E$4000,J$6)) ->  | K34: =IF($A34="","",(SUMIFS(BOOKINGS!$E$5:$E$31,BOOKINGS!$A$5:$A$31,">=1-"&$G$3,BOOKINGS!$A$5:$A$31,"<="&$H$3&"-"&$G$3,BOOKINGS!$B$5:$B$31,$A34,BOOKINGS!$C$5:$C$31,"=FOB MILL",BOOKINGS!$D$5:$D$31,K$6))-SUMIFS(WITHDRAWALS!$F$5:$F$4000,WITHDRAWALS!$B$5:$B$4000,">=1-"&$G$3,WITHDRAWALS!$B$5:$B$4000,"<="&$H$3&"-"&$G$3,WITHDRAWALS!$C$5:$C$4000,$A34,WITHDRAWALS!$D$5:$D$4000,"=FOB MILL",WITHDRAWALS!$E$5:$E$4000,K$6)) ->  | L34: =IF($A34="","",(SUMIFS(BOOKINGS!$E$5:$E$31,BOOKINGS!$A$5:$A$31,">=1-"&$G$3,BOOKINGS!$A$5:$A$31,"<="&$H$3&"-"&$G$3,BOOKINGS!$B$5:$B$31,$A34,BOOKINGS!$C$5:$C$31,"=FOB MILL",BOOKINGS!$D$5:$D$31,L$6))-SUMIFS(WITHDRAWALS!$F$5:$F$4000,WITHDRAWALS!$B$5:$B$4000,">=1-"&$G$3,WITHDRAWALS!$B$5:$B$4000,"<="&$H$3&"-"&$G$3,WITHDRAWALS!$C$5:$C$4000,$A34,WITHDRAWALS!$D$5:$D$4000,"=FOB MILL",WITHDRAWALS!$E$5:$E$4000,L$6)) -> 
A35: =IFERROR(INDEX(WITHDRAWALS!$C$5:$C$4000,SMALL(IF(FREQUENCY(IF(ISNUMBER(SEARCH("??"&TEXT($G$4,"mmm")&"??"&"|"&"?*"&"FOB MILL"&"|?*",WITHDRAWALS!$L$5:$L$4000)), MATCH(WITHDRAWALS!$C$5:$C$4000,WITHDRAWALS!$C$5:$C$4000,0)),Ivec),Ivec),ROWS($A$7:A35))),"") ->  | B35: =IF($A35="","",(SUMIFS(BOOKINGS!$E$5:$E$31,BOOKINGS!$A$5:$A$31,">=1-"&$G$3,BOOKINGS!$A$5:$A$31,"<="&$H$3&"-"&$G$3,BOOKINGS!$B$5:$B$31,$A35,BOOKINGS!$C$5:$C$31,"=FOB MILL",BOOKINGS!$D$5:$D$31,B$6))-SUMIFS(WITHDRAWALS!$F$5:$F$4000,WITHDRAWALS!$B$5:$B$4000,">=1-"&$G$3,WITHDRAWALS!$B$5:$B$4000,"<="&$H$3&"-"&$G$3,WITHDRAWALS!$C$5:$C$4000,$A35,WITHDRAWALS!$D$5:$D$4000,"=FOB MILL",WITHDRAWALS!$E$5:$E$4000,B$6)) ->  | C35: =IF($A35="","",(SUMIFS(BOOKINGS!$E$5:$E$31,BOOKINGS!$A$5:$A$31,">=1-"&$G$3,BOOKINGS!$A$5:$A$31,"<="&$H$3&"-"&$G$3,BOOKINGS!$B$5:$B$31,$A35,BOOKINGS!$C$5:$C$31,"=FOB MILL",BOOKINGS!$D$5:$D$31,C$6))-SUMIFS(WITHDRAWALS!$F$5:$F$4000,WITHDRAWALS!$B$5:$B$4000,">=1-"&$G$3,WITHDRAWALS!$B$5:$B$4000,"<="&$H$3&"-"&$G$3,WITHDRAWALS!$C$5:$C$4000,$A35,WITHDRAWALS!$D$5:$D$4000,"=FOB MILL",WITHDRAWALS!$E$5:$E$4000,C$6)) ->  | D35: =IF($A35="","",(SUMIFS(BOOKINGS!$E$5:$E$31,BOOKINGS!$A$5:$A$31,">=1-"&$G$3,BOOKINGS!$A$5:$A$31,"<="&$H$3&"-"&$G$3,BOOKINGS!$B$5:$B$31,$A35,BOOKINGS!$C$5:$C$31,"=FOB MILL",BOOKINGS!$D$5:$D$31,D$6))-SUMIFS(WITHDRAWALS!$F$5:$F$4000,WITHDRAWALS!$B$5:$B$4000,">=1-"&$G$3,WITHDRAWALS!$B$5:$B$4000,"<="&$H$3&"-"&$G$3,WITHDRAWALS!$C$5:$C$4000,$A35,WITHDRAWALS!$D$5:$D$4000,"=FOB MILL",WITHDRAWALS!$E$5:$E$4000,D$6)) ->  | E35: =IF($A35="","",(SUMIFS(BOOKINGS!$E$5:$E$31,BOOKINGS!$A$5:$A$31,">=1-"&$G$3,BOOKINGS!$A$5:$A$31,"<="&$H$3&"-"&$G$3,BOOKINGS!$B$5:$B$31,$A35,BOOKINGS!$C$5:$C$31,"=FOB MILL",BOOKINGS!$D$5:$D$31,E$6))-SUMIFS(WITHDRAWALS!$F$5:$F$4000,WITHDRAWALS!$B$5:$B$4000,">=1-"&$G$3,WITHDRAWALS!$B$5:$B$4000,"<="&$H$3&"-"&$G$3,WITHDRAWALS!$C$5:$C$4000,$A35,WITHDRAWALS!$D$5:$D$4000,"=FOB MILL",WITHDRAWALS!$E$5:$E$4000,E$6)) ->  | F35: =IF($A35="","",(SUMIFS(BOOKINGS!$E$5:$E$31,BOOKINGS!$A$5:$A$31,">=1-"&$G$3,BOOKINGS!$A$5:$A$31,"<="&$H$3&"-"&$G$3,BOOKINGS!$B$5:$B$31,$A35,BOOKINGS!$C$5:$C$31,"=FOB MILL",BOOKINGS!$D$5:$D$31,F$6))-SUMIFS(WITHDRAWALS!$F$5:$F$4000,WITHDRAWALS!$B$5:$B$4000,">=1-"&$G$3,WITHDRAWALS!$B$5:$B$4000,"<="&$H$3&"-"&$G$3,WITHDRAWALS!$C$5:$C$4000,$A35,WITHDRAWALS!$D$5:$D$4000,"=FOB MILL",WITHDRAWALS!$E$5:$E$4000,F$6)) ->  | G35: =IF($A35="","",(SUMIFS(BOOKINGS!$E$5:$E$31,BOOKINGS!$A$5:$A$31,">=1-"&$G$3,BOOKINGS!$A$5:$A$31,"<="&$H$3&"-"&$G$3,BOOKINGS!$B$5:$B$31,$A35,BOOKINGS!$C$5:$C$31,"=FOB MILL",BOOKINGS!$D$5:$D$31,G$6))-SUMIFS(WITHDRAWALS!$F$5:$F$4000,WITHDRAWALS!$B$5:$B$4000,">=1-"&$G$3,WITHDRAWALS!$B$5:$B$4000,"<="&$H$3&"-"&$G$3,WITHDRAWALS!$C$5:$C$4000,$A35,WITHDRAWALS!$D$5:$D$4000,"=FOB MILL",WITHDRAWALS!$E$5:$E$4000,G$6)) ->  | H35: =IF($A35="","",(SUMIFS(BOOKINGS!$E$5:$E$31,BOOKINGS!$A$5:$A$31,">=1-"&$G$3,BOOKINGS!$A$5:$A$31,"<="&$H$3&"-"&$G$3,BOOKINGS!$B$5:$B$31,$A35,BOOKINGS!$C$5:$C$31,"=FOB MILL",BOOKINGS!$D$5:$D$31,H$6))-SUMIFS(WITHDRAWALS!$F$5:$F$4000,WITHDRAWALS!$B$5:$B$4000,">=1-"&$G$3,WITHDRAWALS!$B$5:$B$4000,"<="&$H$3&"-"&$G$3,WITHDRAWALS!$C$5:$C$4000,$A35,WITHDRAWALS!$D$5:$D$4000,"=FOB MILL",WITHDRAWALS!$E$5:$E$4000,H$6)) ->  | I35: =IF($A35="","",(SUMIFS(BOOKINGS!$E$5:$E$31,BOOKINGS!$A$5:$A$31,">=1-"&$G$3,BOOKINGS!$A$5:$A$31,"<="&$H$3&"-"&$G$3,BOOKINGS!$B$5:$B$31,$A35,BOOKINGS!$C$5:$C$31,"=FOB MILL",BOOKINGS!$D$5:$D$31,I$6))-SUMIFS(WITHDRAWALS!$F$5:$F$4000,WITHDRAWALS!$B$5:$B$4000,">=1-"&$G$3,WITHDRAWALS!$B$5:$B$4000,"<="&$H$3&"-"&$G$3,WITHDRAWALS!$C$5:$C$4000,$A35,WITHDRAWALS!$D$5:$D$4000,"=FOB MILL",WITHDRAWALS!$E$5:$E$4000,I$6)) ->  | J35: =IF($A35="","",(SUMIFS(BOOKINGS!$E$5:$E$31,BOOKINGS!$A$5:$A$31,">=1-"&$G$3,BOOKINGS!$A$5:$A$31,"<="&$H$3&"-"&$G$3,BOOKINGS!$B$5:$B$31,$A35,BOOKINGS!$C$5:$C$31,"=FOB MILL",BOOKINGS!$D$5:$D$31,J$6))-SUMIFS(WITHDRAWALS!$F$5:$F$4000,WITHDRAWALS!$B$5:$B$4000,">=1-"&$G$3,WITHDRAWALS!$B$5:$B$4000,"<="&$H$3&"-"&$G$3,WITHDRAWALS!$C$5:$C$4000,$A35,WITHDRAWALS!$D$5:$D$4000,"=FOB MILL",WITHDRAWALS!$E$5:$E$4000,J$6)) ->  | K35: =IF($A35="","",(SUMIFS(BOOKINGS!$E$5:$E$31,BOOKINGS!$A$5:$A$31,">=1-"&$G$3,BOOKINGS!$A$5:$A$31,"<="&$H$3&"-"&$G$3,BOOKINGS!$B$5:$B$31,$A35,BOOKINGS!$C$5:$C$31,"=FOB MILL",BOOKINGS!$D$5:$D$31,K$6))-SUMIFS(WITHDRAWALS!$F$5:$F$4000,WITHDRAWALS!$B$5:$B$4000,">=1-"&$G$3,WITHDRAWALS!$B$5:$B$4000,"<="&$H$3&"-"&$G$3,WITHDRAWALS!$C$5:$C$4000,$A35,WITHDRAWALS!$D$5:$D$4000,"=FOB MILL",WITHDRAWALS!$E$5:$E$4000,K$6)) ->  | L35: =IF($A35="","",(SUMIFS(BOOKINGS!$E$5:$E$31,BOOKINGS!$A$5:$A$31,">=1-"&$G$3,BOOKINGS!$A$5:$A$31,"<="&$H$3&"-"&$G$3,BOOKINGS!$B$5:$B$31,$A35,BOOKINGS!$C$5:$C$31,"=FOB MILL",BOOKINGS!$D$5:$D$31,L$6))-SUMIFS(WITHDRAWALS!$F$5:$F$4000,WITHDRAWALS!$B$5:$B$4000,">=1-"&$G$3,WITHDRAWALS!$B$5:$B$4000,"<="&$H$3&"-"&$G$3,WITHDRAWALS!$C$5:$C$4000,$A35,WITHDRAWALS!$D$5:$D$4000,"=FOB MILL",WITHDRAWALS!$E$5:$E$4000,L$6)) -> 
A36: =IFERROR(INDEX(WITHDRAWALS!$C$5:$C$4000,SMALL(IF(FREQUENCY(IF(ISNUMBER(SEARCH("??"&TEXT($G$4,"mmm")&"??"&"|"&"?*"&"FOB MILL"&"|?*",WITHDRAWALS!$L$5:$L$4000)), MATCH(WITHDRAWALS!$C$5:$C$4000,WITHDRAWALS!$C$5:$C$4000,0)),Ivec),Ivec),ROWS($A$7:A36))),"") ->  | B36: =IF($A36="","",(SUMIFS(BOOKINGS!$E$5:$E$31,BOOKINGS!$A$5:$A$31,">=1-"&$G$3,BOOKINGS!$A$5:$A$31,"<="&$H$3&"-"&$G$3,BOOKINGS!$B$5:$B$31,$A36,BOOKINGS!$C$5:$C$31,"=FOB MILL",BOOKINGS!$D$5:$D$31,B$6))-SUMIFS(WITHDRAWALS!$F$5:$F$4000,WITHDRAWALS!$B$5:$B$4000,">=1-"&$G$3,WITHDRAWALS!$B$5:$B$4000,"<="&$H$3&"-"&$G$3,WITHDRAWALS!$C$5:$C$4000,$A36,WITHDRAWALS!$D$5:$D$4000,"=FOB MILL",WITHDRAWALS!$E$5:$E$4000,B$6)) ->  | C36: =IF($A36="","",(SUMIFS(BOOKINGS!$E$5:$E$31,BOOKINGS!$A$5:$A$31,">=1-"&$G$3,BOOKINGS!$A$5:$A$31,"<="&$H$3&"-"&$G$3,BOOKINGS!$B$5:$B$31,$A36,BOOKINGS!$C$5:$C$31,"=FOB MILL",BOOKINGS!$D$5:$D$31,C$6))-SUMIFS(WITHDRAWALS!$F$5:$F$4000,WITHDRAWALS!$B$5:$B$4000,">=1-"&$G$3,WITHDRAWALS!$B$5:$B$4000,"<="&$H$3&"-"&$G$3,WITHDRAWALS!$C$5:$C$4000,$A36,WITHDRAWALS!$D$5:$D$4000,"=FOB MILL",WITHDRAWALS!$E$5:$E$4000,C$6)) ->  | D36: =IF($A36="","",(SUMIFS(BOOKINGS!$E$5:$E$31,BOOKINGS!$A$5:$A$31,">=1-"&$G$3,BOOKINGS!$A$5:$A$31,"<="&$H$3&"-"&$G$3,BOOKINGS!$B$5:$B$31,$A36,BOOKINGS!$C$5:$C$31,"=FOB MILL",BOOKINGS!$D$5:$D$31,D$6))-SUMIFS(WITHDRAWALS!$F$5:$F$4000,WITHDRAWALS!$B$5:$B$4000,">=1-"&$G$3,WITHDRAWALS!$B$5:$B$4000,"<="&$H$3&"-"&$G$3,WITHDRAWALS!$C$5:$C$4000,$A36,WITHDRAWALS!$D$5:$D$4000,"=FOB MILL",WITHDRAWALS!$E$5:$E$4000,D$6)) ->  | E36: =IF($A36="","",(SUMIFS(BOOKINGS!$E$5:$E$31,BOOKINGS!$A$5:$A$31,">=1-"&$G$3,BOOKINGS!$A$5:$A$31,"<="&$H$3&"-"&$G$3,BOOKINGS!$B$5:$B$31,$A36,BOOKINGS!$C$5:$C$31,"=FOB MILL",BOOKINGS!$D$5:$D$31,E$6))-SUMIFS(WITHDRAWALS!$F$5:$F$4000,WITHDRAWALS!$B$5:$B$4000,">=1-"&$G$3,WITHDRAWALS!$B$5:$B$4000,"<="&$H$3&"-"&$G$3,WITHDRAWALS!$C$5:$C$4000,$A36,WITHDRAWALS!$D$5:$D$4000,"=FOB MILL",WITHDRAWALS!$E$5:$E$4000,E$6)) ->  | F36: =IF($A36="","",(SUMIFS(BOOKINGS!$E$5:$E$31,BOOKINGS!$A$5:$A$31,">=1-"&$G$3,BOOKINGS!$A$5:$A$31,"<="&$H$3&"-"&$G$3,BOOKINGS!$B$5:$B$31,$A36,BOOKINGS!$C$5:$C$31,"=FOB MILL",BOOKINGS!$D$5:$D$31,F$6))-SUMIFS(WITHDRAWALS!$F$5:$F$4000,WITHDRAWALS!$B$5:$B$4000,">=1-"&$G$3,WITHDRAWALS!$B$5:$B$4000,"<="&$H$3&"-"&$G$3,WITHDRAWALS!$C$5:$C$4000,$A36,WITHDRAWALS!$D$5:$D$4000,"=FOB MILL",WITHDRAWALS!$E$5:$E$4000,F$6)) ->  | G36: =IF($A36="","",(SUMIFS(BOOKINGS!$E$5:$E$31,BOOKINGS!$A$5:$A$31,">=1-"&$G$3,BOOKINGS!$A$5:$A$31,"<="&$H$3&"-"&$G$3,BOOKINGS!$B$5:$B$31,$A36,BOOKINGS!$C$5:$C$31,"=FOB MILL",BOOKINGS!$D$5:$D$31,G$6))-SUMIFS(WITHDRAWALS!$F$5:$F$4000,WITHDRAWALS!$B$5:$B$4000,">=1-"&$G$3,WITHDRAWALS!$B$5:$B$4000,"<="&$H$3&"-"&$G$3,WITHDRAWALS!$C$5:$C$4000,$A36,WITHDRAWALS!$D$5:$D$4000,"=FOB MILL",WITHDRAWALS!$E$5:$E$4000,G$6)) ->  | H36: =IF($A36="","",(SUMIFS(BOOKINGS!$E$5:$E$31,BOOKINGS!$A$5:$A$31,">=1-"&$G$3,BOOKINGS!$A$5:$A$31,"<="&$H$3&"-"&$G$3,BOOKINGS!$B$5:$B$31,$A36,BOOKINGS!$C$5:$C$31,"=FOB MILL",BOOKINGS!$D$5:$D$31,H$6))-SUMIFS(WITHDRAWALS!$F$5:$F$4000,WITHDRAWALS!$B$5:$B$4000,">=1-"&$G$3,WITHDRAWALS!$B$5:$B$4000,"<="&$H$3&"-"&$G$3,WITHDRAWALS!$C$5:$C$4000,$A36,WITHDRAWALS!$D$5:$D$4000,"=FOB MILL",WITHDRAWALS!$E$5:$E$4000,H$6)) ->  | I36: =IF($A36="","",(SUMIFS(BOOKINGS!$E$5:$E$31,BOOKINGS!$A$5:$A$31,">=1-"&$G$3,BOOKINGS!$A$5:$A$31,"<="&$H$3&"-"&$G$3,BOOKINGS!$B$5:$B$31,$A36,BOOKINGS!$C$5:$C$31,"=FOB MILL",BOOKINGS!$D$5:$D$31,I$6))-SUMIFS(WITHDRAWALS!$F$5:$F$4000,WITHDRAWALS!$B$5:$B$4000,">=1-"&$G$3,WITHDRAWALS!$B$5:$B$4000,"<="&$H$3&"-"&$G$3,WITHDRAWALS!$C$5:$C$4000,$A36,WITHDRAWALS!$D$5:$D$4000,"=FOB MILL",WITHDRAWALS!$E$5:$E$4000,I$6)) ->  | J36: =IF($A36="","",(SUMIFS(BOOKINGS!$E$5:$E$31,BOOKINGS!$A$5:$A$31,">=1-"&$G$3,BOOKINGS!$A$5:$A$31,"<="&$H$3&"-"&$G$3,BOOKINGS!$B$5:$B$31,$A36,BOOKINGS!$C$5:$C$31,"=FOB MILL",BOOKINGS!$D$5:$D$31,J$6))-SUMIFS(WITHDRAWALS!$F$5:$F$4000,WITHDRAWALS!$B$5:$B$4000,">=1-"&$G$3,WITHDRAWALS!$B$5:$B$4000,"<="&$H$3&"-"&$G$3,WITHDRAWALS!$C$5:$C$4000,$A36,WITHDRAWALS!$D$5:$D$4000,"=FOB MILL",WITHDRAWALS!$E$5:$E$4000,J$6)) ->  | K36: =IF($A36="","",(SUMIFS(BOOKINGS!$E$5:$E$31,BOOKINGS!$A$5:$A$31,">=1-"&$G$3,BOOKINGS!$A$5:$A$31,"<="&$H$3&"-"&$G$3,BOOKINGS!$B$5:$B$31,$A36,BOOKINGS!$C$5:$C$31,"=FOB MILL",BOOKINGS!$D$5:$D$31,K$6))-SUMIFS(WITHDRAWALS!$F$5:$F$4000,WITHDRAWALS!$B$5:$B$4000,">=1-"&$G$3,WITHDRAWALS!$B$5:$B$4000,"<="&$H$3&"-"&$G$3,WITHDRAWALS!$C$5:$C$4000,$A36,WITHDRAWALS!$D$5:$D$4000,"=FOB MILL",WITHDRAWALS!$E$5:$E$4000,K$6)) ->  | L36: =IF($A36="","",(SUMIFS(BOOKINGS!$E$5:$E$31,BOOKINGS!$A$5:$A$31,">=1-"&$G$3,BOOKINGS!$A$5:$A$31,"<="&$H$3&"-"&$G$3,BOOKINGS!$B$5:$B$31,$A36,BOOKINGS!$C$5:$C$31,"=FOB MILL",BOOKINGS!$D$5:$D$31,L$6))-SUMIFS(WITHDRAWALS!$F$5:$F$4000,WITHDRAWALS!$B$5:$B$4000,">=1-"&$G$3,WITHDRAWALS!$B$5:$B$4000,"<="&$H$3&"-"&$G$3,WITHDRAWALS!$C$5:$C$4000,$A36,WITHDRAWALS!$D$5:$D$4000,"=FOB MILL",WITHDRAWALS!$E$5:$E$4000,L$6)) -> 
A37: =IFERROR(INDEX(WITHDRAWALS!$C$5:$C$4000,SMALL(IF(FREQUENCY(IF(ISNUMBER(SEARCH("??"&TEXT($G$4,"mmm")&"??"&"|"&"?*"&"FOB MILL"&"|?*",WITHDRAWALS!$L$5:$L$4000)), MATCH(WITHDRAWALS!$C$5:$C$4000,WITHDRAWALS!$C$5:$C$4000,0)),Ivec),Ivec),ROWS($A$7:A37))),"") ->  | B37: =IF($A37="","",(SUMIFS(BOOKINGS!$E$5:$E$31,BOOKINGS!$A$5:$A$31,">=1-"&$G$3,BOOKINGS!$A$5:$A$31,"<="&$H$3&"-"&$G$3,BOOKINGS!$B$5:$B$31,$A37,BOOKINGS!$C$5:$C$31,"=FOB MILL",BOOKINGS!$D$5:$D$31,B$6))-SUMIFS(WITHDRAWALS!$F$5:$F$4000,WITHDRAWALS!$B$5:$B$4000,">=1-"&$G$3,WITHDRAWALS!$B$5:$B$4000,"<="&$H$3&"-"&$G$3,WITHDRAWALS!$C$5:$C$4000,$A37,WITHDRAWALS!$D$5:$D$4000,"=FOB MILL",WITHDRAWALS!$E$5:$E$4000,B$6)) ->  | C37: =IF($A37="","",(SUMIFS(BOOKINGS!$E$5:$E$31,BOOKINGS!$A$5:$A$31,">=1-"&$G$3,BOOKINGS!$A$5:$A$31,"<="&$H$3&"-"&$G$3,BOOKINGS!$B$5:$B$31,$A37,BOOKINGS!$C$5:$C$31,"=FOB MILL",BOOKINGS!$D$5:$D$31,C$6))-SUMIFS(WITHDRAWALS!$F$5:$F$4000,WITHDRAWALS!$B$5:$B$4000,">=1-"&$G$3,WITHDRAWALS!$B$5:$B$4000,"<="&$H$3&"-"&$G$3,WITHDRAWALS!$C$5:$C$4000,$A37,WITHDRAWALS!$D$5:$D$4000,"=FOB MILL",WITHDRAWALS!$E$5:$E$4000,C$6)) ->  | D37: =IF($A37="","",(SUMIFS(BOOKINGS!$E$5:$E$31,BOOKINGS!$A$5:$A$31,">=1-"&$G$3,BOOKINGS!$A$5:$A$31,"<="&$H$3&"-"&$G$3,BOOKINGS!$B$5:$B$31,$A37,BOOKINGS!$C$5:$C$31,"=FOB MILL",BOOKINGS!$D$5:$D$31,D$6))-SUMIFS(WITHDRAWALS!$F$5:$F$4000,WITHDRAWALS!$B$5:$B$4000,">=1-"&$G$3,WITHDRAWALS!$B$5:$B$4000,"<="&$H$3&"-"&$G$3,WITHDRAWALS!$C$5:$C$4000,$A37,WITHDRAWALS!$D$5:$D$4000,"=FOB MILL",WITHDRAWALS!$E$5:$E$4000,D$6)) ->  | E37: =IF($A37="","",(SUMIFS(BOOKINGS!$E$5:$E$31,BOOKINGS!$A$5:$A$31,">=1-"&$G$3,BOOKINGS!$A$5:$A$31,"<="&$H$3&"-"&$G$3,BOOKINGS!$B$5:$B$31,$A37,BOOKINGS!$C$5:$C$31,"=FOB MILL",BOOKINGS!$D$5:$D$31,E$6))-SUMIFS(WITHDRAWALS!$F$5:$F$4000,WITHDRAWALS!$B$5:$B$4000,">=1-"&$G$3,WITHDRAWALS!$B$5:$B$4000,"<="&$H$3&"-"&$G$3,WITHDRAWALS!$C$5:$C$4000,$A37,WITHDRAWALS!$D$5:$D$4000,"=FOB MILL",WITHDRAWALS!$E$5:$E$4000,E$6)) ->  | F37: =IF($A37="","",(SUMIFS(BOOKINGS!$E$5:$E$31,BOOKINGS!$A$5:$A$31,">=1-"&$G$3,BOOKINGS!$A$5:$A$31,"<="&$H$3&"-"&$G$3,BOOKINGS!$B$5:$B$31,$A37,BOOKINGS!$C$5:$C$31,"=FOB MILL",BOOKINGS!$D$5:$D$31,F$6))-SUMIFS(WITHDRAWALS!$F$5:$F$4000,WITHDRAWALS!$B$5:$B$4000,">=1-"&$G$3,WITHDRAWALS!$B$5:$B$4000,"<="&$H$3&"-"&$G$3,WITHDRAWALS!$C$5:$C$4000,$A37,WITHDRAWALS!$D$5:$D$4000,"=FOB MILL",WITHDRAWALS!$E$5:$E$4000,F$6)) ->  | G37: =IF($A37="","",(SUMIFS(BOOKINGS!$E$5:$E$31,BOOKINGS!$A$5:$A$31,">=1-"&$G$3,BOOKINGS!$A$5:$A$31,"<="&$H$3&"-"&$G$3,BOOKINGS!$B$5:$B$31,$A37,BOOKINGS!$C$5:$C$31,"=FOB MILL",BOOKINGS!$D$5:$D$31,G$6))-SUMIFS(WITHDRAWALS!$F$5:$F$4000,WITHDRAWALS!$B$5:$B$4000,">=1-"&$G$3,WITHDRAWALS!$B$5:$B$4000,"<="&$H$3&"-"&$G$3,WITHDRAWALS!$C$5:$C$4000,$A37,WITHDRAWALS!$D$5:$D$4000,"=FOB MILL",WITHDRAWALS!$E$5:$E$4000,G$6)) ->  | H37: =IF($A37="","",(SUMIFS(BOOKINGS!$E$5:$E$31,BOOKINGS!$A$5:$A$31,">=1-"&$G$3,BOOKINGS!$A$5:$A$31,"<="&$H$3&"-"&$G$3,BOOKINGS!$B$5:$B$31,$A37,BOOKINGS!$C$5:$C$31,"=FOB MILL",BOOKINGS!$D$5:$D$31,H$6))-SUMIFS(WITHDRAWALS!$F$5:$F$4000,WITHDRAWALS!$B$5:$B$4000,">=1-"&$G$3,WITHDRAWALS!$B$5:$B$4000,"<="&$H$3&"-"&$G$3,WITHDRAWALS!$C$5:$C$4000,$A37,WITHDRAWALS!$D$5:$D$4000,"=FOB MILL",WITHDRAWALS!$E$5:$E$4000,H$6)) ->  | I37: =IF($A37="","",(SUMIFS(BOOKINGS!$E$5:$E$31,BOOKINGS!$A$5:$A$31,">=1-"&$G$3,BOOKINGS!$A$5:$A$31,"<="&$H$3&"-"&$G$3,BOOKINGS!$B$5:$B$31,$A37,BOOKINGS!$C$5:$C$31,"=FOB MILL",BOOKINGS!$D$5:$D$31,I$6))-SUMIFS(WITHDRAWALS!$F$5:$F$4000,WITHDRAWALS!$B$5:$B$4000,">=1-"&$G$3,WITHDRAWALS!$B$5:$B$4000,"<="&$H$3&"-"&$G$3,WITHDRAWALS!$C$5:$C$4000,$A37,WITHDRAWALS!$D$5:$D$4000,"=FOB MILL",WITHDRAWALS!$E$5:$E$4000,I$6)) ->  | J37: =IF($A37="","",(SUMIFS(BOOKINGS!$E$5:$E$31,BOOKINGS!$A$5:$A$31,">=1-"&$G$3,BOOKINGS!$A$5:$A$31,"<="&$H$3&"-"&$G$3,BOOKINGS!$B$5:$B$31,$A37,BOOKINGS!$C$5:$C$31,"=FOB MILL",BOOKINGS!$D$5:$D$31,J$6))-SUMIFS(WITHDRAWALS!$F$5:$F$4000,WITHDRAWALS!$B$5:$B$4000,">=1-"&$G$3,WITHDRAWALS!$B$5:$B$4000,"<="&$H$3&"-"&$G$3,WITHDRAWALS!$C$5:$C$4000,$A37,WITHDRAWALS!$D$5:$D$4000,"=FOB MILL",WITHDRAWALS!$E$5:$E$4000,J$6)) ->  | K37: =IF($A37="","",(SUMIFS(BOOKINGS!$E$5:$E$31,BOOKINGS!$A$5:$A$31,">=1-"&$G$3,BOOKINGS!$A$5:$A$31,"<="&$H$3&"-"&$G$3,BOOKINGS!$B$5:$B$31,$A37,BOOKINGS!$C$5:$C$31,"=FOB MILL",BOOKINGS!$D$5:$D$31,K$6))-SUMIFS(WITHDRAWALS!$F$5:$F$4000,WITHDRAWALS!$B$5:$B$4000,">=1-"&$G$3,WITHDRAWALS!$B$5:$B$4000,"<="&$H$3&"-"&$G$3,WITHDRAWALS!$C$5:$C$4000,$A37,WITHDRAWALS!$D$5:$D$4000,"=FOB MILL",WITHDRAWALS!$E$5:$E$4000,K$6)) ->  | L37: =IF($A37="","",(SUMIFS(BOOKINGS!$E$5:$E$31,BOOKINGS!$A$5:$A$31,">=1-"&$G$3,BOOKINGS!$A$5:$A$31,"<="&$H$3&"-"&$G$3,BOOKINGS!$B$5:$B$31,$A37,BOOKINGS!$C$5:$C$31,"=FOB MILL",BOOKINGS!$D$5:$D$31,L$6))-SUMIFS(WITHDRAWALS!$F$5:$F$4000,WITHDRAWALS!$B$5:$B$4000,">=1-"&$G$3,WITHDRAWALS!$B$5:$B$4000,"<="&$H$3&"-"&$G$3,WITHDRAWALS!$C$5:$C$4000,$A37,WITHDRAWALS!$D$5:$D$4000,"=FOB MILL",WITHDRAWALS!$E$5:$E$4000,L$6)) -> 
A38: =IFERROR(INDEX(WITHDRAWALS!$C$5:$C$4000,SMALL(IF(FREQUENCY(IF(ISNUMBER(SEARCH("??"&TEXT($G$4,"mmm")&"??"&"|"&"?*"&"FOB MILL"&"|?*",WITHDRAWALS!$L$5:$L$4000)), MATCH(WITHDRAWALS!$C$5:$C$4000,WITHDRAWALS!$C$5:$C$4000,0)),Ivec),Ivec),ROWS($A$7:A38))),"") ->  | B38: =IF($A38="","",(SUMIFS(BOOKINGS!$E$5:$E$31,BOOKINGS!$A$5:$A$31,">=1-"&$G$3,BOOKINGS!$A$5:$A$31,"<="&$H$3&"-"&$G$3,BOOKINGS!$B$5:$B$31,$A38,BOOKINGS!$C$5:$C$31,"=FOB MILL",BOOKINGS!$D$5:$D$31,B$6))-SUMIFS(WITHDRAWALS!$F$5:$F$4000,WITHDRAWALS!$B$5:$B$4000,">=1-"&$G$3,WITHDRAWALS!$B$5:$B$4000,"<="&$H$3&"-"&$G$3,WITHDRAWALS!$C$5:$C$4000,$A38,WITHDRAWALS!$D$5:$D$4000,"=FOB MILL",WITHDRAWALS!$E$5:$E$4000,B$6)) ->  | C38: =IF($A38="","",(SUMIFS(BOOKINGS!$E$5:$E$31,BOOKINGS!$A$5:$A$31,">=1-"&$G$3,BOOKINGS!$A$5:$A$31,"<="&$H$3&"-"&$G$3,BOOKINGS!$B$5:$B$31,$A38,BOOKINGS!$C$5:$C$31,"=FOB MILL",BOOKINGS!$D$5:$D$31,C$6))-SUMIFS(WITHDRAWALS!$F$5:$F$4000,WITHDRAWALS!$B$5:$B$4000,">=1-"&$G$3,WITHDRAWALS!$B$5:$B$4000,"<="&$H$3&"-"&$G$3,WITHDRAWALS!$C$5:$C$4000,$A38,WITHDRAWALS!$D$5:$D$4000,"=FOB MILL",WITHDRAWALS!$E$5:$E$4000,C$6)) ->  | D38: =IF($A38="","",(SUMIFS(BOOKINGS!$E$5:$E$31,BOOKINGS!$A$5:$A$31,">=1-"&$G$3,BOOKINGS!$A$5:$A$31,"<="&$H$3&"-"&$G$3,BOOKINGS!$B$5:$B$31,$A38,BOOKINGS!$C$5:$C$31,"=FOB MILL",BOOKINGS!$D$5:$D$31,D$6))-SUMIFS(WITHDRAWALS!$F$5:$F$4000,WITHDRAWALS!$B$5:$B$4000,">=1-"&$G$3,WITHDRAWALS!$B$5:$B$4000,"<="&$H$3&"-"&$G$3,WITHDRAWALS!$C$5:$C$4000,$A38,WITHDRAWALS!$D$5:$D$4000,"=FOB MILL",WITHDRAWALS!$E$5:$E$4000,D$6)) ->  | E38: =IF($A38="","",(SUMIFS(BOOKINGS!$E$5:$E$31,BOOKINGS!$A$5:$A$31,">=1-"&$G$3,BOOKINGS!$A$5:$A$31,"<="&$H$3&"-"&$G$3,BOOKINGS!$B$5:$B$31,$A38,BOOKINGS!$C$5:$C$31,"=FOB MILL",BOOKINGS!$D$5:$D$31,E$6))-SUMIFS(WITHDRAWALS!$F$5:$F$4000,WITHDRAWALS!$B$5:$B$4000,">=1-"&$G$3,WITHDRAWALS!$B$5:$B$4000,"<="&$H$3&"-"&$G$3,WITHDRAWALS!$C$5:$C$4000,$A38,WITHDRAWALS!$D$5:$D$4000,"=FOB MILL",WITHDRAWALS!$E$5:$E$4000,E$6)) ->  | F38: =IF($A38="","",(SUMIFS(BOOKINGS!$E$5:$E$31,BOOKINGS!$A$5:$A$31,">=1-"&$G$3,BOOKINGS!$A$5:$A$31,"<="&$H$3&"-"&$G$3,BOOKINGS!$B$5:$B$31,$A38,BOOKINGS!$C$5:$C$31,"=FOB MILL",BOOKINGS!$D$5:$D$31,F$6))-SUMIFS(WITHDRAWALS!$F$5:$F$4000,WITHDRAWALS!$B$5:$B$4000,">=1-"&$G$3,WITHDRAWALS!$B$5:$B$4000,"<="&$H$3&"-"&$G$3,WITHDRAWALS!$C$5:$C$4000,$A38,WITHDRAWALS!$D$5:$D$4000,"=FOB MILL",WITHDRAWALS!$E$5:$E$4000,F$6)) ->  | G38: =IF($A38="","",(SUMIFS(BOOKINGS!$E$5:$E$31,BOOKINGS!$A$5:$A$31,">=1-"&$G$3,BOOKINGS!$A$5:$A$31,"<="&$H$3&"-"&$G$3,BOOKINGS!$B$5:$B$31,$A38,BOOKINGS!$C$5:$C$31,"=FOB MILL",BOOKINGS!$D$5:$D$31,G$6))-SUMIFS(WITHDRAWALS!$F$5:$F$4000,WITHDRAWALS!$B$5:$B$4000,">=1-"&$G$3,WITHDRAWALS!$B$5:$B$4000,"<="&$H$3&"-"&$G$3,WITHDRAWALS!$C$5:$C$4000,$A38,WITHDRAWALS!$D$5:$D$4000,"=FOB MILL",WITHDRAWALS!$E$5:$E$4000,G$6)) ->  | H38: =IF($A38="","",(SUMIFS(BOOKINGS!$E$5:$E$31,BOOKINGS!$A$5:$A$31,">=1-"&$G$3,BOOKINGS!$A$5:$A$31,"<="&$H$3&"-"&$G$3,BOOKINGS!$B$5:$B$31,$A38,BOOKINGS!$C$5:$C$31,"=FOB MILL",BOOKINGS!$D$5:$D$31,H$6))-SUMIFS(WITHDRAWALS!$F$5:$F$4000,WITHDRAWALS!$B$5:$B$4000,">=1-"&$G$3,WITHDRAWALS!$B$5:$B$4000,"<="&$H$3&"-"&$G$3,WITHDRAWALS!$C$5:$C$4000,$A38,WITHDRAWALS!$D$5:$D$4000,"=FOB MILL",WITHDRAWALS!$E$5:$E$4000,H$6)) ->  | I38: =IF($A38="","",(SUMIFS(BOOKINGS!$E$5:$E$31,BOOKINGS!$A$5:$A$31,">=1-"&$G$3,BOOKINGS!$A$5:$A$31,"<="&$H$3&"-"&$G$3,BOOKINGS!$B$5:$B$31,$A38,BOOKINGS!$C$5:$C$31,"=FOB MILL",BOOKINGS!$D$5:$D$31,I$6))-SUMIFS(WITHDRAWALS!$F$5:$F$4000,WITHDRAWALS!$B$5:$B$4000,">=1-"&$G$3,WITHDRAWALS!$B$5:$B$4000,"<="&$H$3&"-"&$G$3,WITHDRAWALS!$C$5:$C$4000,$A38,WITHDRAWALS!$D$5:$D$4000,"=FOB MILL",WITHDRAWALS!$E$5:$E$4000,I$6)) ->  | J38: =IF($A38="","",(SUMIFS(BOOKINGS!$E$5:$E$31,BOOKINGS!$A$5:$A$31,">=1-"&$G$3,BOOKINGS!$A$5:$A$31,"<="&$H$3&"-"&$G$3,BOOKINGS!$B$5:$B$31,$A38,BOOKINGS!$C$5:$C$31,"=FOB MILL",BOOKINGS!$D$5:$D$31,J$6))-SUMIFS(WITHDRAWALS!$F$5:$F$4000,WITHDRAWALS!$B$5:$B$4000,">=1-"&$G$3,WITHDRAWALS!$B$5:$B$4000,"<="&$H$3&"-"&$G$3,WITHDRAWALS!$C$5:$C$4000,$A38,WITHDRAWALS!$D$5:$D$4000,"=FOB MILL",WITHDRAWALS!$E$5:$E$4000,J$6)) ->  | K38: =IF($A38="","",(SUMIFS(BOOKINGS!$E$5:$E$31,BOOKINGS!$A$5:$A$31,">=1-"&$G$3,BOOKINGS!$A$5:$A$31,"<="&$H$3&"-"&$G$3,BOOKINGS!$B$5:$B$31,$A38,BOOKINGS!$C$5:$C$31,"=FOB MILL",BOOKINGS!$D$5:$D$31,K$6))-SUMIFS(WITHDRAWALS!$F$5:$F$4000,WITHDRAWALS!$B$5:$B$4000,">=1-"&$G$3,WITHDRAWALS!$B$5:$B$4000,"<="&$H$3&"-"&$G$3,WITHDRAWALS!$C$5:$C$4000,$A38,WITHDRAWALS!$D$5:$D$4000,"=FOB MILL",WITHDRAWALS!$E$5:$E$4000,K$6)) ->  | L38: =IF($A38="","",(SUMIFS(BOOKINGS!$E$5:$E$31,BOOKINGS!$A$5:$A$31,">=1-"&$G$3,BOOKINGS!$A$5:$A$31,"<="&$H$3&"-"&$G$3,BOOKINGS!$B$5:$B$31,$A38,BOOKINGS!$C$5:$C$31,"=FOB MILL",BOOKINGS!$D$5:$D$31,L$6))-SUMIFS(WITHDRAWALS!$F$5:$F$4000,WITHDRAWALS!$B$5:$B$4000,">=1-"&$G$3,WITHDRAWALS!$B$5:$B$4000,"<="&$H$3&"-"&$G$3,WITHDRAWALS!$C$5:$C$4000,$A38,WITHDRAWALS!$D$5:$D$4000,"=FOB MILL",WITHDRAWALS!$E$5:$E$4000,L$6)) -> 
A39: =IFERROR(INDEX(WITHDRAWALS!$C$5:$C$4000,SMALL(IF(FREQUENCY(IF(ISNUMBER(SEARCH("??"&TEXT($G$4,"mmm")&"??"&"|"&"?*"&"FOB MILL"&"|?*",WITHDRAWALS!$L$5:$L$4000)), MATCH(WITHDRAWALS!$C$5:$C$4000,WITHDRAWALS!$C$5:$C$4000,0)),Ivec),Ivec),ROWS($A$7:A39))),"") ->  | B39: =IF($A39="","",(SUMIFS(BOOKINGS!$E$5:$E$31,BOOKINGS!$A$5:$A$31,">=1-"&$G$3,BOOKINGS!$A$5:$A$31,"<="&$H$3&"-"&$G$3,BOOKINGS!$B$5:$B$31,$A39,BOOKINGS!$C$5:$C$31,"=FOB MILL",BOOKINGS!$D$5:$D$31,B$6))-SUMIFS(WITHDRAWALS!$F$5:$F$4000,WITHDRAWALS!$B$5:$B$4000,">=1-"&$G$3,WITHDRAWALS!$B$5:$B$4000,"<="&$H$3&"-"&$G$3,WITHDRAWALS!$C$5:$C$4000,$A39,WITHDRAWALS!$D$5:$D$4000,"=FOB MILL",WITHDRAWALS!$E$5:$E$4000,B$6)) ->  | C39: =IF($A39="","",(SUMIFS(BOOKINGS!$E$5:$E$31,BOOKINGS!$A$5:$A$31,">=1-"&$G$3,BOOKINGS!$A$5:$A$31,"<="&$H$3&"-"&$G$3,BOOKINGS!$B$5:$B$31,$A39,BOOKINGS!$C$5:$C$31,"=FOB MILL",BOOKINGS!$D$5:$D$31,C$6))-SUMIFS(WITHDRAWALS!$F$5:$F$4000,WITHDRAWALS!$B$5:$B$4000,">=1-"&$G$3,WITHDRAWALS!$B$5:$B$4000,"<="&$H$3&"-"&$G$3,WITHDRAWALS!$C$5:$C$4000,$A39,WITHDRAWALS!$D$5:$D$4000,"=FOB MILL",WITHDRAWALS!$E$5:$E$4000,C$6)) ->  | D39: =IF($A39="","",(SUMIFS(BOOKINGS!$E$5:$E$31,BOOKINGS!$A$5:$A$31,">=1-"&$G$3,BOOKINGS!$A$5:$A$31,"<="&$H$3&"-"&$G$3,BOOKINGS!$B$5:$B$31,$A39,BOOKINGS!$C$5:$C$31,"=FOB MILL",BOOKINGS!$D$5:$D$31,D$6))-SUMIFS(WITHDRAWALS!$F$5:$F$4000,WITHDRAWALS!$B$5:$B$4000,">=1-"&$G$3,WITHDRAWALS!$B$5:$B$4000,"<="&$H$3&"-"&$G$3,WITHDRAWALS!$C$5:$C$4000,$A39,WITHDRAWALS!$D$5:$D$4000,"=FOB MILL",WITHDRAWALS!$E$5:$E$4000,D$6)) ->  | E39: =IF($A39="","",(SUMIFS(BOOKINGS!$E$5:$E$31,BOOKINGS!$A$5:$A$31,">=1-"&$G$3,BOOKINGS!$A$5:$A$31,"<="&$H$3&"-"&$G$3,BOOKINGS!$B$5:$B$31,$A39,BOOKINGS!$C$5:$C$31,"=FOB MILL",BOOKINGS!$D$5:$D$31,E$6))-SUMIFS(WITHDRAWALS!$F$5:$F$4000,WITHDRAWALS!$B$5:$B$4000,">=1-"&$G$3,WITHDRAWALS!$B$5:$B$4000,"<="&$H$3&"-"&$G$3,WITHDRAWALS!$C$5:$C$4000,$A39,WITHDRAWALS!$D$5:$D$4000,"=FOB MILL",WITHDRAWALS!$E$5:$E$4000,E$6)) ->  | F39: =IF($A39="","",(SUMIFS(BOOKINGS!$E$5:$E$31,BOOKINGS!$A$5:$A$31,">=1-"&$G$3,BOOKINGS!$A$5:$A$31,"<="&$H$3&"-"&$G$3,BOOKINGS!$B$5:$B$31,$A39,BOOKINGS!$C$5:$C$31,"=FOB MILL",BOOKINGS!$D$5:$D$31,F$6))-SUMIFS(WITHDRAWALS!$F$5:$F$4000,WITHDRAWALS!$B$5:$B$4000,">=1-"&$G$3,WITHDRAWALS!$B$5:$B$4000,"<="&$H$3&"-"&$G$3,WITHDRAWALS!$C$5:$C$4000,$A39,WITHDRAWALS!$D$5:$D$4000,"=FOB MILL",WITHDRAWALS!$E$5:$E$4000,F$6)) ->  | G39: =IF($A39="","",(SUMIFS(BOOKINGS!$E$5:$E$31,BOOKINGS!$A$5:$A$31,">=1-"&$G$3,BOOKINGS!$A$5:$A$31,"<="&$H$3&"-"&$G$3,BOOKINGS!$B$5:$B$31,$A39,BOOKINGS!$C$5:$C$31,"=FOB MILL",BOOKINGS!$D$5:$D$31,G$6))-SUMIFS(WITHDRAWALS!$F$5:$F$4000,WITHDRAWALS!$B$5:$B$4000,">=1-"&$G$3,WITHDRAWALS!$B$5:$B$4000,"<="&$H$3&"-"&$G$3,WITHDRAWALS!$C$5:$C$4000,$A39,WITHDRAWALS!$D$5:$D$4000,"=FOB MILL",WITHDRAWALS!$E$5:$E$4000,G$6)) ->  | H39: =IF($A39="","",(SUMIFS(BOOKINGS!$E$5:$E$31,BOOKINGS!$A$5:$A$31,">=1-"&$G$3,BOOKINGS!$A$5:$A$31,"<="&$H$3&"-"&$G$3,BOOKINGS!$B$5:$B$31,$A39,BOOKINGS!$C$5:$C$31,"=FOB MILL",BOOKINGS!$D$5:$D$31,H$6))-SUMIFS(WITHDRAWALS!$F$5:$F$4000,WITHDRAWALS!$B$5:$B$4000,">=1-"&$G$3,WITHDRAWALS!$B$5:$B$4000,"<="&$H$3&"-"&$G$3,WITHDRAWALS!$C$5:$C$4000,$A39,WITHDRAWALS!$D$5:$D$4000,"=FOB MILL",WITHDRAWALS!$E$5:$E$4000,H$6)) ->  | I39: =IF($A39="","",(SUMIFS(BOOKINGS!$E$5:$E$31,BOOKINGS!$A$5:$A$31,">=1-"&$G$3,BOOKINGS!$A$5:$A$31,"<="&$H$3&"-"&$G$3,BOOKINGS!$B$5:$B$31,$A39,BOOKINGS!$C$5:$C$31,"=FOB MILL",BOOKINGS!$D$5:$D$31,I$6))-SUMIFS(WITHDRAWALS!$F$5:$F$4000,WITHDRAWALS!$B$5:$B$4000,">=1-"&$G$3,WITHDRAWALS!$B$5:$B$4000,"<="&$H$3&"-"&$G$3,WITHDRAWALS!$C$5:$C$4000,$A39,WITHDRAWALS!$D$5:$D$4000,"=FOB MILL",WITHDRAWALS!$E$5:$E$4000,I$6)) ->  | J39: =IF($A39="","",(SUMIFS(BOOKINGS!$E$5:$E$31,BOOKINGS!$A$5:$A$31,">=1-"&$G$3,BOOKINGS!$A$5:$A$31,"<="&$H$3&"-"&$G$3,BOOKINGS!$B$5:$B$31,$A39,BOOKINGS!$C$5:$C$31,"=FOB MILL",BOOKINGS!$D$5:$D$31,J$6))-SUMIFS(WITHDRAWALS!$F$5:$F$4000,WITHDRAWALS!$B$5:$B$4000,">=1-"&$G$3,WITHDRAWALS!$B$5:$B$4000,"<="&$H$3&"-"&$G$3,WITHDRAWALS!$C$5:$C$4000,$A39,WITHDRAWALS!$D$5:$D$4000,"=FOB MILL",WITHDRAWALS!$E$5:$E$4000,J$6)) ->  | K39: =IF($A39="","",(SUMIFS(BOOKINGS!$E$5:$E$31,BOOKINGS!$A$5:$A$31,">=1-"&$G$3,BOOKINGS!$A$5:$A$31,"<="&$H$3&"-"&$G$3,BOOKINGS!$B$5:$B$31,$A39,BOOKINGS!$C$5:$C$31,"=FOB MILL",BOOKINGS!$D$5:$D$31,K$6))-SUMIFS(WITHDRAWALS!$F$5:$F$4000,WITHDRAWALS!$B$5:$B$4000,">=1-"&$G$3,WITHDRAWALS!$B$5:$B$4000,"<="&$H$3&"-"&$G$3,WITHDRAWALS!$C$5:$C$4000,$A39,WITHDRAWALS!$D$5:$D$4000,"=FOB MILL",WITHDRAWALS!$E$5:$E$4000,K$6)) ->  | L39: =IF($A39="","",(SUMIFS(BOOKINGS!$E$5:$E$31,BOOKINGS!$A$5:$A$31,">=1-"&$G$3,BOOKINGS!$A$5:$A$31,"<="&$H$3&"-"&$G$3,BOOKINGS!$B$5:$B$31,$A39,BOOKINGS!$C$5:$C$31,"=FOB MILL",BOOKINGS!$D$5:$D$31,L$6))-SUMIFS(WITHDRAWALS!$F$5:$F$4000,WITHDRAWALS!$B$5:$B$4000,">=1-"&$G$3,WITHDRAWALS!$B$5:$B$4000,"<="&$H$3&"-"&$G$3,WITHDRAWALS!$C$5:$C$4000,$A39,WITHDRAWALS!$D$5:$D$4000,"=FOB MILL",WITHDRAWALS!$E$5:$E$4000,L$6)) -> 
A40: =IFERROR(INDEX(WITHDRAWALS!$C$5:$C$4000,SMALL(IF(FREQUENCY(IF(ISNUMBER(SEARCH("??"&TEXT($G$4,"mmm")&"??"&"|"&"?*"&"FOB MILL"&"|?*",WITHDRAWALS!$L$5:$L$4000)), MATCH(WITHDRAWALS!$C$5:$C$4000,WITHDRAWALS!$C$5:$C$4000,0)),Ivec),Ivec),ROWS($A$7:A40))),"") ->  | B40: =IF($A40="","",(SUMIFS(BOOKINGS!$E$5:$E$31,BOOKINGS!$A$5:$A$31,">=1-"&$G$3,BOOKINGS!$A$5:$A$31,"<="&$H$3&"-"&$G$3,BOOKINGS!$B$5:$B$31,$A40,BOOKINGS!$C$5:$C$31,"=FOB MILL",BOOKINGS!$D$5:$D$31,B$6))-SUMIFS(WITHDRAWALS!$F$5:$F$4000,WITHDRAWALS!$B$5:$B$4000,">=1-"&$G$3,WITHDRAWALS!$B$5:$B$4000,"<="&$H$3&"-"&$G$3,WITHDRAWALS!$C$5:$C$4000,$A40,WITHDRAWALS!$D$5:$D$4000,"=FOB MILL",WITHDRAWALS!$E$5:$E$4000,B$6)) ->  | C40: =IF($A40="","",(SUMIFS(BOOKINGS!$E$5:$E$31,BOOKINGS!$A$5:$A$31,">=1-"&$G$3,BOOKINGS!$A$5:$A$31,"<="&$H$3&"-"&$G$3,BOOKINGS!$B$5:$B$31,$A40,BOOKINGS!$C$5:$C$31,"=FOB MILL",BOOKINGS!$D$5:$D$31,C$6))-SUMIFS(WITHDRAWALS!$F$5:$F$4000,WITHDRAWALS!$B$5:$B$4000,">=1-"&$G$3,WITHDRAWALS!$B$5:$B$4000,"<="&$H$3&"-"&$G$3,WITHDRAWALS!$C$5:$C$4000,$A40,WITHDRAWALS!$D$5:$D$4000,"=FOB MILL",WITHDRAWALS!$E$5:$E$4000,C$6)) ->  | D40: =IF($A40="","",(SUMIFS(BOOKINGS!$E$5:$E$31,BOOKINGS!$A$5:$A$31,">=1-"&$G$3,BOOKINGS!$A$5:$A$31,"<="&$H$3&"-"&$G$3,BOOKINGS!$B$5:$B$31,$A40,BOOKINGS!$C$5:$C$31,"=FOB MILL",BOOKINGS!$D$5:$D$31,D$6))-SUMIFS(WITHDRAWALS!$F$5:$F$4000,WITHDRAWALS!$B$5:$B$4000,">=1-"&$G$3,WITHDRAWALS!$B$5:$B$4000,"<="&$H$3&"-"&$G$3,WITHDRAWALS!$C$5:$C$4000,$A40,WITHDRAWALS!$D$5:$D$4000,"=FOB MILL",WITHDRAWALS!$E$5:$E$4000,D$6)) ->  | E40: =IF($A40="","",(SUMIFS(BOOKINGS!$E$5:$E$31,BOOKINGS!$A$5:$A$31,">=1-"&$G$3,BOOKINGS!$A$5:$A$31,"<="&$H$3&"-"&$G$3,BOOKINGS!$B$5:$B$31,$A40,BOOKINGS!$C$5:$C$31,"=FOB MILL",BOOKINGS!$D$5:$D$31,E$6))-SUMIFS(WITHDRAWALS!$F$5:$F$4000,WITHDRAWALS!$B$5:$B$4000,">=1-"&$G$3,WITHDRAWALS!$B$5:$B$4000,"<="&$H$3&"-"&$G$3,WITHDRAWALS!$C$5:$C$4000,$A40,WITHDRAWALS!$D$5:$D$4000,"=FOB MILL",WITHDRAWALS!$E$5:$E$4000,E$6)) ->  | F40: =IF($A40="","",(SUMIFS(BOOKINGS!$E$5:$E$31,BOOKINGS!$A$5:$A$31,">=1-"&$G$3,BOOKINGS!$A$5:$A$31,"<="&$H$3&"-"&$G$3,BOOKINGS!$B$5:$B$31,$A40,BOOKINGS!$C$5:$C$31,"=FOB MILL",BOOKINGS!$D$5:$D$31,F$6))-SUMIFS(WITHDRAWALS!$F$5:$F$4000,WITHDRAWALS!$B$5:$B$4000,">=1-"&$G$3,WITHDRAWALS!$B$5:$B$4000,"<="&$H$3&"-"&$G$3,WITHDRAWALS!$C$5:$C$4000,$A40,WITHDRAWALS!$D$5:$D$4000,"=FOB MILL",WITHDRAWALS!$E$5:$E$4000,F$6)) ->  | G40: =IF($A40="","",(SUMIFS(BOOKINGS!$E$5:$E$31,BOOKINGS!$A$5:$A$31,">=1-"&$G$3,BOOKINGS!$A$5:$A$31,"<="&$H$3&"-"&$G$3,BOOKINGS!$B$5:$B$31,$A40,BOOKINGS!$C$5:$C$31,"=FOB MILL",BOOKINGS!$D$5:$D$31,G$6))-SUMIFS(WITHDRAWALS!$F$5:$F$4000,WITHDRAWALS!$B$5:$B$4000,">=1-"&$G$3,WITHDRAWALS!$B$5:$B$4000,"<="&$H$3&"-"&$G$3,WITHDRAWALS!$C$5:$C$4000,$A40,WITHDRAWALS!$D$5:$D$4000,"=FOB MILL",WITHDRAWALS!$E$5:$E$4000,G$6)) ->  | H40: =IF($A40="","",(SUMIFS(BOOKINGS!$E$5:$E$31,BOOKINGS!$A$5:$A$31,">=1-"&$G$3,BOOKINGS!$A$5:$A$31,"<="&$H$3&"-"&$G$3,BOOKINGS!$B$5:$B$31,$A40,BOOKINGS!$C$5:$C$31,"=FOB MILL",BOOKINGS!$D$5:$D$31,H$6))-SUMIFS(WITHDRAWALS!$F$5:$F$4000,WITHDRAWALS!$B$5:$B$4000,">=1-"&$G$3,WITHDRAWALS!$B$5:$B$4000,"<="&$H$3&"-"&$G$3,WITHDRAWALS!$C$5:$C$4000,$A40,WITHDRAWALS!$D$5:$D$4000,"=FOB MILL",WITHDRAWALS!$E$5:$E$4000,H$6)) ->  | I40: =IF($A40="","",(SUMIFS(BOOKINGS!$E$5:$E$31,BOOKINGS!$A$5:$A$31,">=1-"&$G$3,BOOKINGS!$A$5:$A$31,"<="&$H$3&"-"&$G$3,BOOKINGS!$B$5:$B$31,$A40,BOOKINGS!$C$5:$C$31,"=FOB MILL",BOOKINGS!$D$5:$D$31,I$6))-SUMIFS(WITHDRAWALS!$F$5:$F$4000,WITHDRAWALS!$B$5:$B$4000,">=1-"&$G$3,WITHDRAWALS!$B$5:$B$4000,"<="&$H$3&"-"&$G$3,WITHDRAWALS!$C$5:$C$4000,$A40,WITHDRAWALS!$D$5:$D$4000,"=FOB MILL",WITHDRAWALS!$E$5:$E$4000,I$6)) ->  | J40: =IF($A40="","",(SUMIFS(BOOKINGS!$E$5:$E$31,BOOKINGS!$A$5:$A$31,">=1-"&$G$3,BOOKINGS!$A$5:$A$31,"<="&$H$3&"-"&$G$3,BOOKINGS!$B$5:$B$31,$A40,BOOKINGS!$C$5:$C$31,"=FOB MILL",BOOKINGS!$D$5:$D$31,J$6))-SUMIFS(WITHDRAWALS!$F$5:$F$4000,WITHDRAWALS!$B$5:$B$4000,">=1-"&$G$3,WITHDRAWALS!$B$5:$B$4000,"<="&$H$3&"-"&$G$3,WITHDRAWALS!$C$5:$C$4000,$A40,WITHDRAWALS!$D$5:$D$4000,"=FOB MILL",WITHDRAWALS!$E$5:$E$4000,J$6)) ->  | K40: =IF($A40="","",(SUMIFS(BOOKINGS!$E$5:$E$31,BOOKINGS!$A$5:$A$31,">=1-"&$G$3,BOOKINGS!$A$5:$A$31,"<="&$H$3&"-"&$G$3,BOOKINGS!$B$5:$B$31,$A40,BOOKINGS!$C$5:$C$31,"=FOB MILL",BOOKINGS!$D$5:$D$31,K$6))-SUMIFS(WITHDRAWALS!$F$5:$F$4000,WITHDRAWALS!$B$5:$B$4000,">=1-"&$G$3,WITHDRAWALS!$B$5:$B$4000,"<="&$H$3&"-"&$G$3,WITHDRAWALS!$C$5:$C$4000,$A40,WITHDRAWALS!$D$5:$D$4000,"=FOB MILL",WITHDRAWALS!$E$5:$E$4000,K$6)) ->  | L40: =IF($A40="","",(SUMIFS(BOOKINGS!$E$5:$E$31,BOOKINGS!$A$5:$A$31,">=1-"&$G$3,BOOKINGS!$A$5:$A$31,"<="&$H$3&"-"&$G$3,BOOKINGS!$B$5:$B$31,$A40,BOOKINGS!$C$5:$C$31,"=FOB MILL",BOOKINGS!$D$5:$D$31,L$6))-SUMIFS(WITHDRAWALS!$F$5:$F$4000,WITHDRAWALS!$B$5:$B$4000,">=1-"&$G$3,WITHDRAWALS!$B$5:$B$4000,"<="&$H$3&"-"&$G$3,WITHDRAWALS!$C$5:$C$4000,$A40,WITHDRAWALS!$D$5:$D$4000,"=FOB MILL",WITHDRAWALS!$E$5:$E$4000,L$6)) -> 
A41: =IFERROR(INDEX(WITHDRAWALS!$C$5:$C$4000,SMALL(IF(FREQUENCY(IF(ISNUMBER(SEARCH("??"&TEXT($G$4,"mmm")&"??"&"|"&"?*"&"FOB MILL"&"|?*",WITHDRAWALS!$L$5:$L$4000)), MATCH(WITHDRAWALS!$C$5:$C$4000,WITHDRAWALS!$C$5:$C$4000,0)),Ivec),Ivec),ROWS($A$7:A41))),"") ->  | B41: =IF($A41="","",(SUMIFS(BOOKINGS!$E$5:$E$31,BOOKINGS!$A$5:$A$31,">=1-"&$G$3,BOOKINGS!$A$5:$A$31,"<="&$H$3&"-"&$G$3,BOOKINGS!$B$5:$B$31,$A41,BOOKINGS!$C$5:$C$31,"=FOB MILL",BOOKINGS!$D$5:$D$31,B$6))-SUMIFS(WITHDRAWALS!$F$5:$F$4000,WITHDRAWALS!$B$5:$B$4000,">=1-"&$G$3,WITHDRAWALS!$B$5:$B$4000,"<="&$H$3&"-"&$G$3,WITHDRAWALS!$C$5:$C$4000,$A41,WITHDRAWALS!$D$5:$D$4000,"=FOB MILL",WITHDRAWALS!$E$5:$E$4000,B$6)) ->  | C41: =IF($A41="","",(SUMIFS(BOOKINGS!$E$5:$E$31,BOOKINGS!$A$5:$A$31,">=1-"&$G$3,BOOKINGS!$A$5:$A$31,"<="&$H$3&"-"&$G$3,BOOKINGS!$B$5:$B$31,$A41,BOOKINGS!$C$5:$C$31,"=FOB MILL",BOOKINGS!$D$5:$D$31,C$6))-SUMIFS(WITHDRAWALS!$F$5:$F$4000,WITHDRAWALS!$B$5:$B$4000,">=1-"&$G$3,WITHDRAWALS!$B$5:$B$4000,"<="&$H$3&"-"&$G$3,WITHDRAWALS!$C$5:$C$4000,$A41,WITHDRAWALS!$D$5:$D$4000,"=FOB MILL",WITHDRAWALS!$E$5:$E$4000,C$6)) ->  | D41: =IF($A41="","",(SUMIFS(BOOKINGS!$E$5:$E$31,BOOKINGS!$A$5:$A$31,">=1-"&$G$3,BOOKINGS!$A$5:$A$31,"<="&$H$3&"-"&$G$3,BOOKINGS!$B$5:$B$31,$A41,BOOKINGS!$C$5:$C$31,"=FOB MILL",BOOKINGS!$D$5:$D$31,D$6))-SUMIFS(WITHDRAWALS!$F$5:$F$4000,WITHDRAWALS!$B$5:$B$4000,">=1-"&$G$3,WITHDRAWALS!$B$5:$B$4000,"<="&$H$3&"-"&$G$3,WITHDRAWALS!$C$5:$C$4000,$A41,WITHDRAWALS!$D$5:$D$4000,"=FOB MILL",WITHDRAWALS!$E$5:$E$4000,D$6)) ->  | E41: =IF($A41="","",(SUMIFS(BOOKINGS!$E$5:$E$31,BOOKINGS!$A$5:$A$31,">=1-"&$G$3,BOOKINGS!$A$5:$A$31,"<="&$H$3&"-"&$G$3,BOOKINGS!$B$5:$B$31,$A41,BOOKINGS!$C$5:$C$31,"=FOB MILL",BOOKINGS!$D$5:$D$31,E$6))-SUMIFS(WITHDRAWALS!$F$5:$F$4000,WITHDRAWALS!$B$5:$B$4000,">=1-"&$G$3,WITHDRAWALS!$B$5:$B$4000,"<="&$H$3&"-"&$G$3,WITHDRAWALS!$C$5:$C$4000,$A41,WITHDRAWALS!$D$5:$D$4000,"=FOB MILL",WITHDRAWALS!$E$5:$E$4000,E$6)) ->  | F41: =IF($A41="","",(SUMIFS(BOOKINGS!$E$5:$E$31,BOOKINGS!$A$5:$A$31,">=1-"&$G$3,BOOKINGS!$A$5:$A$31,"<="&$H$3&"-"&$G$3,BOOKINGS!$B$5:$B$31,$A41,BOOKINGS!$C$5:$C$31,"=FOB MILL",BOOKINGS!$D$5:$D$31,F$6))-SUMIFS(WITHDRAWALS!$F$5:$F$4000,WITHDRAWALS!$B$5:$B$4000,">=1-"&$G$3,WITHDRAWALS!$B$5:$B$4000,"<="&$H$3&"-"&$G$3,WITHDRAWALS!$C$5:$C$4000,$A41,WITHDRAWALS!$D$5:$D$4000,"=FOB MILL",WITHDRAWALS!$E$5:$E$4000,F$6)) ->  | G41: =IF($A41="","",(SUMIFS(BOOKINGS!$E$5:$E$31,BOOKINGS!$A$5:$A$31,">=1-"&$G$3,BOOKINGS!$A$5:$A$31,"<="&$H$3&"-"&$G$3,BOOKINGS!$B$5:$B$31,$A41,BOOKINGS!$C$5:$C$31,"=FOB MILL",BOOKINGS!$D$5:$D$31,G$6))-SUMIFS(WITHDRAWALS!$F$5:$F$4000,WITHDRAWALS!$B$5:$B$4000,">=1-"&$G$3,WITHDRAWALS!$B$5:$B$4000,"<="&$H$3&"-"&$G$3,WITHDRAWALS!$C$5:$C$4000,$A41,WITHDRAWALS!$D$5:$D$4000,"=FOB MILL",WITHDRAWALS!$E$5:$E$4000,G$6)) ->  | H41: =IF($A41="","",(SUMIFS(BOOKINGS!$E$5:$E$31,BOOKINGS!$A$5:$A$31,">=1-"&$G$3,BOOKINGS!$A$5:$A$31,"<="&$H$3&"-"&$G$3,BOOKINGS!$B$5:$B$31,$A41,BOOKINGS!$C$5:$C$31,"=FOB MILL",BOOKINGS!$D$5:$D$31,H$6))-SUMIFS(WITHDRAWALS!$F$5:$F$4000,WITHDRAWALS!$B$5:$B$4000,">=1-"&$G$3,WITHDRAWALS!$B$5:$B$4000,"<="&$H$3&"-"&$G$3,WITHDRAWALS!$C$5:$C$4000,$A41,WITHDRAWALS!$D$5:$D$4000,"=FOB MILL",WITHDRAWALS!$E$5:$E$4000,H$6)) ->  | I41: =IF($A41="","",(SUMIFS(BOOKINGS!$E$5:$E$31,BOOKINGS!$A$5:$A$31,">=1-"&$G$3,BOOKINGS!$A$5:$A$31,"<="&$H$3&"-"&$G$3,BOOKINGS!$B$5:$B$31,$A41,BOOKINGS!$C$5:$C$31,"=FOB MILL",BOOKINGS!$D$5:$D$31,I$6))-SUMIFS(WITHDRAWALS!$F$5:$F$4000,WITHDRAWALS!$B$5:$B$4000,">=1-"&$G$3,WITHDRAWALS!$B$5:$B$4000,"<="&$H$3&"-"&$G$3,WITHDRAWALS!$C$5:$C$4000,$A41,WITHDRAWALS!$D$5:$D$4000,"=FOB MILL",WITHDRAWALS!$E$5:$E$4000,I$6)) ->  | J41: =IF($A41="","",(SUMIFS(BOOKINGS!$E$5:$E$31,BOOKINGS!$A$5:$A$31,">=1-"&$G$3,BOOKINGS!$A$5:$A$31,"<="&$H$3&"-"&$G$3,BOOKINGS!$B$5:$B$31,$A41,BOOKINGS!$C$5:$C$31,"=FOB MILL",BOOKINGS!$D$5:$D$31,J$6))-SUMIFS(WITHDRAWALS!$F$5:$F$4000,WITHDRAWALS!$B$5:$B$4000,">=1-"&$G$3,WITHDRAWALS!$B$5:$B$4000,"<="&$H$3&"-"&$G$3,WITHDRAWALS!$C$5:$C$4000,$A41,WITHDRAWALS!$D$5:$D$4000,"=FOB MILL",WITHDRAWALS!$E$5:$E$4000,J$6)) ->  | K41: =IF($A41="","",(SUMIFS(BOOKINGS!$E$5:$E$31,BOOKINGS!$A$5:$A$31,">=1-"&$G$3,BOOKINGS!$A$5:$A$31,"<="&$H$3&"-"&$G$3,BOOKINGS!$B$5:$B$31,$A41,BOOKINGS!$C$5:$C$31,"=FOB MILL",BOOKINGS!$D$5:$D$31,K$6))-SUMIFS(WITHDRAWALS!$F$5:$F$4000,WITHDRAWALS!$B$5:$B$4000,">=1-"&$G$3,WITHDRAWALS!$B$5:$B$4000,"<="&$H$3&"-"&$G$3,WITHDRAWALS!$C$5:$C$4000,$A41,WITHDRAWALS!$D$5:$D$4000,"=FOB MILL",WITHDRAWALS!$E$5:$E$4000,K$6)) ->  | L41: =IF($A41="","",(SUMIFS(BOOKINGS!$E$5:$E$31,BOOKINGS!$A$5:$A$31,">=1-"&$G$3,BOOKINGS!$A$5:$A$31,"<="&$H$3&"-"&$G$3,BOOKINGS!$B$5:$B$31,$A41,BOOKINGS!$C$5:$C$31,"=FOB MILL",BOOKINGS!$D$5:$D$31,L$6))-SUMIFS(WITHDRAWALS!$F$5:$F$4000,WITHDRAWALS!$B$5:$B$4000,">=1-"&$G$3,WITHDRAWALS!$B$5:$B$4000,"<="&$H$3&"-"&$G$3,WITHDRAWALS!$C$5:$C$4000,$A41,WITHDRAWALS!$D$5:$D$4000,"=FOB MILL",WITHDRAWALS!$E$5:$E$4000,L$6)) -> 
A42: =IFERROR(INDEX(WITHDRAWALS!$C$5:$C$4000,SMALL(IF(FREQUENCY(IF(ISNUMBER(SEARCH("??"&TEXT($G$4,"mmm")&"??"&"|"&"?*"&"FOB MILL"&"|?*",WITHDRAWALS!$L$5:$L$4000)), MATCH(WITHDRAWALS!$C$5:$C$4000,WITHDRAWALS!$C$5:$C$4000,0)),Ivec),Ivec),ROWS($A$7:A42))),"") ->  | B42: =IF($A42="","",(SUMIFS(BOOKINGS!$E$5:$E$31,BOOKINGS!$A$5:$A$31,">=1-"&$G$3,BOOKINGS!$A$5:$A$31,"<="&$H$3&"-"&$G$3,BOOKINGS!$B$5:$B$31,$A42,BOOKINGS!$C$5:$C$31,"=FOB MILL",BOOKINGS!$D$5:$D$31,B$6))-SUMIFS(WITHDRAWALS!$F$5:$F$4000,WITHDRAWALS!$B$5:$B$4000,">=1-"&$G$3,WITHDRAWALS!$B$5:$B$4000,"<="&$H$3&"-"&$G$3,WITHDRAWALS!$C$5:$C$4000,$A42,WITHDRAWALS!$D$5:$D$4000,"=FOB MILL",WITHDRAWALS!$E$5:$E$4000,B$6)) ->  | C42: =IF($A42="","",(SUMIFS(BOOKINGS!$E$5:$E$31,BOOKINGS!$A$5:$A$31,">=1-"&$G$3,BOOKINGS!$A$5:$A$31,"<="&$H$3&"-"&$G$3,BOOKINGS!$B$5:$B$31,$A42,BOOKINGS!$C$5:$C$31,"=FOB MILL",BOOKINGS!$D$5:$D$31,C$6))-SUMIFS(WITHDRAWALS!$F$5:$F$4000,WITHDRAWALS!$B$5:$B$4000,">=1-"&$G$3,WITHDRAWALS!$B$5:$B$4000,"<="&$H$3&"-"&$G$3,WITHDRAWALS!$C$5:$C$4000,$A42,WITHDRAWALS!$D$5:$D$4000,"=FOB MILL",WITHDRAWALS!$E$5:$E$4000,C$6)) ->  | D42: =IF($A42="","",(SUMIFS(BOOKINGS!$E$5:$E$31,BOOKINGS!$A$5:$A$31,">=1-"&$G$3,BOOKINGS!$A$5:$A$31,"<="&$H$3&"-"&$G$3,BOOKINGS!$B$5:$B$31,$A42,BOOKINGS!$C$5:$C$31,"=FOB MILL",BOOKINGS!$D$5:$D$31,D$6))-SUMIFS(WITHDRAWALS!$F$5:$F$4000,WITHDRAWALS!$B$5:$B$4000,">=1-"&$G$3,WITHDRAWALS!$B$5:$B$4000,"<="&$H$3&"-"&$G$3,WITHDRAWALS!$C$5:$C$4000,$A42,WITHDRAWALS!$D$5:$D$4000,"=FOB MILL",WITHDRAWALS!$E$5:$E$4000,D$6)) ->  | E42: =IF($A42="","",(SUMIFS(BOOKINGS!$E$5:$E$31,BOOKINGS!$A$5:$A$31,">=1-"&$G$3,BOOKINGS!$A$5:$A$31,"<="&$H$3&"-"&$G$3,BOOKINGS!$B$5:$B$31,$A42,BOOKINGS!$C$5:$C$31,"=FOB MILL",BOOKINGS!$D$5:$D$31,E$6))-SUMIFS(WITHDRAWALS!$F$5:$F$4000,WITHDRAWALS!$B$5:$B$4000,">=1-"&$G$3,WITHDRAWALS!$B$5:$B$4000,"<="&$H$3&"-"&$G$3,WITHDRAWALS!$C$5:$C$4000,$A42,WITHDRAWALS!$D$5:$D$4000,"=FOB MILL",WITHDRAWALS!$E$5:$E$4000,E$6)) ->  | F42: =IF($A42="","",(SUMIFS(BOOKINGS!$E$5:$E$31,BOOKINGS!$A$5:$A$31,">=1-"&$G$3,BOOKINGS!$A$5:$A$31,"<="&$H$3&"-"&$G$3,BOOKINGS!$B$5:$B$31,$A42,BOOKINGS!$C$5:$C$31,"=FOB MILL",BOOKINGS!$D$5:$D$31,F$6))-SUMIFS(WITHDRAWALS!$F$5:$F$4000,WITHDRAWALS!$B$5:$B$4000,">=1-"&$G$3,WITHDRAWALS!$B$5:$B$4000,"<="&$H$3&"-"&$G$3,WITHDRAWALS!$C$5:$C$4000,$A42,WITHDRAWALS!$D$5:$D$4000,"=FOB MILL",WITHDRAWALS!$E$5:$E$4000,F$6)) ->  | G42: =IF($A42="","",(SUMIFS(BOOKINGS!$E$5:$E$31,BOOKINGS!$A$5:$A$31,">=1-"&$G$3,BOOKINGS!$A$5:$A$31,"<="&$H$3&"-"&$G$3,BOOKINGS!$B$5:$B$31,$A42,BOOKINGS!$C$5:$C$31,"=FOB MILL",BOOKINGS!$D$5:$D$31,G$6))-SUMIFS(WITHDRAWALS!$F$5:$F$4000,WITHDRAWALS!$B$5:$B$4000,">=1-"&$G$3,WITHDRAWALS!$B$5:$B$4000,"<="&$H$3&"-"&$G$3,WITHDRAWALS!$C$5:$C$4000,$A42,WITHDRAWALS!$D$5:$D$4000,"=FOB MILL",WITHDRAWALS!$E$5:$E$4000,G$6)) ->  | H42: =IF($A42="","",(SUMIFS(BOOKINGS!$E$5:$E$31,BOOKINGS!$A$5:$A$31,">=1-"&$G$3,BOOKINGS!$A$5:$A$31,"<="&$H$3&"-"&$G$3,BOOKINGS!$B$5:$B$31,$A42,BOOKINGS!$C$5:$C$31,"=FOB MILL",BOOKINGS!$D$5:$D$31,H$6))-SUMIFS(WITHDRAWALS!$F$5:$F$4000,WITHDRAWALS!$B$5:$B$4000,">=1-"&$G$3,WITHDRAWALS!$B$5:$B$4000,"<="&$H$3&"-"&$G$3,WITHDRAWALS!$C$5:$C$4000,$A42,WITHDRAWALS!$D$5:$D$4000,"=FOB MILL",WITHDRAWALS!$E$5:$E$4000,H$6)) ->  | I42: =IF($A42="","",(SUMIFS(BOOKINGS!$E$5:$E$31,BOOKINGS!$A$5:$A$31,">=1-"&$G$3,BOOKINGS!$A$5:$A$31,"<="&$H$3&"-"&$G$3,BOOKINGS!$B$5:$B$31,$A42,BOOKINGS!$C$5:$C$31,"=FOB MILL",BOOKINGS!$D$5:$D$31,I$6))-SUMIFS(WITHDRAWALS!$F$5:$F$4000,WITHDRAWALS!$B$5:$B$4000,">=1-"&$G$3,WITHDRAWALS!$B$5:$B$4000,"<="&$H$3&"-"&$G$3,WITHDRAWALS!$C$5:$C$4000,$A42,WITHDRAWALS!$D$5:$D$4000,"=FOB MILL",WITHDRAWALS!$E$5:$E$4000,I$6)) ->  | J42: =IF($A42="","",(SUMIFS(BOOKINGS!$E$5:$E$31,BOOKINGS!$A$5:$A$31,">=1-"&$G$3,BOOKINGS!$A$5:$A$31,"<="&$H$3&"-"&$G$3,BOOKINGS!$B$5:$B$31,$A42,BOOKINGS!$C$5:$C$31,"=FOB MILL",BOOKINGS!$D$5:$D$31,J$6))-SUMIFS(WITHDRAWALS!$F$5:$F$4000,WITHDRAWALS!$B$5:$B$4000,">=1-"&$G$3,WITHDRAWALS!$B$5:$B$4000,"<="&$H$3&"-"&$G$3,WITHDRAWALS!$C$5:$C$4000,$A42,WITHDRAWALS!$D$5:$D$4000,"=FOB MILL",WITHDRAWALS!$E$5:$E$4000,J$6)) ->  | K42: =IF($A42="","",(SUMIFS(BOOKINGS!$E$5:$E$31,BOOKINGS!$A$5:$A$31,">=1-"&$G$3,BOOKINGS!$A$5:$A$31,"<="&$H$3&"-"&$G$3,BOOKINGS!$B$5:$B$31,$A42,BOOKINGS!$C$5:$C$31,"=FOB MILL",BOOKINGS!$D$5:$D$31,K$6))-SUMIFS(WITHDRAWALS!$F$5:$F$4000,WITHDRAWALS!$B$5:$B$4000,">=1-"&$G$3,WITHDRAWALS!$B$5:$B$4000,"<="&$H$3&"-"&$G$3,WITHDRAWALS!$C$5:$C$4000,$A42,WITHDRAWALS!$D$5:$D$4000,"=FOB MILL",WITHDRAWALS!$E$5:$E$4000,K$6)) ->  | L42: =IF($A42="","",(SUMIFS(BOOKINGS!$E$5:$E$31,BOOKINGS!$A$5:$A$31,">=1-"&$G$3,BOOKINGS!$A$5:$A$31,"<="&$H$3&"-"&$G$3,BOOKINGS!$B$5:$B$31,$A42,BOOKINGS!$C$5:$C$31,"=FOB MILL",BOOKINGS!$D$5:$D$31,L$6))-SUMIFS(WITHDRAWALS!$F$5:$F$4000,WITHDRAWALS!$B$5:$B$4000,">=1-"&$G$3,WITHDRAWALS!$B$5:$B$4000,"<="&$H$3&"-"&$G$3,WITHDRAWALS!$C$5:$C$4000,$A42,WITHDRAWALS!$D$5:$D$4000,"=FOB MILL",WITHDRAWALS!$E$5:$E$4000,L$6)) -> 
A43: =IFERROR(INDEX(WITHDRAWALS!$C$5:$C$4000,SMALL(IF(FREQUENCY(IF(ISNUMBER(SEARCH("??"&TEXT($G$4,"mmm")&"??"&"|"&"?*"&"FOB MILL"&"|?*",WITHDRAWALS!$L$5:$L$4000)), MATCH(WITHDRAWALS!$C$5:$C$4000,WITHDRAWALS!$C$5:$C$4000,0)),Ivec),Ivec),ROWS($A$7:A43))),"") ->  | B43: =IF($A43="","",(SUMIFS(BOOKINGS!$E$5:$E$31,BOOKINGS!$A$5:$A$31,">=1-"&$G$3,BOOKINGS!$A$5:$A$31,"<="&$H$3&"-"&$G$3,BOOKINGS!$B$5:$B$31,$A43,BOOKINGS!$C$5:$C$31,"=FOB MILL",BOOKINGS!$D$5:$D$31,B$6))-SUMIFS(WITHDRAWALS!$F$5:$F$4000,WITHDRAWALS!$B$5:$B$4000,">=1-"&$G$3,WITHDRAWALS!$B$5:$B$4000,"<="&$H$3&"-"&$G$3,WITHDRAWALS!$C$5:$C$4000,$A43,WITHDRAWALS!$D$5:$D$4000,"=FOB MILL",WITHDRAWALS!$E$5:$E$4000,B$6)) ->  | C43: =IF($A43="","",(SUMIFS(BOOKINGS!$E$5:$E$31,BOOKINGS!$A$5:$A$31,">=1-"&$G$3,BOOKINGS!$A$5:$A$31,"<="&$H$3&"-"&$G$3,BOOKINGS!$B$5:$B$31,$A43,BOOKINGS!$C$5:$C$31,"=FOB MILL",BOOKINGS!$D$5:$D$31,C$6))-SUMIFS(WITHDRAWALS!$F$5:$F$4000,WITHDRAWALS!$B$5:$B$4000,">=1-"&$G$3,WITHDRAWALS!$B$5:$B$4000,"<="&$H$3&"-"&$G$3,WITHDRAWALS!$C$5:$C$4000,$A43,WITHDRAWALS!$D$5:$D$4000,"=FOB MILL",WITHDRAWALS!$E$5:$E$4000,C$6)) ->  | D43: =IF($A43="","",(SUMIFS(BOOKINGS!$E$5:$E$31,BOOKINGS!$A$5:$A$31,">=1-"&$G$3,BOOKINGS!$A$5:$A$31,"<="&$H$3&"-"&$G$3,BOOKINGS!$B$5:$B$31,$A43,BOOKINGS!$C$5:$C$31,"=FOB MILL",BOOKINGS!$D$5:$D$31,D$6))-SUMIFS(WITHDRAWALS!$F$5:$F$4000,WITHDRAWALS!$B$5:$B$4000,">=1-"&$G$3,WITHDRAWALS!$B$5:$B$4000,"<="&$H$3&"-"&$G$3,WITHDRAWALS!$C$5:$C$4000,$A43,WITHDRAWALS!$D$5:$D$4000,"=FOB MILL",WITHDRAWALS!$E$5:$E$4000,D$6)) ->  | E43: =IF($A43="","",(SUMIFS(BOOKINGS!$E$5:$E$31,BOOKINGS!$A$5:$A$31,">=1-"&$G$3,BOOKINGS!$A$5:$A$31,"<="&$H$3&"-"&$G$3,BOOKINGS!$B$5:$B$31,$A43,BOOKINGS!$C$5:$C$31,"=FOB MILL",BOOKINGS!$D$5:$D$31,E$6))-SUMIFS(WITHDRAWALS!$F$5:$F$4000,WITHDRAWALS!$B$5:$B$4000,">=1-"&$G$3,WITHDRAWALS!$B$5:$B$4000,"<="&$H$3&"-"&$G$3,WITHDRAWALS!$C$5:$C$4000,$A43,WITHDRAWALS!$D$5:$D$4000,"=FOB MILL",WITHDRAWALS!$E$5:$E$4000,E$6)) ->  | F43: =IF($A43="","",(SUMIFS(BOOKINGS!$E$5:$E$31,BOOKINGS!$A$5:$A$31,">=1-"&$G$3,BOOKINGS!$A$5:$A$31,"<="&$H$3&"-"&$G$3,BOOKINGS!$B$5:$B$31,$A43,BOOKINGS!$C$5:$C$31,"=FOB MILL",BOOKINGS!$D$5:$D$31,F$6))-SUMIFS(WITHDRAWALS!$F$5:$F$4000,WITHDRAWALS!$B$5:$B$4000,">=1-"&$G$3,WITHDRAWALS!$B$5:$B$4000,"<="&$H$3&"-"&$G$3,WITHDRAWALS!$C$5:$C$4000,$A43,WITHDRAWALS!$D$5:$D$4000,"=FOB MILL",WITHDRAWALS!$E$5:$E$4000,F$6)) ->  | G43: =IF($A43="","",(SUMIFS(BOOKINGS!$E$5:$E$31,BOOKINGS!$A$5:$A$31,">=1-"&$G$3,BOOKINGS!$A$5:$A$31,"<="&$H$3&"-"&$G$3,BOOKINGS!$B$5:$B$31,$A43,BOOKINGS!$C$5:$C$31,"=FOB MILL",BOOKINGS!$D$5:$D$31,G$6))-SUMIFS(WITHDRAWALS!$F$5:$F$4000,WITHDRAWALS!$B$5:$B$4000,">=1-"&$G$3,WITHDRAWALS!$B$5:$B$4000,"<="&$H$3&"-"&$G$3,WITHDRAWALS!$C$5:$C$4000,$A43,WITHDRAWALS!$D$5:$D$4000,"=FOB MILL",WITHDRAWALS!$E$5:$E$4000,G$6)) ->  | H43: =IF($A43="","",(SUMIFS(BOOKINGS!$E$5:$E$31,BOOKINGS!$A$5:$A$31,">=1-"&$G$3,BOOKINGS!$A$5:$A$31,"<="&$H$3&"-"&$G$3,BOOKINGS!$B$5:$B$31,$A43,BOOKINGS!$C$5:$C$31,"=FOB MILL",BOOKINGS!$D$5:$D$31,H$6))-SUMIFS(WITHDRAWALS!$F$5:$F$4000,WITHDRAWALS!$B$5:$B$4000,">=1-"&$G$3,WITHDRAWALS!$B$5:$B$4000,"<="&$H$3&"-"&$G$3,WITHDRAWALS!$C$5:$C$4000,$A43,WITHDRAWALS!$D$5:$D$4000,"=FOB MILL",WITHDRAWALS!$E$5:$E$4000,H$6)) ->  | I43: =IF($A43="","",(SUMIFS(BOOKINGS!$E$5:$E$31,BOOKINGS!$A$5:$A$31,">=1-"&$G$3,BOOKINGS!$A$5:$A$31,"<="&$H$3&"-"&$G$3,BOOKINGS!$B$5:$B$31,$A43,BOOKINGS!$C$5:$C$31,"=FOB MILL",BOOKINGS!$D$5:$D$31,I$6))-SUMIFS(WITHDRAWALS!$F$5:$F$4000,WITHDRAWALS!$B$5:$B$4000,">=1-"&$G$3,WITHDRAWALS!$B$5:$B$4000,"<="&$H$3&"-"&$G$3,WITHDRAWALS!$C$5:$C$4000,$A43,WITHDRAWALS!$D$5:$D$4000,"=FOB MILL",WITHDRAWALS!$E$5:$E$4000,I$6)) ->  | J43: =IF($A43="","",(SUMIFS(BOOKINGS!$E$5:$E$31,BOOKINGS!$A$5:$A$31,">=1-"&$G$3,BOOKINGS!$A$5:$A$31,"<="&$H$3&"-"&$G$3,BOOKINGS!$B$5:$B$31,$A43,BOOKINGS!$C$5:$C$31,"=FOB MILL",BOOKINGS!$D$5:$D$31,J$6))-SUMIFS(WITHDRAWALS!$F$5:$F$4000,WITHDRAWALS!$B$5:$B$4000,">=1-"&$G$3,WITHDRAWALS!$B$5:$B$4000,"<="&$H$3&"-"&$G$3,WITHDRAWALS!$C$5:$C$4000,$A43,WITHDRAWALS!$D$5:$D$4000,"=FOB MILL",WITHDRAWALS!$E$5:$E$4000,J$6)) ->  | K43: =IF($A43="","",(SUMIFS(BOOKINGS!$E$5:$E$31,BOOKINGS!$A$5:$A$31,">=1-"&$G$3,BOOKINGS!$A$5:$A$31,"<="&$H$3&"-"&$G$3,BOOKINGS!$B$5:$B$31,$A43,BOOKINGS!$C$5:$C$31,"=FOB MILL",BOOKINGS!$D$5:$D$31,K$6))-SUMIFS(WITHDRAWALS!$F$5:$F$4000,WITHDRAWALS!$B$5:$B$4000,">=1-"&$G$3,WITHDRAWALS!$B$5:$B$4000,"<="&$H$3&"-"&$G$3,WITHDRAWALS!$C$5:$C$4000,$A43,WITHDRAWALS!$D$5:$D$4000,"=FOB MILL",WITHDRAWALS!$E$5:$E$4000,K$6)) ->  | L43: =IF($A43="","",(SUMIFS(BOOKINGS!$E$5:$E$31,BOOKINGS!$A$5:$A$31,">=1-"&$G$3,BOOKINGS!$A$5:$A$31,"<="&$H$3&"-"&$G$3,BOOKINGS!$B$5:$B$31,$A43,BOOKINGS!$C$5:$C$31,"=FOB MILL",BOOKINGS!$D$5:$D$31,L$6))-SUMIFS(WITHDRAWALS!$F$5:$F$4000,WITHDRAWALS!$B$5:$B$4000,">=1-"&$G$3,WITHDRAWALS!$B$5:$B$4000,"<="&$H$3&"-"&$G$3,WITHDRAWALS!$C$5:$C$4000,$A43,WITHDRAWALS!$D$5:$D$4000,"=FOB MILL",WITHDRAWALS!$E$5:$E$4000,L$6)) -> 
A44: =IFERROR(INDEX(WITHDRAWALS!$C$5:$C$4000,SMALL(IF(FREQUENCY(IF(ISNUMBER(SEARCH("??"&TEXT($G$4,"mmm")&"??"&"|"&"?*"&"FOB MILL"&"|?*",WITHDRAWALS!$L$5:$L$4000)), MATCH(WITHDRAWALS!$C$5:$C$4000,WITHDRAWALS!$C$5:$C$4000,0)),Ivec),Ivec),ROWS($A$7:A44))),"") ->  | B44: =IF($A44="","",(SUMIFS(BOOKINGS!$E$5:$E$31,BOOKINGS!$A$5:$A$31,">=1-"&$G$3,BOOKINGS!$A$5:$A$31,"<="&$H$3&"-"&$G$3,BOOKINGS!$B$5:$B$31,$A44,BOOKINGS!$C$5:$C$31,"=FOB MILL",BOOKINGS!$D$5:$D$31,B$6))-SUMIFS(WITHDRAWALS!$F$5:$F$4000,WITHDRAWALS!$B$5:$B$4000,">=1-"&$G$3,WITHDRAWALS!$B$5:$B$4000,"<="&$H$3&"-"&$G$3,WITHDRAWALS!$C$5:$C$4000,$A44,WITHDRAWALS!$D$5:$D$4000,"=FOB MILL",WITHDRAWALS!$E$5:$E$4000,B$6)) ->  | C44: =IF($A44="","",(SUMIFS(BOOKINGS!$E$5:$E$31,BOOKINGS!$A$5:$A$31,">=1-"&$G$3,BOOKINGS!$A$5:$A$31,"<="&$H$3&"-"&$G$3,BOOKINGS!$B$5:$B$31,$A44,BOOKINGS!$C$5:$C$31,"=FOB MILL",BOOKINGS!$D$5:$D$31,C$6))-SUMIFS(WITHDRAWALS!$F$5:$F$4000,WITHDRAWALS!$B$5:$B$4000,">=1-"&$G$3,WITHDRAWALS!$B$5:$B$4000,"<="&$H$3&"-"&$G$3,WITHDRAWALS!$C$5:$C$4000,$A44,WITHDRAWALS!$D$5:$D$4000,"=FOB MILL",WITHDRAWALS!$E$5:$E$4000,C$6)) ->  | D44: =IF($A44="","",(SUMIFS(BOOKINGS!$E$5:$E$31,BOOKINGS!$A$5:$A$31,">=1-"&$G$3,BOOKINGS!$A$5:$A$31,"<="&$H$3&"-"&$G$3,BOOKINGS!$B$5:$B$31,$A44,BOOKINGS!$C$5:$C$31,"=FOB MILL",BOOKINGS!$D$5:$D$31,D$6))-SUMIFS(WITHDRAWALS!$F$5:$F$4000,WITHDRAWALS!$B$5:$B$4000,">=1-"&$G$3,WITHDRAWALS!$B$5:$B$4000,"<="&$H$3&"-"&$G$3,WITHDRAWALS!$C$5:$C$4000,$A44,WITHDRAWALS!$D$5:$D$4000,"=FOB MILL",WITHDRAWALS!$E$5:$E$4000,D$6)) ->  | E44: =IF($A44="","",(SUMIFS(BOOKINGS!$E$5:$E$31,BOOKINGS!$A$5:$A$31,">=1-"&$G$3,BOOKINGS!$A$5:$A$31,"<="&$H$3&"-"&$G$3,BOOKINGS!$B$5:$B$31,$A44,BOOKINGS!$C$5:$C$31,"=FOB MILL",BOOKINGS!$D$5:$D$31,E$6))-SUMIFS(WITHDRAWALS!$F$5:$F$4000,WITHDRAWALS!$B$5:$B$4000,">=1-"&$G$3,WITHDRAWALS!$B$5:$B$4000,"<="&$H$3&"-"&$G$3,WITHDRAWALS!$C$5:$C$4000,$A44,WITHDRAWALS!$D$5:$D$4000,"=FOB MILL",WITHDRAWALS!$E$5:$E$4000,E$6)) ->  | F44: =IF($A44="","",(SUMIFS(BOOKINGS!$E$5:$E$31,BOOKINGS!$A$5:$A$31,">=1-"&$G$3,BOOKINGS!$A$5:$A$31,"<="&$H$3&"-"&$G$3,BOOKINGS!$B$5:$B$31,$A44,BOOKINGS!$C$5:$C$31,"=FOB MILL",BOOKINGS!$D$5:$D$31,F$6))-SUMIFS(WITHDRAWALS!$F$5:$F$4000,WITHDRAWALS!$B$5:$B$4000,">=1-"&$G$3,WITHDRAWALS!$B$5:$B$4000,"<="&$H$3&"-"&$G$3,WITHDRAWALS!$C$5:$C$4000,$A44,WITHDRAWALS!$D$5:$D$4000,"=FOB MILL",WITHDRAWALS!$E$5:$E$4000,F$6)) ->  | G44: =IF($A44="","",(SUMIFS(BOOKINGS!$E$5:$E$31,BOOKINGS!$A$5:$A$31,">=1-"&$G$3,BOOKINGS!$A$5:$A$31,"<="&$H$3&"-"&$G$3,BOOKINGS!$B$5:$B$31,$A44,BOOKINGS!$C$5:$C$31,"=FOB MILL",BOOKINGS!$D$5:$D$31,G$6))-SUMIFS(WITHDRAWALS!$F$5:$F$4000,WITHDRAWALS!$B$5:$B$4000,">=1-"&$G$3,WITHDRAWALS!$B$5:$B$4000,"<="&$H$3&"-"&$G$3,WITHDRAWALS!$C$5:$C$4000,$A44,WITHDRAWALS!$D$5:$D$4000,"=FOB MILL",WITHDRAWALS!$E$5:$E$4000,G$6)) ->  | H44: =IF($A44="","",(SUMIFS(BOOKINGS!$E$5:$E$31,BOOKINGS!$A$5:$A$31,">=1-"&$G$3,BOOKINGS!$A$5:$A$31,"<="&$H$3&"-"&$G$3,BOOKINGS!$B$5:$B$31,$A44,BOOKINGS!$C$5:$C$31,"=FOB MILL",BOOKINGS!$D$5:$D$31,H$6))-SUMIFS(WITHDRAWALS!$F$5:$F$4000,WITHDRAWALS!$B$5:$B$4000,">=1-"&$G$3,WITHDRAWALS!$B$5:$B$4000,"<="&$H$3&"-"&$G$3,WITHDRAWALS!$C$5:$C$4000,$A44,WITHDRAWALS!$D$5:$D$4000,"=FOB MILL",WITHDRAWALS!$E$5:$E$4000,H$6)) ->  | I44: =IF($A44="","",(SUMIFS(BOOKINGS!$E$5:$E$31,BOOKINGS!$A$5:$A$31,">=1-"&$G$3,BOOKINGS!$A$5:$A$31,"<="&$H$3&"-"&$G$3,BOOKINGS!$B$5:$B$31,$A44,BOOKINGS!$C$5:$C$31,"=FOB MILL",BOOKINGS!$D$5:$D$31,I$6))-SUMIFS(WITHDRAWALS!$F$5:$F$4000,WITHDRAWALS!$B$5:$B$4000,">=1-"&$G$3,WITHDRAWALS!$B$5:$B$4000,"<="&$H$3&"-"&$G$3,WITHDRAWALS!$C$5:$C$4000,$A44,WITHDRAWALS!$D$5:$D$4000,"=FOB MILL",WITHDRAWALS!$E$5:$E$4000,I$6)) ->  | J44: =IF($A44="","",(SUMIFS(BOOKINGS!$E$5:$E$31,BOOKINGS!$A$5:$A$31,">=1-"&$G$3,BOOKINGS!$A$5:$A$31,"<="&$H$3&"-"&$G$3,BOOKINGS!$B$5:$B$31,$A44,BOOKINGS!$C$5:$C$31,"=FOB MILL",BOOKINGS!$D$5:$D$31,J$6))-SUMIFS(WITHDRAWALS!$F$5:$F$4000,WITHDRAWALS!$B$5:$B$4000,">=1-"&$G$3,WITHDRAWALS!$B$5:$B$4000,"<="&$H$3&"-"&$G$3,WITHDRAWALS!$C$5:$C$4000,$A44,WITHDRAWALS!$D$5:$D$4000,"=FOB MILL",WITHDRAWALS!$E$5:$E$4000,J$6)) ->  | K44: =IF($A44="","",(SUMIFS(BOOKINGS!$E$5:$E$31,BOOKINGS!$A$5:$A$31,">=1-"&$G$3,BOOKINGS!$A$5:$A$31,"<="&$H$3&"-"&$G$3,BOOKINGS!$B$5:$B$31,$A44,BOOKINGS!$C$5:$C$31,"=FOB MILL",BOOKINGS!$D$5:$D$31,K$6))-SUMIFS(WITHDRAWALS!$F$5:$F$4000,WITHDRAWALS!$B$5:$B$4000,">=1-"&$G$3,WITHDRAWALS!$B$5:$B$4000,"<="&$H$3&"-"&$G$3,WITHDRAWALS!$C$5:$C$4000,$A44,WITHDRAWALS!$D$5:$D$4000,"=FOB MILL",WITHDRAWALS!$E$5:$E$4000,K$6)) ->  | L44: =IF($A44="","",(SUMIFS(BOOKINGS!$E$5:$E$31,BOOKINGS!$A$5:$A$31,">=1-"&$G$3,BOOKINGS!$A$5:$A$31,"<="&$H$3&"-"&$G$3,BOOKINGS!$B$5:$B$31,$A44,BOOKINGS!$C$5:$C$31,"=FOB MILL",BOOKINGS!$D$5:$D$31,L$6))-SUMIFS(WITHDRAWALS!$F$5:$F$4000,WITHDRAWALS!$B$5:$B$4000,">=1-"&$G$3,WITHDRAWALS!$B$5:$B$4000,"<="&$H$3&"-"&$G$3,WITHDRAWALS!$C$5:$C$4000,$A44,WITHDRAWALS!$D$5:$D$4000,"=FOB MILL",WITHDRAWALS!$E$5:$E$4000,L$6)) -> 
A45: =IFERROR(INDEX(WITHDRAWALS!$C$5:$C$4000,SMALL(IF(FREQUENCY(IF(ISNUMBER(SEARCH("??"&TEXT($G$4,"mmm")&"??"&"|"&"?*"&"FOB MILL"&"|?*",WITHDRAWALS!$L$5:$L$4000)), MATCH(WITHDRAWALS!$C$5:$C$4000,WITHDRAWALS!$C$5:$C$4000,0)),Ivec),Ivec),ROWS($A$7:A45))),"") ->  | B45: =IF($A45="","",(SUMIFS(BOOKINGS!$E$5:$E$31,BOOKINGS!$A$5:$A$31,">=1-"&$G$3,BOOKINGS!$A$5:$A$31,"<="&$H$3&"-"&$G$3,BOOKINGS!$B$5:$B$31,$A45,BOOKINGS!$C$5:$C$31,"=FOB MILL",BOOKINGS!$D$5:$D$31,B$6))-SUMIFS(WITHDRAWALS!$F$5:$F$4000,WITHDRAWALS!$B$5:$B$4000,">=1-"&$G$3,WITHDRAWALS!$B$5:$B$4000,"<="&$H$3&"-"&$G$3,WITHDRAWALS!$C$5:$C$4000,$A45,WITHDRAWALS!$D$5:$D$4000,"=FOB MILL",WITHDRAWALS!$E$5:$E$4000,B$6)) ->  | C45: =IF($A45="","",(SUMIFS(BOOKINGS!$E$5:$E$31,BOOKINGS!$A$5:$A$31,">=1-"&$G$3,BOOKINGS!$A$5:$A$31,"<="&$H$3&"-"&$G$3,BOOKINGS!$B$5:$B$31,$A45,BOOKINGS!$C$5:$C$31,"=FOB MILL",BOOKINGS!$D$5:$D$31,C$6))-SUMIFS(WITHDRAWALS!$F$5:$F$4000,WITHDRAWALS!$B$5:$B$4000,">=1-"&$G$3,WITHDRAWALS!$B$5:$B$4000,"<="&$H$3&"-"&$G$3,WITHDRAWALS!$C$5:$C$4000,$A45,WITHDRAWALS!$D$5:$D$4000,"=FOB MILL",WITHDRAWALS!$E$5:$E$4000,C$6)) ->  | D45: =IF($A45="","",(SUMIFS(BOOKINGS!$E$5:$E$31,BOOKINGS!$A$5:$A$31,">=1-"&$G$3,BOOKINGS!$A$5:$A$31,"<="&$H$3&"-"&$G$3,BOOKINGS!$B$5:$B$31,$A45,BOOKINGS!$C$5:$C$31,"=FOB MILL",BOOKINGS!$D$5:$D$31,D$6))-SUMIFS(WITHDRAWALS!$F$5:$F$4000,WITHDRAWALS!$B$5:$B$4000,">=1-"&$G$3,WITHDRAWALS!$B$5:$B$4000,"<="&$H$3&"-"&$G$3,WITHDRAWALS!$C$5:$C$4000,$A45,WITHDRAWALS!$D$5:$D$4000,"=FOB MILL",WITHDRAWALS!$E$5:$E$4000,D$6)) ->  | E45: =IF($A45="","",(SUMIFS(BOOKINGS!$E$5:$E$31,BOOKINGS!$A$5:$A$31,">=1-"&$G$3,BOOKINGS!$A$5:$A$31,"<="&$H$3&"-"&$G$3,BOOKINGS!$B$5:$B$31,$A45,BOOKINGS!$C$5:$C$31,"=FOB MILL",BOOKINGS!$D$5:$D$31,E$6))-SUMIFS(WITHDRAWALS!$F$5:$F$4000,WITHDRAWALS!$B$5:$B$4000,">=1-"&$G$3,WITHDRAWALS!$B$5:$B$4000,"<="&$H$3&"-"&$G$3,WITHDRAWALS!$C$5:$C$4000,$A45,WITHDRAWALS!$D$5:$D$4000,"=FOB MILL",WITHDRAWALS!$E$5:$E$4000,E$6)) ->  | F45: =IF($A45="","",(SUMIFS(BOOKINGS!$E$5:$E$31,BOOKINGS!$A$5:$A$31,">=1-"&$G$3,BOOKINGS!$A$5:$A$31,"<="&$H$3&"-"&$G$3,BOOKINGS!$B$5:$B$31,$A45,BOOKINGS!$C$5:$C$31,"=FOB MILL",BOOKINGS!$D$5:$D$31,F$6))-SUMIFS(WITHDRAWALS!$F$5:$F$4000,WITHDRAWALS!$B$5:$B$4000,">=1-"&$G$3,WITHDRAWALS!$B$5:$B$4000,"<="&$H$3&"-"&$G$3,WITHDRAWALS!$C$5:$C$4000,$A45,WITHDRAWALS!$D$5:$D$4000,"=FOB MILL",WITHDRAWALS!$E$5:$E$4000,F$6)) ->  | G45: =IF($A45="","",(SUMIFS(BOOKINGS!$E$5:$E$31,BOOKINGS!$A$5:$A$31,">=1-"&$G$3,BOOKINGS!$A$5:$A$31,"<="&$H$3&"-"&$G$3,BOOKINGS!$B$5:$B$31,$A45,BOOKINGS!$C$5:$C$31,"=FOB MILL",BOOKINGS!$D$5:$D$31,G$6))-SUMIFS(WITHDRAWALS!$F$5:$F$4000,WITHDRAWALS!$B$5:$B$4000,">=1-"&$G$3,WITHDRAWALS!$B$5:$B$4000,"<="&$H$3&"-"&$G$3,WITHDRAWALS!$C$5:$C$4000,$A45,WITHDRAWALS!$D$5:$D$4000,"=FOB MILL",WITHDRAWALS!$E$5:$E$4000,G$6)) ->  | H45: =IF($A45="","",(SUMIFS(BOOKINGS!$E$5:$E$31,BOOKINGS!$A$5:$A$31,">=1-"&$G$3,BOOKINGS!$A$5:$A$31,"<="&$H$3&"-"&$G$3,BOOKINGS!$B$5:$B$31,$A45,BOOKINGS!$C$5:$C$31,"=FOB MILL",BOOKINGS!$D$5:$D$31,H$6))-SUMIFS(WITHDRAWALS!$F$5:$F$4000,WITHDRAWALS!$B$5:$B$4000,">=1-"&$G$3,WITHDRAWALS!$B$5:$B$4000,"<="&$H$3&"-"&$G$3,WITHDRAWALS!$C$5:$C$4000,$A45,WITHDRAWALS!$D$5:$D$4000,"=FOB MILL",WITHDRAWALS!$E$5:$E$4000,H$6)) ->  | I45: =IF($A45="","",(SUMIFS(BOOKINGS!$E$5:$E$31,BOOKINGS!$A$5:$A$31,">=1-"&$G$3,BOOKINGS!$A$5:$A$31,"<="&$H$3&"-"&$G$3,BOOKINGS!$B$5:$B$31,$A45,BOOKINGS!$C$5:$C$31,"=FOB MILL",BOOKINGS!$D$5:$D$31,I$6))-SUMIFS(WITHDRAWALS!$F$5:$F$4000,WITHDRAWALS!$B$5:$B$4000,">=1-"&$G$3,WITHDRAWALS!$B$5:$B$4000,"<="&$H$3&"-"&$G$3,WITHDRAWALS!$C$5:$C$4000,$A45,WITHDRAWALS!$D$5:$D$4000,"=FOB MILL",WITHDRAWALS!$E$5:$E$4000,I$6)) ->  | J45: =IF($A45="","",(SUMIFS(BOOKINGS!$E$5:$E$31,BOOKINGS!$A$5:$A$31,">=1-"&$G$3,BOOKINGS!$A$5:$A$31,"<="&$H$3&"-"&$G$3,BOOKINGS!$B$5:$B$31,$A45,BOOKINGS!$C$5:$C$31,"=FOB MILL",BOOKINGS!$D$5:$D$31,J$6))-SUMIFS(WITHDRAWALS!$F$5:$F$4000,WITHDRAWALS!$B$5:$B$4000,">=1-"&$G$3,WITHDRAWALS!$B$5:$B$4000,"<="&$H$3&"-"&$G$3,WITHDRAWALS!$C$5:$C$4000,$A45,WITHDRAWALS!$D$5:$D$4000,"=FOB MILL",WITHDRAWALS!$E$5:$E$4000,J$6)) ->  | K45: =IF($A45="","",(SUMIFS(BOOKINGS!$E$5:$E$31,BOOKINGS!$A$5:$A$31,">=1-"&$G$3,BOOKINGS!$A$5:$A$31,"<="&$H$3&"-"&$G$3,BOOKINGS!$B$5:$B$31,$A45,BOOKINGS!$C$5:$C$31,"=FOB MILL",BOOKINGS!$D$5:$D$31,K$6))-SUMIFS(WITHDRAWALS!$F$5:$F$4000,WITHDRAWALS!$B$5:$B$4000,">=1-"&$G$3,WITHDRAWALS!$B$5:$B$4000,"<="&$H$3&"-"&$G$3,WITHDRAWALS!$C$5:$C$4000,$A45,WITHDRAWALS!$D$5:$D$4000,"=FOB MILL",WITHDRAWALS!$E$5:$E$4000,K$6)) ->  | L45: =IF($A45="","",(SUMIFS(BOOKINGS!$E$5:$E$31,BOOKINGS!$A$5:$A$31,">=1-"&$G$3,BOOKINGS!$A$5:$A$31,"<="&$H$3&"-"&$G$3,BOOKINGS!$B$5:$B$31,$A45,BOOKINGS!$C$5:$C$31,"=FOB MILL",BOOKINGS!$D$5:$D$31,L$6))-SUMIFS(WITHDRAWALS!$F$5:$F$4000,WITHDRAWALS!$B$5:$B$4000,">=1-"&$G$3,WITHDRAWALS!$B$5:$B$4000,"<="&$H$3&"-"&$G$3,WITHDRAWALS!$C$5:$C$4000,$A45,WITHDRAWALS!$D$5:$D$4000,"=FOB MILL",WITHDRAWALS!$E$5:$E$4000,L$6)) -> 
A46: =IFERROR(INDEX(WITHDRAWALS!$C$5:$C$4000,SMALL(IF(FREQUENCY(IF(ISNUMBER(SEARCH("??"&TEXT($G$4,"mmm")&"??"&"|"&"?*"&"FOB MILL"&"|?*",WITHDRAWALS!$L$5:$L$4000)), MATCH(WITHDRAWALS!$C$5:$C$4000,WITHDRAWALS!$C$5:$C$4000,0)),Ivec),Ivec),ROWS($A$7:A46))),"") ->  | B46: =IF($A46="","",(SUMIFS(BOOKINGS!$E$5:$E$31,BOOKINGS!$A$5:$A$31,">=1-"&$G$3,BOOKINGS!$A$5:$A$31,"<="&$H$3&"-"&$G$3,BOOKINGS!$B$5:$B$31,$A46,BOOKINGS!$C$5:$C$31,"=FOB MILL",BOOKINGS!$D$5:$D$31,B$6))-SUMIFS(WITHDRAWALS!$F$5:$F$4000,WITHDRAWALS!$B$5:$B$4000,">=1-"&$G$3,WITHDRAWALS!$B$5:$B$4000,"<="&$H$3&"-"&$G$3,WITHDRAWALS!$C$5:$C$4000,$A46,WITHDRAWALS!$D$5:$D$4000,"=FOB MILL",WITHDRAWALS!$E$5:$E$4000,B$6)) ->  | C46: =IF($A46="","",(SUMIFS(BOOKINGS!$E$5:$E$31,BOOKINGS!$A$5:$A$31,">=1-"&$G$3,BOOKINGS!$A$5:$A$31,"<="&$H$3&"-"&$G$3,BOOKINGS!$B$5:$B$31,$A46,BOOKINGS!$C$5:$C$31,"=FOB MILL",BOOKINGS!$D$5:$D$31,C$6))-SUMIFS(WITHDRAWALS!$F$5:$F$4000,WITHDRAWALS!$B$5:$B$4000,">=1-"&$G$3,WITHDRAWALS!$B$5:$B$4000,"<="&$H$3&"-"&$G$3,WITHDRAWALS!$C$5:$C$4000,$A46,WITHDRAWALS!$D$5:$D$4000,"=FOB MILL",WITHDRAWALS!$E$5:$E$4000,C$6)) ->  | D46: =IF($A46="","",(SUMIFS(BOOKINGS!$E$5:$E$31,BOOKINGS!$A$5:$A$31,">=1-"&$G$3,BOOKINGS!$A$5:$A$31,"<="&$H$3&"-"&$G$3,BOOKINGS!$B$5:$B$31,$A46,BOOKINGS!$C$5:$C$31,"=FOB MILL",BOOKINGS!$D$5:$D$31,D$6))-SUMIFS(WITHDRAWALS!$F$5:$F$4000,WITHDRAWALS!$B$5:$B$4000,">=1-"&$G$3,WITHDRAWALS!$B$5:$B$4000,"<="&$H$3&"-"&$G$3,WITHDRAWALS!$C$5:$C$4000,$A46,WITHDRAWALS!$D$5:$D$4000,"=FOB MILL",WITHDRAWALS!$E$5:$E$4000,D$6)) ->  | E46: =IF($A46="","",(SUMIFS(BOOKINGS!$E$5:$E$31,BOOKINGS!$A$5:$A$31,">=1-"&$G$3,BOOKINGS!$A$5:$A$31,"<="&$H$3&"-"&$G$3,BOOKINGS!$B$5:$B$31,$A46,BOOKINGS!$C$5:$C$31,"=FOB MILL",BOOKINGS!$D$5:$D$31,E$6))-SUMIFS(WITHDRAWALS!$F$5:$F$4000,WITHDRAWALS!$B$5:$B$4000,">=1-"&$G$3,WITHDRAWALS!$B$5:$B$4000,"<="&$H$3&"-"&$G$3,WITHDRAWALS!$C$5:$C$4000,$A46,WITHDRAWALS!$D$5:$D$4000,"=FOB MILL",WITHDRAWALS!$E$5:$E$4000,E$6)) ->  | F46: =IF($A46="","",(SUMIFS(BOOKINGS!$E$5:$E$31,BOOKINGS!$A$5:$A$31,">=1-"&$G$3,BOOKINGS!$A$5:$A$31,"<="&$H$3&"-"&$G$3,BOOKINGS!$B$5:$B$31,$A46,BOOKINGS!$C$5:$C$31,"=FOB MILL",BOOKINGS!$D$5:$D$31,F$6))-SUMIFS(WITHDRAWALS!$F$5:$F$4000,WITHDRAWALS!$B$5:$B$4000,">=1-"&$G$3,WITHDRAWALS!$B$5:$B$4000,"<="&$H$3&"-"&$G$3,WITHDRAWALS!$C$5:$C$4000,$A46,WITHDRAWALS!$D$5:$D$4000,"=FOB MILL",WITHDRAWALS!$E$5:$E$4000,F$6)) ->  | G46: =IF($A46="","",(SUMIFS(BOOKINGS!$E$5:$E$31,BOOKINGS!$A$5:$A$31,">=1-"&$G$3,BOOKINGS!$A$5:$A$31,"<="&$H$3&"-"&$G$3,BOOKINGS!$B$5:$B$31,$A46,BOOKINGS!$C$5:$C$31,"=FOB MILL",BOOKINGS!$D$5:$D$31,G$6))-SUMIFS(WITHDRAWALS!$F$5:$F$4000,WITHDRAWALS!$B$5:$B$4000,">=1-"&$G$3,WITHDRAWALS!$B$5:$B$4000,"<="&$H$3&"-"&$G$3,WITHDRAWALS!$C$5:$C$4000,$A46,WITHDRAWALS!$D$5:$D$4000,"=FOB MILL",WITHDRAWALS!$E$5:$E$4000,G$6)) ->  | H46: =IF($A46="","",(SUMIFS(BOOKINGS!$E$5:$E$31,BOOKINGS!$A$5:$A$31,">=1-"&$G$3,BOOKINGS!$A$5:$A$31,"<="&$H$3&"-"&$G$3,BOOKINGS!$B$5:$B$31,$A46,BOOKINGS!$C$5:$C$31,"=FOB MILL",BOOKINGS!$D$5:$D$31,H$6))-SUMIFS(WITHDRAWALS!$F$5:$F$4000,WITHDRAWALS!$B$5:$B$4000,">=1-"&$G$3,WITHDRAWALS!$B$5:$B$4000,"<="&$H$3&"-"&$G$3,WITHDRAWALS!$C$5:$C$4000,$A46,WITHDRAWALS!$D$5:$D$4000,"=FOB MILL",WITHDRAWALS!$E$5:$E$4000,H$6)) ->  | I46: =IF($A46="","",(SUMIFS(BOOKINGS!$E$5:$E$31,BOOKINGS!$A$5:$A$31,">=1-"&$G$3,BOOKINGS!$A$5:$A$31,"<="&$H$3&"-"&$G$3,BOOKINGS!$B$5:$B$31,$A46,BOOKINGS!$C$5:$C$31,"=FOB MILL",BOOKINGS!$D$5:$D$31,I$6))-SUMIFS(WITHDRAWALS!$F$5:$F$4000,WITHDRAWALS!$B$5:$B$4000,">=1-"&$G$3,WITHDRAWALS!$B$5:$B$4000,"<="&$H$3&"-"&$G$3,WITHDRAWALS!$C$5:$C$4000,$A46,WITHDRAWALS!$D$5:$D$4000,"=FOB MILL",WITHDRAWALS!$E$5:$E$4000,I$6)) ->  | J46: =IF($A46="","",(SUMIFS(BOOKINGS!$E$5:$E$31,BOOKINGS!$A$5:$A$31,">=1-"&$G$3,BOOKINGS!$A$5:$A$31,"<="&$H$3&"-"&$G$3,BOOKINGS!$B$5:$B$31,$A46,BOOKINGS!$C$5:$C$31,"=FOB MILL",BOOKINGS!$D$5:$D$31,J$6))-SUMIFS(WITHDRAWALS!$F$5:$F$4000,WITHDRAWALS!$B$5:$B$4000,">=1-"&$G$3,WITHDRAWALS!$B$5:$B$4000,"<="&$H$3&"-"&$G$3,WITHDRAWALS!$C$5:$C$4000,$A46,WITHDRAWALS!$D$5:$D$4000,"=FOB MILL",WITHDRAWALS!$E$5:$E$4000,J$6)) ->  | K46: =IF($A46="","",(SUMIFS(BOOKINGS!$E$5:$E$31,BOOKINGS!$A$5:$A$31,">=1-"&$G$3,BOOKINGS!$A$5:$A$31,"<="&$H$3&"-"&$G$3,BOOKINGS!$B$5:$B$31,$A46,BOOKINGS!$C$5:$C$31,"=FOB MILL",BOOKINGS!$D$5:$D$31,K$6))-SUMIFS(WITHDRAWALS!$F$5:$F$4000,WITHDRAWALS!$B$5:$B$4000,">=1-"&$G$3,WITHDRAWALS!$B$5:$B$4000,"<="&$H$3&"-"&$G$3,WITHDRAWALS!$C$5:$C$4000,$A46,WITHDRAWALS!$D$5:$D$4000,"=FOB MILL",WITHDRAWALS!$E$5:$E$4000,K$6)) ->  | L46: =IF($A46="","",(SUMIFS(BOOKINGS!$E$5:$E$31,BOOKINGS!$A$5:$A$31,">=1-"&$G$3,BOOKINGS!$A$5:$A$31,"<="&$H$3&"-"&$G$3,BOOKINGS!$B$5:$B$31,$A46,BOOKINGS!$C$5:$C$31,"=FOB MILL",BOOKINGS!$D$5:$D$31,L$6))-SUMIFS(WITHDRAWALS!$F$5:$F$4000,WITHDRAWALS!$B$5:$B$4000,">=1-"&$G$3,WITHDRAWALS!$B$5:$B$4000,"<="&$H$3&"-"&$G$3,WITHDRAWALS!$C$5:$C$4000,$A46,WITHDRAWALS!$D$5:$D$4000,"=FOB MILL",WITHDRAWALS!$E$5:$E$4000,L$6)) -> 
A47: =IFERROR(INDEX(WITHDRAWALS!$C$5:$C$4000,SMALL(IF(FREQUENCY(IF(ISNUMBER(SEARCH("??"&TEXT($G$4,"mmm")&"??"&"|"&"?*"&"FOB MILL"&"|?*",WITHDRAWALS!$L$5:$L$4000)), MATCH(WITHDRAWALS!$C$5:$C$4000,WITHDRAWALS!$C$5:$C$4000,0)),Ivec),Ivec),ROWS($A$7:A47))),"") ->  | B47: =IF($A47="","",(SUMIFS(BOOKINGS!$E$5:$E$31,BOOKINGS!$A$5:$A$31,">=1-"&$G$3,BOOKINGS!$A$5:$A$31,"<="&$H$3&"-"&$G$3,BOOKINGS!$B$5:$B$31,$A47,BOOKINGS!$C$5:$C$31,"=FOB MILL",BOOKINGS!$D$5:$D$31,B$6))-SUMIFS(WITHDRAWALS!$F$5:$F$4000,WITHDRAWALS!$B$5:$B$4000,">=1-"&$G$3,WITHDRAWALS!$B$5:$B$4000,"<="&$H$3&"-"&$G$3,WITHDRAWALS!$C$5:$C$4000,$A47,WITHDRAWALS!$D$5:$D$4000,"=FOB MILL",WITHDRAWALS!$E$5:$E$4000,B$6)) ->  | C47: =IF($A47="","",(SUMIFS(BOOKINGS!$E$5:$E$31,BOOKINGS!$A$5:$A$31,">=1-"&$G$3,BOOKINGS!$A$5:$A$31,"<="&$H$3&"-"&$G$3,BOOKINGS!$B$5:$B$31,$A47,BOOKINGS!$C$5:$C$31,"=FOB MILL",BOOKINGS!$D$5:$D$31,C$6))-SUMIFS(WITHDRAWALS!$F$5:$F$4000,WITHDRAWALS!$B$5:$B$4000,">=1-"&$G$3,WITHDRAWALS!$B$5:$B$4000,"<="&$H$3&"-"&$G$3,WITHDRAWALS!$C$5:$C$4000,$A47,WITHDRAWALS!$D$5:$D$4000,"=FOB MILL",WITHDRAWALS!$E$5:$E$4000,C$6)) ->  | D47: =IF($A47="","",(SUMIFS(BOOKINGS!$E$5:$E$31,BOOKINGS!$A$5:$A$31,">=1-"&$G$3,BOOKINGS!$A$5:$A$31,"<="&$H$3&"-"&$G$3,BOOKINGS!$B$5:$B$31,$A47,BOOKINGS!$C$5:$C$31,"=FOB MILL",BOOKINGS!$D$5:$D$31,D$6))-SUMIFS(WITHDRAWALS!$F$5:$F$4000,WITHDRAWALS!$B$5:$B$4000,">=1-"&$G$3,WITHDRAWALS!$B$5:$B$4000,"<="&$H$3&"-"&$G$3,WITHDRAWALS!$C$5:$C$4000,$A47,WITHDRAWALS!$D$5:$D$4000,"=FOB MILL",WITHDRAWALS!$E$5:$E$4000,D$6)) ->  | E47: =IF($A47="","",(SUMIFS(BOOKINGS!$E$5:$E$31,BOOKINGS!$A$5:$A$31,">=1-"&$G$3,BOOKINGS!$A$5:$A$31,"<="&$H$3&"-"&$G$3,BOOKINGS!$B$5:$B$31,$A47,BOOKINGS!$C$5:$C$31,"=FOB MILL",BOOKINGS!$D$5:$D$31,E$6))-SUMIFS(WITHDRAWALS!$F$5:$F$4000,WITHDRAWALS!$B$5:$B$4000,">=1-"&$G$3,WITHDRAWALS!$B$5:$B$4000,"<="&$H$3&"-"&$G$3,WITHDRAWALS!$C$5:$C$4000,$A47,WITHDRAWALS!$D$5:$D$4000,"=FOB MILL",WITHDRAWALS!$E$5:$E$4000,E$6)) ->  | F47: =IF($A47="","",(SUMIFS(BOOKINGS!$E$5:$E$31,BOOKINGS!$A$5:$A$31,">=1-"&$G$3,BOOKINGS!$A$5:$A$31,"<="&$H$3&"-"&$G$3,BOOKINGS!$B$5:$B$31,$A47,BOOKINGS!$C$5:$C$31,"=FOB MILL",BOOKINGS!$D$5:$D$31,F$6))-SUMIFS(WITHDRAWALS!$F$5:$F$4000,WITHDRAWALS!$B$5:$B$4000,">=1-"&$G$3,WITHDRAWALS!$B$5:$B$4000,"<="&$H$3&"-"&$G$3,WITHDRAWALS!$C$5:$C$4000,$A47,WITHDRAWALS!$D$5:$D$4000,"=FOB MILL",WITHDRAWALS!$E$5:$E$4000,F$6)) ->  | G47: =IF($A47="","",(SUMIFS(BOOKINGS!$E$5:$E$31,BOOKINGS!$A$5:$A$31,">=1-"&$G$3,BOOKINGS!$A$5:$A$31,"<="&$H$3&"-"&$G$3,BOOKINGS!$B$5:$B$31,$A47,BOOKINGS!$C$5:$C$31,"=FOB MILL",BOOKINGS!$D$5:$D$31,G$6))-SUMIFS(WITHDRAWALS!$F$5:$F$4000,WITHDRAWALS!$B$5:$B$4000,">=1-"&$G$3,WITHDRAWALS!$B$5:$B$4000,"<="&$H$3&"-"&$G$3,WITHDRAWALS!$C$5:$C$4000,$A47,WITHDRAWALS!$D$5:$D$4000,"=FOB MILL",WITHDRAWALS!$E$5:$E$4000,G$6)) ->  | H47: =IF($A47="","",(SUMIFS(BOOKINGS!$E$5:$E$31,BOOKINGS!$A$5:$A$31,">=1-"&$G$3,BOOKINGS!$A$5:$A$31,"<="&$H$3&"-"&$G$3,BOOKINGS!$B$5:$B$31,$A47,BOOKINGS!$C$5:$C$31,"=FOB MILL",BOOKINGS!$D$5:$D$31,H$6))-SUMIFS(WITHDRAWALS!$F$5:$F$4000,WITHDRAWALS!$B$5:$B$4000,">=1-"&$G$3,WITHDRAWALS!$B$5:$B$4000,"<="&$H$3&"-"&$G$3,WITHDRAWALS!$C$5:$C$4000,$A47,WITHDRAWALS!$D$5:$D$4000,"=FOB MILL",WITHDRAWALS!$E$5:$E$4000,H$6)) ->  | I47: =IF($A47="","",(SUMIFS(BOOKINGS!$E$5:$E$31,BOOKINGS!$A$5:$A$31,">=1-"&$G$3,BOOKINGS!$A$5:$A$31,"<="&$H$3&"-"&$G$3,BOOKINGS!$B$5:$B$31,$A47,BOOKINGS!$C$5:$C$31,"=FOB MILL",BOOKINGS!$D$5:$D$31,I$6))-SUMIFS(WITHDRAWALS!$F$5:$F$4000,WITHDRAWALS!$B$5:$B$4000,">=1-"&$G$3,WITHDRAWALS!$B$5:$B$4000,"<="&$H$3&"-"&$G$3,WITHDRAWALS!$C$5:$C$4000,$A47,WITHDRAWALS!$D$5:$D$4000,"=FOB MILL",WITHDRAWALS!$E$5:$E$4000,I$6)) ->  | J47: =IF($A47="","",(SUMIFS(BOOKINGS!$E$5:$E$31,BOOKINGS!$A$5:$A$31,">=1-"&$G$3,BOOKINGS!$A$5:$A$31,"<="&$H$3&"-"&$G$3,BOOKINGS!$B$5:$B$31,$A47,BOOKINGS!$C$5:$C$31,"=FOB MILL",BOOKINGS!$D$5:$D$31,J$6))-SUMIFS(WITHDRAWALS!$F$5:$F$4000,WITHDRAWALS!$B$5:$B$4000,">=1-"&$G$3,WITHDRAWALS!$B$5:$B$4000,"<="&$H$3&"-"&$G$3,WITHDRAWALS!$C$5:$C$4000,$A47,WITHDRAWALS!$D$5:$D$4000,"=FOB MILL",WITHDRAWALS!$E$5:$E$4000,J$6)) ->  | K47: =IF($A47="","",(SUMIFS(BOOKINGS!$E$5:$E$31,BOOKINGS!$A$5:$A$31,">=1-"&$G$3,BOOKINGS!$A$5:$A$31,"<="&$H$3&"-"&$G$3,BOOKINGS!$B$5:$B$31,$A47,BOOKINGS!$C$5:$C$31,"=FOB MILL",BOOKINGS!$D$5:$D$31,K$6))-SUMIFS(WITHDRAWALS!$F$5:$F$4000,WITHDRAWALS!$B$5:$B$4000,">=1-"&$G$3,WITHDRAWALS!$B$5:$B$4000,"<="&$H$3&"-"&$G$3,WITHDRAWALS!$C$5:$C$4000,$A47,WITHDRAWALS!$D$5:$D$4000,"=FOB MILL",WITHDRAWALS!$E$5:$E$4000,K$6)) ->  | L47: =IF($A47="","",(SUMIFS(BOOKINGS!$E$5:$E$31,BOOKINGS!$A$5:$A$31,">=1-"&$G$3,BOOKINGS!$A$5:$A$31,"<="&$H$3&"-"&$G$3,BOOKINGS!$B$5:$B$31,$A47,BOOKINGS!$C$5:$C$31,"=FOB MILL",BOOKINGS!$D$5:$D$31,L$6))-SUMIFS(WITHDRAWALS!$F$5:$F$4000,WITHDRAWALS!$B$5:$B$4000,">=1-"&$G$3,WITHDRAWALS!$B$5:$B$4000,"<="&$H$3&"-"&$G$3,WITHDRAWALS!$C$5:$C$4000,$A47,WITHDRAWALS!$D$5:$D$4000,"=FOB MILL",WITHDRAWALS!$E$5:$E$4000,L$6)) -> 
A48: =IFERROR(INDEX(WITHDRAWALS!$C$5:$C$4000,SMALL(IF(FREQUENCY(IF(ISNUMBER(SEARCH("??"&TEXT($G$4,"mmm")&"??"&"|"&"?*"&"FOB MILL"&"|?*",WITHDRAWALS!$L$5:$L$4000)), MATCH(WITHDRAWALS!$C$5:$C$4000,WITHDRAWALS!$C$5:$C$4000,0)),Ivec),Ivec),ROWS($A$7:A48))),"") ->  | B48: =IF($A48="","",(SUMIFS(BOOKINGS!$E$5:$E$31,BOOKINGS!$A$5:$A$31,">=1-"&$G$3,BOOKINGS!$A$5:$A$31,"<="&$H$3&"-"&$G$3,BOOKINGS!$B$5:$B$31,$A48,BOOKINGS!$C$5:$C$31,"=FOB MILL",BOOKINGS!$D$5:$D$31,B$6))-SUMIFS(WITHDRAWALS!$F$5:$F$4000,WITHDRAWALS!$B$5:$B$4000,">=1-"&$G$3,WITHDRAWALS!$B$5:$B$4000,"<="&$H$3&"-"&$G$3,WITHDRAWALS!$C$5:$C$4000,$A48,WITHDRAWALS!$D$5:$D$4000,"=FOB MILL",WITHDRAWALS!$E$5:$E$4000,B$6)) ->  | C48: =IF($A48="","",(SUMIFS(BOOKINGS!$E$5:$E$31,BOOKINGS!$A$5:$A$31,">=1-"&$G$3,BOOKINGS!$A$5:$A$31,"<="&$H$3&"-"&$G$3,BOOKINGS!$B$5:$B$31,$A48,BOOKINGS!$C$5:$C$31,"=FOB MILL",BOOKINGS!$D$5:$D$31,C$6))-SUMIFS(WITHDRAWALS!$F$5:$F$4000,WITHDRAWALS!$B$5:$B$4000,">=1-"&$G$3,WITHDRAWALS!$B$5:$B$4000,"<="&$H$3&"-"&$G$3,WITHDRAWALS!$C$5:$C$4000,$A48,WITHDRAWALS!$D$5:$D$4000,"=FOB MILL",WITHDRAWALS!$E$5:$E$4000,C$6)) ->  | D48: =IF($A48="","",(SUMIFS(BOOKINGS!$E$5:$E$31,BOOKINGS!$A$5:$A$31,">=1-"&$G$3,BOOKINGS!$A$5:$A$31,"<="&$H$3&"-"&$G$3,BOOKINGS!$B$5:$B$31,$A48,BOOKINGS!$C$5:$C$31,"=FOB MILL",BOOKINGS!$D$5:$D$31,D$6))-SUMIFS(WITHDRAWALS!$F$5:$F$4000,WITHDRAWALS!$B$5:$B$4000,">=1-"&$G$3,WITHDRAWALS!$B$5:$B$4000,"<="&$H$3&"-"&$G$3,WITHDRAWALS!$C$5:$C$4000,$A48,WITHDRAWALS!$D$5:$D$4000,"=FOB MILL",WITHDRAWALS!$E$5:$E$4000,D$6)) ->  | E48: =IF($A48="","",(SUMIFS(BOOKINGS!$E$5:$E$31,BOOKINGS!$A$5:$A$31,">=1-"&$G$3,BOOKINGS!$A$5:$A$31,"<="&$H$3&"-"&$G$3,BOOKINGS!$B$5:$B$31,$A48,BOOKINGS!$C$5:$C$31,"=FOB MILL",BOOKINGS!$D$5:$D$31,E$6))-SUMIFS(WITHDRAWALS!$F$5:$F$4000,WITHDRAWALS!$B$5:$B$4000,">=1-"&$G$3,WITHDRAWALS!$B$5:$B$4000,"<="&$H$3&"-"&$G$3,WITHDRAWALS!$C$5:$C$4000,$A48,WITHDRAWALS!$D$5:$D$4000,"=FOB MILL",WITHDRAWALS!$E$5:$E$4000,E$6)) ->  | F48: =IF($A48="","",(SUMIFS(BOOKINGS!$E$5:$E$31,BOOKINGS!$A$5:$A$31,">=1-"&$G$3,BOOKINGS!$A$5:$A$31,"<="&$H$3&"-"&$G$3,BOOKINGS!$B$5:$B$31,$A48,BOOKINGS!$C$5:$C$31,"=FOB MILL",BOOKINGS!$D$5:$D$31,F$6))-SUMIFS(WITHDRAWALS!$F$5:$F$4000,WITHDRAWALS!$B$5:$B$4000,">=1-"&$G$3,WITHDRAWALS!$B$5:$B$4000,"<="&$H$3&"-"&$G$3,WITHDRAWALS!$C$5:$C$4000,$A48,WITHDRAWALS!$D$5:$D$4000,"=FOB MILL",WITHDRAWALS!$E$5:$E$4000,F$6)) ->  | G48: =IF($A48="","",(SUMIFS(BOOKINGS!$E$5:$E$31,BOOKINGS!$A$5:$A$31,">=1-"&$G$3,BOOKINGS!$A$5:$A$31,"<="&$H$3&"-"&$G$3,BOOKINGS!$B$5:$B$31,$A48,BOOKINGS!$C$5:$C$31,"=FOB MILL",BOOKINGS!$D$5:$D$31,G$6))-SUMIFS(WITHDRAWALS!$F$5:$F$4000,WITHDRAWALS!$B$5:$B$4000,">=1-"&$G$3,WITHDRAWALS!$B$5:$B$4000,"<="&$H$3&"-"&$G$3,WITHDRAWALS!$C$5:$C$4000,$A48,WITHDRAWALS!$D$5:$D$4000,"=FOB MILL",WITHDRAWALS!$E$5:$E$4000,G$6)) ->  | H48: =IF($A48="","",(SUMIFS(BOOKINGS!$E$5:$E$31,BOOKINGS!$A$5:$A$31,">=1-"&$G$3,BOOKINGS!$A$5:$A$31,"<="&$H$3&"-"&$G$3,BOOKINGS!$B$5:$B$31,$A48,BOOKINGS!$C$5:$C$31,"=FOB MILL",BOOKINGS!$D$5:$D$31,H$6))-SUMIFS(WITHDRAWALS!$F$5:$F$4000,WITHDRAWALS!$B$5:$B$4000,">=1-"&$G$3,WITHDRAWALS!$B$5:$B$4000,"<="&$H$3&"-"&$G$3,WITHDRAWALS!$C$5:$C$4000,$A48,WITHDRAWALS!$D$5:$D$4000,"=FOB MILL",WITHDRAWALS!$E$5:$E$4000,H$6)) ->  | I48: =IF($A48="","",(SUMIFS(BOOKINGS!$E$5:$E$31,BOOKINGS!$A$5:$A$31,">=1-"&$G$3,BOOKINGS!$A$5:$A$31,"<="&$H$3&"-"&$G$3,BOOKINGS!$B$5:$B$31,$A48,BOOKINGS!$C$5:$C$31,"=FOB MILL",BOOKINGS!$D$5:$D$31,I$6))-SUMIFS(WITHDRAWALS!$F$5:$F$4000,WITHDRAWALS!$B$5:$B$4000,">=1-"&$G$3,WITHDRAWALS!$B$5:$B$4000,"<="&$H$3&"-"&$G$3,WITHDRAWALS!$C$5:$C$4000,$A48,WITHDRAWALS!$D$5:$D$4000,"=FOB MILL",WITHDRAWALS!$E$5:$E$4000,I$6)) ->  | J48: =IF($A48="","",(SUMIFS(BOOKINGS!$E$5:$E$31,BOOKINGS!$A$5:$A$31,">=1-"&$G$3,BOOKINGS!$A$5:$A$31,"<="&$H$3&"-"&$G$3,BOOKINGS!$B$5:$B$31,$A48,BOOKINGS!$C$5:$C$31,"=FOB MILL",BOOKINGS!$D$5:$D$31,J$6))-SUMIFS(WITHDRAWALS!$F$5:$F$4000,WITHDRAWALS!$B$5:$B$4000,">=1-"&$G$3,WITHDRAWALS!$B$5:$B$4000,"<="&$H$3&"-"&$G$3,WITHDRAWALS!$C$5:$C$4000,$A48,WITHDRAWALS!$D$5:$D$4000,"=FOB MILL",WITHDRAWALS!$E$5:$E$4000,J$6)) ->  | K48: =IF($A48="","",(SUMIFS(BOOKINGS!$E$5:$E$31,BOOKINGS!$A$5:$A$31,">=1-"&$G$3,BOOKINGS!$A$5:$A$31,"<="&$H$3&"-"&$G$3,BOOKINGS!$B$5:$B$31,$A48,BOOKINGS!$C$5:$C$31,"=FOB MILL",BOOKINGS!$D$5:$D$31,K$6))-SUMIFS(WITHDRAWALS!$F$5:$F$4000,WITHDRAWALS!$B$5:$B$4000,">=1-"&$G$3,WITHDRAWALS!$B$5:$B$4000,"<="&$H$3&"-"&$G$3,WITHDRAWALS!$C$5:$C$4000,$A48,WITHDRAWALS!$D$5:$D$4000,"=FOB MILL",WITHDRAWALS!$E$5:$E$4000,K$6)) ->  | L48: =IF($A48="","",(SUMIFS(BOOKINGS!$E$5:$E$31,BOOKINGS!$A$5:$A$31,">=1-"&$G$3,BOOKINGS!$A$5:$A$31,"<="&$H$3&"-"&$G$3,BOOKINGS!$B$5:$B$31,$A48,BOOKINGS!$C$5:$C$31,"=FOB MILL",BOOKINGS!$D$5:$D$31,L$6))-SUMIFS(WITHDRAWALS!$F$5:$F$4000,WITHDRAWALS!$B$5:$B$4000,">=1-"&$G$3,WITHDRAWALS!$B$5:$B$4000,"<="&$H$3&"-"&$G$3,WITHDRAWALS!$C$5:$C$4000,$A48,WITHDRAWALS!$D$5:$D$4000,"=FOB MILL",WITHDRAWALS!$E$5:$E$4000,L$6)) -> 
A49: =IFERROR(INDEX(WITHDRAWALS!$C$5:$C$4000,SMALL(IF(FREQUENCY(IF(ISNUMBER(SEARCH("??"&TEXT($G$4,"mmm")&"??"&"|"&"?*"&"FOB MILL"&"|?*",WITHDRAWALS!$L$5:$L$4000)), MATCH(WITHDRAWALS!$C$5:$C$4000,WITHDRAWALS!$C$5:$C$4000,0)),Ivec),Ivec),ROWS($A$7:A49))),"") ->  | B49: =IF($A49="","",(SUMIFS(BOOKINGS!$E$5:$E$31,BOOKINGS!$A$5:$A$31,">=1-"&$G$3,BOOKINGS!$A$5:$A$31,"<="&$H$3&"-"&$G$3,BOOKINGS!$B$5:$B$31,$A49,BOOKINGS!$C$5:$C$31,"=FOB MILL",BOOKINGS!$D$5:$D$31,B$6))-SUMIFS(WITHDRAWALS!$F$5:$F$4000,WITHDRAWALS!$B$5:$B$4000,">=1-"&$G$3,WITHDRAWALS!$B$5:$B$4000,"<="&$H$3&"-"&$G$3,WITHDRAWALS!$C$5:$C$4000,$A49,WITHDRAWALS!$D$5:$D$4000,"=FOB MILL",WITHDRAWALS!$E$5:$E$4000,B$6)) ->  | C49: =IF($A49="","",(SUMIFS(BOOKINGS!$E$5:$E$31,BOOKINGS!$A$5:$A$31,">=1-"&$G$3,BOOKINGS!$A$5:$A$31,"<="&$H$3&"-"&$G$3,BOOKINGS!$B$5:$B$31,$A49,BOOKINGS!$C$5:$C$31,"=FOB MILL",BOOKINGS!$D$5:$D$31,C$6))-SUMIFS(WITHDRAWALS!$F$5:$F$4000,WITHDRAWALS!$B$5:$B$4000,">=1-"&$G$3,WITHDRAWALS!$B$5:$B$4000,"<="&$H$3&"-"&$G$3,WITHDRAWALS!$C$5:$C$4000,$A49,WITHDRAWALS!$D$5:$D$4000,"=FOB MILL",WITHDRAWALS!$E$5:$E$4000,C$6)) ->  | D49: =IF($A49="","",(SUMIFS(BOOKINGS!$E$5:$E$31,BOOKINGS!$A$5:$A$31,">=1-"&$G$3,BOOKINGS!$A$5:$A$31,"<="&$H$3&"-"&$G$3,BOOKINGS!$B$5:$B$31,$A49,BOOKINGS!$C$5:$C$31,"=FOB MILL",BOOKINGS!$D$5:$D$31,D$6))-SUMIFS(WITHDRAWALS!$F$5:$F$4000,WITHDRAWALS!$B$5:$B$4000,">=1-"&$G$3,WITHDRAWALS!$B$5:$B$4000,"<="&$H$3&"-"&$G$3,WITHDRAWALS!$C$5:$C$4000,$A49,WITHDRAWALS!$D$5:$D$4000,"=FOB MILL",WITHDRAWALS!$E$5:$E$4000,D$6)) ->  | E49: =IF($A49="","",(SUMIFS(BOOKINGS!$E$5:$E$31,BOOKINGS!$A$5:$A$31,">=1-"&$G$3,BOOKINGS!$A$5:$A$31,"<="&$H$3&"-"&$G$3,BOOKINGS!$B$5:$B$31,$A49,BOOKINGS!$C$5:$C$31,"=FOB MILL",BOOKINGS!$D$5:$D$31,E$6))-SUMIFS(WITHDRAWALS!$F$5:$F$4000,WITHDRAWALS!$B$5:$B$4000,">=1-"&$G$3,WITHDRAWALS!$B$5:$B$4000,"<="&$H$3&"-"&$G$3,WITHDRAWALS!$C$5:$C$4000,$A49,WITHDRAWALS!$D$5:$D$4000,"=FOB MILL",WITHDRAWALS!$E$5:$E$4000,E$6)) ->  | F49: =IF($A49="","",(SUMIFS(BOOKINGS!$E$5:$E$31,BOOKINGS!$A$5:$A$31,">=1-"&$G$3,BOOKINGS!$A$5:$A$31,"<="&$H$3&"-"&$G$3,BOOKINGS!$B$5:$B$31,$A49,BOOKINGS!$C$5:$C$31,"=FOB MILL",BOOKINGS!$D$5:$D$31,F$6))-SUMIFS(WITHDRAWALS!$F$5:$F$4000,WITHDRAWALS!$B$5:$B$4000,">=1-"&$G$3,WITHDRAWALS!$B$5:$B$4000,"<="&$H$3&"-"&$G$3,WITHDRAWALS!$C$5:$C$4000,$A49,WITHDRAWALS!$D$5:$D$4000,"=FOB MILL",WITHDRAWALS!$E$5:$E$4000,F$6)) ->  | G49: =IF($A49="","",(SUMIFS(BOOKINGS!$E$5:$E$31,BOOKINGS!$A$5:$A$31,">=1-"&$G$3,BOOKINGS!$A$5:$A$31,"<="&$H$3&"-"&$G$3,BOOKINGS!$B$5:$B$31,$A49,BOOKINGS!$C$5:$C$31,"=FOB MILL",BOOKINGS!$D$5:$D$31,G$6))-SUMIFS(WITHDRAWALS!$F$5:$F$4000,WITHDRAWALS!$B$5:$B$4000,">=1-"&$G$3,WITHDRAWALS!$B$5:$B$4000,"<="&$H$3&"-"&$G$3,WITHDRAWALS!$C$5:$C$4000,$A49,WITHDRAWALS!$D$5:$D$4000,"=FOB MILL",WITHDRAWALS!$E$5:$E$4000,G$6)) ->  | H49: =IF($A49="","",(SUMIFS(BOOKINGS!$E$5:$E$31,BOOKINGS!$A$5:$A$31,">=1-"&$G$3,BOOKINGS!$A$5:$A$31,"<="&$H$3&"-"&$G$3,BOOKINGS!$B$5:$B$31,$A49,BOOKINGS!$C$5:$C$31,"=FOB MILL",BOOKINGS!$D$5:$D$31,H$6))-SUMIFS(WITHDRAWALS!$F$5:$F$4000,WITHDRAWALS!$B$5:$B$4000,">=1-"&$G$3,WITHDRAWALS!$B$5:$B$4000,"<="&$H$3&"-"&$G$3,WITHDRAWALS!$C$5:$C$4000,$A49,WITHDRAWALS!$D$5:$D$4000,"=FOB MILL",WITHDRAWALS!$E$5:$E$4000,H$6)) ->  | I49: =IF($A49="","",(SUMIFS(BOOKINGS!$E$5:$E$31,BOOKINGS!$A$5:$A$31,">=1-"&$G$3,BOOKINGS!$A$5:$A$31,"<="&$H$3&"-"&$G$3,BOOKINGS!$B$5:$B$31,$A49,BOOKINGS!$C$5:$C$31,"=FOB MILL",BOOKINGS!$D$5:$D$31,I$6))-SUMIFS(WITHDRAWALS!$F$5:$F$4000,WITHDRAWALS!$B$5:$B$4000,">=1-"&$G$3,WITHDRAWALS!$B$5:$B$4000,"<="&$H$3&"-"&$G$3,WITHDRAWALS!$C$5:$C$4000,$A49,WITHDRAWALS!$D$5:$D$4000,"=FOB MILL",WITHDRAWALS!$E$5:$E$4000,I$6)) ->  | J49: =IF($A49="","",(SUMIFS(BOOKINGS!$E$5:$E$31,BOOKINGS!$A$5:$A$31,">=1-"&$G$3,BOOKINGS!$A$5:$A$31,"<="&$H$3&"-"&$G$3,BOOKINGS!$B$5:$B$31,$A49,BOOKINGS!$C$5:$C$31,"=FOB MILL",BOOKINGS!$D$5:$D$31,J$6))-SUMIFS(WITHDRAWALS!$F$5:$F$4000,WITHDRAWALS!$B$5:$B$4000,">=1-"&$G$3,WITHDRAWALS!$B$5:$B$4000,"<="&$H$3&"-"&$G$3,WITHDRAWALS!$C$5:$C$4000,$A49,WITHDRAWALS!$D$5:$D$4000,"=FOB MILL",WITHDRAWALS!$E$5:$E$4000,J$6)) ->  | K49: =IF($A49="","",(SUMIFS(BOOKINGS!$E$5:$E$31,BOOKINGS!$A$5:$A$31,">=1-"&$G$3,BOOKINGS!$A$5:$A$31,"<="&$H$3&"-"&$G$3,BOOKINGS!$B$5:$B$31,$A49,BOOKINGS!$C$5:$C$31,"=FOB MILL",BOOKINGS!$D$5:$D$31,K$6))-SUMIFS(WITHDRAWALS!$F$5:$F$4000,WITHDRAWALS!$B$5:$B$4000,">=1-"&$G$3,WITHDRAWALS!$B$5:$B$4000,"<="&$H$3&"-"&$G$3,WITHDRAWALS!$C$5:$C$4000,$A49,WITHDRAWALS!$D$5:$D$4000,"=FOB MILL",WITHDRAWALS!$E$5:$E$4000,K$6)) ->  | L49: =IF($A49="","",(SUMIFS(BOOKINGS!$E$5:$E$31,BOOKINGS!$A$5:$A$31,">=1-"&$G$3,BOOKINGS!$A$5:$A$31,"<="&$H$3&"-"&$G$3,BOOKINGS!$B$5:$B$31,$A49,BOOKINGS!$C$5:$C$31,"=FOB MILL",BOOKINGS!$D$5:$D$31,L$6))-SUMIFS(WITHDRAWALS!$F$5:$F$4000,WITHDRAWALS!$B$5:$B$4000,">=1-"&$G$3,WITHDRAWALS!$B$5:$B$4000,"<="&$H$3&"-"&$G$3,WITHDRAWALS!$C$5:$C$4000,$A49,WITHDRAWALS!$D$5:$D$4000,"=FOB MILL",WITHDRAWALS!$E$5:$E$4000,L$6)) -> 
A50: =IFERROR(INDEX(WITHDRAWALS!$C$5:$C$4000,SMALL(IF(FREQUENCY(IF(ISNUMBER(SEARCH("??"&TEXT($G$4,"mmm")&"??"&"|"&"?*"&"FOB MILL"&"|?*",WITHDRAWALS!$L$5:$L$4000)), MATCH(WITHDRAWALS!$C$5:$C$4000,WITHDRAWALS!$C$5:$C$4000,0)),Ivec),Ivec),ROWS($A$7:A50))),"") ->  | B50: =IF($A50="","",(SUMIFS(BOOKINGS!$E$5:$E$31,BOOKINGS!$A$5:$A$31,">=1-"&$G$3,BOOKINGS!$A$5:$A$31,"<="&$H$3&"-"&$G$3,BOOKINGS!$B$5:$B$31,$A50,BOOKINGS!$C$5:$C$31,"=FOB MILL",BOOKINGS!$D$5:$D$31,B$6))-SUMIFS(WITHDRAWALS!$F$5:$F$4000,WITHDRAWALS!$B$5:$B$4000,">=1-"&$G$3,WITHDRAWALS!$B$5:$B$4000,"<="&$H$3&"-"&$G$3,WITHDRAWALS!$C$5:$C$4000,$A50,WITHDRAWALS!$D$5:$D$4000,"=FOB MILL",WITHDRAWALS!$E$5:$E$4000,B$6)) ->  | C50: =IF($A50="","",(SUMIFS(BOOKINGS!$E$5:$E$31,BOOKINGS!$A$5:$A$31,">=1-"&$G$3,BOOKINGS!$A$5:$A$31,"<="&$H$3&"-"&$G$3,BOOKINGS!$B$5:$B$31,$A50,BOOKINGS!$C$5:$C$31,"=FOB MILL",BOOKINGS!$D$5:$D$31,C$6))-SUMIFS(WITHDRAWALS!$F$5:$F$4000,WITHDRAWALS!$B$5:$B$4000,">=1-"&$G$3,WITHDRAWALS!$B$5:$B$4000,"<="&$H$3&"-"&$G$3,WITHDRAWALS!$C$5:$C$4000,$A50,WITHDRAWALS!$D$5:$D$4000,"=FOB MILL",WITHDRAWALS!$E$5:$E$4000,C$6)) ->  | D50: =IF($A50="","",(SUMIFS(BOOKINGS!$E$5:$E$31,BOOKINGS!$A$5:$A$31,">=1-"&$G$3,BOOKINGS!$A$5:$A$31,"<="&$H$3&"-"&$G$3,BOOKINGS!$B$5:$B$31,$A50,BOOKINGS!$C$5:$C$31,"=FOB MILL",BOOKINGS!$D$5:$D$31,D$6))-SUMIFS(WITHDRAWALS!$F$5:$F$4000,WITHDRAWALS!$B$5:$B$4000,">=1-"&$G$3,WITHDRAWALS!$B$5:$B$4000,"<="&$H$3&"-"&$G$3,WITHDRAWALS!$C$5:$C$4000,$A50,WITHDRAWALS!$D$5:$D$4000,"=FOB MILL",WITHDRAWALS!$E$5:$E$4000,D$6)) ->  | E50: =IF($A50="","",(SUMIFS(BOOKINGS!$E$5:$E$31,BOOKINGS!$A$5:$A$31,">=1-"&$G$3,BOOKINGS!$A$5:$A$31,"<="&$H$3&"-"&$G$3,BOOKINGS!$B$5:$B$31,$A50,BOOKINGS!$C$5:$C$31,"=FOB MILL",BOOKINGS!$D$5:$D$31,E$6))-SUMIFS(WITHDRAWALS!$F$5:$F$4000,WITHDRAWALS!$B$5:$B$4000,">=1-"&$G$3,WITHDRAWALS!$B$5:$B$4000,"<="&$H$3&"-"&$G$3,WITHDRAWALS!$C$5:$C$4000,$A50,WITHDRAWALS!$D$5:$D$4000,"=FOB MILL",WITHDRAWALS!$E$5:$E$4000,E$6)) ->  | F50: =IF($A50="","",(SUMIFS(BOOKINGS!$E$5:$E$31,BOOKINGS!$A$5:$A$31,">=1-"&$G$3,BOOKINGS!$A$5:$A$31,"<="&$H$3&"-"&$G$3,BOOKINGS!$B$5:$B$31,$A50,BOOKINGS!$C$5:$C$31,"=FOB MILL",BOOKINGS!$D$5:$D$31,F$6))-SUMIFS(WITHDRAWALS!$F$5:$F$4000,WITHDRAWALS!$B$5:$B$4000,">=1-"&$G$3,WITHDRAWALS!$B$5:$B$4000,"<="&$H$3&"-"&$G$3,WITHDRAWALS!$C$5:$C$4000,$A50,WITHDRAWALS!$D$5:$D$4000,"=FOB MILL",WITHDRAWALS!$E$5:$E$4000,F$6)) ->  | G50: =IF($A50="","",(SUMIFS(BOOKINGS!$E$5:$E$31,BOOKINGS!$A$5:$A$31,">=1-"&$G$3,BOOKINGS!$A$5:$A$31,"<="&$H$3&"-"&$G$3,BOOKINGS!$B$5:$B$31,$A50,BOOKINGS!$C$5:$C$31,"=FOB MILL",BOOKINGS!$D$5:$D$31,G$6))-SUMIFS(WITHDRAWALS!$F$5:$F$4000,WITHDRAWALS!$B$5:$B$4000,">=1-"&$G$3,WITHDRAWALS!$B$5:$B$4000,"<="&$H$3&"-"&$G$3,WITHDRAWALS!$C$5:$C$4000,$A50,WITHDRAWALS!$D$5:$D$4000,"=FOB MILL",WITHDRAWALS!$E$5:$E$4000,G$6)) ->  | H50: =IF($A50="","",(SUMIFS(BOOKINGS!$E$5:$E$31,BOOKINGS!$A$5:$A$31,">=1-"&$G$3,BOOKINGS!$A$5:$A$31,"<="&$H$3&"-"&$G$3,BOOKINGS!$B$5:$B$31,$A50,BOOKINGS!$C$5:$C$31,"=FOB MILL",BOOKINGS!$D$5:$D$31,H$6))-SUMIFS(WITHDRAWALS!$F$5:$F$4000,WITHDRAWALS!$B$5:$B$4000,">=1-"&$G$3,WITHDRAWALS!$B$5:$B$4000,"<="&$H$3&"-"&$G$3,WITHDRAWALS!$C$5:$C$4000,$A50,WITHDRAWALS!$D$5:$D$4000,"=FOB MILL",WITHDRAWALS!$E$5:$E$4000,H$6)) ->  | I50: =IF($A50="","",(SUMIFS(BOOKINGS!$E$5:$E$31,BOOKINGS!$A$5:$A$31,">=1-"&$G$3,BOOKINGS!$A$5:$A$31,"<="&$H$3&"-"&$G$3,BOOKINGS!$B$5:$B$31,$A50,BOOKINGS!$C$5:$C$31,"=FOB MILL",BOOKINGS!$D$5:$D$31,I$6))-SUMIFS(WITHDRAWALS!$F$5:$F$4000,WITHDRAWALS!$B$5:$B$4000,">=1-"&$G$3,WITHDRAWALS!$B$5:$B$4000,"<="&$H$3&"-"&$G$3,WITHDRAWALS!$C$5:$C$4000,$A50,WITHDRAWALS!$D$5:$D$4000,"=FOB MILL",WITHDRAWALS!$E$5:$E$4000,I$6)) ->  | J50: =IF($A50="","",(SUMIFS(BOOKINGS!$E$5:$E$31,BOOKINGS!$A$5:$A$31,">=1-"&$G$3,BOOKINGS!$A$5:$A$31,"<="&$H$3&"-"&$G$3,BOOKINGS!$B$5:$B$31,$A50,BOOKINGS!$C$5:$C$31,"=FOB MILL",BOOKINGS!$D$5:$D$31,J$6))-SUMIFS(WITHDRAWALS!$F$5:$F$4000,WITHDRAWALS!$B$5:$B$4000,">=1-"&$G$3,WITHDRAWALS!$B$5:$B$4000,"<="&$H$3&"-"&$G$3,WITHDRAWALS!$C$5:$C$4000,$A50,WITHDRAWALS!$D$5:$D$4000,"=FOB MILL",WITHDRAWALS!$E$5:$E$4000,J$6)) ->  | K50: =IF($A50="","",(SUMIFS(BOOKINGS!$E$5:$E$31,BOOKINGS!$A$5:$A$31,">=1-"&$G$3,BOOKINGS!$A$5:$A$31,"<="&$H$3&"-"&$G$3,BOOKINGS!$B$5:$B$31,$A50,BOOKINGS!$C$5:$C$31,"=FOB MILL",BOOKINGS!$D$5:$D$31,K$6))-SUMIFS(WITHDRAWALS!$F$5:$F$4000,WITHDRAWALS!$B$5:$B$4000,">=1-"&$G$3,WITHDRAWALS!$B$5:$B$4000,"<="&$H$3&"-"&$G$3,WITHDRAWALS!$C$5:$C$4000,$A50,WITHDRAWALS!$D$5:$D$4000,"=FOB MILL",WITHDRAWALS!$E$5:$E$4000,K$6)) ->  | L50: =IF($A50="","",(SUMIFS(BOOKINGS!$E$5:$E$31,BOOKINGS!$A$5:$A$31,">=1-"&$G$3,BOOKINGS!$A$5:$A$31,"<="&$H$3&"-"&$G$3,BOOKINGS!$B$5:$B$31,$A50,BOOKINGS!$C$5:$C$31,"=FOB MILL",BOOKINGS!$D$5:$D$31,L$6))-SUMIFS(WITHDRAWALS!$F$5:$F$4000,WITHDRAWALS!$B$5:$B$4000,">=1-"&$G$3,WITHDRAWALS!$B$5:$B$4000,"<="&$H$3&"-"&$G$3,WITHDRAWALS!$C$5:$C$4000,$A50,WITHDRAWALS!$D$5:$D$4000,"=FOB MILL",WITHDRAWALS!$E$5:$E$4000,L$6)) -> 
A51: =IFERROR(INDEX(WITHDRAWALS!$C$5:$C$4000,SMALL(IF(FREQUENCY(IF(ISNUMBER(SEARCH("??"&TEXT($G$4,"mmm")&"??"&"|"&"?*"&"FOB MILL"&"|?*",WITHDRAWALS!$L$5:$L$4000)), MATCH(WITHDRAWALS!$C$5:$C$4000,WITHDRAWALS!$C$5:$C$4000,0)),Ivec),Ivec),ROWS($A$7:A51))),"") ->  | B51: =IF($A51="","",(SUMIFS(BOOKINGS!$E$5:$E$31,BOOKINGS!$A$5:$A$31,">=1-"&$G$3,BOOKINGS!$A$5:$A$31,"<="&$H$3&"-"&$G$3,BOOKINGS!$B$5:$B$31,$A51,BOOKINGS!$C$5:$C$31,"=FOB MILL",BOOKINGS!$D$5:$D$31,B$6))-SUMIFS(WITHDRAWALS!$F$5:$F$4000,WITHDRAWALS!$B$5:$B$4000,">=1-"&$G$3,WITHDRAWALS!$B$5:$B$4000,"<="&$H$3&"-"&$G$3,WITHDRAWALS!$C$5:$C$4000,$A51,WITHDRAWALS!$D$5:$D$4000,"=FOB MILL",WITHDRAWALS!$E$5:$E$4000,B$6)) ->  | C51: =IF($A51="","",(SUMIFS(BOOKINGS!$E$5:$E$31,BOOKINGS!$A$5:$A$31,">=1-"&$G$3,BOOKINGS!$A$5:$A$31,"<="&$H$3&"-"&$G$3,BOOKINGS!$B$5:$B$31,$A51,BOOKINGS!$C$5:$C$31,"=FOB MILL",BOOKINGS!$D$5:$D$31,C$6))-SUMIFS(WITHDRAWALS!$F$5:$F$4000,WITHDRAWALS!$B$5:$B$4000,">=1-"&$G$3,WITHDRAWALS!$B$5:$B$4000,"<="&$H$3&"-"&$G$3,WITHDRAWALS!$C$5:$C$4000,$A51,WITHDRAWALS!$D$5:$D$4000,"=FOB MILL",WITHDRAWALS!$E$5:$E$4000,C$6)) ->  | D51: =IF($A51="","",(SUMIFS(BOOKINGS!$E$5:$E$31,BOOKINGS!$A$5:$A$31,">=1-"&$G$3,BOOKINGS!$A$5:$A$31,"<="&$H$3&"-"&$G$3,BOOKINGS!$B$5:$B$31,$A51,BOOKINGS!$C$5:$C$31,"=FOB MILL",BOOKINGS!$D$5:$D$31,D$6))-SUMIFS(WITHDRAWALS!$F$5:$F$4000,WITHDRAWALS!$B$5:$B$4000,">=1-"&$G$3,WITHDRAWALS!$B$5:$B$4000,"<="&$H$3&"-"&$G$3,WITHDRAWALS!$C$5:$C$4000,$A51,WITHDRAWALS!$D$5:$D$4000,"=FOB MILL",WITHDRAWALS!$E$5:$E$4000,D$6)) ->  | E51: =IF($A51="","",(SUMIFS(BOOKINGS!$E$5:$E$31,BOOKINGS!$A$5:$A$31,">=1-"&$G$3,BOOKINGS!$A$5:$A$31,"<="&$H$3&"-"&$G$3,BOOKINGS!$B$5:$B$31,$A51,BOOKINGS!$C$5:$C$31,"=FOB MILL",BOOKINGS!$D$5:$D$31,E$6))-SUMIFS(WITHDRAWALS!$F$5:$F$4000,WITHDRAWALS!$B$5:$B$4000,">=1-"&$G$3,WITHDRAWALS!$B$5:$B$4000,"<="&$H$3&"-"&$G$3,WITHDRAWALS!$C$5:$C$4000,$A51,WITHDRAWALS!$D$5:$D$4000,"=FOB MILL",WITHDRAWALS!$E$5:$E$4000,E$6)) ->  | F51: =IF($A51="","",(SUMIFS(BOOKINGS!$E$5:$E$31,BOOKINGS!$A$5:$A$31,">=1-"&$G$3,BOOKINGS!$A$5:$A$31,"<="&$H$3&"-"&$G$3,BOOKINGS!$B$5:$B$31,$A51,BOOKINGS!$C$5:$C$31,"=FOB MILL",BOOKINGS!$D$5:$D$31,F$6))-SUMIFS(WITHDRAWALS!$F$5:$F$4000,WITHDRAWALS!$B$5:$B$4000,">=1-"&$G$3,WITHDRAWALS!$B$5:$B$4000,"<="&$H$3&"-"&$G$3,WITHDRAWALS!$C$5:$C$4000,$A51,WITHDRAWALS!$D$5:$D$4000,"=FOB MILL",WITHDRAWALS!$E$5:$E$4000,F$6)) ->  | G51: =IF($A51="","",(SUMIFS(BOOKINGS!$E$5:$E$31,BOOKINGS!$A$5:$A$31,">=1-"&$G$3,BOOKINGS!$A$5:$A$31,"<="&$H$3&"-"&$G$3,BOOKINGS!$B$5:$B$31,$A51,BOOKINGS!$C$5:$C$31,"=FOB MILL",BOOKINGS!$D$5:$D$31,G$6))-SUMIFS(WITHDRAWALS!$F$5:$F$4000,WITHDRAWALS!$B$5:$B$4000,">=1-"&$G$3,WITHDRAWALS!$B$5:$B$4000,"<="&$H$3&"-"&$G$3,WITHDRAWALS!$C$5:$C$4000,$A51,WITHDRAWALS!$D$5:$D$4000,"=FOB MILL",WITHDRAWALS!$E$5:$E$4000,G$6)) ->  | H51: =IF($A51="","",(SUMIFS(BOOKINGS!$E$5:$E$31,BOOKINGS!$A$5:$A$31,">=1-"&$G$3,BOOKINGS!$A$5:$A$31,"<="&$H$3&"-"&$G$3,BOOKINGS!$B$5:$B$31,$A51,BOOKINGS!$C$5:$C$31,"=FOB MILL",BOOKINGS!$D$5:$D$31,H$6))-SUMIFS(WITHDRAWALS!$F$5:$F$4000,WITHDRAWALS!$B$5:$B$4000,">=1-"&$G$3,WITHDRAWALS!$B$5:$B$4000,"<="&$H$3&"-"&$G$3,WITHDRAWALS!$C$5:$C$4000,$A51,WITHDRAWALS!$D$5:$D$4000,"=FOB MILL",WITHDRAWALS!$E$5:$E$4000,H$6)) ->  | I51: =IF($A51="","",(SUMIFS(BOOKINGS!$E$5:$E$31,BOOKINGS!$A$5:$A$31,">=1-"&$G$3,BOOKINGS!$A$5:$A$31,"<="&$H$3&"-"&$G$3,BOOKINGS!$B$5:$B$31,$A51,BOOKINGS!$C$5:$C$31,"=FOB MILL",BOOKINGS!$D$5:$D$31,I$6))-SUMIFS(WITHDRAWALS!$F$5:$F$4000,WITHDRAWALS!$B$5:$B$4000,">=1-"&$G$3,WITHDRAWALS!$B$5:$B$4000,"<="&$H$3&"-"&$G$3,WITHDRAWALS!$C$5:$C$4000,$A51,WITHDRAWALS!$D$5:$D$4000,"=FOB MILL",WITHDRAWALS!$E$5:$E$4000,I$6)) ->  | J51: =IF($A51="","",(SUMIFS(BOOKINGS!$E$5:$E$31,BOOKINGS!$A$5:$A$31,">=1-"&$G$3,BOOKINGS!$A$5:$A$31,"<="&$H$3&"-"&$G$3,BOOKINGS!$B$5:$B$31,$A51,BOOKINGS!$C$5:$C$31,"=FOB MILL",BOOKINGS!$D$5:$D$31,J$6))-SUMIFS(WITHDRAWALS!$F$5:$F$4000,WITHDRAWALS!$B$5:$B$4000,">=1-"&$G$3,WITHDRAWALS!$B$5:$B$4000,"<="&$H$3&"-"&$G$3,WITHDRAWALS!$C$5:$C$4000,$A51,WITHDRAWALS!$D$5:$D$4000,"=FOB MILL",WITHDRAWALS!$E$5:$E$4000,J$6)) ->  | K51: =IF($A51="","",(SUMIFS(BOOKINGS!$E$5:$E$31,BOOKINGS!$A$5:$A$31,">=1-"&$G$3,BOOKINGS!$A$5:$A$31,"<="&$H$3&"-"&$G$3,BOOKINGS!$B$5:$B$31,$A51,BOOKINGS!$C$5:$C$31,"=FOB MILL",BOOKINGS!$D$5:$D$31,K$6))-SUMIFS(WITHDRAWALS!$F$5:$F$4000,WITHDRAWALS!$B$5:$B$4000,">=1-"&$G$3,WITHDRAWALS!$B$5:$B$4000,"<="&$H$3&"-"&$G$3,WITHDRAWALS!$C$5:$C$4000,$A51,WITHDRAWALS!$D$5:$D$4000,"=FOB MILL",WITHDRAWALS!$E$5:$E$4000,K$6)) ->  | L51: =IF($A51="","",(SUMIFS(BOOKINGS!$E$5:$E$31,BOOKINGS!$A$5:$A$31,">=1-"&$G$3,BOOKINGS!$A$5:$A$31,"<="&$H$3&"-"&$G$3,BOOKINGS!$B$5:$B$31,$A51,BOOKINGS!$C$5:$C$31,"=FOB MILL",BOOKINGS!$D$5:$D$31,L$6))-SUMIFS(WITHDRAWALS!$F$5:$F$4000,WITHDRAWALS!$B$5:$B$4000,">=1-"&$G$3,WITHDRAWALS!$B$5:$B$4000,"<="&$H$3&"-"&$G$3,WITHDRAWALS!$C$5:$C$4000,$A51,WITHDRAWALS!$D$5:$D$4000,"=FOB MILL",WITHDRAWALS!$E$5:$E$4000,L$6)) -> 
A52: =IFERROR(INDEX(WITHDRAWALS!$C$5:$C$4000,SMALL(IF(FREQUENCY(IF(ISNUMBER(SEARCH("??"&TEXT($G$4,"mmm")&"??"&"|"&"?*"&"FOB MILL"&"|?*",WITHDRAWALS!$L$5:$L$4000)), MATCH(WITHDRAWALS!$C$5:$C$4000,WITHDRAWALS!$C$5:$C$4000,0)),Ivec),Ivec),ROWS($A$7:A52))),"") ->  | B52: =IF($A52="","",(SUMIFS(BOOKINGS!$E$5:$E$31,BOOKINGS!$A$5:$A$31,">=1-"&$G$3,BOOKINGS!$A$5:$A$31,"<="&$H$3&"-"&$G$3,BOOKINGS!$B$5:$B$31,$A52,BOOKINGS!$C$5:$C$31,"=FOB MILL",BOOKINGS!$D$5:$D$31,B$6))-SUMIFS(WITHDRAWALS!$F$5:$F$4000,WITHDRAWALS!$B$5:$B$4000,">=1-"&$G$3,WITHDRAWALS!$B$5:$B$4000,"<="&$H$3&"-"&$G$3,WITHDRAWALS!$C$5:$C$4000,$A52,WITHDRAWALS!$D$5:$D$4000,"=FOB MILL",WITHDRAWALS!$E$5:$E$4000,B$6)) ->  | C52: =IF($A52="","",(SUMIFS(BOOKINGS!$E$5:$E$31,BOOKINGS!$A$5:$A$31,">=1-"&$G$3,BOOKINGS!$A$5:$A$31,"<="&$H$3&"-"&$G$3,BOOKINGS!$B$5:$B$31,$A52,BOOKINGS!$C$5:$C$31,"=FOB MILL",BOOKINGS!$D$5:$D$31,C$6))-SUMIFS(WITHDRAWALS!$F$5:$F$4000,WITHDRAWALS!$B$5:$B$4000,">=1-"&$G$3,WITHDRAWALS!$B$5:$B$4000,"<="&$H$3&"-"&$G$3,WITHDRAWALS!$C$5:$C$4000,$A52,WITHDRAWALS!$D$5:$D$4000,"=FOB MILL",WITHDRAWALS!$E$5:$E$4000,C$6)) ->  | D52: =IF($A52="","",(SUMIFS(BOOKINGS!$E$5:$E$31,BOOKINGS!$A$5:$A$31,">=1-"&$G$3,BOOKINGS!$A$5:$A$31,"<="&$H$3&"-"&$G$3,BOOKINGS!$B$5:$B$31,$A52,BOOKINGS!$C$5:$C$31,"=FOB MILL",BOOKINGS!$D$5:$D$31,D$6))-SUMIFS(WITHDRAWALS!$F$5:$F$4000,WITHDRAWALS!$B$5:$B$4000,">=1-"&$G$3,WITHDRAWALS!$B$5:$B$4000,"<="&$H$3&"-"&$G$3,WITHDRAWALS!$C$5:$C$4000,$A52,WITHDRAWALS!$D$5:$D$4000,"=FOB MILL",WITHDRAWALS!$E$5:$E$4000,D$6)) ->  | E52: =IF($A52="","",(SUMIFS(BOOKINGS!$E$5:$E$31,BOOKINGS!$A$5:$A$31,">=1-"&$G$3,BOOKINGS!$A$5:$A$31,"<="&$H$3&"-"&$G$3,BOOKINGS!$B$5:$B$31,$A52,BOOKINGS!$C$5:$C$31,"=FOB MILL",BOOKINGS!$D$5:$D$31,E$6))-SUMIFS(WITHDRAWALS!$F$5:$F$4000,WITHDRAWALS!$B$5:$B$4000,">=1-"&$G$3,WITHDRAWALS!$B$5:$B$4000,"<="&$H$3&"-"&$G$3,WITHDRAWALS!$C$5:$C$4000,$A52,WITHDRAWALS!$D$5:$D$4000,"=FOB MILL",WITHDRAWALS!$E$5:$E$4000,E$6)) ->  | F52: =IF($A52="","",(SUMIFS(BOOKINGS!$E$5:$E$31,BOOKINGS!$A$5:$A$31,">=1-"&$G$3,BOOKINGS!$A$5:$A$31,"<="&$H$3&"-"&$G$3,BOOKINGS!$B$5:$B$31,$A52,BOOKINGS!$C$5:$C$31,"=FOB MILL",BOOKINGS!$D$5:$D$31,F$6))-SUMIFS(WITHDRAWALS!$F$5:$F$4000,WITHDRAWALS!$B$5:$B$4000,">=1-"&$G$3,WITHDRAWALS!$B$5:$B$4000,"<="&$H$3&"-"&$G$3,WITHDRAWALS!$C$5:$C$4000,$A52,WITHDRAWALS!$D$5:$D$4000,"=FOB MILL",WITHDRAWALS!$E$5:$E$4000,F$6)) ->  | G52: =IF($A52="","",(SUMIFS(BOOKINGS!$E$5:$E$31,BOOKINGS!$A$5:$A$31,">=1-"&$G$3,BOOKINGS!$A$5:$A$31,"<="&$H$3&"-"&$G$3,BOOKINGS!$B$5:$B$31,$A52,BOOKINGS!$C$5:$C$31,"=FOB MILL",BOOKINGS!$D$5:$D$31,G$6))-SUMIFS(WITHDRAWALS!$F$5:$F$4000,WITHDRAWALS!$B$5:$B$4000,">=1-"&$G$3,WITHDRAWALS!$B$5:$B$4000,"<="&$H$3&"-"&$G$3,WITHDRAWALS!$C$5:$C$4000,$A52,WITHDRAWALS!$D$5:$D$4000,"=FOB MILL",WITHDRAWALS!$E$5:$E$4000,G$6)) ->  | H52: =IF($A52="","",(SUMIFS(BOOKINGS!$E$5:$E$31,BOOKINGS!$A$5:$A$31,">=1-"&$G$3,BOOKINGS!$A$5:$A$31,"<="&$H$3&"-"&$G$3,BOOKINGS!$B$5:$B$31,$A52,BOOKINGS!$C$5:$C$31,"=FOB MILL",BOOKINGS!$D$5:$D$31,H$6))-SUMIFS(WITHDRAWALS!$F$5:$F$4000,WITHDRAWALS!$B$5:$B$4000,">=1-"&$G$3,WITHDRAWALS!$B$5:$B$4000,"<="&$H$3&"-"&$G$3,WITHDRAWALS!$C$5:$C$4000,$A52,WITHDRAWALS!$D$5:$D$4000,"=FOB MILL",WITHDRAWALS!$E$5:$E$4000,H$6)) ->  | I52: =IF($A52="","",(SUMIFS(BOOKINGS!$E$5:$E$31,BOOKINGS!$A$5:$A$31,">=1-"&$G$3,BOOKINGS!$A$5:$A$31,"<="&$H$3&"-"&$G$3,BOOKINGS!$B$5:$B$31,$A52,BOOKINGS!$C$5:$C$31,"=FOB MILL",BOOKINGS!$D$5:$D$31,I$6))-SUMIFS(WITHDRAWALS!$F$5:$F$4000,WITHDRAWALS!$B$5:$B$4000,">=1-"&$G$3,WITHDRAWALS!$B$5:$B$4000,"<="&$H$3&"-"&$G$3,WITHDRAWALS!$C$5:$C$4000,$A52,WITHDRAWALS!$D$5:$D$4000,"=FOB MILL",WITHDRAWALS!$E$5:$E$4000,I$6)) ->  | J52: =IF($A52="","",(SUMIFS(BOOKINGS!$E$5:$E$31,BOOKINGS!$A$5:$A$31,">=1-"&$G$3,BOOKINGS!$A$5:$A$31,"<="&$H$3&"-"&$G$3,BOOKINGS!$B$5:$B$31,$A52,BOOKINGS!$C$5:$C$31,"=FOB MILL",BOOKINGS!$D$5:$D$31,J$6))-SUMIFS(WITHDRAWALS!$F$5:$F$4000,WITHDRAWALS!$B$5:$B$4000,">=1-"&$G$3,WITHDRAWALS!$B$5:$B$4000,"<="&$H$3&"-"&$G$3,WITHDRAWALS!$C$5:$C$4000,$A52,WITHDRAWALS!$D$5:$D$4000,"=FOB MILL",WITHDRAWALS!$E$5:$E$4000,J$6)) ->  | K52: =IF($A52="","",(SUMIFS(BOOKINGS!$E$5:$E$31,BOOKINGS!$A$5:$A$31,">=1-"&$G$3,BOOKINGS!$A$5:$A$31,"<="&$H$3&"-"&$G$3,BOOKINGS!$B$5:$B$31,$A52,BOOKINGS!$C$5:$C$31,"=FOB MILL",BOOKINGS!$D$5:$D$31,K$6))-SUMIFS(WITHDRAWALS!$F$5:$F$4000,WITHDRAWALS!$B$5:$B$4000,">=1-"&$G$3,WITHDRAWALS!$B$5:$B$4000,"<="&$H$3&"-"&$G$3,WITHDRAWALS!$C$5:$C$4000,$A52,WITHDRAWALS!$D$5:$D$4000,"=FOB MILL",WITHDRAWALS!$E$5:$E$4000,K$6)) ->  | L52: =IF($A52="","",(SUMIFS(BOOKINGS!$E$5:$E$31,BOOKINGS!$A$5:$A$31,">=1-"&$G$3,BOOKINGS!$A$5:$A$31,"<="&$H$3&"-"&$G$3,BOOKINGS!$B$5:$B$31,$A52,BOOKINGS!$C$5:$C$31,"=FOB MILL",BOOKINGS!$D$5:$D$31,L$6))-SUMIFS(WITHDRAWALS!$F$5:$F$4000,WITHDRAWALS!$B$5:$B$4000,">=1-"&$G$3,WITHDRAWALS!$B$5:$B$4000,"<="&$H$3&"-"&$G$3,WITHDRAWALS!$C$5:$C$4000,$A52,WITHDRAWALS!$D$5:$D$4000,"=FOB MILL",WITHDRAWALS!$E$5:$E$4000,L$6)) -> 
A53: =IFERROR(INDEX(WITHDRAWALS!$C$5:$C$4000,SMALL(IF(FREQUENCY(IF(ISNUMBER(SEARCH("??"&TEXT($G$4,"mmm")&"??"&"|"&"?*"&"FOB MILL"&"|?*",WITHDRAWALS!$L$5:$L$4000)), MATCH(WITHDRAWALS!$C$5:$C$4000,WITHDRAWALS!$C$5:$C$4000,0)),Ivec),Ivec),ROWS($A$7:A53))),"") ->  | B53: =IF($A53="","",(SUMIFS(BOOKINGS!$E$5:$E$31,BOOKINGS!$A$5:$A$31,">=1-"&$G$3,BOOKINGS!$A$5:$A$31,"<="&$H$3&"-"&$G$3,BOOKINGS!$B$5:$B$31,$A53,BOOKINGS!$C$5:$C$31,"=FOB MILL",BOOKINGS!$D$5:$D$31,B$6))-SUMIFS(WITHDRAWALS!$F$5:$F$4000,WITHDRAWALS!$B$5:$B$4000,">=1-"&$G$3,WITHDRAWALS!$B$5:$B$4000,"<="&$H$3&"-"&$G$3,WITHDRAWALS!$C$5:$C$4000,$A53,WITHDRAWALS!$D$5:$D$4000,"=FOB MILL",WITHDRAWALS!$E$5:$E$4000,B$6)) ->  | C53: =IF($A53="","",(SUMIFS(BOOKINGS!$E$5:$E$31,BOOKINGS!$A$5:$A$31,">=1-"&$G$3,BOOKINGS!$A$5:$A$31,"<="&$H$3&"-"&$G$3,BOOKINGS!$B$5:$B$31,$A53,BOOKINGS!$C$5:$C$31,"=FOB MILL",BOOKINGS!$D$5:$D$31,C$6))-SUMIFS(WITHDRAWALS!$F$5:$F$4000,WITHDRAWALS!$B$5:$B$4000,">=1-"&$G$3,WITHDRAWALS!$B$5:$B$4000,"<="&$H$3&"-"&$G$3,WITHDRAWALS!$C$5:$C$4000,$A53,WITHDRAWALS!$D$5:$D$4000,"=FOB MILL",WITHDRAWALS!$E$5:$E$4000,C$6)) ->  | D53: =IF($A53="","",(SUMIFS(BOOKINGS!$E$5:$E$31,BOOKINGS!$A$5:$A$31,">=1-"&$G$3,BOOKINGS!$A$5:$A$31,"<="&$H$3&"-"&$G$3,BOOKINGS!$B$5:$B$31,$A53,BOOKINGS!$C$5:$C$31,"=FOB MILL",BOOKINGS!$D$5:$D$31,D$6))-SUMIFS(WITHDRAWALS!$F$5:$F$4000,WITHDRAWALS!$B$5:$B$4000,">=1-"&$G$3,WITHDRAWALS!$B$5:$B$4000,"<="&$H$3&"-"&$G$3,WITHDRAWALS!$C$5:$C$4000,$A53,WITHDRAWALS!$D$5:$D$4000,"=FOB MILL",WITHDRAWALS!$E$5:$E$4000,D$6)) ->  | E53: =IF($A53="","",(SUMIFS(BOOKINGS!$E$5:$E$31,BOOKINGS!$A$5:$A$31,">=1-"&$G$3,BOOKINGS!$A$5:$A$31,"<="&$H$3&"-"&$G$3,BOOKINGS!$B$5:$B$31,$A53,BOOKINGS!$C$5:$C$31,"=FOB MILL",BOOKINGS!$D$5:$D$31,E$6))-SUMIFS(WITHDRAWALS!$F$5:$F$4000,WITHDRAWALS!$B$5:$B$4000,">=1-"&$G$3,WITHDRAWALS!$B$5:$B$4000,"<="&$H$3&"-"&$G$3,WITHDRAWALS!$C$5:$C$4000,$A53,WITHDRAWALS!$D$5:$D$4000,"=FOB MILL",WITHDRAWALS!$E$5:$E$4000,E$6)) ->  | F53: =IF($A53="","",(SUMIFS(BOOKINGS!$E$5:$E$31,BOOKINGS!$A$5:$A$31,">=1-"&$G$3,BOOKINGS!$A$5:$A$31,"<="&$H$3&"-"&$G$3,BOOKINGS!$B$5:$B$31,$A53,BOOKINGS!$C$5:$C$31,"=FOB MILL",BOOKINGS!$D$5:$D$31,F$6))-SUMIFS(WITHDRAWALS!$F$5:$F$4000,WITHDRAWALS!$B$5:$B$4000,">=1-"&$G$3,WITHDRAWALS!$B$5:$B$4000,"<="&$H$3&"-"&$G$3,WITHDRAWALS!$C$5:$C$4000,$A53,WITHDRAWALS!$D$5:$D$4000,"=FOB MILL",WITHDRAWALS!$E$5:$E$4000,F$6)) ->  | G53: =IF($A53="","",(SUMIFS(BOOKINGS!$E$5:$E$31,BOOKINGS!$A$5:$A$31,">=1-"&$G$3,BOOKINGS!$A$5:$A$31,"<="&$H$3&"-"&$G$3,BOOKINGS!$B$5:$B$31,$A53,BOOKINGS!$C$5:$C$31,"=FOB MILL",BOOKINGS!$D$5:$D$31,G$6))-SUMIFS(WITHDRAWALS!$F$5:$F$4000,WITHDRAWALS!$B$5:$B$4000,">=1-"&$G$3,WITHDRAWALS!$B$5:$B$4000,"<="&$H$3&"-"&$G$3,WITHDRAWALS!$C$5:$C$4000,$A53,WITHDRAWALS!$D$5:$D$4000,"=FOB MILL",WITHDRAWALS!$E$5:$E$4000,G$6)) ->  | H53: =IF($A53="","",(SUMIFS(BOOKINGS!$E$5:$E$31,BOOKINGS!$A$5:$A$31,">=1-"&$G$3,BOOKINGS!$A$5:$A$31,"<="&$H$3&"-"&$G$3,BOOKINGS!$B$5:$B$31,$A53,BOOKINGS!$C$5:$C$31,"=FOB MILL",BOOKINGS!$D$5:$D$31,H$6))-SUMIFS(WITHDRAWALS!$F$5:$F$4000,WITHDRAWALS!$B$5:$B$4000,">=1-"&$G$3,WITHDRAWALS!$B$5:$B$4000,"<="&$H$3&"-"&$G$3,WITHDRAWALS!$C$5:$C$4000,$A53,WITHDRAWALS!$D$5:$D$4000,"=FOB MILL",WITHDRAWALS!$E$5:$E$4000,H$6)) ->  | I53: =IF($A53="","",(SUMIFS(BOOKINGS!$E$5:$E$31,BOOKINGS!$A$5:$A$31,">=1-"&$G$3,BOOKINGS!$A$5:$A$31,"<="&$H$3&"-"&$G$3,BOOKINGS!$B$5:$B$31,$A53,BOOKINGS!$C$5:$C$31,"=FOB MILL",BOOKINGS!$D$5:$D$31,I$6))-SUMIFS(WITHDRAWALS!$F$5:$F$4000,WITHDRAWALS!$B$5:$B$4000,">=1-"&$G$3,WITHDRAWALS!$B$5:$B$4000,"<="&$H$3&"-"&$G$3,WITHDRAWALS!$C$5:$C$4000,$A53,WITHDRAWALS!$D$5:$D$4000,"=FOB MILL",WITHDRAWALS!$E$5:$E$4000,I$6)) ->  | J53: =IF($A53="","",(SUMIFS(BOOKINGS!$E$5:$E$31,BOOKINGS!$A$5:$A$31,">=1-"&$G$3,BOOKINGS!$A$5:$A$31,"<="&$H$3&"-"&$G$3,BOOKINGS!$B$5:$B$31,$A53,BOOKINGS!$C$5:$C$31,"=FOB MILL",BOOKINGS!$D$5:$D$31,J$6))-SUMIFS(WITHDRAWALS!$F$5:$F$4000,WITHDRAWALS!$B$5:$B$4000,">=1-"&$G$3,WITHDRAWALS!$B$5:$B$4000,"<="&$H$3&"-"&$G$3,WITHDRAWALS!$C$5:$C$4000,$A53,WITHDRAWALS!$D$5:$D$4000,"=FOB MILL",WITHDRAWALS!$E$5:$E$4000,J$6)) ->  | K53: =IF($A53="","",(SUMIFS(BOOKINGS!$E$5:$E$31,BOOKINGS!$A$5:$A$31,">=1-"&$G$3,BOOKINGS!$A$5:$A$31,"<="&$H$3&"-"&$G$3,BOOKINGS!$B$5:$B$31,$A53,BOOKINGS!$C$5:$C$31,"=FOB MILL",BOOKINGS!$D$5:$D$31,K$6))-SUMIFS(WITHDRAWALS!$F$5:$F$4000,WITHDRAWALS!$B$5:$B$4000,">=1-"&$G$3,WITHDRAWALS!$B$5:$B$4000,"<="&$H$3&"-"&$G$3,WITHDRAWALS!$C$5:$C$4000,$A53,WITHDRAWALS!$D$5:$D$4000,"=FOB MILL",WITHDRAWALS!$E$5:$E$4000,K$6)) ->  | L53: =IF($A53="","",(SUMIFS(BOOKINGS!$E$5:$E$31,BOOKINGS!$A$5:$A$31,">=1-"&$G$3,BOOKINGS!$A$5:$A$31,"<="&$H$3&"-"&$G$3,BOOKINGS!$B$5:$B$31,$A53,BOOKINGS!$C$5:$C$31,"=FOB MILL",BOOKINGS!$D$5:$D$31,L$6))-SUMIFS(WITHDRAWALS!$F$5:$F$4000,WITHDRAWALS!$B$5:$B$4000,">=1-"&$G$3,WITHDRAWALS!$B$5:$B$4000,"<="&$H$3&"-"&$G$3,WITHDRAWALS!$C$5:$C$4000,$A53,WITHDRAWALS!$D$5:$D$4000,"=FOB MILL",WITHDRAWALS!$E$5:$E$4000,L$6)) -> 
A54: =IFERROR(INDEX(WITHDRAWALS!$C$5:$C$4000,SMALL(IF(FREQUENCY(IF(ISNUMBER(SEARCH("??"&TEXT($G$4,"mmm")&"??"&"|"&"?*"&"FOB MILL"&"|?*",WITHDRAWALS!$L$5:$L$4000)), MATCH(WITHDRAWALS!$C$5:$C$4000,WITHDRAWALS!$C$5:$C$4000,0)),Ivec),Ivec),ROWS($A$7:A54))),"") ->  | B54: =IF($A54="","",(SUMIFS(BOOKINGS!$E$5:$E$31,BOOKINGS!$A$5:$A$31,">=1-"&$G$3,BOOKINGS!$A$5:$A$31,"<="&$H$3&"-"&$G$3,BOOKINGS!$B$5:$B$31,$A54,BOOKINGS!$C$5:$C$31,"=FOB MILL",BOOKINGS!$D$5:$D$31,B$6))-SUMIFS(WITHDRAWALS!$F$5:$F$4000,WITHDRAWALS!$B$5:$B$4000,">=1-"&$G$3,WITHDRAWALS!$B$5:$B$4000,"<="&$H$3&"-"&$G$3,WITHDRAWALS!$C$5:$C$4000,$A54,WITHDRAWALS!$D$5:$D$4000,"=FOB MILL",WITHDRAWALS!$E$5:$E$4000,B$6)) ->  | C54: =IF($A54="","",(SUMIFS(BOOKINGS!$E$5:$E$31,BOOKINGS!$A$5:$A$31,">=1-"&$G$3,BOOKINGS!$A$5:$A$31,"<="&$H$3&"-"&$G$3,BOOKINGS!$B$5:$B$31,$A54,BOOKINGS!$C$5:$C$31,"=FOB MILL",BOOKINGS!$D$5:$D$31,C$6))-SUMIFS(WITHDRAWALS!$F$5:$F$4000,WITHDRAWALS!$B$5:$B$4000,">=1-"&$G$3,WITHDRAWALS!$B$5:$B$4000,"<="&$H$3&"-"&$G$3,WITHDRAWALS!$C$5:$C$4000,$A54,WITHDRAWALS!$D$5:$D$4000,"=FOB MILL",WITHDRAWALS!$E$5:$E$4000,C$6)) ->  | D54: =IF($A54="","",(SUMIFS(BOOKINGS!$E$5:$E$31,BOOKINGS!$A$5:$A$31,">=1-"&$G$3,BOOKINGS!$A$5:$A$31,"<="&$H$3&"-"&$G$3,BOOKINGS!$B$5:$B$31,$A54,BOOKINGS!$C$5:$C$31,"=FOB MILL",BOOKINGS!$D$5:$D$31,D$6))-SUMIFS(WITHDRAWALS!$F$5:$F$4000,WITHDRAWALS!$B$5:$B$4000,">=1-"&$G$3,WITHDRAWALS!$B$5:$B$4000,"<="&$H$3&"-"&$G$3,WITHDRAWALS!$C$5:$C$4000,$A54,WITHDRAWALS!$D$5:$D$4000,"=FOB MILL",WITHDRAWALS!$E$5:$E$4000,D$6)) ->  | E54: =IF($A54="","",(SUMIFS(BOOKINGS!$E$5:$E$31,BOOKINGS!$A$5:$A$31,">=1-"&$G$3,BOOKINGS!$A$5:$A$31,"<="&$H$3&"-"&$G$3,BOOKINGS!$B$5:$B$31,$A54,BOOKINGS!$C$5:$C$31,"=FOB MILL",BOOKINGS!$D$5:$D$31,E$6))-SUMIFS(WITHDRAWALS!$F$5:$F$4000,WITHDRAWALS!$B$5:$B$4000,">=1-"&$G$3,WITHDRAWALS!$B$5:$B$4000,"<="&$H$3&"-"&$G$3,WITHDRAWALS!$C$5:$C$4000,$A54,WITHDRAWALS!$D$5:$D$4000,"=FOB MILL",WITHDRAWALS!$E$5:$E$4000,E$6)) ->  | F54: =IF($A54="","",(SUMIFS(BOOKINGS!$E$5:$E$31,BOOKINGS!$A$5:$A$31,">=1-"&$G$3,BOOKINGS!$A$5:$A$31,"<="&$H$3&"-"&$G$3,BOOKINGS!$B$5:$B$31,$A54,BOOKINGS!$C$5:$C$31,"=FOB MILL",BOOKINGS!$D$5:$D$31,F$6))-SUMIFS(WITHDRAWALS!$F$5:$F$4000,WITHDRAWALS!$B$5:$B$4000,">=1-"&$G$3,WITHDRAWALS!$B$5:$B$4000,"<="&$H$3&"-"&$G$3,WITHDRAWALS!$C$5:$C$4000,$A54,WITHDRAWALS!$D$5:$D$4000,"=FOB MILL",WITHDRAWALS!$E$5:$E$4000,F$6)) ->  | G54: =IF($A54="","",(SUMIFS(BOOKINGS!$E$5:$E$31,BOOKINGS!$A$5:$A$31,">=1-"&$G$3,BOOKINGS!$A$5:$A$31,"<="&$H$3&"-"&$G$3,BOOKINGS!$B$5:$B$31,$A54,BOOKINGS!$C$5:$C$31,"=FOB MILL",BOOKINGS!$D$5:$D$31,G$6))-SUMIFS(WITHDRAWALS!$F$5:$F$4000,WITHDRAWALS!$B$5:$B$4000,">=1-"&$G$3,WITHDRAWALS!$B$5:$B$4000,"<="&$H$3&"-"&$G$3,WITHDRAWALS!$C$5:$C$4000,$A54,WITHDRAWALS!$D$5:$D$4000,"=FOB MILL",WITHDRAWALS!$E$5:$E$4000,G$6)) ->  | H54: =IF($A54="","",(SUMIFS(BOOKINGS!$E$5:$E$31,BOOKINGS!$A$5:$A$31,">=1-"&$G$3,BOOKINGS!$A$5:$A$31,"<="&$H$3&"-"&$G$3,BOOKINGS!$B$5:$B$31,$A54,BOOKINGS!$C$5:$C$31,"=FOB MILL",BOOKINGS!$D$5:$D$31,H$6))-SUMIFS(WITHDRAWALS!$F$5:$F$4000,WITHDRAWALS!$B$5:$B$4000,">=1-"&$G$3,WITHDRAWALS!$B$5:$B$4000,"<="&$H$3&"-"&$G$3,WITHDRAWALS!$C$5:$C$4000,$A54,WITHDRAWALS!$D$5:$D$4000,"=FOB MILL",WITHDRAWALS!$E$5:$E$4000,H$6)) ->  | I54: =IF($A54="","",(SUMIFS(BOOKINGS!$E$5:$E$31,BOOKINGS!$A$5:$A$31,">=1-"&$G$3,BOOKINGS!$A$5:$A$31,"<="&$H$3&"-"&$G$3,BOOKINGS!$B$5:$B$31,$A54,BOOKINGS!$C$5:$C$31,"=FOB MILL",BOOKINGS!$D$5:$D$31,I$6))-SUMIFS(WITHDRAWALS!$F$5:$F$4000,WITHDRAWALS!$B$5:$B$4000,">=1-"&$G$3,WITHDRAWALS!$B$5:$B$4000,"<="&$H$3&"-"&$G$3,WITHDRAWALS!$C$5:$C$4000,$A54,WITHDRAWALS!$D$5:$D$4000,"=FOB MILL",WITHDRAWALS!$E$5:$E$4000,I$6)) ->  | J54: =IF($A54="","",(SUMIFS(BOOKINGS!$E$5:$E$31,BOOKINGS!$A$5:$A$31,">=1-"&$G$3,BOOKINGS!$A$5:$A$31,"<="&$H$3&"-"&$G$3,BOOKINGS!$B$5:$B$31,$A54,BOOKINGS!$C$5:$C$31,"=FOB MILL",BOOKINGS!$D$5:$D$31,J$6))-SUMIFS(WITHDRAWALS!$F$5:$F$4000,WITHDRAWALS!$B$5:$B$4000,">=1-"&$G$3,WITHDRAWALS!$B$5:$B$4000,"<="&$H$3&"-"&$G$3,WITHDRAWALS!$C$5:$C$4000,$A54,WITHDRAWALS!$D$5:$D$4000,"=FOB MILL",WITHDRAWALS!$E$5:$E$4000,J$6)) ->  | K54: =IF($A54="","",(SUMIFS(BOOKINGS!$E$5:$E$31,BOOKINGS!$A$5:$A$31,">=1-"&$G$3,BOOKINGS!$A$5:$A$31,"<="&$H$3&"-"&$G$3,BOOKINGS!$B$5:$B$31,$A54,BOOKINGS!$C$5:$C$31,"=FOB MILL",BOOKINGS!$D$5:$D$31,K$6))-SUMIFS(WITHDRAWALS!$F$5:$F$4000,WITHDRAWALS!$B$5:$B$4000,">=1-"&$G$3,WITHDRAWALS!$B$5:$B$4000,"<="&$H$3&"-"&$G$3,WITHDRAWALS!$C$5:$C$4000,$A54,WITHDRAWALS!$D$5:$D$4000,"=FOB MILL",WITHDRAWALS!$E$5:$E$4000,K$6)) ->  | L54: =IF($A54="","",(SUMIFS(BOOKINGS!$E$5:$E$31,BOOKINGS!$A$5:$A$31,">=1-"&$G$3,BOOKINGS!$A$5:$A$31,"<="&$H$3&"-"&$G$3,BOOKINGS!$B$5:$B$31,$A54,BOOKINGS!$C$5:$C$31,"=FOB MILL",BOOKINGS!$D$5:$D$31,L$6))-SUMIFS(WITHDRAWALS!$F$5:$F$4000,WITHDRAWALS!$B$5:$B$4000,">=1-"&$G$3,WITHDRAWALS!$B$5:$B$4000,"<="&$H$3&"-"&$G$3,WITHDRAWALS!$C$5:$C$4000,$A54,WITHDRAWALS!$D$5:$D$4000,"=FOB MILL",WITHDRAWALS!$E$5:$E$4000,L$6)) -> 
A55: =IFERROR(INDEX(WITHDRAWALS!$C$5:$C$4000,SMALL(IF(FREQUENCY(IF(ISNUMBER(SEARCH("??"&TEXT($G$4,"mmm")&"??"&"|"&"?*"&"FOB MILL"&"|?*",WITHDRAWALS!$L$5:$L$4000)), MATCH(WITHDRAWALS!$C$5:$C$4000,WITHDRAWALS!$C$5:$C$4000,0)),Ivec),Ivec),ROWS($A$7:A55))),"") ->  | B55: =IF($A55="","",(SUMIFS(BOOKINGS!$E$5:$E$31,BOOKINGS!$A$5:$A$31,">=1-"&$G$3,BOOKINGS!$A$5:$A$31,"<="&$H$3&"-"&$G$3,BOOKINGS!$B$5:$B$31,$A55,BOOKINGS!$C$5:$C$31,"=FOB MILL",BOOKINGS!$D$5:$D$31,B$6))-SUMIFS(WITHDRAWALS!$F$5:$F$4000,WITHDRAWALS!$B$5:$B$4000,">=1-"&$G$3,WITHDRAWALS!$B$5:$B$4000,"<="&$H$3&"-"&$G$3,WITHDRAWALS!$C$5:$C$4000,$A55,WITHDRAWALS!$D$5:$D$4000,"=FOB MILL",WITHDRAWALS!$E$5:$E$4000,B$6)) ->  | C55: =IF($A55="","",(SUMIFS(BOOKINGS!$E$5:$E$31,BOOKINGS!$A$5:$A$31,">=1-"&$G$3,BOOKINGS!$A$5:$A$31,"<="&$H$3&"-"&$G$3,BOOKINGS!$B$5:$B$31,$A55,BOOKINGS!$C$5:$C$31,"=FOB MILL",BOOKINGS!$D$5:$D$31,C$6))-SUMIFS(WITHDRAWALS!$F$5:$F$4000,WITHDRAWALS!$B$5:$B$4000,">=1-"&$G$3,WITHDRAWALS!$B$5:$B$4000,"<="&$H$3&"-"&$G$3,WITHDRAWALS!$C$5:$C$4000,$A55,WITHDRAWALS!$D$5:$D$4000,"=FOB MILL",WITHDRAWALS!$E$5:$E$4000,C$6)) ->  | D55: =IF($A55="","",(SUMIFS(BOOKINGS!$E$5:$E$31,BOOKINGS!$A$5:$A$31,">=1-"&$G$3,BOOKINGS!$A$5:$A$31,"<="&$H$3&"-"&$G$3,BOOKINGS!$B$5:$B$31,$A55,BOOKINGS!$C$5:$C$31,"=FOB MILL",BOOKINGS!$D$5:$D$31,D$6))-SUMIFS(WITHDRAWALS!$F$5:$F$4000,WITHDRAWALS!$B$5:$B$4000,">=1-"&$G$3,WITHDRAWALS!$B$5:$B$4000,"<="&$H$3&"-"&$G$3,WITHDRAWALS!$C$5:$C$4000,$A55,WITHDRAWALS!$D$5:$D$4000,"=FOB MILL",WITHDRAWALS!$E$5:$E$4000,D$6)) ->  | E55: =IF($A55="","",(SUMIFS(BOOKINGS!$E$5:$E$31,BOOKINGS!$A$5:$A$31,">=1-"&$G$3,BOOKINGS!$A$5:$A$31,"<="&$H$3&"-"&$G$3,BOOKINGS!$B$5:$B$31,$A55,BOOKINGS!$C$5:$C$31,"=FOB MILL",BOOKINGS!$D$5:$D$31,E$6))-SUMIFS(WITHDRAWALS!$F$5:$F$4000,WITHDRAWALS!$B$5:$B$4000,">=1-"&$G$3,WITHDRAWALS!$B$5:$B$4000,"<="&$H$3&"-"&$G$3,WITHDRAWALS!$C$5:$C$4000,$A55,WITHDRAWALS!$D$5:$D$4000,"=FOB MILL",WITHDRAWALS!$E$5:$E$4000,E$6)) ->  | F55: =IF($A55="","",(SUMIFS(BOOKINGS!$E$5:$E$31,BOOKINGS!$A$5:$A$31,">=1-"&$G$3,BOOKINGS!$A$5:$A$31,"<="&$H$3&"-"&$G$3,BOOKINGS!$B$5:$B$31,$A55,BOOKINGS!$C$5:$C$31,"=FOB MILL",BOOKINGS!$D$5:$D$31,F$6))-SUMIFS(WITHDRAWALS!$F$5:$F$4000,WITHDRAWALS!$B$5:$B$4000,">=1-"&$G$3,WITHDRAWALS!$B$5:$B$4000,"<="&$H$3&"-"&$G$3,WITHDRAWALS!$C$5:$C$4000,$A55,WITHDRAWALS!$D$5:$D$4000,"=FOB MILL",WITHDRAWALS!$E$5:$E$4000,F$6)) ->  | G55: =IF($A55="","",(SUMIFS(BOOKINGS!$E$5:$E$31,BOOKINGS!$A$5:$A$31,">=1-"&$G$3,BOOKINGS!$A$5:$A$31,"<="&$H$3&"-"&$G$3,BOOKINGS!$B$5:$B$31,$A55,BOOKINGS!$C$5:$C$31,"=FOB MILL",BOOKINGS!$D$5:$D$31,G$6))-SUMIFS(WITHDRAWALS!$F$5:$F$4000,WITHDRAWALS!$B$5:$B$4000,">=1-"&$G$3,WITHDRAWALS!$B$5:$B$4000,"<="&$H$3&"-"&$G$3,WITHDRAWALS!$C$5:$C$4000,$A55,WITHDRAWALS!$D$5:$D$4000,"=FOB MILL",WITHDRAWALS!$E$5:$E$4000,G$6)) ->  | H55: =IF($A55="","",(SUMIFS(BOOKINGS!$E$5:$E$31,BOOKINGS!$A$5:$A$31,">=1-"&$G$3,BOOKINGS!$A$5:$A$31,"<="&$H$3&"-"&$G$3,BOOKINGS!$B$5:$B$31,$A55,BOOKINGS!$C$5:$C$31,"=FOB MILL",BOOKINGS!$D$5:$D$31,H$6))-SUMIFS(WITHDRAWALS!$F$5:$F$4000,WITHDRAWALS!$B$5:$B$4000,">=1-"&$G$3,WITHDRAWALS!$B$5:$B$4000,"<="&$H$3&"-"&$G$3,WITHDRAWALS!$C$5:$C$4000,$A55,WITHDRAWALS!$D$5:$D$4000,"=FOB MILL",WITHDRAWALS!$E$5:$E$4000,H$6)) ->  | I55: =IF($A55="","",(SUMIFS(BOOKINGS!$E$5:$E$31,BOOKINGS!$A$5:$A$31,">=1-"&$G$3,BOOKINGS!$A$5:$A$31,"<="&$H$3&"-"&$G$3,BOOKINGS!$B$5:$B$31,$A55,BOOKINGS!$C$5:$C$31,"=FOB MILL",BOOKINGS!$D$5:$D$31,I$6))-SUMIFS(WITHDRAWALS!$F$5:$F$4000,WITHDRAWALS!$B$5:$B$4000,">=1-"&$G$3,WITHDRAWALS!$B$5:$B$4000,"<="&$H$3&"-"&$G$3,WITHDRAWALS!$C$5:$C$4000,$A55,WITHDRAWALS!$D$5:$D$4000,"=FOB MILL",WITHDRAWALS!$E$5:$E$4000,I$6)) ->  | J55: =IF($A55="","",(SUMIFS(BOOKINGS!$E$5:$E$31,BOOKINGS!$A$5:$A$31,">=1-"&$G$3,BOOKINGS!$A$5:$A$31,"<="&$H$3&"-"&$G$3,BOOKINGS!$B$5:$B$31,$A55,BOOKINGS!$C$5:$C$31,"=FOB MILL",BOOKINGS!$D$5:$D$31,J$6))-SUMIFS(WITHDRAWALS!$F$5:$F$4000,WITHDRAWALS!$B$5:$B$4000,">=1-"&$G$3,WITHDRAWALS!$B$5:$B$4000,"<="&$H$3&"-"&$G$3,WITHDRAWALS!$C$5:$C$4000,$A55,WITHDRAWALS!$D$5:$D$4000,"=FOB MILL",WITHDRAWALS!$E$5:$E$4000,J$6)) ->  | K55: =IF($A55="","",(SUMIFS(BOOKINGS!$E$5:$E$31,BOOKINGS!$A$5:$A$31,">=1-"&$G$3,BOOKINGS!$A$5:$A$31,"<="&$H$3&"-"&$G$3,BOOKINGS!$B$5:$B$31,$A55,BOOKINGS!$C$5:$C$31,"=FOB MILL",BOOKINGS!$D$5:$D$31,K$6))-SUMIFS(WITHDRAWALS!$F$5:$F$4000,WITHDRAWALS!$B$5:$B$4000,">=1-"&$G$3,WITHDRAWALS!$B$5:$B$4000,"<="&$H$3&"-"&$G$3,WITHDRAWALS!$C$5:$C$4000,$A55,WITHDRAWALS!$D$5:$D$4000,"=FOB MILL",WITHDRAWALS!$E$5:$E$4000,K$6)) ->  | L55: =IF($A55="","",(SUMIFS(BOOKINGS!$E$5:$E$31,BOOKINGS!$A$5:$A$31,">=1-"&$G$3,BOOKINGS!$A$5:$A$31,"<="&$H$3&"-"&$G$3,BOOKINGS!$B$5:$B$31,$A55,BOOKINGS!$C$5:$C$31,"=FOB MILL",BOOKINGS!$D$5:$D$31,L$6))-SUMIFS(WITHDRAWALS!$F$5:$F$4000,WITHDRAWALS!$B$5:$B$4000,">=1-"&$G$3,WITHDRAWALS!$B$5:$B$4000,"<="&$H$3&"-"&$G$3,WITHDRAWALS!$C$5:$C$4000,$A55,WITHDRAWALS!$D$5:$D$4000,"=FOB MILL",WITHDRAWALS!$E$5:$E$4000,L$6)) -> 
A56: =IFERROR(INDEX(WITHDRAWALS!$C$5:$C$4000,SMALL(IF(FREQUENCY(IF(ISNUMBER(SEARCH("??"&TEXT($G$4,"mmm")&"??"&"|"&"?*"&"FOB MILL"&"|?*",WITHDRAWALS!$L$5:$L$4000)), MATCH(WITHDRAWALS!$C$5:$C$4000,WITHDRAWALS!$C$5:$C$4000,0)),Ivec),Ivec),ROWS($A$7:A56))),"") ->  | B56: =IF($A56="","",(SUMIFS(BOOKINGS!$E$5:$E$31,BOOKINGS!$A$5:$A$31,">=1-"&$G$3,BOOKINGS!$A$5:$A$31,"<="&$H$3&"-"&$G$3,BOOKINGS!$B$5:$B$31,$A56,BOOKINGS!$C$5:$C$31,"=FOB MILL",BOOKINGS!$D$5:$D$31,B$6))-SUMIFS(WITHDRAWALS!$F$5:$F$4000,WITHDRAWALS!$B$5:$B$4000,">=1-"&$G$3,WITHDRAWALS!$B$5:$B$4000,"<="&$H$3&"-"&$G$3,WITHDRAWALS!$C$5:$C$4000,$A56,WITHDRAWALS!$D$5:$D$4000,"=FOB MILL",WITHDRAWALS!$E$5:$E$4000,B$6)) ->  | C56: =IF($A56="","",(SUMIFS(BOOKINGS!$E$5:$E$31,BOOKINGS!$A$5:$A$31,">=1-"&$G$3,BOOKINGS!$A$5:$A$31,"<="&$H$3&"-"&$G$3,BOOKINGS!$B$5:$B$31,$A56,BOOKINGS!$C$5:$C$31,"=FOB MILL",BOOKINGS!$D$5:$D$31,C$6))-SUMIFS(WITHDRAWALS!$F$5:$F$4000,WITHDRAWALS!$B$5:$B$4000,">=1-"&$G$3,WITHDRAWALS!$B$5:$B$4000,"<="&$H$3&"-"&$G$3,WITHDRAWALS!$C$5:$C$4000,$A56,WITHDRAWALS!$D$5:$D$4000,"=FOB MILL",WITHDRAWALS!$E$5:$E$4000,C$6)) ->  | D56: =IF($A56="","",(SUMIFS(BOOKINGS!$E$5:$E$31,BOOKINGS!$A$5:$A$31,">=1-"&$G$3,BOOKINGS!$A$5:$A$31,"<="&$H$3&"-"&$G$3,BOOKINGS!$B$5:$B$31,$A56,BOOKINGS!$C$5:$C$31,"=FOB MILL",BOOKINGS!$D$5:$D$31,D$6))-SUMIFS(WITHDRAWALS!$F$5:$F$4000,WITHDRAWALS!$B$5:$B$4000,">=1-"&$G$3,WITHDRAWALS!$B$5:$B$4000,"<="&$H$3&"-"&$G$3,WITHDRAWALS!$C$5:$C$4000,$A56,WITHDRAWALS!$D$5:$D$4000,"=FOB MILL",WITHDRAWALS!$E$5:$E$4000,D$6)) ->  | E56: =IF($A56="","",(SUMIFS(BOOKINGS!$E$5:$E$31,BOOKINGS!$A$5:$A$31,">=1-"&$G$3,BOOKINGS!$A$5:$A$31,"<="&$H$3&"-"&$G$3,BOOKINGS!$B$5:$B$31,$A56,BOOKINGS!$C$5:$C$31,"=FOB MILL",BOOKINGS!$D$5:$D$31,E$6))-SUMIFS(WITHDRAWALS!$F$5:$F$4000,WITHDRAWALS!$B$5:$B$4000,">=1-"&$G$3,WITHDRAWALS!$B$5:$B$4000,"<="&$H$3&"-"&$G$3,WITHDRAWALS!$C$5:$C$4000,$A56,WITHDRAWALS!$D$5:$D$4000,"=FOB MILL",WITHDRAWALS!$E$5:$E$4000,E$6)) ->  | F56: =IF($A56="","",(SUMIFS(BOOKINGS!$E$5:$E$31,BOOKINGS!$A$5:$A$31,">=1-"&$G$3,BOOKINGS!$A$5:$A$31,"<="&$H$3&"-"&$G$3,BOOKINGS!$B$5:$B$31,$A56,BOOKINGS!$C$5:$C$31,"=FOB MILL",BOOKINGS!$D$5:$D$31,F$6))-SUMIFS(WITHDRAWALS!$F$5:$F$4000,WITHDRAWALS!$B$5:$B$4000,">=1-"&$G$3,WITHDRAWALS!$B$5:$B$4000,"<="&$H$3&"-"&$G$3,WITHDRAWALS!$C$5:$C$4000,$A56,WITHDRAWALS!$D$5:$D$4000,"=FOB MILL",WITHDRAWALS!$E$5:$E$4000,F$6)) ->  | G56: =IF($A56="","",(SUMIFS(BOOKINGS!$E$5:$E$31,BOOKINGS!$A$5:$A$31,">=1-"&$G$3,BOOKINGS!$A$5:$A$31,"<="&$H$3&"-"&$G$3,BOOKINGS!$B$5:$B$31,$A56,BOOKINGS!$C$5:$C$31,"=FOB MILL",BOOKINGS!$D$5:$D$31,G$6))-SUMIFS(WITHDRAWALS!$F$5:$F$4000,WITHDRAWALS!$B$5:$B$4000,">=1-"&$G$3,WITHDRAWALS!$B$5:$B$4000,"<="&$H$3&"-"&$G$3,WITHDRAWALS!$C$5:$C$4000,$A56,WITHDRAWALS!$D$5:$D$4000,"=FOB MILL",WITHDRAWALS!$E$5:$E$4000,G$6)) ->  | H56: =IF($A56="","",(SUMIFS(BOOKINGS!$E$5:$E$31,BOOKINGS!$A$5:$A$31,">=1-"&$G$3,BOOKINGS!$A$5:$A$31,"<="&$H$3&"-"&$G$3,BOOKINGS!$B$5:$B$31,$A56,BOOKINGS!$C$5:$C$31,"=FOB MILL",BOOKINGS!$D$5:$D$31,H$6))-SUMIFS(WITHDRAWALS!$F$5:$F$4000,WITHDRAWALS!$B$5:$B$4000,">=1-"&$G$3,WITHDRAWALS!$B$5:$B$4000,"<="&$H$3&"-"&$G$3,WITHDRAWALS!$C$5:$C$4000,$A56,WITHDRAWALS!$D$5:$D$4000,"=FOB MILL",WITHDRAWALS!$E$5:$E$4000,H$6)) ->  | I56: =IF($A56="","",(SUMIFS(BOOKINGS!$E$5:$E$31,BOOKINGS!$A$5:$A$31,">=1-"&$G$3,BOOKINGS!$A$5:$A$31,"<="&$H$3&"-"&$G$3,BOOKINGS!$B$5:$B$31,$A56,BOOKINGS!$C$5:$C$31,"=FOB MILL",BOOKINGS!$D$5:$D$31,I$6))-SUMIFS(WITHDRAWALS!$F$5:$F$4000,WITHDRAWALS!$B$5:$B$4000,">=1-"&$G$3,WITHDRAWALS!$B$5:$B$4000,"<="&$H$3&"-"&$G$3,WITHDRAWALS!$C$5:$C$4000,$A56,WITHDRAWALS!$D$5:$D$4000,"=FOB MILL",WITHDRAWALS!$E$5:$E$4000,I$6)) ->  | J56: =IF($A56="","",(SUMIFS(BOOKINGS!$E$5:$E$31,BOOKINGS!$A$5:$A$31,">=1-"&$G$3,BOOKINGS!$A$5:$A$31,"<="&$H$3&"-"&$G$3,BOOKINGS!$B$5:$B$31,$A56,BOOKINGS!$C$5:$C$31,"=FOB MILL",BOOKINGS!$D$5:$D$31,J$6))-SUMIFS(WITHDRAWALS!$F$5:$F$4000,WITHDRAWALS!$B$5:$B$4000,">=1-"&$G$3,WITHDRAWALS!$B$5:$B$4000,"<="&$H$3&"-"&$G$3,WITHDRAWALS!$C$5:$C$4000,$A56,WITHDRAWALS!$D$5:$D$4000,"=FOB MILL",WITHDRAWALS!$E$5:$E$4000,J$6)) ->  | K56: =IF($A56="","",(SUMIFS(BOOKINGS!$E$5:$E$31,BOOKINGS!$A$5:$A$31,">=1-"&$G$3,BOOKINGS!$A$5:$A$31,"<="&$H$3&"-"&$G$3,BOOKINGS!$B$5:$B$31,$A56,BOOKINGS!$C$5:$C$31,"=FOB MILL",BOOKINGS!$D$5:$D$31,K$6))-SUMIFS(WITHDRAWALS!$F$5:$F$4000,WITHDRAWALS!$B$5:$B$4000,">=1-"&$G$3,WITHDRAWALS!$B$5:$B$4000,"<="&$H$3&"-"&$G$3,WITHDRAWALS!$C$5:$C$4000,$A56,WITHDRAWALS!$D$5:$D$4000,"=FOB MILL",WITHDRAWALS!$E$5:$E$4000,K$6)) ->  | L56: =IF($A56="","",(SUMIFS(BOOKINGS!$E$5:$E$31,BOOKINGS!$A$5:$A$31,">=1-"&$G$3,BOOKINGS!$A$5:$A$31,"<="&$H$3&"-"&$G$3,BOOKINGS!$B$5:$B$31,$A56,BOOKINGS!$C$5:$C$31,"=FOB MILL",BOOKINGS!$D$5:$D$31,L$6))-SUMIFS(WITHDRAWALS!$F$5:$F$4000,WITHDRAWALS!$B$5:$B$4000,">=1-"&$G$3,WITHDRAWALS!$B$5:$B$4000,"<="&$H$3&"-"&$G$3,WITHDRAWALS!$C$5:$C$4000,$A56,WITHDRAWALS!$D$5:$D$4000,"=FOB MILL",WITHDRAWALS!$E$5:$E$4000,L$6)) -> 
A57: =IFERROR(INDEX(WITHDRAWALS!$C$5:$C$4000,SMALL(IF(FREQUENCY(IF(ISNUMBER(SEARCH("??"&TEXT($G$4,"mmm")&"??"&"|"&"?*"&"FOB MILL"&"|?*",WITHDRAWALS!$L$5:$L$4000)), MATCH(WITHDRAWALS!$C$5:$C$4000,WITHDRAWALS!$C$5:$C$4000,0)),Ivec),Ivec),ROWS($A$7:A57))),"") ->  | B57: =IF($A57="","",(SUMIFS(BOOKINGS!$E$5:$E$31,BOOKINGS!$A$5:$A$31,">=1-"&$G$3,BOOKINGS!$A$5:$A$31,"<="&$H$3&"-"&$G$3,BOOKINGS!$B$5:$B$31,$A57,BOOKINGS!$C$5:$C$31,"=FOB MILL",BOOKINGS!$D$5:$D$31,B$6))-SUMIFS(WITHDRAWALS!$F$5:$F$4000,WITHDRAWALS!$B$5:$B$4000,">=1-"&$G$3,WITHDRAWALS!$B$5:$B$4000,"<="&$H$3&"-"&$G$3,WITHDRAWALS!$C$5:$C$4000,$A57,WITHDRAWALS!$D$5:$D$4000,"=FOB MILL",WITHDRAWALS!$E$5:$E$4000,B$6)) ->  | C57: =IF($A57="","",(SUMIFS(BOOKINGS!$E$5:$E$31,BOOKINGS!$A$5:$A$31,">=1-"&$G$3,BOOKINGS!$A$5:$A$31,"<="&$H$3&"-"&$G$3,BOOKINGS!$B$5:$B$31,$A57,BOOKINGS!$C$5:$C$31,"=FOB MILL",BOOKINGS!$D$5:$D$31,C$6))-SUMIFS(WITHDRAWALS!$F$5:$F$4000,WITHDRAWALS!$B$5:$B$4000,">=1-"&$G$3,WITHDRAWALS!$B$5:$B$4000,"<="&$H$3&"-"&$G$3,WITHDRAWALS!$C$5:$C$4000,$A57,WITHDRAWALS!$D$5:$D$4000,"=FOB MILL",WITHDRAWALS!$E$5:$E$4000,C$6)) ->  | D57: =IF($A57="","",(SUMIFS(BOOKINGS!$E$5:$E$31,BOOKINGS!$A$5:$A$31,">=1-"&$G$3,BOOKINGS!$A$5:$A$31,"<="&$H$3&"-"&$G$3,BOOKINGS!$B$5:$B$31,$A57,BOOKINGS!$C$5:$C$31,"=FOB MILL",BOOKINGS!$D$5:$D$31,D$6))-SUMIFS(WITHDRAWALS!$F$5:$F$4000,WITHDRAWALS!$B$5:$B$4000,">=1-"&$G$3,WITHDRAWALS!$B$5:$B$4000,"<="&$H$3&"-"&$G$3,WITHDRAWALS!$C$5:$C$4000,$A57,WITHDRAWALS!$D$5:$D$4000,"=FOB MILL",WITHDRAWALS!$E$5:$E$4000,D$6)) ->  | E57: =IF($A57="","",(SUMIFS(BOOKINGS!$E$5:$E$31,BOOKINGS!$A$5:$A$31,">=1-"&$G$3,BOOKINGS!$A$5:$A$31,"<="&$H$3&"-"&$G$3,BOOKINGS!$B$5:$B$31,$A57,BOOKINGS!$C$5:$C$31,"=FOB MILL",BOOKINGS!$D$5:$D$31,E$6))-SUMIFS(WITHDRAWALS!$F$5:$F$4000,WITHDRAWALS!$B$5:$B$4000,">=1-"&$G$3,WITHDRAWALS!$B$5:$B$4000,"<="&$H$3&"-"&$G$3,WITHDRAWALS!$C$5:$C$4000,$A57,WITHDRAWALS!$D$5:$D$4000,"=FOB MILL",WITHDRAWALS!$E$5:$E$4000,E$6)) ->  | F57: =IF($A57="","",(SUMIFS(BOOKINGS!$E$5:$E$31,BOOKINGS!$A$5:$A$31,">=1-"&$G$3,BOOKINGS!$A$5:$A$31,"<="&$H$3&"-"&$G$3,BOOKINGS!$B$5:$B$31,$A57,BOOKINGS!$C$5:$C$31,"=FOB MILL",BOOKINGS!$D$5:$D$31,F$6))-SUMIFS(WITHDRAWALS!$F$5:$F$4000,WITHDRAWALS!$B$5:$B$4000,">=1-"&$G$3,WITHDRAWALS!$B$5:$B$4000,"<="&$H$3&"-"&$G$3,WITHDRAWALS!$C$5:$C$4000,$A57,WITHDRAWALS!$D$5:$D$4000,"=FOB MILL",WITHDRAWALS!$E$5:$E$4000,F$6)) ->  | G57: =IF($A57="","",(SUMIFS(BOOKINGS!$E$5:$E$31,BOOKINGS!$A$5:$A$31,">=1-"&$G$3,BOOKINGS!$A$5:$A$31,"<="&$H$3&"-"&$G$3,BOOKINGS!$B$5:$B$31,$A57,BOOKINGS!$C$5:$C$31,"=FOB MILL",BOOKINGS!$D$5:$D$31,G$6))-SUMIFS(WITHDRAWALS!$F$5:$F$4000,WITHDRAWALS!$B$5:$B$4000,">=1-"&$G$3,WITHDRAWALS!$B$5:$B$4000,"<="&$H$3&"-"&$G$3,WITHDRAWALS!$C$5:$C$4000,$A57,WITHDRAWALS!$D$5:$D$4000,"=FOB MILL",WITHDRAWALS!$E$5:$E$4000,G$6)) ->  | H57: =IF($A57="","",(SUMIFS(BOOKINGS!$E$5:$E$31,BOOKINGS!$A$5:$A$31,">=1-"&$G$3,BOOKINGS!$A$5:$A$31,"<="&$H$3&"-"&$G$3,BOOKINGS!$B$5:$B$31,$A57,BOOKINGS!$C$5:$C$31,"=FOB MILL",BOOKINGS!$D$5:$D$31,H$6))-SUMIFS(WITHDRAWALS!$F$5:$F$4000,WITHDRAWALS!$B$5:$B$4000,">=1-"&$G$3,WITHDRAWALS!$B$5:$B$4000,"<="&$H$3&"-"&$G$3,WITHDRAWALS!$C$5:$C$4000,$A57,WITHDRAWALS!$D$5:$D$4000,"=FOB MILL",WITHDRAWALS!$E$5:$E$4000,H$6)) ->  | I57: =IF($A57="","",(SUMIFS(BOOKINGS!$E$5:$E$31,BOOKINGS!$A$5:$A$31,">=1-"&$G$3,BOOKINGS!$A$5:$A$31,"<="&$H$3&"-"&$G$3,BOOKINGS!$B$5:$B$31,$A57,BOOKINGS!$C$5:$C$31,"=FOB MILL",BOOKINGS!$D$5:$D$31,I$6))-SUMIFS(WITHDRAWALS!$F$5:$F$4000,WITHDRAWALS!$B$5:$B$4000,">=1-"&$G$3,WITHDRAWALS!$B$5:$B$4000,"<="&$H$3&"-"&$G$3,WITHDRAWALS!$C$5:$C$4000,$A57,WITHDRAWALS!$D$5:$D$4000,"=FOB MILL",WITHDRAWALS!$E$5:$E$4000,I$6)) ->  | J57: =IF($A57="","",(SUMIFS(BOOKINGS!$E$5:$E$31,BOOKINGS!$A$5:$A$31,">=1-"&$G$3,BOOKINGS!$A$5:$A$31,"<="&$H$3&"-"&$G$3,BOOKINGS!$B$5:$B$31,$A57,BOOKINGS!$C$5:$C$31,"=FOB MILL",BOOKINGS!$D$5:$D$31,J$6))-SUMIFS(WITHDRAWALS!$F$5:$F$4000,WITHDRAWALS!$B$5:$B$4000,">=1-"&$G$3,WITHDRAWALS!$B$5:$B$4000,"<="&$H$3&"-"&$G$3,WITHDRAWALS!$C$5:$C$4000,$A57,WITHDRAWALS!$D$5:$D$4000,"=FOB MILL",WITHDRAWALS!$E$5:$E$4000,J$6)) ->  | K57: =IF($A57="","",(SUMIFS(BOOKINGS!$E$5:$E$31,BOOKINGS!$A$5:$A$31,">=1-"&$G$3,BOOKINGS!$A$5:$A$31,"<="&$H$3&"-"&$G$3,BOOKINGS!$B$5:$B$31,$A57,BOOKINGS!$C$5:$C$31,"=FOB MILL",BOOKINGS!$D$5:$D$31,K$6))-SUMIFS(WITHDRAWALS!$F$5:$F$4000,WITHDRAWALS!$B$5:$B$4000,">=1-"&$G$3,WITHDRAWALS!$B$5:$B$4000,"<="&$H$3&"-"&$G$3,WITHDRAWALS!$C$5:$C$4000,$A57,WITHDRAWALS!$D$5:$D$4000,"=FOB MILL",WITHDRAWALS!$E$5:$E$4000,K$6)) ->  | L57: =IF($A57="","",(SUMIFS(BOOKINGS!$E$5:$E$31,BOOKINGS!$A$5:$A$31,">=1-"&$G$3,BOOKINGS!$A$5:$A$31,"<="&$H$3&"-"&$G$3,BOOKINGS!$B$5:$B$31,$A57,BOOKINGS!$C$5:$C$31,"=FOB MILL",BOOKINGS!$D$5:$D$31,L$6))-SUMIFS(WITHDRAWALS!$F$5:$F$4000,WITHDRAWALS!$B$5:$B$4000,">=1-"&$G$3,WITHDRAWALS!$B$5:$B$4000,"<="&$H$3&"-"&$G$3,WITHDRAWALS!$C$5:$C$4000,$A57,WITHDRAWALS!$D$5:$D$4000,"=FOB MILL",WITHDRAWALS!$E$5:$E$4000,L$6)) -> 
A58: =IFERROR(INDEX(WITHDRAWALS!$C$5:$C$4000,SMALL(IF(FREQUENCY(IF(ISNUMBER(SEARCH("??"&TEXT($G$4,"mmm")&"??"&"|"&"?*"&"FOB MILL"&"|?*",WITHDRAWALS!$L$5:$L$4000)), MATCH(WITHDRAWALS!$C$5:$C$4000,WITHDRAWALS!$C$5:$C$4000,0)),Ivec),Ivec),ROWS($A$7:A58))),"") ->  | B58: =IF($A58="","",(SUMIFS(BOOKINGS!$E$5:$E$31,BOOKINGS!$A$5:$A$31,">=1-"&$G$3,BOOKINGS!$A$5:$A$31,"<="&$H$3&"-"&$G$3,BOOKINGS!$B$5:$B$31,$A58,BOOKINGS!$C$5:$C$31,"=FOB MILL",BOOKINGS!$D$5:$D$31,B$6))-SUMIFS(WITHDRAWALS!$F$5:$F$4000,WITHDRAWALS!$B$5:$B$4000,">=1-"&$G$3,WITHDRAWALS!$B$5:$B$4000,"<="&$H$3&"-"&$G$3,WITHDRAWALS!$C$5:$C$4000,$A58,WITHDRAWALS!$D$5:$D$4000,"=FOB MILL",WITHDRAWALS!$E$5:$E$4000,B$6)) ->  | C58: =IF($A58="","",(SUMIFS(BOOKINGS!$E$5:$E$31,BOOKINGS!$A$5:$A$31,">=1-"&$G$3,BOOKINGS!$A$5:$A$31,"<="&$H$3&"-"&$G$3,BOOKINGS!$B$5:$B$31,$A58,BOOKINGS!$C$5:$C$31,"=FOB MILL",BOOKINGS!$D$5:$D$31,C$6))-SUMIFS(WITHDRAWALS!$F$5:$F$4000,WITHDRAWALS!$B$5:$B$4000,">=1-"&$G$3,WITHDRAWALS!$B$5:$B$4000,"<="&$H$3&"-"&$G$3,WITHDRAWALS!$C$5:$C$4000,$A58,WITHDRAWALS!$D$5:$D$4000,"=FOB MILL",WITHDRAWALS!$E$5:$E$4000,C$6)) ->  | D58: =IF($A58="","",(SUMIFS(BOOKINGS!$E$5:$E$31,BOOKINGS!$A$5:$A$31,">=1-"&$G$3,BOOKINGS!$A$5:$A$31,"<="&$H$3&"-"&$G$3,BOOKINGS!$B$5:$B$31,$A58,BOOKINGS!$C$5:$C$31,"=FOB MILL",BOOKINGS!$D$5:$D$31,D$6))-SUMIFS(WITHDRAWALS!$F$5:$F$4000,WITHDRAWALS!$B$5:$B$4000,">=1-"&$G$3,WITHDRAWALS!$B$5:$B$4000,"<="&$H$3&"-"&$G$3,WITHDRAWALS!$C$5:$C$4000,$A58,WITHDRAWALS!$D$5:$D$4000,"=FOB MILL",WITHDRAWALS!$E$5:$E$4000,D$6)) ->  | E58: =IF($A58="","",(SUMIFS(BOOKINGS!$E$5:$E$31,BOOKINGS!$A$5:$A$31,">=1-"&$G$3,BOOKINGS!$A$5:$A$31,"<="&$H$3&"-"&$G$3,BOOKINGS!$B$5:$B$31,$A58,BOOKINGS!$C$5:$C$31,"=FOB MILL",BOOKINGS!$D$5:$D$31,E$6))-SUMIFS(WITHDRAWALS!$F$5:$F$4000,WITHDRAWALS!$B$5:$B$4000,">=1-"&$G$3,WITHDRAWALS!$B$5:$B$4000,"<="&$H$3&"-"&$G$3,WITHDRAWALS!$C$5:$C$4000,$A58,WITHDRAWALS!$D$5:$D$4000,"=FOB MILL",WITHDRAWALS!$E$5:$E$4000,E$6)) ->  | F58: =IF($A58="","",(SUMIFS(BOOKINGS!$E$5:$E$31,BOOKINGS!$A$5:$A$31,">=1-"&$G$3,BOOKINGS!$A$5:$A$31,"<="&$H$3&"-"&$G$3,BOOKINGS!$B$5:$B$31,$A58,BOOKINGS!$C$5:$C$31,"=FOB MILL",BOOKINGS!$D$5:$D$31,F$6))-SUMIFS(WITHDRAWALS!$F$5:$F$4000,WITHDRAWALS!$B$5:$B$4000,">=1-"&$G$3,WITHDRAWALS!$B$5:$B$4000,"<="&$H$3&"-"&$G$3,WITHDRAWALS!$C$5:$C$4000,$A58,WITHDRAWALS!$D$5:$D$4000,"=FOB MILL",WITHDRAWALS!$E$5:$E$4000,F$6)) ->  | G58: =IF($A58="","",(SUMIFS(BOOKINGS!$E$5:$E$31,BOOKINGS!$A$5:$A$31,">=1-"&$G$3,BOOKINGS!$A$5:$A$31,"<="&$H$3&"-"&$G$3,BOOKINGS!$B$5:$B$31,$A58,BOOKINGS!$C$5:$C$31,"=FOB MILL",BOOKINGS!$D$5:$D$31,G$6))-SUMIFS(WITHDRAWALS!$F$5:$F$4000,WITHDRAWALS!$B$5:$B$4000,">=1-"&$G$3,WITHDRAWALS!$B$5:$B$4000,"<="&$H$3&"-"&$G$3,WITHDRAWALS!$C$5:$C$4000,$A58,WITHDRAWALS!$D$5:$D$4000,"=FOB MILL",WITHDRAWALS!$E$5:$E$4000,G$6)) ->  | H58: =IF($A58="","",(SUMIFS(BOOKINGS!$E$5:$E$31,BOOKINGS!$A$5:$A$31,">=1-"&$G$3,BOOKINGS!$A$5:$A$31,"<="&$H$3&"-"&$G$3,BOOKINGS!$B$5:$B$31,$A58,BOOKINGS!$C$5:$C$31,"=FOB MILL",BOOKINGS!$D$5:$D$31,H$6))-SUMIFS(WITHDRAWALS!$F$5:$F$4000,WITHDRAWALS!$B$5:$B$4000,">=1-"&$G$3,WITHDRAWALS!$B$5:$B$4000,"<="&$H$3&"-"&$G$3,WITHDRAWALS!$C$5:$C$4000,$A58,WITHDRAWALS!$D$5:$D$4000,"=FOB MILL",WITHDRAWALS!$E$5:$E$4000,H$6)) ->  | I58: =IF($A58="","",(SUMIFS(BOOKINGS!$E$5:$E$31,BOOKINGS!$A$5:$A$31,">=1-"&$G$3,BOOKINGS!$A$5:$A$31,"<="&$H$3&"-"&$G$3,BOOKINGS!$B$5:$B$31,$A58,BOOKINGS!$C$5:$C$31,"=FOB MILL",BOOKINGS!$D$5:$D$31,I$6))-SUMIFS(WITHDRAWALS!$F$5:$F$4000,WITHDRAWALS!$B$5:$B$4000,">=1-"&$G$3,WITHDRAWALS!$B$5:$B$4000,"<="&$H$3&"-"&$G$3,WITHDRAWALS!$C$5:$C$4000,$A58,WITHDRAWALS!$D$5:$D$4000,"=FOB MILL",WITHDRAWALS!$E$5:$E$4000,I$6)) ->  | J58: =IF($A58="","",(SUMIFS(BOOKINGS!$E$5:$E$31,BOOKINGS!$A$5:$A$31,">=1-"&$G$3,BOOKINGS!$A$5:$A$31,"<="&$H$3&"-"&$G$3,BOOKINGS!$B$5:$B$31,$A58,BOOKINGS!$C$5:$C$31,"=FOB MILL",BOOKINGS!$D$5:$D$31,J$6))-SUMIFS(WITHDRAWALS!$F$5:$F$4000,WITHDRAWALS!$B$5:$B$4000,">=1-"&$G$3,WITHDRAWALS!$B$5:$B$4000,"<="&$H$3&"-"&$G$3,WITHDRAWALS!$C$5:$C$4000,$A58,WITHDRAWALS!$D$5:$D$4000,"=FOB MILL",WITHDRAWALS!$E$5:$E$4000,J$6)) ->  | K58: =IF($A58="","",(SUMIFS(BOOKINGS!$E$5:$E$31,BOOKINGS!$A$5:$A$31,">=1-"&$G$3,BOOKINGS!$A$5:$A$31,"<="&$H$3&"-"&$G$3,BOOKINGS!$B$5:$B$31,$A58,BOOKINGS!$C$5:$C$31,"=FOB MILL",BOOKINGS!$D$5:$D$31,K$6))-SUMIFS(WITHDRAWALS!$F$5:$F$4000,WITHDRAWALS!$B$5:$B$4000,">=1-"&$G$3,WITHDRAWALS!$B$5:$B$4000,"<="&$H$3&"-"&$G$3,WITHDRAWALS!$C$5:$C$4000,$A58,WITHDRAWALS!$D$5:$D$4000,"=FOB MILL",WITHDRAWALS!$E$5:$E$4000,K$6)) ->  | L58: =IF($A58="","",(SUMIFS(BOOKINGS!$E$5:$E$31,BOOKINGS!$A$5:$A$31,">=1-"&$G$3,BOOKINGS!$A$5:$A$31,"<="&$H$3&"-"&$G$3,BOOKINGS!$B$5:$B$31,$A58,BOOKINGS!$C$5:$C$31,"=FOB MILL",BOOKINGS!$D$5:$D$31,L$6))-SUMIFS(WITHDRAWALS!$F$5:$F$4000,WITHDRAWALS!$B$5:$B$4000,">=1-"&$G$3,WITHDRAWALS!$B$5:$B$4000,"<="&$H$3&"-"&$G$3,WITHDRAWALS!$C$5:$C$4000,$A58,WITHDRAWALS!$D$5:$D$4000,"=FOB MILL",WITHDRAWALS!$E$5:$E$4000,L$6)) -> 
A59: =IFERROR(INDEX(WITHDRAWALS!$C$5:$C$4000,SMALL(IF(FREQUENCY(IF(ISNUMBER(SEARCH("??"&TEXT($G$4,"mmm")&"??"&"|"&"?*"&"FOB MILL"&"|?*",WITHDRAWALS!$L$5:$L$4000)), MATCH(WITHDRAWALS!$C$5:$C$4000,WITHDRAWALS!$C$5:$C$4000,0)),Ivec),Ivec),ROWS($A$7:A59))),"") ->  | B59: =IF($A59="","",(SUMIFS(BOOKINGS!$E$5:$E$31,BOOKINGS!$A$5:$A$31,">=1-"&$G$3,BOOKINGS!$A$5:$A$31,"<="&$H$3&"-"&$G$3,BOOKINGS!$B$5:$B$31,$A59,BOOKINGS!$C$5:$C$31,"=FOB MILL",BOOKINGS!$D$5:$D$31,B$6))-SUMIFS(WITHDRAWALS!$F$5:$F$4000,WITHDRAWALS!$B$5:$B$4000,">=1-"&$G$3,WITHDRAWALS!$B$5:$B$4000,"<="&$H$3&"-"&$G$3,WITHDRAWALS!$C$5:$C$4000,$A59,WITHDRAWALS!$D$5:$D$4000,"=FOB MILL",WITHDRAWALS!$E$5:$E$4000,B$6)) ->  | C59: =IF($A59="","",(SUMIFS(BOOKINGS!$E$5:$E$31,BOOKINGS!$A$5:$A$31,">=1-"&$G$3,BOOKINGS!$A$5:$A$31,"<="&$H$3&"-"&$G$3,BOOKINGS!$B$5:$B$31,$A59,BOOKINGS!$C$5:$C$31,"=FOB MILL",BOOKINGS!$D$5:$D$31,C$6))-SUMIFS(WITHDRAWALS!$F$5:$F$4000,WITHDRAWALS!$B$5:$B$4000,">=1-"&$G$3,WITHDRAWALS!$B$5:$B$4000,"<="&$H$3&"-"&$G$3,WITHDRAWALS!$C$5:$C$4000,$A59,WITHDRAWALS!$D$5:$D$4000,"=FOB MILL",WITHDRAWALS!$E$5:$E$4000,C$6)) ->  | D59: =IF($A59="","",(SUMIFS(BOOKINGS!$E$5:$E$31,BOOKINGS!$A$5:$A$31,">=1-"&$G$3,BOOKINGS!$A$5:$A$31,"<="&$H$3&"-"&$G$3,BOOKINGS!$B$5:$B$31,$A59,BOOKINGS!$C$5:$C$31,"=FOB MILL",BOOKINGS!$D$5:$D$31,D$6))-SUMIFS(WITHDRAWALS!$F$5:$F$4000,WITHDRAWALS!$B$5:$B$4000,">=1-"&$G$3,WITHDRAWALS!$B$5:$B$4000,"<="&$H$3&"-"&$G$3,WITHDRAWALS!$C$5:$C$4000,$A59,WITHDRAWALS!$D$5:$D$4000,"=FOB MILL",WITHDRAWALS!$E$5:$E$4000,D$6)) ->  | E59: =IF($A59="","",(SUMIFS(BOOKINGS!$E$5:$E$31,BOOKINGS!$A$5:$A$31,">=1-"&$G$3,BOOKINGS!$A$5:$A$31,"<="&$H$3&"-"&$G$3,BOOKINGS!$B$5:$B$31,$A59,BOOKINGS!$C$5:$C$31,"=FOB MILL",BOOKINGS!$D$5:$D$31,E$6))-SUMIFS(WITHDRAWALS!$F$5:$F$4000,WITHDRAWALS!$B$5:$B$4000,">=1-"&$G$3,WITHDRAWALS!$B$5:$B$4000,"<="&$H$3&"-"&$G$3,WITHDRAWALS!$C$5:$C$4000,$A59,WITHDRAWALS!$D$5:$D$4000,"=FOB MILL",WITHDRAWALS!$E$5:$E$4000,E$6)) ->  | F59: =IF($A59="","",(SUMIFS(BOOKINGS!$E$5:$E$31,BOOKINGS!$A$5:$A$31,">=1-"&$G$3,BOOKINGS!$A$5:$A$31,"<="&$H$3&"-"&$G$3,BOOKINGS!$B$5:$B$31,$A59,BOOKINGS!$C$5:$C$31,"=FOB MILL",BOOKINGS!$D$5:$D$31,F$6))-SUMIFS(WITHDRAWALS!$F$5:$F$4000,WITHDRAWALS!$B$5:$B$4000,">=1-"&$G$3,WITHDRAWALS!$B$5:$B$4000,"<="&$H$3&"-"&$G$3,WITHDRAWALS!$C$5:$C$4000,$A59,WITHDRAWALS!$D$5:$D$4000,"=FOB MILL",WITHDRAWALS!$E$5:$E$4000,F$6)) ->  | G59: =IF($A59="","",(SUMIFS(BOOKINGS!$E$5:$E$31,BOOKINGS!$A$5:$A$31,">=1-"&$G$3,BOOKINGS!$A$5:$A$31,"<="&$H$3&"-"&$G$3,BOOKINGS!$B$5:$B$31,$A59,BOOKINGS!$C$5:$C$31,"=FOB MILL",BOOKINGS!$D$5:$D$31,G$6))-SUMIFS(WITHDRAWALS!$F$5:$F$4000,WITHDRAWALS!$B$5:$B$4000,">=1-"&$G$3,WITHDRAWALS!$B$5:$B$4000,"<="&$H$3&"-"&$G$3,WITHDRAWALS!$C$5:$C$4000,$A59,WITHDRAWALS!$D$5:$D$4000,"=FOB MILL",WITHDRAWALS!$E$5:$E$4000,G$6)) ->  | H59: =IF($A59="","",(SUMIFS(BOOKINGS!$E$5:$E$31,BOOKINGS!$A$5:$A$31,">=1-"&$G$3,BOOKINGS!$A$5:$A$31,"<="&$H$3&"-"&$G$3,BOOKINGS!$B$5:$B$31,$A59,BOOKINGS!$C$5:$C$31,"=FOB MILL",BOOKINGS!$D$5:$D$31,H$6))-SUMIFS(WITHDRAWALS!$F$5:$F$4000,WITHDRAWALS!$B$5:$B$4000,">=1-"&$G$3,WITHDRAWALS!$B$5:$B$4000,"<="&$H$3&"-"&$G$3,WITHDRAWALS!$C$5:$C$4000,$A59,WITHDRAWALS!$D$5:$D$4000,"=FOB MILL",WITHDRAWALS!$E$5:$E$4000,H$6)) ->  | I59: =IF($A59="","",(SUMIFS(BOOKINGS!$E$5:$E$31,BOOKINGS!$A$5:$A$31,">=1-"&$G$3,BOOKINGS!$A$5:$A$31,"<="&$H$3&"-"&$G$3,BOOKINGS!$B$5:$B$31,$A59,BOOKINGS!$C$5:$C$31,"=FOB MILL",BOOKINGS!$D$5:$D$31,I$6))-SUMIFS(WITHDRAWALS!$F$5:$F$4000,WITHDRAWALS!$B$5:$B$4000,">=1-"&$G$3,WITHDRAWALS!$B$5:$B$4000,"<="&$H$3&"-"&$G$3,WITHDRAWALS!$C$5:$C$4000,$A59,WITHDRAWALS!$D$5:$D$4000,"=FOB MILL",WITHDRAWALS!$E$5:$E$4000,I$6)) ->  | J59: =IF($A59="","",(SUMIFS(BOOKINGS!$E$5:$E$31,BOOKINGS!$A$5:$A$31,">=1-"&$G$3,BOOKINGS!$A$5:$A$31,"<="&$H$3&"-"&$G$3,BOOKINGS!$B$5:$B$31,$A59,BOOKINGS!$C$5:$C$31,"=FOB MILL",BOOKINGS!$D$5:$D$31,J$6))-SUMIFS(WITHDRAWALS!$F$5:$F$4000,WITHDRAWALS!$B$5:$B$4000,">=1-"&$G$3,WITHDRAWALS!$B$5:$B$4000,"<="&$H$3&"-"&$G$3,WITHDRAWALS!$C$5:$C$4000,$A59,WITHDRAWALS!$D$5:$D$4000,"=FOB MILL",WITHDRAWALS!$E$5:$E$4000,J$6)) ->  | K59: =IF($A59="","",(SUMIFS(BOOKINGS!$E$5:$E$31,BOOKINGS!$A$5:$A$31,">=1-"&$G$3,BOOKINGS!$A$5:$A$31,"<="&$H$3&"-"&$G$3,BOOKINGS!$B$5:$B$31,$A59,BOOKINGS!$C$5:$C$31,"=FOB MILL",BOOKINGS!$D$5:$D$31,K$6))-SUMIFS(WITHDRAWALS!$F$5:$F$4000,WITHDRAWALS!$B$5:$B$4000,">=1-"&$G$3,WITHDRAWALS!$B$5:$B$4000,"<="&$H$3&"-"&$G$3,WITHDRAWALS!$C$5:$C$4000,$A59,WITHDRAWALS!$D$5:$D$4000,"=FOB MILL",WITHDRAWALS!$E$5:$E$4000,K$6)) ->  | L59: =IF($A59="","",(SUMIFS(BOOKINGS!$E$5:$E$31,BOOKINGS!$A$5:$A$31,">=1-"&$G$3,BOOKINGS!$A$5:$A$31,"<="&$H$3&"-"&$G$3,BOOKINGS!$B$5:$B$31,$A59,BOOKINGS!$C$5:$C$31,"=FOB MILL",BOOKINGS!$D$5:$D$31,L$6))-SUMIFS(WITHDRAWALS!$F$5:$F$4000,WITHDRAWALS!$B$5:$B$4000,">=1-"&$G$3,WITHDRAWALS!$B$5:$B$4000,"<="&$H$3&"-"&$G$3,WITHDRAWALS!$C$5:$C$4000,$A59,WITHDRAWALS!$D$5:$D$4000,"=FOB MILL",WITHDRAWALS!$E$5:$E$4000,L$6)) -> 
A60: =IFERROR(INDEX(WITHDRAWALS!$C$5:$C$4000,SMALL(IF(FREQUENCY(IF(ISNUMBER(SEARCH("??"&TEXT($G$4,"mmm")&"??"&"|"&"?*"&"FOB MILL"&"|?*",WITHDRAWALS!$L$5:$L$4000)), MATCH(WITHDRAWALS!$C$5:$C$4000,WITHDRAWALS!$C$5:$C$4000,0)),Ivec),Ivec),ROWS($A$7:A60))),"") ->  | B60: =IF($A60="","",(SUMIFS(BOOKINGS!$E$5:$E$31,BOOKINGS!$A$5:$A$31,">=1-"&$G$3,BOOKINGS!$A$5:$A$31,"<="&$H$3&"-"&$G$3,BOOKINGS!$B$5:$B$31,$A60,BOOKINGS!$C$5:$C$31,"=FOB MILL",BOOKINGS!$D$5:$D$31,B$6))-SUMIFS(WITHDRAWALS!$F$5:$F$4000,WITHDRAWALS!$B$5:$B$4000,">=1-"&$G$3,WITHDRAWALS!$B$5:$B$4000,"<="&$H$3&"-"&$G$3,WITHDRAWALS!$C$5:$C$4000,$A60,WITHDRAWALS!$D$5:$D$4000,"=FOB MILL",WITHDRAWALS!$E$5:$E$4000,B$6)) ->  | C60: =IF($A60="","",(SUMIFS(BOOKINGS!$E$5:$E$31,BOOKINGS!$A$5:$A$31,">=1-"&$G$3,BOOKINGS!$A$5:$A$31,"<="&$H$3&"-"&$G$3,BOOKINGS!$B$5:$B$31,$A60,BOOKINGS!$C$5:$C$31,"=FOB MILL",BOOKINGS!$D$5:$D$31,C$6))-SUMIFS(WITHDRAWALS!$F$5:$F$4000,WITHDRAWALS!$B$5:$B$4000,">=1-"&$G$3,WITHDRAWALS!$B$5:$B$4000,"<="&$H$3&"-"&$G$3,WITHDRAWALS!$C$5:$C$4000,$A60,WITHDRAWALS!$D$5:$D$4000,"=FOB MILL",WITHDRAWALS!$E$5:$E$4000,C$6)) ->  | D60: =IF($A60="","",(SUMIFS(BOOKINGS!$E$5:$E$31,BOOKINGS!$A$5:$A$31,">=1-"&$G$3,BOOKINGS!$A$5:$A$31,"<="&$H$3&"-"&$G$3,BOOKINGS!$B$5:$B$31,$A60,BOOKINGS!$C$5:$C$31,"=FOB MILL",BOOKINGS!$D$5:$D$31,D$6))-SUMIFS(WITHDRAWALS!$F$5:$F$4000,WITHDRAWALS!$B$5:$B$4000,">=1-"&$G$3,WITHDRAWALS!$B$5:$B$4000,"<="&$H$3&"-"&$G$3,WITHDRAWALS!$C$5:$C$4000,$A60,WITHDRAWALS!$D$5:$D$4000,"=FOB MILL",WITHDRAWALS!$E$5:$E$4000,D$6)) ->  | E60: =IF($A60="","",(SUMIFS(BOOKINGS!$E$5:$E$31,BOOKINGS!$A$5:$A$31,">=1-"&$G$3,BOOKINGS!$A$5:$A$31,"<="&$H$3&"-"&$G$3,BOOKINGS!$B$5:$B$31,$A60,BOOKINGS!$C$5:$C$31,"=FOB MILL",BOOKINGS!$D$5:$D$31,E$6))-SUMIFS(WITHDRAWALS!$F$5:$F$4000,WITHDRAWALS!$B$5:$B$4000,">=1-"&$G$3,WITHDRAWALS!$B$5:$B$4000,"<="&$H$3&"-"&$G$3,WITHDRAWALS!$C$5:$C$4000,$A60,WITHDRAWALS!$D$5:$D$4000,"=FOB MILL",WITHDRAWALS!$E$5:$E$4000,E$6)) ->  | F60: =IF($A60="","",(SUMIFS(BOOKINGS!$E$5:$E$31,BOOKINGS!$A$5:$A$31,">=1-"&$G$3,BOOKINGS!$A$5:$A$31,"<="&$H$3&"-"&$G$3,BOOKINGS!$B$5:$B$31,$A60,BOOKINGS!$C$5:$C$31,"=FOB MILL",BOOKINGS!$D$5:$D$31,F$6))-SUMIFS(WITHDRAWALS!$F$5:$F$4000,WITHDRAWALS!$B$5:$B$4000,">=1-"&$G$3,WITHDRAWALS!$B$5:$B$4000,"<="&$H$3&"-"&$G$3,WITHDRAWALS!$C$5:$C$4000,$A60,WITHDRAWALS!$D$5:$D$4000,"=FOB MILL",WITHDRAWALS!$E$5:$E$4000,F$6)) ->  | G60: =IF($A60="","",(SUMIFS(BOOKINGS!$E$5:$E$31,BOOKINGS!$A$5:$A$31,">=1-"&$G$3,BOOKINGS!$A$5:$A$31,"<="&$H$3&"-"&$G$3,BOOKINGS!$B$5:$B$31,$A60,BOOKINGS!$C$5:$C$31,"=FOB MILL",BOOKINGS!$D$5:$D$31,G$6))-SUMIFS(WITHDRAWALS!$F$5:$F$4000,WITHDRAWALS!$B$5:$B$4000,">=1-"&$G$3,WITHDRAWALS!$B$5:$B$4000,"<="&$H$3&"-"&$G$3,WITHDRAWALS!$C$5:$C$4000,$A60,WITHDRAWALS!$D$5:$D$4000,"=FOB MILL",WITHDRAWALS!$E$5:$E$4000,G$6)) ->  | H60: =IF($A60="","",(SUMIFS(BOOKINGS!$E$5:$E$31,BOOKINGS!$A$5:$A$31,">=1-"&$G$3,BOOKINGS!$A$5:$A$31,"<="&$H$3&"-"&$G$3,BOOKINGS!$B$5:$B$31,$A60,BOOKINGS!$C$5:$C$31,"=FOB MILL",BOOKINGS!$D$5:$D$31,H$6))-SUMIFS(WITHDRAWALS!$F$5:$F$4000,WITHDRAWALS!$B$5:$B$4000,">=1-"&$G$3,WITHDRAWALS!$B$5:$B$4000,"<="&$H$3&"-"&$G$3,WITHDRAWALS!$C$5:$C$4000,$A60,WITHDRAWALS!$D$5:$D$4000,"=FOB MILL",WITHDRAWALS!$E$5:$E$4000,H$6)) ->  | I60: =IF($A60="","",(SUMIFS(BOOKINGS!$E$5:$E$31,BOOKINGS!$A$5:$A$31,">=1-"&$G$3,BOOKINGS!$A$5:$A$31,"<="&$H$3&"-"&$G$3,BOOKINGS!$B$5:$B$31,$A60,BOOKINGS!$C$5:$C$31,"=FOB MILL",BOOKINGS!$D$5:$D$31,I$6))-SUMIFS(WITHDRAWALS!$F$5:$F$4000,WITHDRAWALS!$B$5:$B$4000,">=1-"&$G$3,WITHDRAWALS!$B$5:$B$4000,"<="&$H$3&"-"&$G$3,WITHDRAWALS!$C$5:$C$4000,$A60,WITHDRAWALS!$D$5:$D$4000,"=FOB MILL",WITHDRAWALS!$E$5:$E$4000,I$6)) ->  | J60: =IF($A60="","",(SUMIFS(BOOKINGS!$E$5:$E$31,BOOKINGS!$A$5:$A$31,">=1-"&$G$3,BOOKINGS!$A$5:$A$31,"<="&$H$3&"-"&$G$3,BOOKINGS!$B$5:$B$31,$A60,BOOKINGS!$C$5:$C$31,"=FOB MILL",BOOKINGS!$D$5:$D$31,J$6))-SUMIFS(WITHDRAWALS!$F$5:$F$4000,WITHDRAWALS!$B$5:$B$4000,">=1-"&$G$3,WITHDRAWALS!$B$5:$B$4000,"<="&$H$3&"-"&$G$3,WITHDRAWALS!$C$5:$C$4000,$A60,WITHDRAWALS!$D$5:$D$4000,"=FOB MILL",WITHDRAWALS!$E$5:$E$4000,J$6)) ->  | K60: =IF($A60="","",(SUMIFS(BOOKINGS!$E$5:$E$31,BOOKINGS!$A$5:$A$31,">=1-"&$G$3,BOOKINGS!$A$5:$A$31,"<="&$H$3&"-"&$G$3,BOOKINGS!$B$5:$B$31,$A60,BOOKINGS!$C$5:$C$31,"=FOB MILL",BOOKINGS!$D$5:$D$31,K$6))-SUMIFS(WITHDRAWALS!$F$5:$F$4000,WITHDRAWALS!$B$5:$B$4000,">=1-"&$G$3,WITHDRAWALS!$B$5:$B$4000,"<="&$H$3&"-"&$G$3,WITHDRAWALS!$C$5:$C$4000,$A60,WITHDRAWALS!$D$5:$D$4000,"=FOB MILL",WITHDRAWALS!$E$5:$E$4000,K$6)) ->  | L60: =IF($A60="","",(SUMIFS(BOOKINGS!$E$5:$E$31,BOOKINGS!$A$5:$A$31,">=1-"&$G$3,BOOKINGS!$A$5:$A$31,"<="&$H$3&"-"&$G$3,BOOKINGS!$B$5:$B$31,$A60,BOOKINGS!$C$5:$C$31,"=FOB MILL",BOOKINGS!$D$5:$D$31,L$6))-SUMIFS(WITHDRAWALS!$F$5:$F$4000,WITHDRAWALS!$B$5:$B$4000,">=1-"&$G$3,WITHDRAWALS!$B$5:$B$4000,"<="&$H$3&"-"&$G$3,WITHDRAWALS!$C$5:$C$4000,$A60,WITHDRAWALS!$D$5:$D$4000,"=FOB MILL",WITHDRAWALS!$E$5:$E$4000,L$6)) -> 
A61: =IFERROR(INDEX(WITHDRAWALS!$C$5:$C$4000,SMALL(IF(FREQUENCY(IF(ISNUMBER(SEARCH("??"&TEXT($G$4,"mmm")&"??"&"|"&"?*"&"FOB MILL"&"|?*",WITHDRAWALS!$L$5:$L$4000)), MATCH(WITHDRAWALS!$C$5:$C$4000,WITHDRAWALS!$C$5:$C$4000,0)),Ivec),Ivec),ROWS($A$7:A61))),"") ->  | B61: =IF($A61="","",(SUMIFS(BOOKINGS!$E$5:$E$31,BOOKINGS!$A$5:$A$31,">=1-"&$G$3,BOOKINGS!$A$5:$A$31,"<="&$H$3&"-"&$G$3,BOOKINGS!$B$5:$B$31,$A61,BOOKINGS!$C$5:$C$31,"=FOB MILL",BOOKINGS!$D$5:$D$31,B$6))-SUMIFS(WITHDRAWALS!$F$5:$F$4000,WITHDRAWALS!$B$5:$B$4000,">=1-"&$G$3,WITHDRAWALS!$B$5:$B$4000,"<="&$H$3&"-"&$G$3,WITHDRAWALS!$C$5:$C$4000,$A61,WITHDRAWALS!$D$5:$D$4000,"=FOB MILL",WITHDRAWALS!$E$5:$E$4000,B$6)) ->  | C61: =IF($A61="","",(SUMIFS(BOOKINGS!$E$5:$E$31,BOOKINGS!$A$5:$A$31,">=1-"&$G$3,BOOKINGS!$A$5:$A$31,"<="&$H$3&"-"&$G$3,BOOKINGS!$B$5:$B$31,$A61,BOOKINGS!$C$5:$C$31,"=FOB MILL",BOOKINGS!$D$5:$D$31,C$6))-SUMIFS(WITHDRAWALS!$F$5:$F$4000,WITHDRAWALS!$B$5:$B$4000,">=1-"&$G$3,WITHDRAWALS!$B$5:$B$4000,"<="&$H$3&"-"&$G$3,WITHDRAWALS!$C$5:$C$4000,$A61,WITHDRAWALS!$D$5:$D$4000,"=FOB MILL",WITHDRAWALS!$E$5:$E$4000,C$6)) ->  | D61: =IF($A61="","",(SUMIFS(BOOKINGS!$E$5:$E$31,BOOKINGS!$A$5:$A$31,">=1-"&$G$3,BOOKINGS!$A$5:$A$31,"<="&$H$3&"-"&$G$3,BOOKINGS!$B$5:$B$31,$A61,BOOKINGS!$C$5:$C$31,"=FOB MILL",BOOKINGS!$D$5:$D$31,D$6))-SUMIFS(WITHDRAWALS!$F$5:$F$4000,WITHDRAWALS!$B$5:$B$4000,">=1-"&$G$3,WITHDRAWALS!$B$5:$B$4000,"<="&$H$3&"-"&$G$3,WITHDRAWALS!$C$5:$C$4000,$A61,WITHDRAWALS!$D$5:$D$4000,"=FOB MILL",WITHDRAWALS!$E$5:$E$4000,D$6)) ->  | E61: =IF($A61="","",(SUMIFS(BOOKINGS!$E$5:$E$31,BOOKINGS!$A$5:$A$31,">=1-"&$G$3,BOOKINGS!$A$5:$A$31,"<="&$H$3&"-"&$G$3,BOOKINGS!$B$5:$B$31,$A61,BOOKINGS!$C$5:$C$31,"=FOB MILL",BOOKINGS!$D$5:$D$31,E$6))-SUMIFS(WITHDRAWALS!$F$5:$F$4000,WITHDRAWALS!$B$5:$B$4000,">=1-"&$G$3,WITHDRAWALS!$B$5:$B$4000,"<="&$H$3&"-"&$G$3,WITHDRAWALS!$C$5:$C$4000,$A61,WITHDRAWALS!$D$5:$D$4000,"=FOB MILL",WITHDRAWALS!$E$5:$E$4000,E$6)) ->  | F61: =IF($A61="","",(SUMIFS(BOOKINGS!$E$5:$E$31,BOOKINGS!$A$5:$A$31,">=1-"&$G$3,BOOKINGS!$A$5:$A$31,"<="&$H$3&"-"&$G$3,BOOKINGS!$B$5:$B$31,$A61,BOOKINGS!$C$5:$C$31,"=FOB MILL",BOOKINGS!$D$5:$D$31,F$6))-SUMIFS(WITHDRAWALS!$F$5:$F$4000,WITHDRAWALS!$B$5:$B$4000,">=1-"&$G$3,WITHDRAWALS!$B$5:$B$4000,"<="&$H$3&"-"&$G$3,WITHDRAWALS!$C$5:$C$4000,$A61,WITHDRAWALS!$D$5:$D$4000,"=FOB MILL",WITHDRAWALS!$E$5:$E$4000,F$6)) ->  | G61: =IF($A61="","",(SUMIFS(BOOKINGS!$E$5:$E$31,BOOKINGS!$A$5:$A$31,">=1-"&$G$3,BOOKINGS!$A$5:$A$31,"<="&$H$3&"-"&$G$3,BOOKINGS!$B$5:$B$31,$A61,BOOKINGS!$C$5:$C$31,"=FOB MILL",BOOKINGS!$D$5:$D$31,G$6))-SUMIFS(WITHDRAWALS!$F$5:$F$4000,WITHDRAWALS!$B$5:$B$4000,">=1-"&$G$3,WITHDRAWALS!$B$5:$B$4000,"<="&$H$3&"-"&$G$3,WITHDRAWALS!$C$5:$C$4000,$A61,WITHDRAWALS!$D$5:$D$4000,"=FOB MILL",WITHDRAWALS!$E$5:$E$4000,G$6)) ->  | H61: =IF($A61="","",(SUMIFS(BOOKINGS!$E$5:$E$31,BOOKINGS!$A$5:$A$31,">=1-"&$G$3,BOOKINGS!$A$5:$A$31,"<="&$H$3&"-"&$G$3,BOOKINGS!$B$5:$B$31,$A61,BOOKINGS!$C$5:$C$31,"=FOB MILL",BOOKINGS!$D$5:$D$31,H$6))-SUMIFS(WITHDRAWALS!$F$5:$F$4000,WITHDRAWALS!$B$5:$B$4000,">=1-"&$G$3,WITHDRAWALS!$B$5:$B$4000,"<="&$H$3&"-"&$G$3,WITHDRAWALS!$C$5:$C$4000,$A61,WITHDRAWALS!$D$5:$D$4000,"=FOB MILL",WITHDRAWALS!$E$5:$E$4000,H$6)) ->  | I61: =IF($A61="","",(SUMIFS(BOOKINGS!$E$5:$E$31,BOOKINGS!$A$5:$A$31,">=1-"&$G$3,BOOKINGS!$A$5:$A$31,"<="&$H$3&"-"&$G$3,BOOKINGS!$B$5:$B$31,$A61,BOOKINGS!$C$5:$C$31,"=FOB MILL",BOOKINGS!$D$5:$D$31,I$6))-SUMIFS(WITHDRAWALS!$F$5:$F$4000,WITHDRAWALS!$B$5:$B$4000,">=1-"&$G$3,WITHDRAWALS!$B$5:$B$4000,"<="&$H$3&"-"&$G$3,WITHDRAWALS!$C$5:$C$4000,$A61,WITHDRAWALS!$D$5:$D$4000,"=FOB MILL",WITHDRAWALS!$E$5:$E$4000,I$6)) ->  | J61: =IF($A61="","",(SUMIFS(BOOKINGS!$E$5:$E$31,BOOKINGS!$A$5:$A$31,">=1-"&$G$3,BOOKINGS!$A$5:$A$31,"<="&$H$3&"-"&$G$3,BOOKINGS!$B$5:$B$31,$A61,BOOKINGS!$C$5:$C$31,"=FOB MILL",BOOKINGS!$D$5:$D$31,J$6))-SUMIFS(WITHDRAWALS!$F$5:$F$4000,WITHDRAWALS!$B$5:$B$4000,">=1-"&$G$3,WITHDRAWALS!$B$5:$B$4000,"<="&$H$3&"-"&$G$3,WITHDRAWALS!$C$5:$C$4000,$A61,WITHDRAWALS!$D$5:$D$4000,"=FOB MILL",WITHDRAWALS!$E$5:$E$4000,J$6)) ->  | K61: =IF($A61="","",(SUMIFS(BOOKINGS!$E$5:$E$31,BOOKINGS!$A$5:$A$31,">=1-"&$G$3,BOOKINGS!$A$5:$A$31,"<="&$H$3&"-"&$G$3,BOOKINGS!$B$5:$B$31,$A61,BOOKINGS!$C$5:$C$31,"=FOB MILL",BOOKINGS!$D$5:$D$31,K$6))-SUMIFS(WITHDRAWALS!$F$5:$F$4000,WITHDRAWALS!$B$5:$B$4000,">=1-"&$G$3,WITHDRAWALS!$B$5:$B$4000,"<="&$H$3&"-"&$G$3,WITHDRAWALS!$C$5:$C$4000,$A61,WITHDRAWALS!$D$5:$D$4000,"=FOB MILL",WITHDRAWALS!$E$5:$E$4000,K$6)) ->  | L61: =IF($A61="","",(SUMIFS(BOOKINGS!$E$5:$E$31,BOOKINGS!$A$5:$A$31,">=1-"&$G$3,BOOKINGS!$A$5:$A$31,"<="&$H$3&"-"&$G$3,BOOKINGS!$B$5:$B$31,$A61,BOOKINGS!$C$5:$C$31,"=FOB MILL",BOOKINGS!$D$5:$D$31,L$6))-SUMIFS(WITHDRAWALS!$F$5:$F$4000,WITHDRAWALS!$B$5:$B$4000,">=1-"&$G$3,WITHDRAWALS!$B$5:$B$4000,"<="&$H$3&"-"&$G$3,WITHDRAWALS!$C$5:$C$4000,$A61,WITHDRAWALS!$D$5:$D$4000,"=FOB MILL",WITHDRAWALS!$E$5:$E$4000,L$6)) -> 
A62: =IFERROR(INDEX(WITHDRAWALS!$C$5:$C$4000,SMALL(IF(FREQUENCY(IF(ISNUMBER(SEARCH("??"&TEXT($G$4,"mmm")&"??"&"|"&"?*"&"FOB MILL"&"|?*",WITHDRAWALS!$L$5:$L$4000)), MATCH(WITHDRAWALS!$C$5:$C$4000,WITHDRAWALS!$C$5:$C$4000,0)),Ivec),Ivec),ROWS($A$7:A62))),"") ->  | B62: =IF($A62="","",(SUMIFS(BOOKINGS!$E$5:$E$31,BOOKINGS!$A$5:$A$31,">=1-"&$G$3,BOOKINGS!$A$5:$A$31,"<="&$H$3&"-"&$G$3,BOOKINGS!$B$5:$B$31,$A62,BOOKINGS!$C$5:$C$31,"=FOB MILL",BOOKINGS!$D$5:$D$31,B$6))-SUMIFS(WITHDRAWALS!$F$5:$F$4000,WITHDRAWALS!$B$5:$B$4000,">=1-"&$G$3,WITHDRAWALS!$B$5:$B$4000,"<="&$H$3&"-"&$G$3,WITHDRAWALS!$C$5:$C$4000,$A62,WITHDRAWALS!$D$5:$D$4000,"=FOB MILL",WITHDRAWALS!$E$5:$E$4000,B$6)) ->  | C62: =IF($A62="","",(SUMIFS(BOOKINGS!$E$5:$E$31,BOOKINGS!$A$5:$A$31,">=1-"&$G$3,BOOKINGS!$A$5:$A$31,"<="&$H$3&"-"&$G$3,BOOKINGS!$B$5:$B$31,$A62,BOOKINGS!$C$5:$C$31,"=FOB MILL",BOOKINGS!$D$5:$D$31,C$6))-SUMIFS(WITHDRAWALS!$F$5:$F$4000,WITHDRAWALS!$B$5:$B$4000,">=1-"&$G$3,WITHDRAWALS!$B$5:$B$4000,"<="&$H$3&"-"&$G$3,WITHDRAWALS!$C$5:$C$4000,$A62,WITHDRAWALS!$D$5:$D$4000,"=FOB MILL",WITHDRAWALS!$E$5:$E$4000,C$6)) ->  | D62: =IF($A62="","",(SUMIFS(BOOKINGS!$E$5:$E$31,BOOKINGS!$A$5:$A$31,">=1-"&$G$3,BOOKINGS!$A$5:$A$31,"<="&$H$3&"-"&$G$3,BOOKINGS!$B$5:$B$31,$A62,BOOKINGS!$C$5:$C$31,"=FOB MILL",BOOKINGS!$D$5:$D$31,D$6))-SUMIFS(WITHDRAWALS!$F$5:$F$4000,WITHDRAWALS!$B$5:$B$4000,">=1-"&$G$3,WITHDRAWALS!$B$5:$B$4000,"<="&$H$3&"-"&$G$3,WITHDRAWALS!$C$5:$C$4000,$A62,WITHDRAWALS!$D$5:$D$4000,"=FOB MILL",WITHDRAWALS!$E$5:$E$4000,D$6)) ->  | E62: =IF($A62="","",(SUMIFS(BOOKINGS!$E$5:$E$31,BOOKINGS!$A$5:$A$31,">=1-"&$G$3,BOOKINGS!$A$5:$A$31,"<="&$H$3&"-"&$G$3,BOOKINGS!$B$5:$B$31,$A62,BOOKINGS!$C$5:$C$31,"=FOB MILL",BOOKINGS!$D$5:$D$31,E$6))-SUMIFS(WITHDRAWALS!$F$5:$F$4000,WITHDRAWALS!$B$5:$B$4000,">=1-"&$G$3,WITHDRAWALS!$B$5:$B$4000,"<="&$H$3&"-"&$G$3,WITHDRAWALS!$C$5:$C$4000,$A62,WITHDRAWALS!$D$5:$D$4000,"=FOB MILL",WITHDRAWALS!$E$5:$E$4000,E$6)) ->  | F62: =IF($A62="","",(SUMIFS(BOOKINGS!$E$5:$E$31,BOOKINGS!$A$5:$A$31,">=1-"&$G$3,BOOKINGS!$A$5:$A$31,"<="&$H$3&"-"&$G$3,BOOKINGS!$B$5:$B$31,$A62,BOOKINGS!$C$5:$C$31,"=FOB MILL",BOOKINGS!$D$5:$D$31,F$6))-SUMIFS(WITHDRAWALS!$F$5:$F$4000,WITHDRAWALS!$B$5:$B$4000,">=1-"&$G$3,WITHDRAWALS!$B$5:$B$4000,"<="&$H$3&"-"&$G$3,WITHDRAWALS!$C$5:$C$4000,$A62,WITHDRAWALS!$D$5:$D$4000,"=FOB MILL",WITHDRAWALS!$E$5:$E$4000,F$6)) ->  | G62: =IF($A62="","",(SUMIFS(BOOKINGS!$E$5:$E$31,BOOKINGS!$A$5:$A$31,">=1-"&$G$3,BOOKINGS!$A$5:$A$31,"<="&$H$3&"-"&$G$3,BOOKINGS!$B$5:$B$31,$A62,BOOKINGS!$C$5:$C$31,"=FOB MILL",BOOKINGS!$D$5:$D$31,G$6))-SUMIFS(WITHDRAWALS!$F$5:$F$4000,WITHDRAWALS!$B$5:$B$4000,">=1-"&$G$3,WITHDRAWALS!$B$5:$B$4000,"<="&$H$3&"-"&$G$3,WITHDRAWALS!$C$5:$C$4000,$A62,WITHDRAWALS!$D$5:$D$4000,"=FOB MILL",WITHDRAWALS!$E$5:$E$4000,G$6)) ->  | H62: =IF($A62="","",(SUMIFS(BOOKINGS!$E$5:$E$31,BOOKINGS!$A$5:$A$31,">=1-"&$G$3,BOOKINGS!$A$5:$A$31,"<="&$H$3&"-"&$G$3,BOOKINGS!$B$5:$B$31,$A62,BOOKINGS!$C$5:$C$31,"=FOB MILL",BOOKINGS!$D$5:$D$31,H$6))-SUMIFS(WITHDRAWALS!$F$5:$F$4000,WITHDRAWALS!$B$5:$B$4000,">=1-"&$G$3,WITHDRAWALS!$B$5:$B$4000,"<="&$H$3&"-"&$G$3,WITHDRAWALS!$C$5:$C$4000,$A62,WITHDRAWALS!$D$5:$D$4000,"=FOB MILL",WITHDRAWALS!$E$5:$E$4000,H$6)) ->  | I62: =IF($A62="","",(SUMIFS(BOOKINGS!$E$5:$E$31,BOOKINGS!$A$5:$A$31,">=1-"&$G$3,BOOKINGS!$A$5:$A$31,"<="&$H$3&"-"&$G$3,BOOKINGS!$B$5:$B$31,$A62,BOOKINGS!$C$5:$C$31,"=FOB MILL",BOOKINGS!$D$5:$D$31,I$6))-SUMIFS(WITHDRAWALS!$F$5:$F$4000,WITHDRAWALS!$B$5:$B$4000,">=1-"&$G$3,WITHDRAWALS!$B$5:$B$4000,"<="&$H$3&"-"&$G$3,WITHDRAWALS!$C$5:$C$4000,$A62,WITHDRAWALS!$D$5:$D$4000,"=FOB MILL",WITHDRAWALS!$E$5:$E$4000,I$6)) ->  | J62: =IF($A62="","",(SUMIFS(BOOKINGS!$E$5:$E$31,BOOKINGS!$A$5:$A$31,">=1-"&$G$3,BOOKINGS!$A$5:$A$31,"<="&$H$3&"-"&$G$3,BOOKINGS!$B$5:$B$31,$A62,BOOKINGS!$C$5:$C$31,"=FOB MILL",BOOKINGS!$D$5:$D$31,J$6))-SUMIFS(WITHDRAWALS!$F$5:$F$4000,WITHDRAWALS!$B$5:$B$4000,">=1-"&$G$3,WITHDRAWALS!$B$5:$B$4000,"<="&$H$3&"-"&$G$3,WITHDRAWALS!$C$5:$C$4000,$A62,WITHDRAWALS!$D$5:$D$4000,"=FOB MILL",WITHDRAWALS!$E$5:$E$4000,J$6)) ->  | K62: =IF($A62="","",(SUMIFS(BOOKINGS!$E$5:$E$31,BOOKINGS!$A$5:$A$31,">=1-"&$G$3,BOOKINGS!$A$5:$A$31,"<="&$H$3&"-"&$G$3,BOOKINGS!$B$5:$B$31,$A62,BOOKINGS!$C$5:$C$31,"=FOB MILL",BOOKINGS!$D$5:$D$31,K$6))-SUMIFS(WITHDRAWALS!$F$5:$F$4000,WITHDRAWALS!$B$5:$B$4000,">=1-"&$G$3,WITHDRAWALS!$B$5:$B$4000,"<="&$H$3&"-"&$G$3,WITHDRAWALS!$C$5:$C$4000,$A62,WITHDRAWALS!$D$5:$D$4000,"=FOB MILL",WITHDRAWALS!$E$5:$E$4000,K$6)) ->  | L62: =IF($A62="","",(SUMIFS(BOOKINGS!$E$5:$E$31,BOOKINGS!$A$5:$A$31,">=1-"&$G$3,BOOKINGS!$A$5:$A$31,"<="&$H$3&"-"&$G$3,BOOKINGS!$B$5:$B$31,$A62,BOOKINGS!$C$5:$C$31,"=FOB MILL",BOOKINGS!$D$5:$D$31,L$6))-SUMIFS(WITHDRAWALS!$F$5:$F$4000,WITHDRAWALS!$B$5:$B$4000,">=1-"&$G$3,WITHDRAWALS!$B$5:$B$4000,"<="&$H$3&"-"&$G$3,WITHDRAWALS!$C$5:$C$4000,$A62,WITHDRAWALS!$D$5:$D$4000,"=FOB MILL",WITHDRAWALS!$E$5:$E$4000,L$6)) -> 
A63: =IFERROR(INDEX(WITHDRAWALS!$C$5:$C$4000,SMALL(IF(FREQUENCY(IF(ISNUMBER(SEARCH("??"&TEXT($G$4,"mmm")&"??"&"|"&"?*"&"FOB MILL"&"|?*",WITHDRAWALS!$L$5:$L$4000)), MATCH(WITHDRAWALS!$C$5:$C$4000,WITHDRAWALS!$C$5:$C$4000,0)),Ivec),Ivec),ROWS($A$7:A63))),"") ->  | B63: =IF($A63="","",(SUMIFS(BOOKINGS!$E$5:$E$31,BOOKINGS!$A$5:$A$31,">=1-"&$G$3,BOOKINGS!$A$5:$A$31,"<="&$H$3&"-"&$G$3,BOOKINGS!$B$5:$B$31,$A63,BOOKINGS!$C$5:$C$31,"=FOB MILL",BOOKINGS!$D$5:$D$31,B$6))-SUMIFS(WITHDRAWALS!$F$5:$F$4000,WITHDRAWALS!$B$5:$B$4000,">=1-"&$G$3,WITHDRAWALS!$B$5:$B$4000,"<="&$H$3&"-"&$G$3,WITHDRAWALS!$C$5:$C$4000,$A63,WITHDRAWALS!$D$5:$D$4000,"=FOB MILL",WITHDRAWALS!$E$5:$E$4000,B$6)) ->  | C63: =IF($A63="","",(SUMIFS(BOOKINGS!$E$5:$E$31,BOOKINGS!$A$5:$A$31,">=1-"&$G$3,BOOKINGS!$A$5:$A$31,"<="&$H$3&"-"&$G$3,BOOKINGS!$B$5:$B$31,$A63,BOOKINGS!$C$5:$C$31,"=FOB MILL",BOOKINGS!$D$5:$D$31,C$6))-SUMIFS(WITHDRAWALS!$F$5:$F$4000,WITHDRAWALS!$B$5:$B$4000,">=1-"&$G$3,WITHDRAWALS!$B$5:$B$4000,"<="&$H$3&"-"&$G$3,WITHDRAWALS!$C$5:$C$4000,$A63,WITHDRAWALS!$D$5:$D$4000,"=FOB MILL",WITHDRAWALS!$E$5:$E$4000,C$6)) ->  | D63: =IF($A63="","",(SUMIFS(BOOKINGS!$E$5:$E$31,BOOKINGS!$A$5:$A$31,">=1-"&$G$3,BOOKINGS!$A$5:$A$31,"<="&$H$3&"-"&$G$3,BOOKINGS!$B$5:$B$31,$A63,BOOKINGS!$C$5:$C$31,"=FOB MILL",BOOKINGS!$D$5:$D$31,D$6))-SUMIFS(WITHDRAWALS!$F$5:$F$4000,WITHDRAWALS!$B$5:$B$4000,">=1-"&$G$3,WITHDRAWALS!$B$5:$B$4000,"<="&$H$3&"-"&$G$3,WITHDRAWALS!$C$5:$C$4000,$A63,WITHDRAWALS!$D$5:$D$4000,"=FOB MILL",WITHDRAWALS!$E$5:$E$4000,D$6)) ->  | E63: =IF($A63="","",(SUMIFS(BOOKINGS!$E$5:$E$31,BOOKINGS!$A$5:$A$31,">=1-"&$G$3,BOOKINGS!$A$5:$A$31,"<="&$H$3&"-"&$G$3,BOOKINGS!$B$5:$B$31,$A63,BOOKINGS!$C$5:$C$31,"=FOB MILL",BOOKINGS!$D$5:$D$31,E$6))-SUMIFS(WITHDRAWALS!$F$5:$F$4000,WITHDRAWALS!$B$5:$B$4000,">=1-"&$G$3,WITHDRAWALS!$B$5:$B$4000,"<="&$H$3&"-"&$G$3,WITHDRAWALS!$C$5:$C$4000,$A63,WITHDRAWALS!$D$5:$D$4000,"=FOB MILL",WITHDRAWALS!$E$5:$E$4000,E$6)) ->  | F63: =IF($A63="","",(SUMIFS(BOOKINGS!$E$5:$E$31,BOOKINGS!$A$5:$A$31,">=1-"&$G$3,BOOKINGS!$A$5:$A$31,"<="&$H$3&"-"&$G$3,BOOKINGS!$B$5:$B$31,$A63,BOOKINGS!$C$5:$C$31,"=FOB MILL",BOOKINGS!$D$5:$D$31,F$6))-SUMIFS(WITHDRAWALS!$F$5:$F$4000,WITHDRAWALS!$B$5:$B$4000,">=1-"&$G$3,WITHDRAWALS!$B$5:$B$4000,"<="&$H$3&"-"&$G$3,WITHDRAWALS!$C$5:$C$4000,$A63,WITHDRAWALS!$D$5:$D$4000,"=FOB MILL",WITHDRAWALS!$E$5:$E$4000,F$6)) ->  | G63: =IF($A63="","",(SUMIFS(BOOKINGS!$E$5:$E$31,BOOKINGS!$A$5:$A$31,">=1-"&$G$3,BOOKINGS!$A$5:$A$31,"<="&$H$3&"-"&$G$3,BOOKINGS!$B$5:$B$31,$A63,BOOKINGS!$C$5:$C$31,"=FOB MILL",BOOKINGS!$D$5:$D$31,G$6))-SUMIFS(WITHDRAWALS!$F$5:$F$4000,WITHDRAWALS!$B$5:$B$4000,">=1-"&$G$3,WITHDRAWALS!$B$5:$B$4000,"<="&$H$3&"-"&$G$3,WITHDRAWALS!$C$5:$C$4000,$A63,WITHDRAWALS!$D$5:$D$4000,"=FOB MILL",WITHDRAWALS!$E$5:$E$4000,G$6)) ->  | H63: =IF($A63="","",(SUMIFS(BOOKINGS!$E$5:$E$31,BOOKINGS!$A$5:$A$31,">=1-"&$G$3,BOOKINGS!$A$5:$A$31,"<="&$H$3&"-"&$G$3,BOOKINGS!$B$5:$B$31,$A63,BOOKINGS!$C$5:$C$31,"=FOB MILL",BOOKINGS!$D$5:$D$31,H$6))-SUMIFS(WITHDRAWALS!$F$5:$F$4000,WITHDRAWALS!$B$5:$B$4000,">=1-"&$G$3,WITHDRAWALS!$B$5:$B$4000,"<="&$H$3&"-"&$G$3,WITHDRAWALS!$C$5:$C$4000,$A63,WITHDRAWALS!$D$5:$D$4000,"=FOB MILL",WITHDRAWALS!$E$5:$E$4000,H$6)) ->  | I63: =IF($A63="","",(SUMIFS(BOOKINGS!$E$5:$E$31,BOOKINGS!$A$5:$A$31,">=1-"&$G$3,BOOKINGS!$A$5:$A$31,"<="&$H$3&"-"&$G$3,BOOKINGS!$B$5:$B$31,$A63,BOOKINGS!$C$5:$C$31,"=FOB MILL",BOOKINGS!$D$5:$D$31,I$6))-SUMIFS(WITHDRAWALS!$F$5:$F$4000,WITHDRAWALS!$B$5:$B$4000,">=1-"&$G$3,WITHDRAWALS!$B$5:$B$4000,"<="&$H$3&"-"&$G$3,WITHDRAWALS!$C$5:$C$4000,$A63,WITHDRAWALS!$D$5:$D$4000,"=FOB MILL",WITHDRAWALS!$E$5:$E$4000,I$6)) ->  | J63: =IF($A63="","",(SUMIFS(BOOKINGS!$E$5:$E$31,BOOKINGS!$A$5:$A$31,">=1-"&$G$3,BOOKINGS!$A$5:$A$31,"<="&$H$3&"-"&$G$3,BOOKINGS!$B$5:$B$31,$A63,BOOKINGS!$C$5:$C$31,"=FOB MILL",BOOKINGS!$D$5:$D$31,J$6))-SUMIFS(WITHDRAWALS!$F$5:$F$4000,WITHDRAWALS!$B$5:$B$4000,">=1-"&$G$3,WITHDRAWALS!$B$5:$B$4000,"<="&$H$3&"-"&$G$3,WITHDRAWALS!$C$5:$C$4000,$A63,WITHDRAWALS!$D$5:$D$4000,"=FOB MILL",WITHDRAWALS!$E$5:$E$4000,J$6)) ->  | K63: =IF($A63="","",(SUMIFS(BOOKINGS!$E$5:$E$31,BOOKINGS!$A$5:$A$31,">=1-"&$G$3,BOOKINGS!$A$5:$A$31,"<="&$H$3&"-"&$G$3,BOOKINGS!$B$5:$B$31,$A63,BOOKINGS!$C$5:$C$31,"=FOB MILL",BOOKINGS!$D$5:$D$31,K$6))-SUMIFS(WITHDRAWALS!$F$5:$F$4000,WITHDRAWALS!$B$5:$B$4000,">=1-"&$G$3,WITHDRAWALS!$B$5:$B$4000,"<="&$H$3&"-"&$G$3,WITHDRAWALS!$C$5:$C$4000,$A63,WITHDRAWALS!$D$5:$D$4000,"=FOB MILL",WITHDRAWALS!$E$5:$E$4000,K$6)) ->  | L63: =IF($A63="","",(SUMIFS(BOOKINGS!$E$5:$E$31,BOOKINGS!$A$5:$A$31,">=1-"&$G$3,BOOKINGS!$A$5:$A$31,"<="&$H$3&"-"&$G$3,BOOKINGS!$B$5:$B$31,$A63,BOOKINGS!$C$5:$C$31,"=FOB MILL",BOOKINGS!$D$5:$D$31,L$6))-SUMIFS(WITHDRAWALS!$F$5:$F$4000,WITHDRAWALS!$B$5:$B$4000,">=1-"&$G$3,WITHDRAWALS!$B$5:$B$4000,"<="&$H$3&"-"&$G$3,WITHDRAWALS!$C$5:$C$4000,$A63,WITHDRAWALS!$D$5:$D$4000,"=FOB MILL",WITHDRAWALS!$E$5:$E$4000,L$6)) -> 
A64: =IFERROR(INDEX(WITHDRAWALS!$C$5:$C$4000,SMALL(IF(FREQUENCY(IF(ISNUMBER(SEARCH("??"&TEXT($G$4,"mmm")&"??"&"|"&"?*"&"FOB MILL"&"|?*",WITHDRAWALS!$L$5:$L$4000)), MATCH(WITHDRAWALS!$C$5:$C$4000,WITHDRAWALS!$C$5:$C$4000,0)),Ivec),Ivec),ROWS($A$7:A64))),"") ->  | B64: =IF($A64="","",(SUMIFS(BOOKINGS!$E$5:$E$31,BOOKINGS!$A$5:$A$31,">=1-"&$G$3,BOOKINGS!$A$5:$A$31,"<="&$H$3&"-"&$G$3,BOOKINGS!$B$5:$B$31,$A64,BOOKINGS!$C$5:$C$31,"=FOB MILL",BOOKINGS!$D$5:$D$31,B$6))-SUMIFS(WITHDRAWALS!$F$5:$F$4000,WITHDRAWALS!$B$5:$B$4000,">=1-"&$G$3,WITHDRAWALS!$B$5:$B$4000,"<="&$H$3&"-"&$G$3,WITHDRAWALS!$C$5:$C$4000,$A64,WITHDRAWALS!$D$5:$D$4000,"=FOB MILL",WITHDRAWALS!$E$5:$E$4000,B$6)) ->  | C64: =IF($A64="","",(SUMIFS(BOOKINGS!$E$5:$E$31,BOOKINGS!$A$5:$A$31,">=1-"&$G$3,BOOKINGS!$A$5:$A$31,"<="&$H$3&"-"&$G$3,BOOKINGS!$B$5:$B$31,$A64,BOOKINGS!$C$5:$C$31,"=FOB MILL",BOOKINGS!$D$5:$D$31,C$6))-SUMIFS(WITHDRAWALS!$F$5:$F$4000,WITHDRAWALS!$B$5:$B$4000,">=1-"&$G$3,WITHDRAWALS!$B$5:$B$4000,"<="&$H$3&"-"&$G$3,WITHDRAWALS!$C$5:$C$4000,$A64,WITHDRAWALS!$D$5:$D$4000,"=FOB MILL",WITHDRAWALS!$E$5:$E$4000,C$6)) ->  | D64: =IF($A64="","",(SUMIFS(BOOKINGS!$E$5:$E$31,BOOKINGS!$A$5:$A$31,">=1-"&$G$3,BOOKINGS!$A$5:$A$31,"<="&$H$3&"-"&$G$3,BOOKINGS!$B$5:$B$31,$A64,BOOKINGS!$C$5:$C$31,"=FOB MILL",BOOKINGS!$D$5:$D$31,D$6))-SUMIFS(WITHDRAWALS!$F$5:$F$4000,WITHDRAWALS!$B$5:$B$4000,">=1-"&$G$3,WITHDRAWALS!$B$5:$B$4000,"<="&$H$3&"-"&$G$3,WITHDRAWALS!$C$5:$C$4000,$A64,WITHDRAWALS!$D$5:$D$4000,"=FOB MILL",WITHDRAWALS!$E$5:$E$4000,D$6)) ->  | E64: =IF($A64="","",(SUMIFS(BOOKINGS!$E$5:$E$31,BOOKINGS!$A$5:$A$31,">=1-"&$G$3,BOOKINGS!$A$5:$A$31,"<="&$H$3&"-"&$G$3,BOOKINGS!$B$5:$B$31,$A64,BOOKINGS!$C$5:$C$31,"=FOB MILL",BOOKINGS!$D$5:$D$31,E$6))-SUMIFS(WITHDRAWALS!$F$5:$F$4000,WITHDRAWALS!$B$5:$B$4000,">=1-"&$G$3,WITHDRAWALS!$B$5:$B$4000,"<="&$H$3&"-"&$G$3,WITHDRAWALS!$C$5:$C$4000,$A64,WITHDRAWALS!$D$5:$D$4000,"=FOB MILL",WITHDRAWALS!$E$5:$E$4000,E$6)) ->  | F64: =IF($A64="","",(SUMIFS(BOOKINGS!$E$5:$E$31,BOOKINGS!$A$5:$A$31,">=1-"&$G$3,BOOKINGS!$A$5:$A$31,"<="&$H$3&"-"&$G$3,BOOKINGS!$B$5:$B$31,$A64,BOOKINGS!$C$5:$C$31,"=FOB MILL",BOOKINGS!$D$5:$D$31,F$6))-SUMIFS(WITHDRAWALS!$F$5:$F$4000,WITHDRAWALS!$B$5:$B$4000,">=1-"&$G$3,WITHDRAWALS!$B$5:$B$4000,"<="&$H$3&"-"&$G$3,WITHDRAWALS!$C$5:$C$4000,$A64,WITHDRAWALS!$D$5:$D$4000,"=FOB MILL",WITHDRAWALS!$E$5:$E$4000,F$6)) ->  | G64: =IF($A64="","",(SUMIFS(BOOKINGS!$E$5:$E$31,BOOKINGS!$A$5:$A$31,">=1-"&$G$3,BOOKINGS!$A$5:$A$31,"<="&$H$3&"-"&$G$3,BOOKINGS!$B$5:$B$31,$A64,BOOKINGS!$C$5:$C$31,"=FOB MILL",BOOKINGS!$D$5:$D$31,G$6))-SUMIFS(WITHDRAWALS!$F$5:$F$4000,WITHDRAWALS!$B$5:$B$4000,">=1-"&$G$3,WITHDRAWALS!$B$5:$B$4000,"<="&$H$3&"-"&$G$3,WITHDRAWALS!$C$5:$C$4000,$A64,WITHDRAWALS!$D$5:$D$4000,"=FOB MILL",WITHDRAWALS!$E$5:$E$4000,G$6)) ->  | H64: =IF($A64="","",(SUMIFS(BOOKINGS!$E$5:$E$31,BOOKINGS!$A$5:$A$31,">=1-"&$G$3,BOOKINGS!$A$5:$A$31,"<="&$H$3&"-"&$G$3,BOOKINGS!$B$5:$B$31,$A64,BOOKINGS!$C$5:$C$31,"=FOB MILL",BOOKINGS!$D$5:$D$31,H$6))-SUMIFS(WITHDRAWALS!$F$5:$F$4000,WITHDRAWALS!$B$5:$B$4000,">=1-"&$G$3,WITHDRAWALS!$B$5:$B$4000,"<="&$H$3&"-"&$G$3,WITHDRAWALS!$C$5:$C$4000,$A64,WITHDRAWALS!$D$5:$D$4000,"=FOB MILL",WITHDRAWALS!$E$5:$E$4000,H$6)) ->  | I64: =IF($A64="","",(SUMIFS(BOOKINGS!$E$5:$E$31,BOOKINGS!$A$5:$A$31,">=1-"&$G$3,BOOKINGS!$A$5:$A$31,"<="&$H$3&"-"&$G$3,BOOKINGS!$B$5:$B$31,$A64,BOOKINGS!$C$5:$C$31,"=FOB MILL",BOOKINGS!$D$5:$D$31,I$6))-SUMIFS(WITHDRAWALS!$F$5:$F$4000,WITHDRAWALS!$B$5:$B$4000,">=1-"&$G$3,WITHDRAWALS!$B$5:$B$4000,"<="&$H$3&"-"&$G$3,WITHDRAWALS!$C$5:$C$4000,$A64,WITHDRAWALS!$D$5:$D$4000,"=FOB MILL",WITHDRAWALS!$E$5:$E$4000,I$6)) ->  | J64: =IF($A64="","",(SUMIFS(BOOKINGS!$E$5:$E$31,BOOKINGS!$A$5:$A$31,">=1-"&$G$3,BOOKINGS!$A$5:$A$31,"<="&$H$3&"-"&$G$3,BOOKINGS!$B$5:$B$31,$A64,BOOKINGS!$C$5:$C$31,"=FOB MILL",BOOKINGS!$D$5:$D$31,J$6))-SUMIFS(WITHDRAWALS!$F$5:$F$4000,WITHDRAWALS!$B$5:$B$4000,">=1-"&$G$3,WITHDRAWALS!$B$5:$B$4000,"<="&$H$3&"-"&$G$3,WITHDRAWALS!$C$5:$C$4000,$A64,WITHDRAWALS!$D$5:$D$4000,"=FOB MILL",WITHDRAWALS!$E$5:$E$4000,J$6)) ->  | K64: =IF($A64="","",(SUMIFS(BOOKINGS!$E$5:$E$31,BOOKINGS!$A$5:$A$31,">=1-"&$G$3,BOOKINGS!$A$5:$A$31,"<="&$H$3&"-"&$G$3,BOOKINGS!$B$5:$B$31,$A64,BOOKINGS!$C$5:$C$31,"=FOB MILL",BOOKINGS!$D$5:$D$31,K$6))-SUMIFS(WITHDRAWALS!$F$5:$F$4000,WITHDRAWALS!$B$5:$B$4000,">=1-"&$G$3,WITHDRAWALS!$B$5:$B$4000,"<="&$H$3&"-"&$G$3,WITHDRAWALS!$C$5:$C$4000,$A64,WITHDRAWALS!$D$5:$D$4000,"=FOB MILL",WITHDRAWALS!$E$5:$E$4000,K$6)) ->  | L64: =IF($A64="","",(SUMIFS(BOOKINGS!$E$5:$E$31,BOOKINGS!$A$5:$A$31,">=1-"&$G$3,BOOKINGS!$A$5:$A$31,"<="&$H$3&"-"&$G$3,BOOKINGS!$B$5:$B$31,$A64,BOOKINGS!$C$5:$C$31,"=FOB MILL",BOOKINGS!$D$5:$D$31,L$6))-SUMIFS(WITHDRAWALS!$F$5:$F$4000,WITHDRAWALS!$B$5:$B$4000,">=1-"&$G$3,WITHDRAWALS!$B$5:$B$4000,"<="&$H$3&"-"&$G$3,WITHDRAWALS!$C$5:$C$4000,$A64,WITHDRAWALS!$D$5:$D$4000,"=FOB MILL",WITHDRAWALS!$E$5:$E$4000,L$6)) -> 
